{"text_format":"1","workbook":"xlsx","n_sheets":7,"sheets":["деканаты","Предметы","форма","!справочники","отчисление","Для диплома","ВЫПУСКНИКИ"],"not_rendered":{"charts":0,"images":1,"macros":1,"external_links":6,"defined_names":17,"comments":0,"pivot_tables":0},"unopened":[],"bounds":{"document_bytes":16777216,"sheet_cells":100000,"rows_first":2000,"rows_last":500,"rows_between":2000,"halvings":0,"cell_chars":16384,"cell_head_chars":4096},"cells_cut":0,"cells_raw":0,"read":"whole","date_system":"1900"}

{"sheet":"деканаты","index":0,"n_rows":7,"n_cols":15,"rows_kept":7,"cut":false,"hidden":false,"merged":[[0,0,0,2],[0,11,0,14],[0,6,0,10]]}
["Факультет",null,null,"подпись декана",null,"Должность","Декан факультета",null,null,null,null,"Специалист по УМР"]
[2,"Экономический","Экфак","Н.А. Середа","экономического","И.о. декана","Середа","Надежда","Александровна",null,"доцент","О.В. Сосова","Сосова","Ольга","Васильевна"]
[3,"Архитектурно-строительный","АСФ","С.В. Цыбакин","архитектурно-строительного","Декан","Цыбакин","Сергей","Валерьевич","к.т.н.","доцент",".. "]
[4,"Агробизнеса","Агробизнес","Ю.В. Панкратов","агробизнеса","Декан","Панкратов","Юрий","Владимирович","к.сх.н.","доцент",".. "]
[5,"Ветеринарной медицины и зоотехнии","ВМиЗ","Н.Ю. Парамонова","ветеринарной медицины и зоотехнии","Декан","Парамонова","Наталья","Юрьевна","к.в.н.","доцент",".. "]
[6,"Инженерно-технологический","ИТФ","С.А. Полозов","инженерно-технологического","Декан","Полозов","Сергей","Александрович","к.т.н.","доцент","А.А. Шашкова","Шашкова","Анна","Андреевна"]
[7,"Электроэнергетический","ЭЭФ","А.В. Рожнов","электроэнергетического","Декан","Рожнов","Александр","Валентинович","к.т.н.","доцент",".. "]

{"sheet":"Предметы","index":1,"n_rows":121,"n_cols":283,"rows_kept":121,"cut":false,"hidden":false,"merged":[]}
[1,2,3,4,5,6,7,8,9,10,11,12,13,14,15,16,17,18,19,20,21,22,23,24,25,26,27,28,29,30,31,32,33,34,35,36,37,38,39,40,41,42,43,44,45,46,47,48,49,50,51,52,53,54,55,56,57,58,59,60,61,62,63,64,65,66,67,68,69,70,71,72,73,74,75,76,77,78,79,80,81,82,83,84,85,86,87,88,89,90,91,92,93,94,95,96,97,98,99,100,101,102,103,104,105,106,107,108,109,110,111,112,113,114,115,116,117,118,119,120,121,122,123,124,125,126,127,128,129,130,131,132,133,134,135,136,137,138,139,140,141,142,143,144,145,146,147,148,149,150,151,152,153,154,155,156,157,158,159,160,161,162,163,164,165,166,167,168,169,170,171,172,173,174,175,176,177,178,179,180,181,182,183,184,185,186,187,188,189,190,191,192,193,194,195,196,197,198,199,200,201,202,203,204,205,206,207,208,209,210,211,212,213,214,215,216,217,218,219,220,221,222,223,224,225,226,227,228,229,230,231,232,233,234,235,236,237,238,239,240,241,242,243,244,245,246,247,248,249,250,251,252,253,254,255,256,257,258,259,260,261,262,263,264,265,266,267]
[null,null,null,null,null,null,null,null,null,null,null,null,null,null,null,null,null,null,null,null,null,null,null,null,null,null,null,null,null,null,null,null,null,null,null,null,null,null,null,null,null,null,null,null,null,null,null,null,null,null,null,null,null,null,null,null,null,null,null,null,null,null,null,null,null,null,null,null,null,null,null,null,null,null,null,null,null,null,null,null,2,null,null,2,null,null,2,null,null,2,null,null,2,null,null,2,null,null,2,null,null,2,null,null,3,null,null,3,null,null,3,null,null,3,null,null,3,null,null,4,null,null,4,null,null,4,null,null,4,null,null,4,null,null,4,null,null,4,null,null,4,null,null,4,null,null,5,null,null,5,null,null,5,null,null,5,null,null,5,null,null,6,null,null,6,null,null,6,null,null,6,null,null,6,null,null,6,null,null,6,null,null,6,null,null,7,null,null,7,null,null,7,null,null,7,null,null,7,null,null,7,null,null,7,null,null,8,null,null,8,null,null,8,null,null,8,null,null,8,null,null,8,null,null,8,null,null,9,null,null,9,null,null,9,null,null,9,null,null,9,null,null,9,null,null,9,null,null,9,null,null,9,null,null,9,null,null,9,null,null,9,null,null,10,null,null,10]
[null,null,null,null,null,null,null,null,null,null,null,null,null,null,null,null,null,null,null,null,null,null,null,null,null,null,null,null,null,null,null,null,null,null,null,null,null,null,null,null,null,null,null,null,null,null,null,null,null,null,null,null,null,null,null,null,null,null,null,null,null,null,null,null,null,null,null,null,null,null,null,null,null,null,null,null,null,null,null,null,216,null,null,108,null,null,108,null,null,72,null,null,216,null,null,252,null,null,360,null,null,216,null,null,97,null,null,72,null,null,180,null,null,144,null,null,136,null,null,108,null,null,119,null,null,188,null,null,180,null,null,360,null,null,72,null,null,"328час.",null,null,72,null,null,null,null,null,144,null,null,144,null,null,216,null,null,216,null,null,144,null,null,144,null,null,72,null,null,144,null,null,null,null,null,108,null,null,180,null,null,null,null,null,null,null,null,144,null,null,null,null,null,144,null,null,180,null,null,180,null,null,null,null,null,144,null,null,144,null,null,108,null,null,216,null,null,180,null,null,180,null,null,null,null,null,null,null,null,144,null,null,72,null,null,108,null,null,108,null,null,144,null,null,null,null,null,180,null,null,180,null,null,180,null,null,144,null,null,108,null,null,72]
[0,"Фамилия","Имя","Отчество","ФИО","ФИО","Фамилия","Имя","Отчество","Дата","Место","Гражданство","Пол","Что окончил(а)","Год","Семейное",null,"Трудовая книжка",null,null,"Паспорт",null,null,null,"№",null,null,null,"Профиль/специализация","Срок обучения","Квалификация","Приказ","Дата","вид зачисления","контракта/договора",null,"Переведен на бюджет",null,"Отчислен",null,null,"Восстановлен",null,null,"Академический отпуск",null,null,null,null,"Переводной приказ \n1 курс",null,"Переводной приказ \n2 курс",null,"Переводной приказ \n3 курс",null,"Переводной приказ \n4 курс",null,"Переводной приказ \n5 курс",null,"Переводной приказ \n6 курс",null,"допуск к защите дипломного проекта",null,"гос. экзамен",null,null,null,null,null,"Диплом",null,null,null,null,null,null,null,null,null,null,"1курс",null,null,null,null,null,null,null,null,null,null,null,null,null,null,null,null,null,null,null,null,null,null,null,"2курс",null,null,null,null,null,null,null,null,null,null,null,null,null,null,null,null,null,null,null,null,null,null,null,null,null,null,null,null,null,null,null,null,null,null,null,null,null,null,null,null,null,"3 курс",null,null,null,null,null,null,null,null,null,null,null,null,null,null,null,null,null,null,null,null,null,null,null,null,null,null,null,null,null,null,null,null,null,null,null,null,null,null,"4 курс",null,null,null,null,null,null,null,null,null,null,null,null,null,null,null,null,null,null,null,null,null,null,null,null,null,null,null,null,null,null,null,null,null,null,null,null,null,null,null,null,null,"5 курс",null,null,null,null,null,null,null,null,null,null,null,null,null,null,null,null,null,null,null,null,null,null,null,null,null,null,null,null,null,null,null,null,null,null,null,null,null,null,null,null,null,null,null,"Оценки по предметам"]
[0,null,null,null,null,"Дател.Падеж","Дател.Падеж","Дател.Падеж","Дател.Падеж","рождения","рождения",null,null,null,"окончания","положение","Адрес места жительства","Номер","Дата выдачи","кем выдана","серия","Номер","Дата выдачи","кем выдан","зачетной книжки","Факультет","Направление/специальность",null,null,null,null,null,null,null,"договора","Дата","договора","Дата","Приказ","Дата","Причина отчисления","Приказ","Дата","Причина востановления","Приказ","Дата","Причина","сдаты","подату","Приказ","Дата","Приказ","Дата","Приказ","Дата","Приказ","Дата","Приказ","Дата","Приказ","Дата","Приказ","Дата","Название экзамена","Дата","оценка","Название экзамена","Дата","оценка","Тема","оценка","протокола","Дата защиты","Отличие","Регистр. №","Серия","Номер","Дата выдачи","Курс","Группа","Делопроизводство и документооборот в финансовой сфере",null,null,"Введение в профессию и основы научных исследований",null,null,"История",null,null,"Психология",null,null,"Математический анализ",null,null,"Линейная алгебра",null,null,"Информатика и информационное обеспечение финансовой деятельности",null,null,"Микроэкономика",null,null,"Иностранный язык (З)",null,null,"Социология",null,null,"Политология",null,null,"Теория вероятностей и математическая статистика",null,null,"Макроэкономика (З)",null,null,"Философия",null,null,"Иностранный язык",null,null,"Макроэкономика",null,null,"Эконометрика",null,null,"Статистика",null,null,"Физическая культура и спорт",null,null,"Общая физическая подготовка",null,null,"Деловые коммуникации",null,null,"Практика по ПППУ и Н",null,null,"Методы оптимальных решений",null,null,"Информационные технологии и базы данных в сфере финансов и кредита",null,null,"Программирование финансовых операций",null,null,"Бухгалтерский учет и анализ",null,null,"Мировая экономика и международные экономические отношения",null,null,"Регионалистика",null,null,"Методы принятия управленческих решений в сфере финансов и кредита",null,null,"Финансы",null,null,"Финансы (КР)",null,null,"Деньги, кредит, банки",null,null,"Моделирование социально-экономических систем",null,null,"Моделирование социально-экономических систем (КП)",null,null,"Практика по ППУ и ОПД",null,null,"Корпоративные финансы",null,null,"Корпоративные финансы (КР)",null,null,"Страхование",null,null,"Финансовые рынки",null,null,"Экономика организаций (предприятий)",null,null,"Экономика организаций (предприятий) (КР)",null,null,"Планирование на предприятии",null,null,"Менеджмент",null,null,"Государственные и муниципальные финансы",null,null,"Налоги и налоговая система",null,null,"Международные валютно-кредитные и финансовые отношения",null,null,"Анализ финансовой отчетности",null,null,"Анализ финансовой отчетности (КР)",null,null,"Производственная практика (технологическая)",null,null,"Право",null,null,"Безопасность жизнедеятельности",null,null,"Маркетинг",null,null,"Макроэкономическое планирование и прогнозирование",null,null,"Инвестиции",null,null,"Инвестиции (КР)",null,null,"Финансовый менеджмент",null,null,"Оценка стоимости бизнеса",null,null,"Финансовая политика",null,null,"Банковское дело",null,null,"Организация, нормирование и оплата труда на предприятии",null,null,"Практикум 1С: Бухгалтерия",null,null,"НИР",null,null,"Преддипломная практика",null,null,"Средний балл",null,"из них с оценками 3","из них с оценками 4","из них с оценками 5","из них с зачетомом","итого предметов","Часы всего","из них аудиторных","из них с оценками 3","из них с оценками 4","из них с оценками 5",null,"Количество долгов"]
[{"$f":"A5+1","v":1},"Коногоров","Андрей","Евгеньевич",{"$f":"CONCATENATE(B6,\" \",LEFT(C6,1),\". \",LEFT(D6,1),\".\")","v":"Коногоров А. Е."},{"$f":"DativeCase(CONCATENATE(B6,\"\",C6,\"\",D6))","v":{"$error":"#NAME?"}},"Коногорову","Андрею","Евгеньевичу","1989-09-12","г.Кострома","РФ","м","МОУ лицей №41 города Костромы",2007,"холост","г.Кострома,  проезд Окружной-5й,  д. 4, кв. 46",null,null,null,null,null,null,null,"07130","Экономический","38.03.00","Экономика","Финансы и кредит","5 лет","БАКАЛАВР","2-367","2007-08-09","по договору с полным возмещением затрат","186","2007-08-02",null,null,null,null,null,null,null,null,"2-402\n2-448","18.05.2017\n18.05.2018","по семейным обстоятельствам\nпо семейным обстоятельствам","10.05.2017\n18.05.2018","10.05.2018\n17.05.2019",null,null,null,null,"2-656","2015-10-06","2-402","2017-05-18",null,null,null,null,null,null,null,null,null,null,null,null,"Анализ оборотных активов и пути ускорения их оборачиваемости в ООО «Бизнес Отель» г.Кострома",null,null,null,null,null,null,null,null,5,"АО",null,null,null,6,"2018-05-18",925,4,"п/зач",null,6,"п/зач",null,3,"п/зач",null,3,"п/зач",null,3,"п/зач",null,3,"п/зач",null,6,"п/зач",null,6,"п/зач",null,3,"2016-04-12",null,3,"п/зач",null,6,"2016-06-09",null,6,"п/зач",null,3,"п/зач",null,4,"2015-12-11",null,3,"2018-05-14",null,3,"2018-04-19",698,6,"п/зач",null,null,null,null,null,null,null,null,null,null,3,"2016-12-22",null,3,"2018-04-10",624,3,"2016-02-24",null,3,"п/зач",null,3,"п/зач",null,5,"2015-11-13",null,6,"2016-02-24",null,3,"п/зач",null,4,"п/зач",null,4,"п/зач",null,3,"2018-05-18",875,3,"2018-05-18",null,null,null,null,3,"2018-04-25",765,3,"2018-04-16","Денежные средства и организация \nрасчетов корпораций на примере ПАО \"Лукойл\"",3,"2016-12-26",null,4,"2018-02-02",null,3,"п/зач",null,3,"п/зач","Пути повышения финансовых результатов на примере ООО \"Мечта\"",4,"2018-03-13",520,4,"п/зач",null,3,"2016-06-02",null,3,"2016-04-08",null,3,"2016-04-05",null,3,"2016-04-14",null,3,"2018-04-04","Анализ дебиторской и кредиторской задолженности СПК \"Красное\" Ярославского района Ярославской области",3,"2018-05-18",null,3,"п/зач",null,6,"п/зач",null,3,"п/зач",null,3,"31.11.16",null,3,"2018-03-14",529,3,"2018-04-04","АнализинвестиционнодеятельностиООО\"КлючЗдороья\"г.Кострома",4,"2016-11-02",null,4,"2016-11-02",null,4,"2015-04-04",null,4,"2016-11-02",null,6,"п/зач",null,6,"2016-11-02",null,4,"2018-05-04","ФГБОУ ВО Костромская ГСХА, кафедра \"Финансы и кредит\"",null,null,"ООО \"БизнесОтель\" г.Кострома",{"$f":"(JL6*3+JM6*4+JN6*5)/50","v":3.04},null,{"$f":"COUNTIF(CC6:JG6,3)","v":33},{"$f":"COUNTIF(CC6:JG6,4)","v":12},{"$f":"COUNTIF(CC6:JG6,5)","v":1},{"$f":"COUNTIF(CC6:JG6,6)","v":11},{"$f":"SUM(JL6:JN6)","v":46},{"$f":"SUMIF(CC6:JG6,\">0\",$CC$3:$JG$3)","v":7560},{"$f":"INT(JQ6/8+0.5)","v":945}]
[{"$f":"A6+1","v":2},"Ушков","Дмитрий","Алексеевич",{"$f":"CONCATENATE(B7,\" \",LEFT(C7,1),\". \",LEFT(D7,1),\".\")","v":"Ушков Д. А."},{"$f":"DativeCase(CONCATENATE(B7,\"\",C7,\"\",D7))","v":{"$error":"#NAME?"}},"Ушкову","Дмитрию","Алексеевичу","1994-09-01","г.Галич Костромскойобл.","РФ","м","МОУ лицей3 г.Галич",2012,"холост"," Костромская обл., г.Галич, ул. Свердлова,  д. 25",null,null,null,null,null,null,null,160022,"Экономический","38.03.08","Экономика","Финансы и кредит","5 лет","БАКАЛАВР","2-553","2012-08-05","по договору с полным возмещением затрат","556-2012","2012-07-24",null,null,null,null,null,null,null,null,"2-289\n2-448","17.05.2016\n18.05.2018","в связи с призывом в ряды РФ\nпо семейным обстоятельствам","13.05.2016\n18.05.2018","12.05.2017\n17.05.2019","2-728","2013-11-25","2-533","2014-09-01","2-571","2015-09-01","2-339","2018-05-03",null,null,null,null,null,null,null,null,null,null,null,null,"Анализ в системе управления заемным капиталом ООО «Ладыгино» Галичского района Костромской области",null,null,null,null,null,null,null,null,5,"АО",3,"2017-11-01",null,6,"2017-11-01",null,4,"п/зач",null,6,"п/зач",null,3,"п/зач",null,3,"п/зач",null,3,"п/зач",null,3,"п/зач",null,6,"п/зач",null,6,"п/зач",null,3,"п/зач",null,3,"п/зач",null,6,"п/зач",null,6,"п/зач",null,3,"п/зач",null,3,"п/зач",null,3,"2018-04-19",696,3,"п/зач",null,6,"п/зач",null,null,null,null,null,null,null,4,"п/зач",null,3,"2018-05-17",888,3,"п/зач",null,3,"п/зач",null,3,"п/зач",null,3,"п/зач",null,4,"п/зач",null,null,null,null,3,"п/зач",null,3,"2018-05-11",null,4,"п/зач",null,3,"п/зач",null,3,"п/зач",null,3,"п/зач",null,3,"2017-12-06",null,4,"23.01.2018",null,3,"2018-04-26",775,3,"2018-02-06",null,3,"п/зач",null,3,"2018-04-16",null,3,"2018-02-27",512,3,"п/зач",null,4,"2016-04-07",null,3,"2016-04-08",null,3,"2016-04-05",null,3,"2016-04-14",null,4,"2018-05-16","Оценка риска вероятности банкротства предприятия ОАО \"Ладыгино\" Галичского района Костромской области",3,"п/зач",null,3,"п/зач",null,6,"п/зач",null,4,"2017-11-01",null,4,"2017-11-01",null,4,"2017-11-01",null,3,"2018-05-14",null,3,"2017-11-01",null,4,"2017-11-01",null,5,"2017-11-01",null,4,"2017-11-01",null,6,"2017-11-01",null,6,"2017-11-01",null,4,"2018-03-20","ФГБОУ ВО Костромская ГСХА, кафедра \"Финансы и кредит\"",null,null,"ООО \"Ладыгино\" Галичского р-на Костромской обл.",3.24,null,{"$f":"COUNTIF(CC7:JG7,3)","v":35},{"$f":"COUNTIF(CC7:JG7,4)","v":13},{"$f":"COUNTIF(CC7:JG7,5)","v":1},{"$f":"COUNTIF(CC7:JG7,6)","v":10},{"$f":"SUM(JL7:JN7)","v":49},{"$f":"SUMIF(CC7:JG7,\">0\",$CC$3:$JG$3)","v":7704},{"$f":"INT(JQ7/8+0.5)","v":963}]
[{"$f":"A7+1","v":3},"Беляев","Алексей","Александрович",{"$f":"CONCATENATE(B8,\" \",LEFT(C8,1),\". \",LEFT(D8,1),\".\")","v":"Беляев А. А."},{"$f":"DativeCase(CONCATENATE(B8,\"\",C8,\"\",D8))","v":{"$error":"#NAME?"}},"Беляеву","Алексею","Александровичу","1986-03-27","с.Михайловица Пыщугского р-на Костромской обл.","РФ","м","ФГОУ СПО \"Костромской автотранспортный техникум\"",2005,"холост","Костромская обл., Костромской р-н, дер.Деньгино,  д. 7",null,null,null,null,null,null,null,139105,"Экономический","38.03.08","Экономика","Финансы и кредит","5 лет","БАКАЛАВР","2-784","2013-12-16","в связи с переводом из ФГБОУ ВО \"Ярославский государственный технический университет\"","000001783","2013-10-08",null,null,null,null,null,null,null,null,"2-491\n2-448","06.06.2017\n31.05.2018","по семейным обстоятельствам\nпо семейным обстоятельствам\n","24.05.2017\n23.05.2018","23.05.2018\n22.05.2018",null,null,"2-532","2014-09-01","2-571","2015-09-01","2-561","2016-09-01",null,null,null,null,null,null,null,null,null,null,null,null,null,null,null,null,null,null,null,null,null,5,"АО",null,null,null,null,null,null,5,"п/зач",null,6,"2013-12-11",null,3,"п/зач",null,3,"п/зач",null,4,"п/зач",null,3,"2014-04-18",null,6,"п/зач",null,6,"2013-12-11",null,5,"2013-12-13",null,4,"2013-12-19",null,6,"2013-12-14",null,6,"п/зач",null,3,"п/зач",null,4,"2014-04-18",null,3,"2014-04-22",null,4,"2014-04-23",null,6,"п/зач",null,null,null,null,null,null,null,4,"п/зач",null,4,"2014-11-28",null,3,"2014-12-05",null,3,"2014-12-04",null,3,"2014-11-20",null,4,"2014-11-25",null,5,"2015-05-18",null,6,"2015-05-23",null,3,"2015-05-29",null,null,null,null,4,"2015-05-25",null,3,"2015-05-28",null,3,"29.05.2015",null,3,"п/зач",null,3,"2015-12-04",null,null,null,null,3,"2015-12-15",null,4,"2015-12-11",null,4,"2015-12-16",null,4,"14.12.2015",null,3,"2015-11-26",null,4,"2016-04-14",null,3,"2016-04-07",null,3,"2016-04-08",null,3,"2016-04-05",null,4,"2016-04-14",null,3,"26.10.2016",null,4,"2017-03-31",null,3,"2016-11-02",null,6,"2017-05-23",null,null,null,null,3,"2017-04-27",null,3,"2017-02-15",null,3,"15.02.2017",null,null,null,null,3,"2016-11-02",null,null,null,null,4,"2016-11-02",null,null,null,null,null,null,null,null,null,null,null,null,null,2.94,null,{"$f":"COUNTIF(CC8:JG8,3)","v":24},{"$f":"COUNTIF(CC8:JG8,4)","v":15},{"$f":"COUNTIF(CC8:JG8,5)","v":3},{"$f":"COUNTIF(CC8:JG8,6)","v":8},{"$f":"SUM(JL8:JN8)","v":42},{"$f":"SUMIF(CC8:JG8,\">0\",$CC$3:$JG$3)","v":6804},{"$f":"INT(JQ8/8+0.5)","v":851}]
[{"$f":"A8+1","v":4},"Беззапонная","Светлана","Сергеевна",{"$f":"CONCATENATE(B9,\" \",LEFT(C9,1),\". \",LEFT(D9,1),\".\")","v":"Беззапонная С. С."},null,"Беззапонной","Светлане","Сергеевне","1996-05-10","с.м. Качкары, Новоазовского р-на Донецкойобл.","РФ","ж","МБОУ г.Костромы \"Гимназия №25\"",2014,"незамужем","г.Кострома,  ул. 2-я Дорожная,  д. 1/13, кв. 2",null,null,null,null,null,null,null,14528,"Экономический","38.03.12","Экономика","Финансы и кредит","5 лет","БАКАЛАВР","2-524","2014-08-21","по договору с полным возмещением затрат","000002739","2014-08-04",null,null,null,null,null,null,null,null,null,null,null,null,null,"2-569","2015-08-31","2-554","2017-06-16","2-703","2017-09-01",null,null,null,null,null,null,null,null,null,null,null,null,null,null,null,null,null,null,null,null,null,null,null,4,"241z",null,null,null,6,"2018-04-13",76810137,3,"п/зач",null,6,"п/зач",null,3,"п/зач",null,3,"2016-12-26",129,5,"2017-05-29",729,0,null,null,6,"п/зач",null,6,"2015-12-22",null,4,"2016-12-26",131,3,"2015-12-25",null,6,"2015-12-24",null,6,"2016-04-27",null,4,"2016-04-16",null,4,"2016-04-19",null,4,"2016-04-27",null,5,"2016-04-23",null,null,null,null,6,"п/зач",null,null,null,null,4,null,null,3,"2016-12-05","Z-6278434",4,"2016-12-05","Z-6278431",3,"2016-12-05","Z-6278889",4,"2016-12-05","Z-6278442",4,"2016-11-24","Z-6278577",5,"2017-05-30","Z-6278581",6,"2017-05-30","Z-6278435",3,"2017-05-30","Z-6278436",4,"30.05.2017","Экономическая характеристика расходов\nфедерального бюджета",4,"2017-05-30","Z-6278452",5,"2017-05-30","Z-6278448",5,"30.05.2017","Оптимизация структуры кормопроизводства предприятия агропромышленного комплекса",null,null,null,4,"2017-12-06",null,null,null,null,5,"2017-12-06","Z-7689579",4,"2017-12-06","Z-7689592",3,"2017-12-06","Z-7689508",3,"06.12.2017","Формирование и использование прибыли \nорганизации (предприятия)",4,"2017-12-06","Z-7689717",5,"2018-04-13",7689488,4,"2018-04-13",7689580,5,"2018-04-13",7689577,4,"2018-04-13",7689583,5,"2018-04-13",7689559,4,"2018-04-13","Анализ финансовых результатов деятельности \nпредприятия",null,null,"ООО \"Макдоналдс\" г.Кострома",5,"п/зач",null,null,null,null,null,null,null,null,null,null,null,null,null,null,null,null,null,null,null,null,null,null,null,null,null,null,null,null,null,null,null,null,null,null,null,null,null,null,null,null,2.82,null,{"$f":"COUNTIF(CC9:JG9,3)","v":9},{"$f":"COUNTIF(CC9:JG9,4)","v":16},{"$f":"COUNTIF(CC9:JG9,5)","v":10},{"$f":"COUNTIF(CC9:JG9,6)","v":8},{"$f":"SUM(JL9:JN9)","v":35},{"$f":"SUMIF(CC9:JG9,\">0\",$CC$3:$JG$3)","v":5976},{"$f":"INT(JQ9/8+0.5)","v":747}]
[{"$f":"A9+1","v":5},"Беляева(Городкова)","Алёна","Ивановна",{"$f":"CONCATENATE(B10,\" \",LEFT(C10,1),\". \",LEFT(D10,1),\".\")","v":"Беляева(Городкова) А. И."},null,"Беляевой","Алёне","Ивановне","1995-09-17","д. Афанасово Красносельского р-на","РФ","ж","Красносельская СОШ №134",2013,"замужем","Костромская обл., Красносельский р-н,  пгт Красное-на-Волге ул. П.А. Вяземского, д.24",null,null,null,null,null,null,null,13524,"Экономический","38.03.13","Экономика","Финансы и кредит","5 лет","БАКАЛАВР","2-509","2013-08-05","по договору с полным возмещением затрат","000000582","2013-07-09",null,null,"2-608",42262,"за академическую неуспеваемость","2-656",42283,null,null,null,null,null,null,"2-533","2014-09-01","2-561","2016-09-01","2-703","2017-09-01",null,null,null,null,null,null,null,null,null,null,null,null,null,null,null,null,null,null,null,null,null,null,null,4,"241z",null,null,null,6,"2018-04-13",76810137,3,"2016-09-21",1590,6,"п/зач",null,3,"п/зач",null,3,"п/зач",null,3,"2017-05-26",946,3,"п/зач",null,6,"п/зач",null,6,"2015-12-22",null,3,"2015-12-26",null,3,"п/зач",null,6,"2015-12-24",null,6,"2016-04-27",null,3,"2016-06-11",null,3,null,null,3,"2016-04-27",null,4,"2016-04-23",null,null,null,null,6,"п/зач",null,null,null,null,3,"п/зач",null,3,"2016-12-05","Z-6278434",3,"2016-12-05","Z-6278431",3,"2016-12-05","Z-6278889",3,"2017-05-29",958,3,"2016-11-24","Z-6278577",5,"2017-05-30","Z-6278581",6,"2017-05-30","Z-6278435",4,"2017-05-30","Z-6278436",4,"30.05.2017","Управление финансами России",4,"2017-05-30","Z-6278452",3,"2017-05-30","Z-6278448",3,"30.05.2017","Оптимизация структуры кормопроизводства предприятия агропромышленного комплекса",null,null,null,4,"2017-12-06","Z-7689567",3,"06.12.2017","Раходы ООО \"Агрофирма Планета\" Буйского района Костромской области и пути их снижения",4,"2017-12-06","Z-7689579",4,"2017-12-06","Z-7689592",3,"2017-12-06","Z-7689508",4,"06.12.2017","Эффективность использования основных \nсредств организации (предприятия)",4,"2017-12-06","Z-7689717",5,"2018-04-13",7689488,4,"2018-04-13",7689580,4,"2018-04-13",7689577,5,"2018-04-13",7689583,4,"2018-04-13",7689559,3,"2018-04-13","Анализ дебиторской и кредиторской задолженности \nпредприятия",null,null,"ООО \"Нерехта-хлебопродукт\" г.Нерехта Костромской обл.",null,null,null,6,"п/зач",null,null,null,null,null,null,null,null,null,null,null,null,null,null,null,null,null,null,null,null,null,null,null,null,null,null,null,null,null,null,null,null,null,null,null,null,null,2.52,null,{"$f":"COUNTIF(CC10:JG10,3)","v":21},{"$f":"COUNTIF(CC10:JG10,4)","v":12},{"$f":"COUNTIF(CC10:JG10,5)","v":3},{"$f":"COUNTIF(CC10:JG10,6)","v":9},{"$f":"SUM(JL10:JN10)","v":36},{"$f":"SUMIF(CC10:JG10,\">0\",$CC$3:$JG$3)","v":6120},{"$f":"INT(JQ10/8+0.5)","v":765}]
[{"$f":"A10+1","v":6},"Вихарева","Анна","Витальевна",{"$f":"CONCATENATE(B11,\" \",LEFT(C11,1),\". \",LEFT(D11,1),\".\")","v":"Вихарева А. В."},null,"Вихаревой","Анне","Витальевне","1993-08-08","с.Павино Павинского р-на Костромскойобл.","РФ","ж","Павинская СОШ Костромской обл.",2011,"незамужем","Костромская обл., Павинский р-н, с.Павино, ул. Юбилейная 13-1",null,null,null,null,null,null,null,14903,"Экономический","38.03.15","Экономика","Финансы и кредит","5 лет","БАКАЛАВР","2-525","2014-08-21","по договору с полным возмещением затрат","000002855","2014-08-12",null,null,null,null,null,null,null,null,null,null,null,null,null,"2-571","2015-09-01","2-561","2016-09-01","2-703","2017-09-01",null,null,null,null,null,null,null,null,null,null,null,null,null,null,null,null,null,null,null,null,null,null,null,4,"241z",null,null,null,6,"2018-04-13",76810137,3,"2015-06-01",null,6,"2015-06-02",null,3,"2015-06-02",null,3,"2015-06-06",null,4,"2015-05-30",null,3,"2016-07-01",null,6,"2015-12-22",null,6,"2015-12-22",null,4,"2015-12-26",null,3,"2015-12-25",null,6,"2015-12-24",null,6,"2016-04-27",null,4,"2016-06-11",null,4,"2016-04-19",null,3,"2016-04-27",null,4,"2016-04-23",null,null,null,null,6,"2015-05-22",null,null,null,null,4,"2017-05-22",840,3,"2016-12-05","Z-6278434",4,"2016-12-05","Z-6278431",4,"2016-12-05","Z-6278889",4,"2016-12-05","Z-6278442",5,"2016-11-24","Z-6278577",5,"2017-05-30","Z-6278581",6,"30.05.2017й","Z-6278435",4,"2017-05-30","Z-6278436",4,"30.05.2017","Экономическая характеристика доходов бюджетной системы",4,"2017-05-30","Z-6278452",5,"2017-05-30","Z-6278448",4,"30.05.2017","Оптимизация сочетания отраслей и специализации предприятия\nагропромышленногокомплекса",null,null,null,5,"2017-12-06","Z-7689567",4,"06.12.2017","Формирование, распределение и использование доходов корпораций, пути их увеличения (на примере  ООО \"Воскресенье-Агро\" Буйского района Костромской области)",5,"2017-12-06","Z-7689579",4,"2017-12-06","Z-7689592",4,"2017-12-06","Z-7689508",4,"06.12.2017","Эффективность использования основных \nсредств организации (предприятия)",4,"2017-12-06","Z-7689717",5,"2018-04-13",7689488,4,"2018-04-13",7689580,5,"2018-04-13",7689577,4,"2018-04-13",7689583,5,"2018-04-13",7689559,5,"2018-04-13","Анализ собственного капитала предприятия",null,null,"ООО \"Русфинансбанк\" г.Кострома",null,null,null,null,null,null,null,null,null,null,null,null,null,null,null,null,null,null,null,null,null,null,null,null,null,null,null,null,null,null,null,null,null,null,null,null,null,null,null,null,null,null,2.92,null,{"$f":"COUNTIF(CC11:JG11,3)","v":7},{"$f":"COUNTIF(CC11:JG11,4)","v":20},{"$f":"COUNTIF(CC11:JG11,5)","v":9},{"$f":"COUNTIF(CC11:JG11,6)","v":8},{"$f":"SUM(JL11:JN11)","v":36},{"$f":"SUMIF(CC11:JG11,\">0\",$CC$3:$JG$3)","v":6048},{"$f":"INT(JQ11/8+0.5)","v":756}]
[{"$f":"A11+1","v":7},"Двинских","Виктория","Максимовна",{"$f":"CONCATENATE(B12,\" \",LEFT(C12,1),\". \",LEFT(D12,1),\".\")","v":"Двинских В. М."},null,"Двинских","Виктории","Максимовне","1995-01-24","г.Кострома","РФ","ж","МАОУ г.Кострома Лицей №20",2013,"незамужем","г.Кострома,  мкр Юбилейный, д.5, кв. 66",null,null,null,null,null,null,null,14755,"Экономический","38.03.18","Экономика","Финансы и кредит","5 лет","БАКАЛАВР","2-700","2014-10-07","перевод из ФГБОУ ВПО \"Костромской государственный университет\"","000003155","2014-10-02",null,null,null,null,null,null,null,null,null,null,null,null,null,null,null,"2-554","2016-06-16",null,null,null,null,null,null,null,null,null,null,null,null,null,null,null,null,null,null,null,null,null,null,null,null,null,4,"241z",null,null,null,6,"2018-04-13",76810137,3,"п/зач",null,6,"п/зач",null,3,"п/зач",null,3,"2017-12-07",290,3,"2017-05-22",817,3,"2017-12-06",183,6,"2015-06-05",null,6,"п/зач",null,4,"2015-12-26",null,3,"2015-12-25",null,6,"2015-12-24",null,6,"2015-04-27",null,4,"2015-06-05",null,3,"2016-04-19",null,3,"2016-04-27",null,3,"2016-04-23",null,null,null,null,6,"п/зач",null,null,null,null,3,"2018-09-04",1004,3,"2018-09-04",1002,3,"2016-12-05","Z-6278431",3,"2018-09-04",1005,3,"2018-09-05","05",4,"2017-05-16",427,4,"2017-05-30","Z-6278581",6,"2017-05-30","Z-6278435",4,"2017-05-30","Z-6278436",4,"30.05.2017","Управление государственным долгом \nРоссии",4,"2017-05-30","Z-6278452",4,"2017-05-30","Z-6278448",3,"30.05.2017","Оптимизация структуры кормопроизводства предприятия агропромышленного комплекса",3,"2018-09-05",null,3,"2017-12-06","Z-7689567",null,null,null,4,"2017-12-06","Z-7689579",5,"2017-12-06","Z-7689592",3,"2017-12-06","Z-7689508",3,"2018-09-05",null,4,"2017-12-06","Z-7689717",4,"2018-04-13",7689488,3,"2018-04-13",7689580,4,"2018-04-13",7689577,3,"2018-04-13",7689583,5,"2018-04-13",7689559,null,null,null,null,null,"ООО \"Губерния-Строй\" г.Кострома",3,"п/зач",null,null,null,null,null,null,null,null,null,null,null,null,null,null,null,null,null,null,null,null,null,null,null,null,null,null,null,null,null,null,null,null,null,null,null,null,null,null,null,null,2.58,null,{"$f":"COUNTIF(CC12:JG12,3)","v":22},{"$f":"COUNTIF(CC12:JG12,4)","v":12},{"$f":"COUNTIF(CC12:JG12,5)","v":3},{"$f":"COUNTIF(CC12:JG12,6)","v":8},{"$f":"SUM(JL12:JN12)","v":37},{"$f":"SUMIF(CC12:JG12,\">0\",$CC$3:$JG$3)","v":6192},{"$f":"INT(JQ12/8+0.5)","v":774}]
[{"$f":"A12+1","v":8},"Иванова","Надежда","Евгеньевна",{"$f":"CONCATENATE(B13,\" \",LEFT(C13,1),\". \",LEFT(D13,1),\".\")","v":"Иванова Н. Е."},null,"Ивановой","Надежде","Евгеньевне","1989-02-03","п.Красное-на-Волге Красносельского р-на Костромскойобл.","РФ","ж","МОУ Красносельская СОШ",2006,"замужем","Костромская обл., Костромской р-н, пгт Красное-на-Волге, мкр Восточный, д.5, кв. 55",null,null,null,null,null,null,null,14907,"Экономический","38.03.20","Экономика","Финансы и кредит","5 лет","БАКАЛАВР","2-525","2014-08-21","по договору с полным возмещением затрат","000002852","2014-08-12",null,null,null,null,null,null,null,null,null,null,null,null,null,"2-571","2015-09-01","2-561","2016-09-01","2-703","2017-09-01",null,null,null,null,null,null,null,null,null,null,null,null,null,null,null,null,null,null,null,null,null,null,null,4,"241z",null,null,null,6,"2018-04-13",76810137,3,"2015-06-01",null,6,"2015-06-02",null,3,"2015-06-02",null,4,"2015-06-06",null,4,"2015-05-30",null,3,"2015-06-05",null,6,"2015-12-22",null,6,"2015-12-22",null,4,"2015-12-26",null,4,"2015-12-25",null,6,"2015-12-24",null,6,"2016-04-27",null,4,"2016-06-11",null,4,"2016-04-19",null,4,"2016-04-27",null,5,"2016-04-23",null,null,null,null,6,"2015-05-22",null,null,null,null,4,"2016-07-02","Z-6278411",3,"2016-12-05","Z-6278434",4,"2016-12-05","Z-6278431",4,"2016-12-05","Z-6278889",4,"2016-12-05","Z-6278442",4,"2016-11-24","Z-6278577",5,"2017-05-30","Z-6278581",6,"2017-05-30","Z-6278435",5,"2017-05-30","Z-6278436",5,"30.05.2017","Финансовая политика государства и ее особенности в России",5,"2017-05-30","Z-6278452",5,"2017-05-30","Z-6278448",4,"30.05.2017","Оптимизация структуры кормопроизводства предприятия агропромышленного комплекса",null,null,null,5,"2017-12-06","Z-7689567",4,"06.12.2017","Раходы ООО \"Минское\" Костромского\nрайона Костромской области и пути их \nснижения",5,"2017-12-06","Z-7689579",5,"2017-12-06","Z-7689592",5,"2017-12-06","Z-7689508",4,"06.12.2017","Финансовые ресурсы организации (предприятия) и эффективность их использования",4,"2017-12-06","Z-7689717",4,"2018-04-13",7689488,4,"2018-04-13",7689580,4,"2018-04-13",7689577,4,"2018-04-13",7689583,5,"2018-04-13",7689559,4,"2018-04-13","Анализ финансовых результатов деятельности\nпредприятия",4,"2018-08-31","ООО \"Рубин\" Красносельского р-на Костромской обл.",null,null,null,null,null,null,null,null,null,null,null,null,null,null,null,null,null,null,null,null,null,null,null,null,null,null,null,null,null,null,null,null,null,null,null,null,null,null,null,null,null,null,3.1,null,{"$f":"COUNTIF(CC13:JG13,3)","v":4},{"$f":"COUNTIF(CC13:JG13,4)","v":22},{"$f":"COUNTIF(CC13:JG13,5)","v":11},{"$f":"COUNTIF(CC13:JG13,6)","v":8},{"$f":"SUM(JL13:JN13)","v":37},{"$f":"SUMIF(CC13:JG13,\">0\",$CC$3:$JG$3)","v":6048},{"$f":"INT(JQ13/8+0.5)","v":756}]
[{"$f":"A13+1","v":9},"Иванова","Александра","Алексеевна",{"$f":"CONCATENATE(B14,\" \",LEFT(C14,1),\". \",LEFT(D14,1),\".\")","v":"Иванова А. А."},null,"Ивановой","Александре","Алексеевне","1995-04-16","д.Жвалово Судиславского р-на Костромскойобл.","РФ","ж","МБОУ Судиславская СОШ Костромской обл.",2012,"незамужем","Костромская обл., Сусанинский р-н, дер.Жвалово, ул. Центральная, д.5А, кв. 2",null,null,null,null,null,null,null,14906,"Экономический","38.03.19","Экономика","Финансы и кредит","5 лет","БАКАЛАВР","2-525","2014-08-21","по договору с полным возмещением затрат","000002981","2014-08-18",null,null,null,null,null,null,null,null,null,null,null,null,null,"2-571","2015-09-01","2-672","2017-08-01",null,null,null,null,null,null,null,null,null,null,null,null,null,null,null,null,null,null,null,null,null,null,null,null,null,4,"241z",null,null,null,6,"2018-04-13",76810137,3,"2015-06-01",null,6,"2015-06-02",null,3,"2015-06-02",null,null,null,null,4,"2015-05-30",null,0,null,null,0,null,null,6,"2015-12-22",null,4,"2015-12-26",null,3,"2015-12-25",null,6,"2015-12-24",null,6,"2016-04-27",null,null,null,null,3,"2016-04-19",null,null,null,null,null,null,null,6,"2018-03-14",null,null,null,null,null,null,null,null,null,null,null,null,null,null,null,null,4,"2018-03-28",570,3,"2018-03-14",null,null,null,null,4,"2017-05-30","Z-6278581",null,null,null,4,"2017-11-29",272,4,"30.05.2017","Финансовое планирование и прогнозирование в условиях рыночной\nэкономики",3,"2017-05-30","Z-6278452",3,"2017-05-30","Z-6278448",3,"30.05.2017","Оптимизация сочетания отраслей и специализации предприятия\nагропромышленногокомплекса",null,null,null,3,"2017-12-06","Z-7689567",null,null,null,3,"2017-12-06","Z-7689579",4,"2017-12-06","Z-7689592",3,"2017-12-06","Z-7689508",null,null,"Эффективность использования земельных ресурсов организации (предприятия) ",4,"2017-12-06","Z-7689717",null,null,null,3,"2018-04-13",7689580,4,"2018-04-13",7689577,4,"2018-04-13",7689583,4,"2018-04-13",7689559,3,"2018-04-13","Анализ собственного капитал апредприятия",null,null,"ФГБОУ ВО Костромская ГСХАКостромского р-на Костромской обл.",null,null,null,null,null,null,null,null,null,null,null,null,null,null,null,null,null,null,null,null,null,null,null,null,null,null,null,null,null,null,null,null,null,null,null,null,null,null,null,null,null,null,1.66,null,{"$f":"COUNTIF(CC14:JG14,3)","v":13},{"$f":"COUNTIF(CC14:JG14,4)","v":11},{"$f":"COUNTIF(CC14:JG14,5)","v":0},{"$f":"COUNTIF(CC14:JG14,6)","v":6},{"$f":"SUM(JL14:JN14)","v":24},{"$f":"SUMIF(CC14:JG14,\">0\",$CC$3:$JG$3)","v":4248},{"$f":"INT(JQ14/8+0.5)","v":531}]
[{"$f":"A14+1","v":10},"Каменева","Ксения","Владимировна",{"$f":"CONCATENATE(B15,\" \",LEFT(C15,1),\". \",LEFT(D15,1),\".\")","v":"Каменева К. В."},null,"Каменевой","Ксении","Владимировне","1996-06-25","с.Некрасово Костромского р-на Костромской обл.","РФ","ж","МБОУ СОШ №14 г.Костромы",2014,"незамужем","г.Кострома,  ул. Водяная д.107, кв. 1",null,null,null,null,null,null,null,14908,"Экономический","38.03.21","Экономика","Финансы и кредит","5 лет","БАКАЛАВР","2-525","2014-08-21","по договору с полным возмещением затрат","000002670","2014-07-17",null,null,null,null,null,null,null,null,null,null,null,null,null,"2-571","2015-09-01","2-561","2016-09-01","2-703","2017-09-01",null,null,null,null,null,null,null,null,null,null,null,null,null,null,null,null,null,null,null,null,null,null,null,4,"241z",null,null,null,6,"2018-04-13",76810137,4,"2015-06-01",null,6,"2015-06-02",null,3,"2015-06-02",null,3,"2015-06-06",null,4,"2015-05-30",null,3,"2015-06-05",null,6,"2015-12-22",null,6,"2015-12-22",null,5,"2015-12-26",null,3,"2015-12-25",null,6,"2015-12-24",null,6,"2016-04-27",null,5,"2016-06-11",null,4,"2016-04-19",null,3,"2016-04-27",null,5,"2016-04-23",null,null,null,null,6,"2015-05-22",null,null,null,null,null,null,null,3,"2016-12-05","Z-6278434",3,"2016-12-05","Z-6278431",4,"2016-12-05","Z-6278889",3,"2016-12-05","Z-6278442",4,"2016-11-24","Z-6278577",4,"2017-05-30","Z-6278581",6,"2017-05-30","Z-6278435",4,"2017-05-30","Z-6278436",4,"30.05.2017","Пенсионный фонд России и его роль в пенсионном обеспечении",3,"2017-05-30","Z-6278452",4,"2017-05-30","Z-6278448",3,"30.05.2017","Оптимизация сочетания отраслей и специализации предприятия\nагропромышленногокомплекса",null,null,null,4,"2017-12-06","Z-7689567",3,"06.12.2017","Формирование, распределение и\nиспользование доходов корпораций, пути\nих увеличения (на примере ООО \"Зарница\" \nБуйского района Костромской области)",5,"2017-12-06","Z-7689579",4,"2017-12-06","Z-7689592",4,"2017-12-06","Z-7689508",3,"06.12.2017","Ценовая политика организации \n(предприятия)",4,"2017-12-06","Z-7689717",5,"2018-04-13",7689488,5,"2018-04-13",7689580,5,"2018-04-13",7689577,4,"2018-04-13",7689583,4,"2018-04-13",7689559,4,"2018-04-13","Анализ ликвидности и платежеспособности \nпредприятия",5,"2018-08-31","ООО \"КМПУ №7\" г.Кострома",null,null,null,null,null,null,null,null,null,null,null,null,null,null,null,null,null,null,null,null,null,null,null,null,null,null,null,null,null,null,null,null,null,null,null,null,null,null,null,null,null,null,2.8,null,{"$f":"COUNTIF(CC15:JG15,3)","v":12},{"$f":"COUNTIF(CC15:JG15,4)","v":16},{"$f":"COUNTIF(CC15:JG15,5)","v":8},{"$f":"COUNTIF(CC15:JG15,6)","v":8},{"$f":"SUM(JL15:JN15)","v":36},{"$f":"SUMIF(CC15:JG15,\">0\",$CC$3:$JG$3)","v":6048},{"$f":"INT(JQ15/8+0.5)","v":756}]
[{"$f":"A15+1","v":11},"Кашицына","Вероника","Николаевна",{"$f":"CONCATENATE(B16,\" \",LEFT(C16,1),\". \",LEFT(D16,1),\".\")","v":"Кашицына В. Н."},null,"Кашицыной","Веронике","Николаевне","1996-01-28","г.Кострома","РФ","ж","МБОУ СОШ №14 г.Костромы",2014,"незамужем","г.Кострома,  ул. Водяная, д.113, кв. 8",null,null,null,null,null,null,null,14909,"Экономический","38.03.23","Экономика","Финансы и кредит","5 лет","БАКАЛАВР","2-525","2014-08-21","по договору с полным возмещением затрат","000002704","2014-07-28",null,null,null,null,null,null,null,null,null,null,null,null,null,"2-571","2015-09-01","2-561","2016-09-01","2-703","2017-09-01",null,null,null,null,null,null,null,null,null,null,null,null,null,null,null,null,null,null,null,null,null,null,null,4,"241z",null,null,null,6,"2018-04-13",76810137,3,"2015-06-01",null,6,"2015-06-02",null,3,"2015-06-02",null,3,"2015-06-06",null,3,"2015-05-30",null,3,"2015-06-05",null,6,"2015-12-22",null,6,"2015-12-22",null,4,"2015-12-26",null,3,"2015-12-25",null,6,"2015-12-24",null,6,"2016-04-27",null,4,"2016-06-11",null,4,"2016-04-19",null,3,"2016-04-27",null,4,"2016-04-23",null,null,null,null,6,"2015-05-22",null,null,null,null,null,null,null,3,"2016-12-05","Z-6278434",4,"2016-12-05","Z-6278431",4,"2016-12-05","Z-6278889",4,"2016-12-05","Z-6278442",4,"2016-11-24","Z-6278577",4,"2017-05-30","Z-6278581",6,"2017-05-30","Z-6278435",4,"2017-05-30","Z-6278436",4,"30.05.2017","Федеральный бюджет, его роль в развитии экономики и социальной сферы\nстраны",4,"2017-05-30","Z-6278452",4,"2017-05-30","Z-6278448",6,"30.05.2017","Оптимизация структуры кормопроизводства предприятия агропромышленного комплекса",null,null,null,5,"2017-12-06","Z-7689567",3,"06.12.2017","Механизм кредитования корпораций (на \nпримере ОАО \"Племзавод\" Караваево\"\nКостромского района Костромской\nобласти)",4,"2017-12-06","Z-7689579",4,"2017-12-06","Z-7689592",3,"2017-12-06","Z-7689508",3,"06.12.2017","Формирование и использование прибыли\nорганизации (предприятия)",4,"2017-12-06","Z-7689717",5,"2018-04-13",7689488,5,"2018-04-13",7689580,5,"2018-04-13",7689577,4,"2018-04-13",7689583,5,"2018-04-13",7689559,4,"2018-04-13","Анализ финансовой устойчивости предприятия",5,"2018-08-31","АО \"Завод имени Красина\" г.Кострома",null,null,null,null,null,null,null,null,null,null,null,null,null,null,null,null,null,null,null,null,null,null,null,null,null,null,null,null,null,null,null,null,null,null,null,null,null,null,null,null,null,null,2.7,null,{"$f":"COUNTIF(CC16:JG16,3)","v":11},{"$f":"COUNTIF(CC16:JG16,4)","v":18},{"$f":"COUNTIF(CC16:JG16,5)","v":6},{"$f":"COUNTIF(CC16:JG16,6)","v":9},{"$f":"SUM(JL16:JN16)","v":35},{"$f":"SUMIF(CC16:JG16,\">0\",$CC$3:$JG$3)","v":6048},{"$f":"INT(JQ16/8+0.5)","v":756}]
[{"$f":"A16+1","v":12},"Кручак","Александр","Александрович",{"$f":"CONCATENATE(B17,\" \",LEFT(C17,1),\". \",LEFT(D17,1),\".\")","v":"Кручак А. А."},null,"Кручак","Александру","Александровичу","1988-03-20","г.Горловка Донецкой обл.","РФ","м","МСОШ №1 г.Неи, Костромская область",2005,"холост","г.Нея ул. Школьная, д.315",null,null,null,3408,"894063","2008-04-17","ОтделениемУФМСРоссиипоКостромскойобластивКостромскомрайоне",180009,"Экономический","38.03.84","Экономика","Финансы и кредит","5 лет","БАКАЛАВР","2-313","2005-08-08",null,null,null,null,null,"2-444","2015-06-29","за невыполнение учебного плана","2-125",43152,null,null,null,null,null,null,null,null,null,null,null,null,null,null,null,null,null,null,null,null,null,null,null,null,null,null,null,null,null,null,null,null,null,null,null,4,"241z",null,null,null,null,null,null,5,"п/атт 02.02.2018",434,6,"2018-03-16",544,3,"п/атт13.02.18",500,3,"2018-02-22",501,3,"п/атт0202.18",426,3,"п/атт14.02.18",462,6,"2018-02-07",443,6,"п/атт02.02.2018",429,null,null,null,3,"2018-02-22",502,6,"2018-02-07",443,6,"2018-02-02",432,3,"2018-02-12",455,null,null,null,3,"п/атт.02.02.2018",425,3,"п/атт.02.02.2018",418,6,"2018-02-12",456,6,"2018-02-12",457,null,null,null,null,null,"ФГБОУ ВО Костромская ГСХА, кафедра экономической кибернетики",null,null,null,3,"п/атт02.02.2018",422,3,"п/атт02.02.2018",423,null,null,null,3,"п/атт20.02.2018",417,null,null,null,null,null,null,3,"2018-02-28",513,null,null,null,4,"2018-02-28",415,3,"п/атт02.02.2018",435,null,null,null,null,null,"ФГБОУ ВО Костромская ГСХА Костромского р-на Костромской обл.",null,null,null,null,null,null,null,null,null,null,null,null,null,null,null,null,null,null,null,null,null,3,"п/атт20.02.2018",420,null,null,null,3,"2018-02-28",414,null,null,null,null,null,null,null,null,null,null,null,"ООО \"Вега\" Нейского р-на Костромской обл.",3,"п/атт.20.02.2018",428,6,"п/атт.15.03.2018",424,3,"п/зач.20.02.2018",419,null,null,null,null,null,null,null,null,null,null,null,null,null,null,null,null,null,null,null,null,null,null,null,null,null,null,null,null,null,null,null,null,null,1.2,null,{"$f":"COUNTIF(CC17:JG17,3)","v":17},{"$f":"COUNTIF(CC17:JG17,4)","v":1},{"$f":"COUNTIF(CC17:JG17,5)","v":1},{"$f":"COUNTIF(CC17:JG17,6)","v":8},{"$f":"SUM(JL17:JN17)","v":19},{"$f":"SUMIF(CC17:JG17,\">0\",$CC$3:$JG$3)","v":4132},{"$f":"INT(JQ17/8+0.5)","v":517}]
[{"$f":"A17+1","v":13},"Магер","Юлия","Максимовна",{"$f":"CONCATENATE(B18,\" \",LEFT(C18,1),\". \",LEFT(D18,1),\".\")","v":"Магер Ю. М."},null,"Магер","Юлии","Максимовне","1997-03-13","г.Кострома","РФ","ж","МБОУ г.Костромы \"Гимназия №25\"",2014,"незамужем","г.Кострома, ул. Сутырина, д.23, кв. 54",null,null,null,null,null,null,null,14465,"Экономический","38.03.26","Экономика","Финансы и кредит","5 лет","БАКАЛАВР","2-524","2014-08-21","по договору с полным возмещением затрат","000002763","2014-08-06",null,null,null,null,null,null,null,null,null,null,null,null,null,"2-571","2015-09-01","2-561","2016-09-01",null,null,null,null,null,null,null,null,null,null,null,null,null,null,null,null,null,null,null,null,null,null,null,null,null,4,"241z",null,null,null,null,null,null,3,"п/зач",null,6,"п/зач",null,3,"п/зач",null,3,"п/зач",null,null,null,null,4,"п/зач",null,6,"п/зач",null,6,"п/зач",null,3,"п/зач",null,3,"п/зач",null,6,"п/зач",null,null,null,null,3,"п/зач",null,3,"п/зач",null,3,"п/зач",null,3,"п/зач",null,6,"п/зач",null,0,null,null,null,null,null,3,"п/зач",null,3,"п/зач",null,3,"п/зач",null,3,"п/зач",null,4,"п/зач",null,3,"п/зач",null,5,"п/зач",null,6,"п/зач",null,3,"п/зач",null,3,"п/зач",null,null,null,null,3,"п/зач",null,3,"п/зач",null,3,"п/зач",null,4,"п/зач",null,null,null,null,3,"п/зач",null,null,null,null,3,"п/зач",null,null,null,null,3,"п/зач",null,3,"п/зач",null,3,"п/зач",null,null,null,null,3,"п/зач",null,null,null,null,null,null,null,null,null,"ЗАО \"Лига Гранд\" г.Кострома",null,null,null,null,null,null,null,null,null,null,null,null,null,null,null,null,null,null,null,null,null,null,null,null,null,null,null,null,null,null,null,null,null,null,null,null,null,null,null,null,null,null,{"$f":"(JL18*3+JM18*4+JN18*5)/50","v":1.84},null,{"$f":"COUNTIF(CC18:JG18,3)","v":25},{"$f":"COUNTIF(CC18:JG18,4)","v":3},{"$f":"COUNTIF(CC18:JG18,5)","v":1},{"$f":"COUNTIF(CC18:JG18,6)","v":6},{"$f":"SUM(JL18:JN18)","v":29},{"$f":"SUMIF(CC18:JG18,\">0\",$CC$3:$JG$3)","v":4860},{"$f":"INT(JQ18/8+0.5)","v":608}]
[{"$f":"A18+1","v":14},"Рудин","Сергей","Николаевич",{"$f":"CONCATENATE(B19,\" \",LEFT(C19,1),\". \",LEFT(D19,1),\".\")","v":"Рудин С. Н."},null,"Рудину","Сергею","Николаевичу","1982-07-25","г.Сургут Тюменской обл.","РФ","м","Шаховская муниципальная СОШ с.Шахово Судиславского р-на Костромской обл.",1999,"женат","Московскаяобл., г.Наро-Форминск, ул. Куркоткина, д.9, в/ч1",null,null,null,null,null,null,null,160870,"Экономический","38.03.29","Экономика","Финансы и кредит","5 лет","БАКАЛАВР","2-226","1999-08-04",null,null,null,null,null,"2-212","2015-04-14","за невыполнение условий договора","2-65",42654,null,null,null,null,null,null,null,null,null,null,null,null,null,null,null,null,null,null,null,null,null,null,null,null,null,null,null,null,null,null,null,null,null,null,null,4,"241z",null,null,null,6,"2018-04-13",76810137,4,"п/зач",null,6,"п/зач",null,4,"п/зач",null,4,"п/зач",null,3,"п/зач",null,3,"п/зач",null,6,"п/зач",null,6,"п/зач",null,3,"2017-05-18",714,3,"2018-04-09",617,6,"2017-12-06",286,6,"п/зач",null,3,"п/зач",null,3,"2017-12-07",287,3,"2016-11-18",null,3,"2018-04-13",643,null,null,null,6,"п/зач",null,null,null,null,null,null,null,4,"2016-12-05","Z-6278434",3,"п/зач",null,3,"2016-12-05","Z-6278889",4,"п/зач",null,4,"п/зач",null,5,"2017-05-30","Z-6278581",6,"2017-05-30","Z-6278435",4,"п/зач",null,4,"30.05.2017","Сущность и функции налогов, их роль в современных условиях",4,"2017-05-30","Z-6278452",4,"п/зач",null,3,"п/зач",null,null,null,null,4,"2017-12-06","Z-7689567",null,null,null,5,"2017-12-06","Z-7689579",4,"2017-12-06","Z-7689592",3,"п/зач",null,4,"п/зач",null,3,"п/зач",null,3,"п/зач",null,5,"2018-04-13",7689580,4,"2018-04-13",7689577,3,"2018-04-13",7689583,4,"2018-04-13",7689559,4,"2018-08-27",null,null,null,"МКУ Отдел культуры, молодежи, спорта и туризма Cудиславского муниципального района Костромской области",3,"п/зач",null,6,"п/зач",null,3,"п/зач",null,null,null,null,null,null,null,null,null,null,null,null,null,null,null,null,null,null,null,null,null,null,null,null,null,null,null,null,null,null,null,null,null,null,{"$f":"(JL19*3+JM19*4+JN19*5)/50","v":2.6},null,{"$f":"COUNTIF(CC19:JG19,3)","v":17},{"$f":"COUNTIF(CC19:JG19,4)","v":16},{"$f":"COUNTIF(CC19:JG19,5)","v":3},{"$f":"COUNTIF(CC19:JG19,6)","v":9},{"$f":"SUM(JL19:JN19)","v":36},{"$f":"SUMIF(CC19:JG19,\">0\",$CC$3:$JG$3)","v":6372},{"$f":"INT(JQ19/8+0.5)","v":797}]
[{"$f":"A19+1","v":15},"Сироткина(Овечкина)","Мария","Александровна",{"$f":"CONCATENATE(B20,\" \",LEFT(C20,1),\". \",LEFT(D20,1),\".\")","v":"Сироткина(Овечкина) М. А."},null,"Сироткиной","Марии","Александровне","1990-11-08","п.Вохма Вохомского р-на Костромской обл.","РФ","ж","МОУ Вохомская СОШ Костромской обл. п.Вохма",2007,"замужем","Костромская обл., Вохомский р-н, п.Вохма, ул. Елькина, д.29",null,null,null,null,null,null,null,160026,"Экономический","38.03.31","Экономика","Финансы и кредит","5 лет","БАКАЛАВР","2-360","2007-08-03"," врамках контрольных цифр на основное место",null,null,null,null,"2-423","2009-09-15","за академическую неуспеваемость","2-238",42485,null,null,null,null,null,null,null,null,"2-561","2016-09-01","2-703","2017-09-01",null,null,null,null,null,null,null,null,null,null,null,null,null,null,null,null,null,null,null,null,null,null,null,4,"241z",null,null,null,6,"2018-04-13",76810137,3,"п/зач",null,6,"п/зач",null,3,"п/зач",null,3,"2016-04-22",null,3,"п/зач",null,5,"п/зач",null,6,"п/зач",null,6,"п/зач",null,3,"2016-04-19",null,3,"2016-04-22",null,6,"2016-04-17",null,6,"2016-04-27",null,5,"2016-06-11",null,4,"2016-04-19",null,3,null,null,4,"п/зач",null,6,"п/зач",null,6,"п/зач",null,null,null,null,3,"2016-07-02","ФГБОУ ВО Костромская ГСХА, кафедра экономической кибернетики",3,"2016-12-05","Z-6278434",4,"2016-12-05","Z-6278431",4,"2016-12-05","Z-6278889",3,"2016-12-05","Z-6278442",3,"п/зач",null,5,"2017-05-30","Z-6278581",6,"2017-05-30","Z-6278435",5,"2017-05-30","Z-6278436",5,"30.05.2017","Рынокценных бумаг в России и перспективы его развития",4,"2017-05-30","Z-6278452",5,"2017-05-30","Z-6278448",5,"30.05.2017","Оптимизация структуры кормопроизводства предприятия агропромышленного комплекса",null,null,null,4,"2017-12-06","Z-7689567",4,"2018-04-13","Амортизационная политика и ее влияние на развитие корпораций на предприятии ЗАО \"Судиславль\" Судиславского района Костромской области",5,"2017-12-06","Z-7689579",4,"2017-12-06","Z-7689592",4,"2017-12-06","Z-7689708",3,"2018-06-29","Земельные ресурсы организации (предприятия) и эффективность их использования в ОАО Племзавод \"Чернопенский\" Костромского района Костромской области",4,"2017-12-06","Z-7689707",5,"2018-04-13",7689488,5,"2018-04-13",7689580,5,"2018-04-13",7689577,4,"2018-04-13",7689583,5,"2018-04-13",7689559,5,"2018-04-13","Анализ финансовой устойчивости предприятия",5,"2018-08-31","ООО \"Мастер Бриллиант\" г. Кострома",null,null,null,null,null,null,null,null,null,null,null,null,null,null,null,null,null,null,null,null,null,null,null,null,null,null,null,null,null,null,null,null,null,null,null,null,null,null,null,null,null,null,{"$f":"(JL20*3+JM20*4+JN20*5)/50","v":3},null,{"$f":"COUNTIF(CC20:JG20,3)","v":12},{"$f":"COUNTIF(CC20:JG20,4)","v":11},{"$f":"COUNTIF(CC20:JG20,5)","v":14},{"$f":"COUNTIF(CC20:JG20,6)","v":9},{"$f":"SUM(JL20:JN20)","v":37},{"$f":"SUMIF(CC20:JG20,\">0\",$CC$3:$JG$3)","v":6120},{"$f":"INT(JQ20/8+0.5)","v":765}]
[{"$f":"A20+1","v":16},"Столяренко","Дмитрий","Сергеевич",{"$f":"CONCATENATE(B21,\" \",LEFT(C21,1),\". \",LEFT(D21,1),\".\")","v":"Столяренко Д. С."},null,"Столяренко","Дмитрию","Сергеевичу","1995-05-07","г.Кострома","РФ","м","МБОУ г.Костромы СОШ №36",2012,"холост","г.Кострома, ул. Полевая, д.76, кв. 1",null,null,null,null,null,null,null,12441,"Экономический","38.03.32","Экономика","Финансы и кредит","5 лет","БАКАЛАВР","2-553","2012-08-05","по договору с полным возмещением затрат","515-2012","2012-07-13",null,null,null,null,null,null,null,null,"2-760\n2-458","05.12.2013\n23.06.2016","по семейным обстоятельствам\nв связи с призывом в ряды ВС РФ","02.12.2013\n27.06.2016","01.12.2014\n26.06.2017","2-592","2013-09-16","2-703","2017-09-01",null,null,null,null,null,null,null,null,null,null,null,null,null,null,null,null,null,null,null,null,null,null,null,null,null,4,"241z",null,null,null,6,"2018-04-13",76810137,3,"п/зач",null,6,"п/зач",null,3,"п/зач",null,3,"п/зач",null,3,"п/зач",null,3,"п/зач",null,6,"2018-05-17",892,6,"п/зач",null,3,"п/зач",null,3,"п/зач",null,6,"п/зач",null,6,"п/зач",null,4,"2018-05-17",893,3,"п/зач",null,3,"п/зач",null,3,"п/зач",null,6,"п/зач",null,6,"п/зач",null,6,"2017-10-30",177,3,"п/зач",null,null,null,null,null,null,null,3,"п/зач",null,3,"п/зач",null,3,"п/зач",null,4,"п/зач",null,6,"п/зач",null,3,"п/зач",null,3,"28.11.2017",null,3,"2018-04-13",638,3,"п/зач",null,3,"п/зач",null,3,"п/зач",null,4,"2017-12-06","Z-7689567",4,"06.12.2017","Формирование, распределение и \nиспользование доходов корпораций, пути\nих увеличения (на примере ЗАО \"Агромол\"\nСусанинского района Костромской \nобласти)",3,"2017-12-06","Z-7689579",4,"2017-12-06","Z-7689592",3,"п/зач",null,3,"п/зач",null,3,"п/зач",null,3,"п/зач",null,3,"п/зач",null,5,"2018-04-13",7689577,3,"2018-04-13",7689583,5,"2018-04-13",7689559,4,"2018-04-13","Анализ финансовой устойчивости предприятия",5,"2018-08-31","ООО \"Центральныйдвор\" г.Кострома",null,null,null,6,"п/зач",null,null,null,null,null,null,null,null,null,null,null,null,null,null,null,null,null,null,null,null,null,null,null,null,null,6,"п/зач",null,null,null,null,null,null,null,null,null,null,{"$f":"(JL21*3+JM21*4+JN21*5)/50","v":2.4},null,{"$f":"COUNTIF(CC21:JG21,3)","v":27},{"$f":"COUNTIF(CC21:JG21,4)","v":6},{"$f":"COUNTIF(CC21:JG21,5)","v":3},{"$f":"COUNTIF(CC21:JG21,6)","v":12},{"$f":"SUM(JL21:JN21)","v":36},{"$f":"SUMIF(CC21:JG21,\">0\",$CC$3:$JG$3)","v":6084},{"$f":"INT(JQ21/8+0.5)","v":761}]
[{"$f":"A21+1","v":17},"Чулкова","Дарья","Евгеньевна",{"$f":"CONCATENATE(B22,\" \",LEFT(C22,1),\". \",LEFT(D22,1),\".\")","v":"Чулкова Д. Е."},null,"Чулковой","Дарье","Евгеньевне","1996-05-19","д.Парфеньево Островского р-на Костромской обл.","РФ","ж","МКОУ Островская СОШ Островского р-на Костромской обл.",2014,"незамужем","Костромская обл., Островский р-н, дер.Парфеньево д.25, кв. 1",null,null,null,null,null,null,null,14475,"Экономический","38.03.34","Экономика","Финансы и кредит","5 лет","БАКАЛАВР","2-524","2014-08-21","по договору с полным возмещением затрат","000002881","2014-08-13",null,null,null,null,null,null,null,null,null,null,null,null,null,"2-571","2015-09-01","2-561","2016-09-01","2-703","2017-09-01",null,null,null,null,null,null,null,null,null,null,null,null,null,null,null,null,null,null,null,null,null,null,null,4,"241z",null,null,null,6,"2018-04-13",76810137,3,"п/зач",null,6,"п/зач",null,4,"п/зач",null,5,"п/зач",null,4,"п/зач",null,4,"п/зач",null,6,"п/зач",null,6,"2015-12-22",null,4,"2015-12-26",null,4,"2015-12-25",null,6,"п/зач",null,6,"2016-04-27",null,4,"2016-04-16",null,4,"2016-04-19",null,4,"2016-04-27",null,3,"2016-04-23",null,null,null,null,6,"п/зач",null,null,null,null,3,"п/зач",null,3,"2016-12-05","Z-6278434",3,"2016-12-05","Z-6278431",null,null,null,3,"2016-12-05","Z-6278442",4,"2016-11-24","Z-6278577",5,"2017-05-30","Z-6278581",6,"2017-05-30","Z-6278435",4,"2017-05-30","Z-6278436",4,"30.05.2017","Финансы домашних хозяйств и их роль в финансовой системе государства",4,"2017-05-30","Z-6278452",3,"2017-05-30","Z-6278448",3,"30.05.2017","Оптимизация структуры кормопроизводства предприятия агропромышленного комплекса",4,"2018-09-05",null,3,"2017-12-06","Z-7689567",null,null,"Внеоборотные активы корпораций, \nисточники их воспроизводства",4,"2017-12-06","Z-7689579",4,"2017-12-06","Z-7689592",4,"2017-12-06","Z-7709708",3,"06.12.2017","Эффективность использования основных \nсредств организации (предприятия)",3,"2017-12-06","Z-7689707",4,"2018-04-13",7689488,null,null,null,5,"2018-04-13",7689577,3,"2018-04-13",7689583,5,"2018-04-13",7689559,null,null,null,null,null,"Компания \"Тензор\" г.Кострома",null,null,null,null,null,null,null,null,null,null,null,null,null,null,null,null,null,null,null,null,null,null,null,null,null,null,null,null,null,null,null,null,null,null,null,null,null,null,null,null,null,null,{"$f":"(JL22*3+JM22*4+JN22*5)/50","v":2.48},null,{"$f":"COUNTIF(CC22:JG22,3)","v":12},{"$f":"COUNTIF(CC22:JG22,4)","v":17},{"$f":"COUNTIF(CC22:JG22,5)","v":4},{"$f":"COUNTIF(CC22:JG22,6)","v":8},{"$f":"SUM(JL22:JN22)","v":33},{"$f":"SUMIF(CC22:JG22,\">0\",$CC$3:$JG$3)","v":5724},{"$f":"INT(JQ22/8+0.5)","v":716}]
[{"$f":"A22+1","v":18},"Батракова","Анастасия","Павловна",{"$f":"CONCATENATE(B23,\" \",LEFT(C23,1),\". \",LEFT(D23,1),\".\")","v":"Батракова А. П."},null,"Батраковой","Анастасии","Павловне","1996-04-07","г.Кострома","РФ","ж","МАОУ г.Кострома Лицей №20",2014,"незамужем","г.Кострома, ул. Кинешемское шоссе, д.8, кв. 77",null,null,null,null,null,null,null,160867,"Экономический","38.03.11","Экономика","Финансы и кредит","5 лет","БАКАЛАВР","2-524","2014-08-21","по договору с полным возмещением затрат","000002675","2014-07-21",null,null,null,null,null,null,null,null,null,null,null,null,null,"2-571","2015-09-01","2-561","2016-09-01",null,null,null,null,null,null,null,null,null,null,null,null,null,null,null,null,null,null,null,null,null,null,null,null,null,4,"243z",null,null,null,null,null,null,4,"п/зач",null,6,"п/зач",null,4,"п/зач",null,4,"2016-10-13",1730,4,"2017-11-08",190,3,"2017-10-11",76,6,"п/зач",null,6,"2017-12-11",null,4,"2016-10-13",1729,4,"2017-12-11",334,6,"2017-12-11",333,6,"п/зач",null,4,"п/зач",null,4,"2017-12-11",332,5,"2017-12-13",339,4,"п/зач",null,null,null,null,6,"п/зач",null,6,"п/зач",null,0,null,null,3,"2017-11-02",182,3,"2016-12-05","Z-6298941",3,"п/зач",null,5,"2016-12-05","Z-6298943",5,"2017-10-13",118,0,null,null,6,"п/зач",null,5,"2017-05-30","Z-62998436",0,null,"Пенсионный фонд России и его роль в пенсионном обеспечении",4,"2017-05-30","Z-62998453",4,"2017-05-30","Z-62998448",5,"22.12.2017",null,3,"2018-08-31",null,null,null,null,null,null,null,null,null,null,null,null,null,null,null,null,null,null,null,null,null,null,null,null,null,5,"2018-04-13",7709580,null,null,null,3,"2018-04-13",7709583,null,null,null,null,null,null,null,null,"ООО \"Артик-Айс\" г.Кострома",4,"п/зач",null,6,"п/зач",null,3,"п/зач",null,null,null,null,null,null,null,null,null,null,null,null,null,null,null,null,null,null,null,null,null,null,null,null,null,null,null,null,null,null,null,null,null,null,{"$f":"(JL23*3+JM23*4+JN23*5)/50","v":1.98},null,{"$f":"COUNTIF(CC23:JG23,3)","v":7},{"$f":"COUNTIF(CC23:JG23,4)","v":12},{"$f":"COUNTIF(CC23:JG23,5)","v":6},{"$f":"COUNTIF(CC23:JG23,6)","v":9},{"$f":"SUM(JL23:JN23)","v":25},{"$f":"SUMIF(CC23:JG23,\">0\",$CC$3:$JG$3)","v":4860},{"$f":"INT(JQ23/8+0.5)","v":608}]
[{"$f":"A23+1","v":19},"Виноградов","Николай","Михайлович",{"$f":"CONCATENATE(B24,\" \",LEFT(C24,1),\". \",LEFT(D24,1),\".\")","v":"Виноградов Н. М."},null,"Виноградову","Николаю","Михайловичу","1991-03-01","г.Кострома","РФ","м","ГОУ НПО Профессиональный лицей №9 г.Кострома",2010,"холост","г.Кострома, ул. Кустово, д.12, кв. .3",null,null,null,null,null,null,null,14940,"Экономический","38.03.14","Экономика","Финансы и кредит","5 лет","БАКАЛАВР","2-525","2014-08-21","по договору с полным возмещением затрат","000002790","2014-08-07",null,null,null,null,null,null,null,null,null,null,null,null,null,"2-571","2015-09-01","2-561","2016-09-01",null,null,null,null,null,null,null,null,null,null,null,null,null,null,null,null,null,null,null,null,null,null,null,null,null,4,"243z",null,null,null,null,null,null,5,"2015-06-01",null,6,"2015-06-02",null,4,"2015-06-02",null,4,"2015-06-06",null,5,"2015-05-30",1242,4,"2016-07-01",null,6,"2016-07-01",1264,6,"2015-12-22",null,4,"2015-12-26",null,5,"2016-09-08",null,6,"2016-07-01",1264,6,"2016-04-25",null,4,"2016-04-27","Z-6297516",4,"2016-04-27","Z-6297524",3,"2016-04-27","Z-6297525",3,"2016-09-09",42622,6,"2015-05-22",null,6,"2015-05-22",null,null,null,null,3,"2016-07-02",null,3,"2017-05-30",978,4,"2017-06-19",1124,4,"2017-12-11",338,5,"2017-04-11",406,5,"2017-10-13",117,4,"2017-10-13",129,6,"2017-05-30","Z-6298435",5,"2017-05-30","Z-6298436",4,"2018-05-07","Фонды обязательного медицинского страхования, их роль в финансировании \nрасходов на здравоохранение в Российской Федерации",5,"2017-05-30","Z-6298453",5,"2017-05-30","Z-6298448",3,"2018-05-08","Оптимицация структуры посевных \nплощадей",null,null,null,null,null,null,null,null,null,4,"2017-12-06","Z-7709579",null,null,null,5,"2018-09-04",null,3,"2018-09-04",null,null,null,null,5,"2018-09-03","7709488-2",5,"2018-04-13",7709580,3,"2018-04-13",7709577,4,"2018-04-13",7709583,4,"2018-04-13",7709559,4,"2018-09-09","Анализ финансовых результатов деятельности \nпредприятия ООО \"Агрофирма Прокунинская Горка\" Солигалического района Костромской области",null,null,"ООО \"Сервис Трейд\" г.Кострома",null,null,null,null,null,null,null,null,null,null,null,null,null,null,null,null,null,null,null,null,null,null,null,null,null,null,null,null,null,null,null,null,null,null,null,null,null,null,null,null,null,null,{"$f":"(JL24*3+JM24*4+JN24*5)/50","v":2.64},null,{"$f":"COUNTIF(CC24:JG24,3)","v":7},{"$f":"COUNTIF(CC24:JG24,4)","v":14},{"$f":"COUNTIF(CC24:JG24,5)","v":11},{"$f":"COUNTIF(CC24:JG24,6)","v":8},{"$f":"SUM(JL24:JN24)","v":32},{"$f":"SUMIF(CC24:JG24,\">0\",$CC$3:$JG$3)","v":5544},{"$f":"INT(JQ24/8+0.5)","v":693}]
[{"$f":"A24+1","v":20},"Киселева","Алеся","Викторовна",{"$f":"CONCATENATE(B25,\" \",LEFT(C25,1),\". \",LEFT(D25,1),\".\")","v":"Киселева А. В."},null,"Киселевой","Алесе","Викторовне","1985-07-13","с.Павино Павинского р-на Костромской обл.","РФ","ж","ГОУ НПО Профессиональное училище №28 с.Пыщуг Костромской обл.",2006,"замужем","Костромская обл., с.Павино, ул. Центральная, д.14",null,null,null,null,null,null,null,14941,"Экономический","38.03.24","Экономика","Финансы и кредит","5 лет","БАКАЛАВР","2-525","2014-08-21","по договору с полным возмещением затрат","000002869","2014-08-13",null,null,null,null,null,null,null,null,null,null,null,null,null,"2-571","2015-09-01","2-561","2016-09-01",null,null,null,null,null,null,null,null,null,null,null,null,null,null,null,null,null,null,null,null,null,null,null,null,null,4,"243z",null,null,null,null,null,null,4,"2015-06-01",null,6,"2015-06-02",null,3,"2015-06-02",null,4,"2015-06-06",null,5,"2015-05-30",null,3,"2015-06-05",null,6,"2015-12-22",null,6,"2015-12-22",null,3,"2016-09-07",null,4,"2016-09-08",null,6,"2016-10-03",null,6,"2016-04-25",null,3,"2016-05-27",null,4,"2016-05-27",null,4,"2016-05-27",null,3,"2016-05-27",null,6,"2015-05-22",null,6,"2015-05-22",null,null,null,null,5,"2016-07-02","ФГБОУ ВО Костромская ГСХА, кафедра экономической кибернетики",3,"2016-12-05","Z-6278434",3,"2017-02-09",241,5,"2017-12-11",335,4,"2016-12-05","Z-6298443",5,"2017-10-13",115,5,"2017-05-30","Z-6278581",6,"2018-09-12",22,5,"2017-05-30","Z-6278436",4,"2018-09-12","Федеральный бюджет, его роль в развитии экономики и социальной сферы\nстраны",4,"2017-05-30","Z-6298453",4,"2017-05-30","Z-6278448",4,"2018-05-08",null,3,"2018-09-12",null,3,"2018-09-12",19,4,"2018-09-12","Механизм кредитования ООО \"Торговый дом Русское золото - Арт\"",4,"2017-12-06","Z-7709579",4,"2017-12-06","Z-7709592",null,null,null,null,null,null,null,null,null,null,null,null,4,"2018-04-13",7709580,null,null,null,5,"2018-04-13",7709583,4,"2018-04-13",7709559,3,"2018-09-04","Анализ эффективности и деловой активности ЗАО \"Племзавода Ярославка\" Ярославского района Ярославской области",null,null,"Районный отдел Администрации Павинского муниципального района Костромской обл.",null,null,null,null,null,null,null,null,null,null,null,null,null,null,null,null,null,null,null,null,null,null,null,null,null,null,null,null,null,null,null,null,null,null,null,null,null,null,null,null,null,null,{"$f":"(JL25*3+JM25*4+JN25*5)/50","v":2.5},null,{"$f":"COUNTIF(CC25:JG25,3)","v":10},{"$f":"COUNTIF(CC25:JG25,4)","v":15},{"$f":"COUNTIF(CC25:JG25,5)","v":7},{"$f":"COUNTIF(CC25:JG25,6)","v":8},{"$f":"SUM(JL25:JN25)","v":32},{"$f":"SUMIF(CC25:JG25,\">0\",$CC$3:$JG$3)","v":5328},{"$f":"INT(JQ25/8+0.5)","v":666}]
[{"$f":"A25+1","v":21},"Николаева","Надежда","Сергеевна",{"$f":"CONCATENATE(B26,\" \",LEFT(C26,1),\". \",LEFT(D26,1),\".\")","v":"Николаева Н. С."},null,"Николаевой","Надежде","Сергеевне","1981-09-07","г.Кострома","РФ","ж","Заводская МСОШ Троицкого р-на Алтайского края",1998,"замужем","г.Кострома, ул. Калиновская, д.55,кв64",null,null,null,null,null,null,null,14942,"Экономический","38.03.27","Экономика","Финансы и кредит","5 лет","БАКАЛАВР","2-525","2014-08-21","по договору с полным возмещением затрат","000003024","2014-08-21",null,null,null,null,null,null,null,null,null,null,null,null,null,"2-571","2015-09-01","2-561","2016-09-01",null,null,null,null,null,null,null,null,null,null,null,null,null,null,null,null,null,null,null,null,null,null,null,null,null,4,"243z",null,null,null,null,null,null,5,"2015-06-01",null,6,"2015-06-02",null,5,"2015-06-02",null,5,"2015-06-06",null,5,"2015-05-30",null,4,"2017-04-04",null,6,"2015-12-22",null,6,"2015-12-22",null,4,"2015-12-26",null,4,"2016-09-08",null,6,"2015-12-24",null,6,"2016-04-25",null,4,"2016-05-27",null,5,"2016-05-27",null,3,"2016-05-27",null,3,"2016-12-30",null,6,"2015-05-22",null,6,"2015-05-22",null,null,null,null,4,"2018-09-24","ФГБОУ ВО Костромская ГСХА, кафедра экономической кибернетики",3,"2018-09-24",55,3,"2017-11-01",180,4,"2017-12-11",356,5,"2017-04-11",407,5,"2017-10-13",114,4,"2017-10-13",128,6,"2017-05-30","Z-6298435",5,"2017-05-30","Z-6278436",4,"2018-05-07","Финансовые ресурсы коммерческих организаций в рыночных условиях",5,"2017-05-30","Z-6298453",4,"2017-05-30","Z-6278448",null,null,null,null,null,null,null,null,null,null,null,null,3,"2017-12-06","Z-7709579",null,null,null,null,null,null,null,null,null,null,null,null,null,null,null,5,"2018-04-13",7709580,null,null,null,4,"2018-04-13",7709583,4,"2018-04-13",7709559,null,null,null,4,"2018-08-31","ООО\"ЮФМириада\"г.Кострома",null,null,null,null,null,null,null,null,null,null,null,null,null,null,null,null,null,null,null,null,null,null,null,null,null,null,null,null,null,null,null,null,null,null,null,null,null,null,null,null,null,null,{"$f":"(JL26*3+JM26*4+JN26*5)/50","v":2.2599999999999998},null,{"$f":"COUNTIF(CC26:JG26,3)","v":5},{"$f":"COUNTIF(CC26:JG26,4)","v":12},{"$f":"COUNTIF(CC26:JG26,5)","v":10},{"$f":"COUNTIF(CC26:JG26,6)","v":8},{"$f":"SUM(JL26:JN26)","v":27},{"$f":"SUMIF(CC26:JG26,\">0\",$CC$3:$JG$3)","v":5004},{"$f":"INT(JQ26/8+0.5)","v":626}]
[{"$f":"A26+1","v":22},"Филимонова","Светлана","Юрьевна",{"$f":"CONCATENATE(B27,\" \",LEFT(C27,1),\". \",LEFT(D27,1),\".\")","v":"Филимонова С. Ю."},null,"Филимоновой","Светлане","Юрьевне","1994-05-28","п.Талица Буйского р-на Костромской обл.","РФ","ж","МОУ СОШ №2 городского округа г.Буй",2011,"незамужем","Костромская обл., г.Буй,ул. Октябрьской революции, д.83А, кв. 6",null,null,null,null,null,null,null,160890,"Экономический","38.03.33","Экономика","Финансы и кредит","5 лет","БАКАЛАВР","2-803","2016-12-26","всвязиспереводомизФГБОУВО\"Ярославскийгосударственныйтехническийуниверситет","000004323","2016-12-09",null,null,null,null,null,null,null,null,null,null,null,null,null,null,null,null,null,null,null,null,null,null,null,null,null,null,null,null,null,null,null,null,null,null,null,null,null,null,null,null,null,null,4,"243z",null,null,null,null,null,null,3,"п/зач",null,6,"п/зач",null,3,"п/зач",null,5,"2017-09-20",24,3,"п/зач",null,4,"2017-09-20",23,6,"п/зач",null,6,"п/зач",null,4,"2017-09-20",22,3,"п/зач",null,6,"2017-09-20",21,6,"п/зач",null,3,"п/зач",null,4,"2017-09-20",20,4,"2017-09-20",19,3,"2017-11-24",212,6,"п/зач",null,6,"п/зач",null,null,null,null,5,"2017-11-22","ФГБОУ ВО Костромская ГСХА, кафедра экономической кибернетики",3,"2017-12-11",355,3,"2017-09-18",15,4,"п/зач",null,5,"2016-12-05","Z-6298443",5,"2017-10-13",113,4,"2017-05-20",18,6,"2017-12-11",354,5,"2017-05-30","Z-6278436",3,"2018-09-04","Современные тенденции развития бюджетной системы РФ",5,"2017-05-30","Z-6258453",4,"2017-05-30","Z-6278448",3,"30.05.2017","Оптимизация структуры кормопризводства",4,"2017-08-31",null,3,"2017-12-06","Z-7709567",3,"06.12.2017","Расходы корпораций и пути их снижения.\n(На примере ООО «Воскресенье-Агро» \nКостромской области Буйского района)",5,"2017-12-06","Z-7709579",5,"2017-12-06","Z-7709592",4,"2017-12-06","Z-7709708",3,"06.12.2017","Себестоимость и рентабельность \nпроизводства продукции животноводства \nв ООО \"Воскресенье-Агро\" ",5,"2017-12-06","Z-7709717",5,"2018-04-13",7709488,5,"2018-04-13",7709580,3,"2018-04-13",7709577,4,"2018-04-13",7709583,4,"2018-04-13",7709559,3,"2018-09-04","Анализ ликвидности и платежеспособности\nпредприятия",4,"2018-09-04","ООО \"Агрофирма\" Планета\" Буйского р-на Костромской обл.",null,null,null,null,null,null,null,null,null,null,null,null,null,null,null,null,null,null,null,null,null,null,null,null,null,null,null,null,null,null,null,null,null,null,null,null,null,null,null,null,null,null,{"$f":"(JL27*3+JM27*4+JN27*5)/50","v":2.96},null,{"$f":"COUNTIF(CC27:JG27,3)","v":15},{"$f":"COUNTIF(CC27:JG27,4)","v":12},{"$f":"COUNTIF(CC27:JG27,5)","v":11},{"$f":"COUNTIF(CC27:JG27,6)","v":8},{"$f":"SUM(JL27:JN27)","v":38},{"$f":"SUMIF(CC27:JG27,\">0\",$CC$3:$JG$3)","v":6012},{"$f":"INT(JQ27/8+0.5)","v":752}]
[{"$f":"A27+1","v":23},"Ганибал","Владимир","Александрович",{"$f":"CONCATENATE(B28,\" \",LEFT(C28,1),\". \",LEFT(D28,1),\".\")","v":"Ганибал В. А."},null,"Ганибалу","Владимиру","Александровичу","1996-10-31","п.Красное-на-Волге Красносельского р-на Костромской обл.","РФ","м","МБОУ Шолоховская СОШ",2014,"холост","Костромская обл., Красносельский р-н,  пгт Красное-на-Волге, ул. Заготскот, д.14, кв. 1",null,null,null,null,null,null,null,14533,"Экономический","38.03.37","Экономика","Финансы и кредит","5 лет","БАКАЛАВР","2-524","2014-08-21","по договору с полным возмещением затрат","000002643","2014-07-14",null,null,null,null,null,null,null,null,"2-504",42557,"в связи с призывом в ряды РФ","2016-07-06","2017-07-06","2-571","2015-09-01","2-703","2017-09-01",null,null,null,null,null,null,null,null,null,null,null,null,null,null,null,null,null,null,null,null,null,null,null,null,null,4,"241z",null,null,null,null,null,null,3,"п/зач",null,6,"п/зач",null,3,"п/зач",null,3,"2016-04-05",null,3,"2016-04-28",null,3,"2016-07-01",null,6,"2017-11-16",null,6,"2015-12-22",null,3,"2016-04-14",null,3,"2017-11-27",null,6,"2016-04-11",null,6,"2016-04-27",null,3,"2017-11-24",null,4,"2016-04-19",null,3,"2016-04-27",null,3,"2016-04-23",null,null,null,null,6,"2017-11-15",null,6,"2017-11-15",null,null,null,null,3,"2017-12-02",null,null,null,null,3,"2017-12-02",null,4,"2017-12-02",null,5,"2017-12-02",null,4,"2018-06-05",7769492,6,"2018-06-05",7769541,5,"2018-06-05",7769554,5,"2018-06-05","Государственное финансовое регулирование\nэкономики России",4,"2018-06-05",7769557,3,"2018-06-05",7769545,3,"2018-06-05","Определение оптимальной структуры \nкормопроизводства сельскохозяйственных \nпредприятий.",null,null,"ИП Ганибал А.В. Красносельского р-на Костромской обл.",null,null,null,null,null,null,null,null,null,null,null,null,null,null,null,null,null,null,null,null,null,null,null,null,null,null,null,null,null,null,null,null,null,null,null,null,null,null,null,null,null,null,null,null,null,null,null,null,null,null,null,null,null,null,null,null,null,null,null,null,null,null,null,null,null,null,null,null,null,null,null,null,null,null,null,null,null,null,null,null,null,null,null,null,{"$f":"(JL28*3+JM28*4+JN28*5)/50","v":1.46},null,{"$f":"COUNTIF(CC28:JG28,3)","v":14},{"$f":"COUNTIF(CC28:JG28,4)","v":4},{"$f":"COUNTIF(CC28:JG28,5)","v":3},{"$f":"COUNTIF(CC28:JG28,6)","v":8},{"$f":"SUM(JL28:JN28)","v":21},{"$f":"SUMIF(CC28:JG28,\">0\",$CC$3:$JG$3)","v":4248},{"$f":"INT(JQ28/8+0.5)","v":531}]
[{"$f":"A28+1","v":24},"Гольцов","Александр","Александрович",{"$f":"CONCATENATE(B29,\" \",LEFT(C29,1),\". \",LEFT(D29,1),\".\")","v":"Гольцов А. А."},null,"Гольцову","Александру","Александровичу","1992-01-24","г.Кологрив Костромской обл.","РФ","м","МОУ Кологривская СОШ Кологривского муниципального района Костромской области",2010,"холост","Костромская обл., г.Кологрив, ул. Октябрьская, д.54",null,null,null,null,null,null,null,160910,"Экономический","38.03.38","Экономика","Финансы и кредит","5 лет","БАКАЛАВР","2-402","2010-09-01","по договору с полным возмещением затрат","861","2010-09-16",null,null,"2-228\n2-563","02.06.2011\n26.08.15","пособственному желанию\nза невыполнение учебного плана","2-478\n2-606","03.11.2011\n22.09.2016",null,null,null,null,null,null,"2-374","2010-08-10","2-703","2017-09-01",null,null,null,null,null,null,null,null,null,null,null,null,null,null,null,null,null,null,null,null,null,null,null,null,null,4,"241z",null,null,null,null,null,null,3,"п/зач",null,6,"2017-04-10",null,3,"п/зач",null,3,"п/зач",null,3,"2017-04-03",null,3,"2017-04-10",null,6,"п/зач",null,6,"2017-04-10",null,3,"2017-04-10",null,3,"2017-07-10",null,6,"2017-04-10",null,6,"2017-04-03",null,3,"п/зач",null,4,"2017-05-16",null,3,"2017-05-22",null,3,"2017-06-29",null,6,"п/зач",null,6,"2018-02-01",null,6,"2018-02-01",null,null,null,null,null,null,null,null,null,null,4,"2017-12-02",null,3,"2017-12-02",null,4,"2018-02-01",null,null,null,null,null,null,null,null,null,null,null,null,null,null,null,null,null,null,null,null,null,null,null,null,"ООО \"Диапазон+\" г.Ярославль Ярославской обл.",null,null,null,null,null,null,null,null,null,null,null,null,null,null,null,null,null,null,null,null,null,null,null,null,null,null,null,null,null,null,null,null,null,null,null,null,null,null,null,null,null,null,null,null,null,null,null,null,null,null,null,null,null,null,null,null,null,null,null,null,null,null,null,null,null,null,null,null,null,null,null,null,null,null,null,null,null,null,null,null,null,null,null,null,{"$f":"(JL29*3+JM29*4+JN29*5)/50","v":0.9},null,{"$f":"COUNTIF(CC29:JG29,3)","v":11},{"$f":"COUNTIF(CC29:JG29,4)","v":3},{"$f":"COUNTIF(CC29:JG29,5)","v":0},{"$f":"COUNTIF(CC29:JG29,6)","v":8},{"$f":"SUM(JL29:JN29)","v":14},{"$f":"SUMIF(CC29:JG29,\">0\",$CC$3:$JG$3)","v":3528},{"$f":"INT(JQ29/8+0.5)","v":441}]
[{"$f":"A29+1","v":25},"Голякевич","Кристина","Александровна",{"$f":"CONCATENATE(B30,\" \",LEFT(C30,1),\". \",LEFT(D30,1),\".\")","v":"Голякевич К. А."},null,"Голякевич","Кристине","Александровне","1994-06-09","д.Шемятино Макарьевского р-на Костромской обл.","РФ","ж","Муниципальное казенное учреждение СОШ №2 г.Макарьева Костромской обл.",2012,"незамужем","г.Кострома, мкр Венеция, д.58, кв. 53",null,null,null,null,null,null,null,"15735з","Экономический","38.03.39","Экономика","Финансы и кредит","5 лет","БАКАЛАВР","2-557","2015-08-21","по договору с полным возмещением затрат","000003738","2015-08-18",null,null,null,null,null,null,null,null,null,null,null,null,null,"2-561","2016-09-01","2-703","2017-09-01",null,null,null,null,null,null,null,null,null,null,null,null,null,null,null,null,null,null,null,null,null,null,null,null,null,4,"241z",4,"2018-06-05",77610134,6,"2018-06-05",77610110,3,"2016-06-11",null,6,"2016-06-11",null,null,null,null,3,"2016-06-11",null,4,"2016-06-11",null,3,"2016-06-11",null,6,"2016-12-23",null,6,"2016-12-23",null,3,"2016-12-23",null,3,"2016-12-23",null,6,"2016-12-23",null,6,"2017-04-21",null,3,"2017-04-20",null,null,null,null,4,"2017-04-22",null,3,"2017-04-22",null,6,"2017-04-22",null,6,"2017-04-22",null,6,"2017-04-22",null,null,null,null,3,"2017-12-02",null,3,"2017-12-02",null,4,"2017-12-02",null,4,"2017-12-02",null,4,"2017-12-02",null,4,"2018-06-05",7769492,6,"2018-06-05",7769541,5,"2018-06-05",7769554,4,"2018-06-05","Бюджетный дефицит, его экономические и социальные последствия",4,"2018-06-05",7769557,4,"2018-06-05",7769545,3,"2018-06-05","Определение оптимальной специализациии \nсочетания отраслей сельскохозяйственных \nпредприятий.",null,null,"ООО \"КАКО.РУ\" г.Кострома",null,null,null,null,null,null,null,null,null,null,null,null,null,null,null,null,null,null,null,null,null,null,null,null,null,null,null,null,null,null,null,null,null,null,null,null,null,null,null,null,null,null,null,null,null,null,null,null,null,null,null,null,null,null,null,null,null,null,null,null,null,null,null,null,null,null,null,null,null,null,null,null,null,null,null,null,null,null,null,null,null,null,null,null,{"$f":"(JL30*3+JM30*4+JN30*5)/50","v":1.5},null,{"$f":"COUNTIF(CC30:JG30,3)","v":10},{"$f":"COUNTIF(CC30:JG30,4)","v":10},{"$f":"COUNTIF(CC30:JG30,5)","v":1},{"$f":"COUNTIF(CC30:JG30,6)","v":10},{"$f":"SUM(JL30:JN30)","v":21},{"$f":"SUMIF(CC30:JG30,\">0\",$CC$3:$JG$3)","v":4384},{"$f":"INT(JQ30/8+0.5)","v":548}]
[{"$f":"A30+1","v":26},"Дмитриева","Дарья","Аркадьевна",{"$f":"CONCATENATE(B31,\" \",LEFT(C31,1),\". \",LEFT(D31,1),\".\")","v":"Дмитриева Д. А."},null,"Дмитриевой","Дарье","Аркадьевне","1992-12-19","п.Волгореченск Костромской обл.","РФ","ж","ОГБ ПОУ \"Костромской лесомеханический колледж\"",2015,"незамужем","Костромская обл., г.Волгореченск, ул. им50-летия Ленинского Комсомола, д.36, кв. 27",null,null,null,null,null,null,null,"15738з","Экономический","38.03.40","Экономика","Финансы и кредит","5 лет","БАКАЛАВР","2-557","2015-08-21","по договору с полным возмещением затрат","000003633","2015-08-12",null,null,null,null,null,null,null,null,null,null,null,null,null,"2-561","2016-09-01","2-703","2017-09-01",null,null,null,null,null,null,null,null,null,null,null,null,null,null,null,null,null,null,null,null,null,null,null,null,null,4,"241z",4,"2018-06-05",77610134,6,"2018-06-05",77610110,4,"2016-06-11",null,6,"2016-06-11",null,4,"2016-06-11",null,3,"2016-06-11",null,4,"2016-06-11",null,3,"2016-06-11",null,6,"2016-12-23",null,6,"2016-12-23",null,4,"2016-12-23",null,5,"2016-12-23",null,6,"2016-12-23",null,6,"2017-04-21",null,4,"2017-04-20",null,null,null,null,3,"2017-04-22",null,3,"2017-04-22",null,6,"2017-04-22",null,6,"2017-04-22",null,6,"2017-04-22",null,null,null,null,3,"2017-12-02",null,4,"2017-12-02",null,4,"2017-12-02",null,4,"2017-12-02",null,4,"2017-12-02",null,4,"2018-06-05",7769492,6,"2018-06-05",7769541,5,"2018-06-05",7769554,4,"2018-06-05","Налоги с населения и их роль в современных условиях",4,"2018-06-05",7769557,4,"2018-06-05",7769545,3,"2018-06-05","Оптимизация сочетания отраслей и специализации предприятия\nагропромышленногокомплекса",4,"2018-08-31","МБДОУ ОВГО г.Волгореченск  Костромской области \"Детский сад №2\" Солнышко\"",null,null,null,null,null,null,null,null,null,null,null,null,null,null,null,null,null,null,null,null,null,null,null,null,null,null,null,null,null,null,null,null,null,null,null,null,null,null,null,null,null,null,null,null,null,null,null,null,null,null,null,null,null,null,null,null,null,null,null,null,null,null,null,null,null,null,null,null,null,null,null,null,null,null,null,null,null,null,null,null,null,null,null,null,{"$f":"(JL31*3+JM31*4+JN31*5)/50","v":1.76},null,{"$f":"COUNTIF(CC31:JG31,3)","v":6},{"$f":"COUNTIF(CC31:JG31,4)","v":15},{"$f":"COUNTIF(CC31:JG31,5)","v":2},{"$f":"COUNTIF(CC31:JG31,6)","v":10},{"$f":"SUM(JL31:JN31)","v":23},{"$f":"SUMIF(CC31:JG31,\">0\",$CC$3:$JG$3)","v":4600},{"$f":"INT(JQ31/8+0.5)","v":575}]
[{"$f":"A31+1","v":27},"Жакилов","Александр","Сергеевич",{"$f":"CONCATENATE(B32,\" \",LEFT(C32,1),\". \",LEFT(D32,1),\".\")","v":"Жакилов А. С."},null,"Жакилову","Александру","Сергеевичу","1991-09-16","г.Кострома","РФ","м","ОГБОУ СПО \"Костромской автотранспортный колледж\"",2013,"холост","г.Кострома, ул. Советская, д.124, кв. 14",null,null,null,null,null,null,null,"15739з","Экономический","38.03.41","Экономика","Финансы и кредит","5 лет","БАКАЛАВР","2-557","2015-08-21","по договору с полным возмещением затрат","000003473","2015-08-03",null,null,null,null,null,null,null,null,null,null,null,null,null,"2-561","2016-09-01","2-703","2017-09-01",null,null,null,null,null,null,null,null,null,null,null,null,null,null,null,null,null,null,null,null,null,null,null,null,null,4,"241z",3,"2018-06-05",77610134,6,"2018-06-05",77610110,3,"2016-06-11",null,6,"2016-06-11",null,3,"2016-06-11",null,3,"2016-06-11",null,5,"2016-06-11",null,3,"2016-06-11",null,6,"2016-12-23",null,6,"2016-12-23",null,3,"2016-12-23",null,3,"2016-12-23",null,6,"2016-12-23",null,6,"2017-04-21",null,4,"2017-04-20",null,null,null,null,3,"2017-04-22",null,3,"2017-04-22",null,6,"2017-04-22",null,6,"2017-04-22",null,6,"2017-04-22",null,3,"2018-06-05","ФГБОУ ВО Костромская ГСХА, кафедра экономической кибернетики",3,"2017-12-02",null,3,"2017-12-02",null,4,"2017-12-02",null,3,"2017-12-02",null,3,"2017-12-02",null,4,"2018-06-05",7769492,6,"2018-06-05",7769541,4,"2018-06-05",7769554,3,"2018-06-05","Сущность и функции налогов, их роль в современных\nусловиях",4,"2018-06-05",7769557,3,"2018-06-05",7769545,null,null,"Определение оптимальной структуры \nкормопроизводства сельскохозяйственных \nпредприятий.",null,null,"ИП Ревин Павел Алексеевич Костромского р-на Костромской обл.",null,null,null,null,null,null,null,null,null,null,null,null,null,null,null,null,null,null,null,null,null,null,null,null,null,null,null,null,null,null,null,null,null,null,null,null,null,null,null,null,null,null,null,null,null,null,null,null,null,null,null,null,null,null,null,null,null,null,null,null,null,null,null,null,null,null,null,null,null,null,null,null,null,null,null,null,null,null,null,null,null,null,null,null,{"$f":"(JL32*3+JM32*4+JN32*5)/50","v":1.46},null,{"$f":"COUNTIF(CC32:JG32,3)","v":16},{"$f":"COUNTIF(CC32:JG32,4)","v":5},{"$f":"COUNTIF(CC32:JG32,5)","v":1},{"$f":"COUNTIF(CC32:JG32,6)","v":10},{"$f":"SUM(JL32:JN32)","v":22},{"$f":"SUMIF(CC32:JG32,\">0\",$CC$3:$JG$3)","v":4600},{"$f":"INT(JQ32/8+0.5)","v":575}]
[{"$f":"A32+1","v":28},"Зайцева","Анна","Антоновна",{"$f":"CONCATENATE(B33,\" \",LEFT(C33,1),\". \",LEFT(D33,1),\".\")","v":"Зайцева А. А."},null,"Зайцевой","Анне","Антоновне","1997-03-07","с.Светочевагора Красносельского р-на Костромской обл.","РФ","ж","МБОУ г.Костромы СОШ №8",2014,"незамужем","Костромаг.,ул. Индустриальная, д.51, кв. 48",null,null,null,null,null,null,null,14436,"Экономический","38.03.42","Экономика","Финансы и кредит","5 лет","БАКАЛАВР","2-524","2014-08-21","по договору с полным возмещением затрат","000002596","2014-07-08",null,null,"2-705",42677,"в связи с переводом в Костромской государственный университет","2-731","2017-09-14",null,null,null,null,null,null,"2-571","2015-09-01","2-561","2016-09-01",null,null,null,null,null,null,null,null,null,null,null,null,null,null,null,null,null,null,null,null,null,null,null,null,null,4,"241z",3,"2018-06-05",77610134,6,"2018-06-05",77610110,3,"п/зач",null,6,"п/зач",null,3,"п/зач",null,3,"п/зач",null,3,"п/зач",null,4,"п/зач",null,6,"п/зач",null,6,"п/зач",null,0,null,null,3,"п/зач",null,6,"п/зач",null,null,null,null,4,"п/зач",null,4,"п/зач",null,null,null,null,3,"п/зач",null,6,"п/зач",null,null,null,null,null,null,null,3,"п/зач",null,null,null,null,null,null,null,null,null,null,3,"2017-12-02",null,3,"п/зач",null,4,"2018-06-05",7769492,6,"2018-06-05",7769541,4,"2018-06-05",7769554,null,null,null,4,"2018-06-05",7769557,4,"2018-06-05",7769545,null,null,null,null,null,"ФГБОУ ВО Костромская ГСХА Костромского р-на Костромской обл.",null,null,null,null,null,null,null,null,null,null,null,null,null,null,null,null,null,null,null,null,null,3,"п/зач",null,null,null,null,null,null,null,null,null,null,null,null,null,null,null,null,null,null,null,4,"п/зач",null,null,null,null,null,null,null,null,null,null,null,null,null,null,null,null,null,null,null,null,null,null,null,null,null,null,null,null,null,null,null,null,null,null,null,null,null,null,null,null,{"$f":"(JL33*3+JM33*4+JN33*5)/50","v":1.3},null,{"$f":"COUNTIF(CC33:JG33,3)","v":11},{"$f":"COUNTIF(CC33:JG33,4)","v":8},{"$f":"COUNTIF(CC33:JG33,5)","v":0},{"$f":"COUNTIF(CC33:JG33,6)","v":7},{"$f":"SUM(JL33:JN33)","v":19},{"$f":"SUMIF(CC33:JG33,\">0\",$CC$3:$JG$3)","v":4032},{"$f":"INT(JQ33/8+0.5)","v":504}]
[{"$f":"A33+1","v":29},"Зайцева","Полина","Романовна",{"$f":"CONCATENATE(B34,\" \",LEFT(C34,1),\". \",LEFT(D34,1),\".\")","v":"Зайцева П. Р."},null,"Зайцевой","Полине","Романовне","1996-05-02","п.Волгореченск Костромской обл.","РФ","ж","ОГБ ПОУ \"Костромской лесомеханический колледж\"",2015,"незамужем","Костромская обл., г.Волгореченск, ул. Набережная, д.34, кв. 1",null,null,null,null,null,null,null,"15740з","Экономический","38.03.43","Экономика","Финансы и кредит","5 лет","БАКАЛАВР","2-557","2015-08-21","по договору с полным возмещением затрат","000003634","2015-08-12",null,null,null,null,null,null,null,null,null,null,null,null,null,"2-561","2016-09-01","2-703","2017-09-01",null,null,null,null,null,null,null,null,null,null,null,null,null,null,null,null,null,null,null,null,null,null,null,null,null,4,"241z",4,"2018-06-05",77610134,6,"2018-06-05",77610110,5,"2016-06-11",null,6,"2016-06-11",null,3,"2016-06-11",null,4,"2016-06-11",null,5,"2016-06-11",null,4,"2016-06-11",null,6,"2016-12-23",null,6,"2016-12-23",null,5,"2016-12-23",null,4,"2016-12-23",null,6,"2016-12-23",null,6,"2017-04-21",null,5,"2017-04-20",null,3,"2017-04-22",null,3,"2017-04-22",null,4,"2017-04-22",null,6,"2017-04-22",null,6,"2017-04-22",null,6,"2017-04-22",null,3,"2018-06-05","ФГБОУ ВО Костромская ГСХА, кафедра экономической кибернетики",3,"2017-12-02",null,4,"2017-12-02",null,4,"2017-12-02",null,4,"2017-12-02",null,4,"2017-12-02",null,5,"2018-06-05",7769492,6,"2018-06-05",7769541,5,"2018-06-05",7769554,5,"2018-06-05","Особенности функционирования финансовой системы развитых стран (на примере США, Германии и др.)",4,"2018-06-05",7769557,5,"2018-06-05",7769545,5,"2018-06-05","Оптимизация сочетания отраслей и специализации предприятия\nагропромышленногокомплекса",4,"2018-08-31","МБДОУ ОВГО г.Волгореченск  Костромской области \"Детский сад №2\" Солнышко\"",null,null,null,null,null,null,null,null,null,null,null,null,null,null,null,null,null,null,null,null,null,null,null,null,null,null,null,null,null,null,null,null,null,null,null,null,null,null,null,null,null,null,null,null,null,null,null,null,null,null,null,null,null,null,null,null,null,null,null,null,null,null,null,null,null,null,null,null,null,null,null,null,null,null,null,null,null,null,null,null,null,null,null,null,{"$f":"(JL34*3+JM34*4+JN34*5)/50","v":2.08},null,{"$f":"COUNTIF(CC34:JG34,3)","v":5},{"$f":"COUNTIF(CC34:JG34,4)","v":11},{"$f":"COUNTIF(CC34:JG34,5)","v":9},{"$f":"COUNTIF(CC34:JG34,6)","v":10},{"$f":"SUM(JL34:JN34)","v":25},{"$f":"SUMIF(CC34:JG34,\">0\",$CC$3:$JG$3)","v":4788},{"$f":"INT(JQ34/8+0.5)","v":599}]
[{"$f":"A34+1","v":30},"Ибрагимов","Ислам","Ибрагимович",{"$f":"CONCATENATE(B35,\" \",LEFT(C35,1),\". \",LEFT(D35,1),\".\")","v":"Ибрагимов И. И."},null,"Ибрагимову","Исламу","Ибрагимовичу","1989-10-13","д.Чертово Чухломского р-на Костромскойобл.","РФ","м","МОУ Чухломская СОШ имени А.А. Яковлева",2008,"холост","Костромская обл., Галичский р-н, д.Чертово, ул. Молодежная, д.1, кв. 1",null,null,null,null,null,null,null,160924,"Экономический","38.03.44","Экономика","Финансы и кредит","5 лет","БАКАЛАВР","2-389","2008-08-22","по договору с полным возмещением затрат","206","2008-08-27",null,null,"2-520",41106,"как невышедшего из академического отпуска","2-98","2017-02-15",null,"2-206","2011-05-18","по состоянию здоровья","2011-05-11","2012-05-10","2-392","2009-08-28","2-565","2018-06-25",null,null,null,null,null,null,null,null,null,null,null,null,null,null,null,null,null,null,null,null,null,null,null,null,null,4,"241z",3,"2018-06-05",77610134,6,"2018-06-05",77610110,3,"п/зач",null,6,"п/зач",null,3,"2017-12-08",null,3,"2017-12-04",null,4,"2017-11-29",null,3,"п/зач",null,6,"п/зач",null,6,"п/зач",null,4,"2017-04-24",null,3,"2017-12-08",null,6,"2017-04-24",null,6,"п/зач",null,3,"п/зач",null,4,"2017-04-24",null,3,"2017-04-22",null,4,"2017-04-22",null,6,"2017-04-22",null,6,"2017-04-22",null,6,"2017-04-22",null,3,"п/зач",null,3,"2017-12-02",null,3,"2017-12-02",null,4,"2017-12-02",null,4,"2017-12-02",null,3,"п/зач",null,3,"п/зач",null,6,"2018-06-05",7769541,null,null,null,null,null,null,4,"2018-06-05",7769557,3,"2018-06-05",7769545,3,"2018-06-05","Определение оптимальной специализациии \nсочетания отраслей сельскохозяйственных \nпредприятий.",null,null,"ООО \"Авангард\" Чухломского р-на Костромской обл.",null,null,null,null,null,null,null,null,null,null,null,null,null,null,null,null,null,null,null,null,null,null,null,null,null,null,null,null,null,null,null,null,null,null,null,null,null,null,null,null,null,null,3,"п/зач",null,6,"п/зач",null,null,null,null,null,null,null,null,null,null,null,null,null,null,null,null,null,null,null,null,null,null,null,null,null,null,null,null,null,null,null,null,null,null,null,null,null,{"$f":"(JL35*3+JM35*4+JN35*5)/50","v":1.52},null,{"$f":"COUNTIF(CC35:JG35,3)","v":16},{"$f":"COUNTIF(CC35:JG35,4)","v":7},{"$f":"COUNTIF(CC35:JG35,5)","v":0},{"$f":"COUNTIF(CC35:JG35,6)","v":11},{"$f":"SUM(JL35:JN35)","v":23},{"$f":"SUMIF(CC35:JG35,\">0\",$CC$3:$JG$3)","v":4860},{"$f":"INT(JQ35/8+0.5)","v":608}]
[{"$f":"A35+1","v":31},"Корёгина","Анастасия","Александровна",{"$f":"CONCATENATE(B36,\" \",LEFT(C36,1),\". \",LEFT(D36,1),\".\")","v":"Корёгина А. А."},null,"Корёгиной","Анастасии","Александровне","1997-05-09","п.Талица Буйского р-на Костромской обл.","РФ","ж","МОУ Талицкая СОШ Буйского муниципального района Костромской обл.",2015,"незамужем","Костромская обл., Буйский р-н, пос.Талица, ул. Некрасова, 16-2",null,null,null,null,null,null,null,160868,"Экономический","38.03.46","Экономика","Финансы и кредит","5 лет","БАКАЛАВР","2-555","2015-08-21","по договору с полным возмещением затрат","000003362","2015-07-03",null,null,null,null,null,null,null,null,null,null,null,null,null,"2-561","2016-09-01","2-703","2017-09-01",null,null,null,null,null,null,null,null,null,null,null,null,null,null,null,null,null,null,null,null,null,null,null,null,null,4,"241z",4,"2018-06-05",77610134,6,"2018-06-05",77610110,4,"п/зач",null,6,"п/зач",null,4,"п/зач",null,3,"2016-12-16",null,4,"2016-12-07",null,3,"2016-12-21",null,6,"2016-12-23",null,6,"2016-12-23",null,4,"2016-12-23",null,4,"2016-12-23",null,6,"2016-12-23",null,6,"2017-04-21",null,4,"2017-04-20",null,5,"п/зач",null,5,"2017-04-22",null,4,"2017-04-22",null,6,"2017-04-22",null,6,"2017-04-22",null,6,"2017-04-22",null,5,"п/зач",null,4,"2017-12-02",null,5,"2017-12-02",null,4,"2017-12-02",null,4,"2017-12-02",null,5,"2017-12-02",null,4,"2018-06-05",7769492,6,"2018-06-05",7769541,5,"2018-06-05",7769554,4,"2018-06-05","Пенсионный фонд России и его роль в пенсионном обеспечении",4,"2018-06-05",7769557,5,"2018-06-05",7769545,3,"2018-06-05","Определение оптимальной структуры\nкормопроизводства сельскохозяйственных \nпредприятий.",4,"2018-08-31","ИП КФХ Сертухов Е.С. Буйского р-на Костромской обл.",null,null,null,null,null,null,null,null,null,null,null,null,null,null,null,null,null,null,null,null,null,null,null,null,null,null,null,null,null,null,null,null,null,null,null,null,null,null,null,null,null,null,null,null,null,null,null,null,null,null,null,null,null,null,null,null,null,null,null,null,null,null,null,null,null,null,null,null,null,null,null,null,null,null,null,null,null,null,null,null,null,null,null,null,{"$f":"(JL36*3+JM36*4+JN36*5)/50","v":2.08},null,{"$f":"COUNTIF(CC36:JG36,3)","v":3},{"$f":"COUNTIF(CC36:JG36,4)","v":15},{"$f":"COUNTIF(CC36:JG36,5)","v":7},{"$f":"COUNTIF(CC36:JG36,6)","v":10},{"$f":"SUM(JL36:JN36)","v":25},{"$f":"SUMIF(CC36:JG36,\">0\",$CC$3:$JG$3)","v":4788},{"$f":"INT(JQ36/8+0.5)","v":599}]
[{"$f":"A36+1","v":32},"Поляшов","Артём","Сергеевич",{"$f":"CONCATENATE(B37,\" \",LEFT(C37,1),\". \",LEFT(D37,1),\".\")","v":"Поляшов А. С."},null,"Поляшову","Артёму","Сергеевичу","1992-10-16","г.Кострома","РФ","м","ОГБОУ СПО \"Костромской строительный техникум\"",2011,"холост","г.Кострома, ул. Советская, д.124, кв. 14",null,null,null,null,null,null,null,"15746з","Экономический","38.03.47","Экономика","Финансы и кредит","5 лет","БАКАЛАВР","2-557","2015-08-21","по договору с полным возмещением затрат","000003472","2015-08-03",null,null,null,null,null,null,null,null,null,null,null,null,null,"2-561","2016-09-01","2-703","2017-09-01",null,null,null,null,null,null,null,null,null,null,null,null,null,null,null,null,null,null,null,null,null,null,null,null,null,4,"241z",4,"2018-06-05",77610134,6,"2018-06-05",77610110,3,"2016-06-11",null,6,"2016-06-11",null,3,"2016-06-11",null,3,"2016-06-11",null,3,"2016-06-11",null,3,"2016-06-11",null,6,"2016-12-23",null,6,"2016-12-23",null,4,"2016-12-23",null,3,"2016-12-23",null,6,"2016-12-23",null,6,"2017-04-21",null,4,"2017-04-20",null,5,"2017-04-22",null,4,"2017-04-22",null,3,"2017-04-22",null,6,"2017-04-22",null,6,"2017-04-22",null,6,"2017-04-22",null,3,"2017-11-28","ФГБОУ ВО Костромская ГСХА, кафедра экономической кибернетики",4,"2017-12-02",null,3,"2017-12-02",null,3,"2017-12-02",null,4,"2017-12-02",null,5,"2017-12-02",null,4,"2018-06-05",7769492,6,"2018-06-05",7769541,5,"2018-06-05",7769554,4,"2018-06-05","Управление государственным долгом России",4,"2018-06-05",7769557,3,"2018-06-05",7769545,3,"2018-06-05","Определение оптимальной структуры \nкормопроизводства сельскохозяйственных \nпредприятий.",null,null,"ФГБОУ ВО Костромская ГСХА Костромского р-на Костромской обл.",null,null,null,null,null,null,null,null,null,null,null,null,null,null,null,null,null,null,null,null,null,null,null,null,null,null,null,null,null,null,null,null,null,null,null,null,null,null,null,null,null,null,null,null,null,null,null,null,null,null,null,null,null,null,null,null,null,null,null,null,null,null,null,null,null,null,null,null,null,null,null,null,null,null,null,null,null,null,null,null,null,null,null,null,{"$f":"(JL37*3+JM37*4+JN37*5)/50","v":1.74},null,{"$f":"COUNTIF(CC37:JG37,3)","v":12},{"$f":"COUNTIF(CC37:JG37,4)","v":9},{"$f":"COUNTIF(CC37:JG37,5)","v":3},{"$f":"COUNTIF(CC37:JG37,6)","v":10},{"$f":"SUM(JL37:JN37)","v":24},{"$f":"SUMIF(CC37:JG37,\">0\",$CC$3:$JG$3)","v":4788},{"$f":"INT(JQ37/8+0.5)","v":599}]
[{"$f":"A37+1","v":33},"Рустицкая","Юлия","Александровна",{"$f":"CONCATENATE(B38,\" \",LEFT(C38,1),\". \",LEFT(D38,1),\".\")","v":"Рустицкая Ю. А."},null,"Рустицкой","Юлии","Александровне","1995-12-19","п.Сусанино Костромской обл.","РФ","ж","МОУ \"Сусанинская СОШ\" Сусанинского муниципального р-на Костромской обл.",2013,"замужем","г.Кострома, ул. Никитская, д.120, кв. 25",null,null,null,null,null,null,null,14424,"Экономический","38.03.49","Экономика","Финансы и кредит","5 лет","БАКАЛАВР","2-524","2014-08-21","по договору с полным возмещением затрат","000002683","2014-07-23",null,null,null,null,null,null,null,null,"2-464",42187,"по состоянию здоровья","2015-09-01","2016-08-31","2-561","2016-09-01","2-703","2017-09-01",null,null,null,null,null,null,null,null,null,null,null,null,null,null,null,null,null,null,null,null,null,null,null,null,null,4,"241z",4,"2018-06-05",77610134,6,"2018-06-05",77610110,4,"п/зач",null,6,"п/зач",null,3,"п/зач",null,4,"п/зач",null,4,"п/зач",null,4,"п/зач",null,6,"2016-12-23",null,6,"2016-12-23",null,5,"2016-12-23",null,4,"2016-12-23",null,6,"2016-12-23",null,6,"2017-04-21",null,5,"2017-04-20",null,4,"2017-04-22",null,4,"2017-04-22",null,3,"2017-04-22",null,6,"2017-04-22",null,6,"2017-04-22",null,6,"2017-04-22",null,3,"п/зач",null,4,"2017-12-02",null,5,"2017-12-02",null,4,"2017-12-02",null,4,"2017-12-02",null,4,"2017-12-02",null,5,"2018-06-05",7769492,6,"2018-06-05",7769541,5,"2018-06-05",7769554,5,"2018-06-05","Современные тенденции развития бюджетной \nсистемы РФ",4,"2018-06-05",7769557,4,"2018-06-05",7769545,3,"2018-06-05","Определение оптимальной структуры \nкормопроизводства сельскохозяйственных \nпредприятий.",null,null,"ООО \"РусфинансБанк\" г.Кострома",null,null,null,null,null,null,null,null,null,null,null,null,null,null,null,null,null,null,null,null,null,null,null,null,null,null,null,null,null,null,null,null,null,null,null,null,null,null,null,null,null,null,null,null,null,null,null,null,null,null,null,null,null,null,null,null,null,null,null,null,null,null,null,null,null,null,null,null,null,null,null,null,null,null,null,null,null,null,null,null,null,null,null,null,{"$f":"(JL38*3+JM38*4+JN38*5)/50","v":1.96},null,{"$f":"COUNTIF(CC38:JG38,3)","v":4},{"$f":"COUNTIF(CC38:JG38,4)","v":14},{"$f":"COUNTIF(CC38:JG38,5)","v":6},{"$f":"COUNTIF(CC38:JG38,6)","v":10},{"$f":"SUM(JL38:JN38)","v":24},{"$f":"SUMIF(CC38:JG38,\">0\",$CC$3:$JG$3)","v":4788},{"$f":"INT(JQ38/8+0.5)","v":599}]
[{"$f":"A38+1","v":34},"Сарыев","Канан","Джамшидоглы",{"$f":"CONCATENATE(B39,\" \",LEFT(C39,1),\". \",LEFT(D39,1),\".\")","v":"Сарыев К. Д."},null,"Сарыеву","Канану","Джамшидоглы","1996-07-09","п.Чистые Боры Буйского р-на Костромской обл.","РФ","м","СОШ №13 им. Наумова городского округа г.Буй",2014,"холост","Костромская обл., г.Буй ул. Островского, д.11, кв. 52",null,null,null,null,null,null,null,14452,"Экономический","38.03.50","Экономика","Финансы и кредит","5 лет","БАКАЛАВР","2-524","2014-08-21","по договору с полным возмещением затрат","000002579","2014-07-04",null,null,null,null,null,null,null,null,"2-803",42730,"в связи с призывом в ряды РФ","2016-12-14","2017-12-13","2-571","2015-09-01","2-561","2016-09-01",null,null,null,null,null,null,null,null,null,null,null,null,null,null,null,null,null,null,null,null,null,null,null,null,null,4,"241z",null,null,null,null,null,null,3,"п/зач",null,6,"п/зач",null,3,"п/зач",null,3,"п/зач",null,3,"2016-07-01",null,3,"п/зач",null,6,"п/зач",null,6,"п/зач",null,3,"2016-04-22",null,3,"п/зач",null,6,"п/зач",null,6,"2016-04-27",null,3,"п/зач",null,3,"п/зач",null,null,null,null,null,null,null,6,"п/зач",null,6,"2017-12-18",null,6,"2018-04-17",679,3,"п/зач",null,null,null,null,null,null,null,3,"2016-12-02",null,null,null,null,3,"2018-04-17",678,4,"2018-06-05",7769492,6,"2018-06-05",7769541,3,"2018-06-05",7769554,null,null,null,4,"2018-06-05",7769557,3,"2018-06-05",7769545,null,null,"Определение оптимальной структуры \nкормопроизводства сельскохозяйственных \nпредприятий.",null,null,"ООО \"ТИСС\" Буйского р-на Костромской обл.",null,null,null,null,null,null,null,null,null,null,null,null,null,null,null,null,null,null,null,null,null,null,null,null,null,null,null,null,null,null,null,null,null,null,null,null,null,null,null,null,null,null,null,null,null,null,null,null,null,null,null,null,null,null,null,null,null,null,null,null,null,null,null,null,null,null,null,null,null,null,null,null,null,null,null,null,null,null,null,null,null,null,null,null,{"$f":"(JL39*3+JM39*4+JN39*5)/50","v":1},null,{"$f":"COUNTIF(CC39:JG39,3)","v":14},{"$f":"COUNTIF(CC39:JG39,4)","v":2},{"$f":"COUNTIF(CC39:JG39,5)","v":0},{"$f":"COUNTIF(CC39:JG39,6)","v":9},{"$f":"SUM(JL39:JN39)","v":16},{"$f":"SUMIF(CC39:JG39,\">0\",$CC$3:$JG$3)","v":3420},{"$f":"INT(JQ39/8+0.5)","v":428}]
[{"$f":"A39+1","v":35},"Смирнова","Ольга","Александровна",{"$f":"CONCATENATE(B40,\" \",LEFT(C40,1),\". \",LEFT(D40,1),\".\")","v":"Смирнова О. А."},null,"Смирновой","Ольге","Александровне","1996-11-13","г.Кострома","РФ","ж","МБОУ \"Средняя общеобразовательная школа №8\" города Костромы",2014,"незамужем","г.Кострома, ул. Индустриальная, д.55, кв. 48",null,null,null,null,null,null,null,160894,"Экономический","38.03.52","Экономика","Финансы и кредит","5 лет","БАКАЛАВР","2-524","2014-08-21","по договору с полным возмещением затрат","000002536","2014-06-30",null,null,null,null,null,null,null,null,null,null,null,null,null,"2-571","2015-09-01","2-339","2018-05-03",null,null,null,null,null,null,null,null,null,null,null,null,null,null,null,null,null,null,null,null,null,null,null,null,null,4,"241z",4,"2018-06-05",77610134,6,"2018-06-05",77610110,3,"2018-04-23",727,6,"п/зач",null,3,"п/зач",null,3,"п/зач",null,3,"п/зач",null,4,"п/зач",null,6,"п/зач",null,6,"п/зач",null,3,"п/зач",null,3,"2018-04-23",716,6,"п/зач",null,6,"2018-05-07",793,4,"п/зач",null,4,"п/зач",null,3,"п/зач",null,3,"2018-05-08",802,6,"п/зач",null,6,"п/зач",null,6,"п/зач",null,3,"п/зач",null,3,"2018-04-26",771,3,"п/зач",null,3,"п/зач",null,4,"2017-12-02",null,3,"п/зач",null,4,"2018-06-05",7769492,6,"2018-06-05",7769541,5,"2018-06-05",7769554,null,null,"Фонд социального страхования Российской Федерации и его роль в системе государственного социального страхования",4,"2018-06-05",7769557,3,"2018-06-05",7769545,3,"2018-06-05","Определение оптимальной структуры \nкормопроизводства сельскохозяйственных \nпредприятий.",null,null,"ОАО Нерехтская межрайонная льносеменоводческая станция\" г.Нерехта Костромской обл.",null,null,null,null,null,null,null,null,null,null,null,null,null,null,null,null,null,null,null,null,null,null,null,null,null,null,null,null,null,null,null,null,null,null,null,null,null,null,null,null,null,null,null,null,null,6,"п/зач",null,null,null,null,null,null,null,null,null,null,null,null,null,null,null,null,null,null,null,null,null,null,null,null,null,null,null,null,null,null,null,null,null,null,null,null,null,{"$f":"(JL40*3+JM40*4+JN40*5)/50","v":1.56},null,{"$f":"COUNTIF(CC40:JG40,3)","v":15},{"$f":"COUNTIF(CC40:JG40,4)","v":7},{"$f":"COUNTIF(CC40:JG40,5)","v":1},{"$f":"COUNTIF(CC40:JG40,6)","v":11},{"$f":"SUM(JL40:JN40)","v":23},{"$f":"SUMIF(CC40:JG40,\">0\",$CC$3:$JG$3)","v":4860},{"$f":"INT(JQ40/8+0.5)","v":608}]
[{"$f":"A40+1","v":36},"Софийская(Савинова)","Ольга","Александровна",{"$f":"CONCATENATE(B41,\" \",LEFT(C41,1),\". \",LEFT(D41,1),\".\")","v":"Софийская(Савинова) О. А."},null,"Софийской","Олге","Александровне","1996-08-28","г.Кострома","РФ","ж","МБОУ г.Костромы СОШ №11",2014,"замужем","г.Кострома, ул. Самоковская, д.7, кв. 171",null,null,null,null,null,null,null,160869,"Экономический","38.03.54","Экономика","Финансы и кредит","5 лет","БАКАЛАВР","2-524","2014-08-21","по договору с полным возмещением затрат","000002676","2014-07-21",null,null,"2-62",42409,"за академическую неуспеваемость и систематические пропуски учебных занятий","2-671","2016-10-18",null,null,null,null,null,null,"2-571","2015-09-01","2-339","2018-05-03",null,null,null,null,null,null,null,null,null,null,null,null,null,null,null,null,null,null,null,null,null,null,null,null,null,4,"241z",5,"2018-06-05",77610134,6,"2018-06-05",77610110,3,"2017-04-07",null,6,"п/зач",null,3,"п/зач",null,3,"п/зач",null,4,"2017-11-29",null,3,"п/зач",null,6,"п/зач",null,6,"2016-12-23",null,4,"2016-12-23",null,3,"2017-04-18",null,6,"п/зач",null,6,"2017-04-21",null,3,"2017-04-20",null,3,"2017-11-29",null,4,"2017-04-22",null,4,"2017-04-22",null,6,"2017-04-22",null,6,"2017-04-22",null,6,"2017-04-22",null,5,"п/зач",null,0,null,null,3,"2017-12-02",null,4,"2017-12-02",null,4,"2017-12-02",null,4,"2017-12-02",null,5,"2018-06-05",7769492,6,"2018-06-05",7769541,5,"2018-06-05",7769554,5,"2018-06-05","Рынок ценных бумаг в России и перспективы его развития",4,"2018-06-05",7769557,5,"2018-06-05",7769545,4,"2018-06-05","Определение оптимальной структуры \nкормопроизводства сельскохозяйственных \nпредприятий.",4,"2018-08-31","ИП Смирнова Ю.В. г.Кострома",null,null,null,null,null,null,null,null,null,null,null,null,null,null,null,null,null,null,null,null,null,null,null,null,null,null,null,null,null,null,null,null,null,null,null,null,null,null,null,null,null,null,null,null,null,6,"п/зач",null,null,null,null,null,null,null,null,null,null,null,null,null,null,null,null,null,null,null,null,null,null,null,null,null,null,null,null,null,null,null,null,null,null,null,null,null,{"$f":"(JL41*3+JM41*4+JN41*5)/50","v":1.88},null,{"$f":"COUNTIF(CC41:JG41,3)","v":8},{"$f":"COUNTIF(CC41:JG41,4)","v":10},{"$f":"COUNTIF(CC41:JG41,5)","v":6},{"$f":"COUNTIF(CC41:JG41,6)","v":11},{"$f":"SUM(JL41:JN41)","v":24},{"$f":"SUMIF(CC41:JG41,\">0\",$CC$3:$JG$3)","v":4716},{"$f":"INT(JQ41/8+0.5)","v":590}]
[{"$f":"A41+1","v":37},"Чесноков","Роман","Сергеевич",{"$f":"CONCATENATE(B42,\" \",LEFT(C42,1),\". \",LEFT(D42,1),\".\")","v":"Чесноков Р. С."},null,"Чеснокову","Роману","Сергеевичу","1996-12-26","г.Кострома","РФ","м","МБОУ г.Костромы СОШ №8",2014,"холост","г.Кострома, ул. Центральная, д.25, кв. 23",null,null,null,null,null,null,null,15592,"Экономический","38.03.56","Экономика","Финансы и кредит","5 лет","БАКАЛАВР","2-555","2015-08-21","по договору с полным возмещением затрат","000003392","2015-07-10",null,null,null,null,null,null,null,null,null,null,null,null,null,"2-561","2016-09-01","2-339","2018-05-03",null,null,null,null,null,null,null,null,null,null,null,null,null,null,null,null,null,null,null,null,null,null,null,null,null,4,"241z",3,"2018-06-05",77610134,6,"2018-06-05",77610110,3,"п/зач",null,6,"п/зач",null,3,"п/зач",null,3,"п/зач",null,3,"2018-04-16",668,3,"п/зач",null,6,"2017-12-26",null,6,"2016-12-23",null,3,"2016-12-23",null,3,"2016-12-23",null,6,"2018-05-03",747,6,"2017-04-21",null,3,"2017-12-26",null,3,"2017-12-26",null,3,"2017-04-22",null,3,"2017-04-22",null,6,"2017-04-22",null,6,"2017-04-22",null,6,"2017-04-22",null,3,"п/зач",null,3,"2017-12-02",null,4,"2017-12-02",null,3,"2017-12-02",null,3,"2017-12-02",null,3,"2017-12-02",null,4,"2018-06-05",7769492,6,"2018-06-05",7769541,4,"2018-06-05",7769554,4,"2018-06-05","Структура финансовой системы России и перспективы ее развития",4,"2018-06-05",7769557,4,"2018-06-05",7769545,3,"2018-06-05","Определение оптимальной структуры \nкормопроизводства сельскохозяйственных \nпредприятий.",null,null,"АО \"Газпромгазораспределение Кострома\" г.Кострома",null,null,null,null,null,null,null,null,null,null,null,null,null,null,null,null,null,null,null,null,null,null,null,null,null,null,null,null,null,null,null,null,null,null,null,null,null,null,null,null,null,null,null,null,null,null,null,null,null,null,null,null,null,null,null,null,null,null,null,null,null,null,null,null,null,null,null,null,null,null,null,null,null,null,null,null,null,null,null,null,null,null,null,null,{"$f":"(JL42*3+JM42*4+JN42*5)/50","v":1.56},null,{"$f":"COUNTIF(CC42:JG42,3)","v":18},{"$f":"COUNTIF(CC42:JG42,4)","v":6},{"$f":"COUNTIF(CC42:JG42,5)","v":0},{"$f":"COUNTIF(CC42:JG42,6)","v":10},{"$f":"SUM(JL42:JN42)","v":24},{"$f":"SUMIF(CC42:JG42,\">0\",$CC$3:$JG$3)","v":4788},{"$f":"INT(JQ42/8+0.5)","v":599}]
[{"$f":"A42+1","v":38},"Шахорин","Владислав","Дмитриевич",{"$f":"CONCATENATE(B43,\" \",LEFT(C43,1),\". \",LEFT(D43,1),\".\")","v":"Шахорин В. Д."},null,"Шахорину","Владиславу","Дмитриевичу","1994-10-20","г.Кострома","РФ","м","МБОУ г.Кострома\" Лицей №32\"",2012,"холост","г.Кострома, ул. Ново-Полянская, д.6/41, кв. 36",null,null,null,null,null,null,null,"15752з","Экономический","38.03.57","Экономика","Финансы и кредит","5 лет","БАКАЛАВР","2-557","2015-08-21","по договору с полным возмещением затрат","000003615","2015-08-12",null,null,null,null,null,null,null,null,null,null,null,null,null,"2-561","2016-09-01","2-703","2017-09-01",null,null,null,null,null,null,null,null,null,null,null,null,null,null,null,null,null,null,null,null,null,null,null,null,null,4,"241z",4,"2018-06-05",77610134,6,"2018-06-05",77610110,3,"2016-06-11",null,6,"2016-06-11",null,3,"2016-06-11",null,3,"2016-06-11",null,4,"2016-06-11",null,4,"2016-06-11",null,6,"2016-12-23",null,6,"2016-12-23",null,3,"2016-12-23",null,3,"2016-12-23",null,6,"2016-12-23",null,6,"2017-04-21",null,4,"2017-04-20",null,3,null,null,3,"2017-04-22",null,3,"2017-04-22",null,6,"2017-04-22",null,6,"2017-04-22",null,6,"2017-04-22",null,0,null,null,3,"2017-12-02",null,3,"2017-12-02",null,3,"2017-12-02",null,3,"2017-12-02",null,3,"2017-12-02",null,4,"2018-06-05",7769492,6,"2018-06-05",7769541,5,"2018-06-05",7769554,3,"2018-06-05","Фонды обязательного медицинского страхования, их \nроль в финансировании расходов на \nздравоохранение в Российской Федерации",4,"2018-06-05",7769557,3,"2018-06-05",7769545,3,"2018-06-05","Оптимизация сочетания отраслей и специализации предприятия\nагропромышленногокомплекса",null,null,"ООО \"Косметика\" г.Кострома",null,null,null,null,null,null,null,null,null,null,null,null,null,null,null,null,null,null,null,null,null,null,null,null,null,null,null,null,null,null,null,null,null,null,null,null,null,null,null,null,null,null,null,null,null,null,null,null,null,null,null,null,null,null,null,null,null,null,null,null,null,null,null,null,null,null,null,null,null,null,null,null,null,null,null,null,null,null,null,null,null,null,null,null,{"$f":"(JL43*3+JM43*4+JN43*5)/50","v":1.54},null,{"$f":"COUNTIF(CC43:JG43,3)","v":16},{"$f":"COUNTIF(CC43:JG43,4)","v":6},{"$f":"COUNTIF(CC43:JG43,5)","v":1},{"$f":"COUNTIF(CC43:JG43,6)","v":10},{"$f":"SUM(JL43:JN43)","v":23},{"$f":"SUMIF(CC43:JG43,\">0\",$CC$3:$JG$3)","v":4788},{"$f":"INT(JQ43/8+0.5)","v":599}]
[{"$f":"A43+1","v":39},"Климова","Анастасия","Сергеевна",{"$f":"CONCATENATE(B44,\" \",LEFT(C44,1),\". \",LEFT(D44,1),\".\")","v":"Климова А. С."},null,"Климовой","Анастасии","Сергеевне","1997-04-06","г.Кострома","РФ","ж","МБОУ г.Костромы СОШ №6",2015,"незамужем","г.Кострома, 3-й Пантусовский проезд, д.14, кв. 1",null,null,null,null,null,null,null,170829,"Экономический","38.03.45","Экономика","Финансы и кредит","5 лет","БАКАЛАВР","2-555","2015-08-21","по договору с полным возмещением затрат","000003391","2015-07-10",null,null,null,null,null,null,null,null,null,null,null,null,null,"2-561","2016-09-01","2-703","2017-09-01",null,null,null,null,null,null,null,null,null,null,null,null,null,null,null,null,null,null,null,null,null,null,null,null,null,4,"243z",4,"2018-06-05",77810134,6,"2018-06-05",7781010,4,"п/зач\n14.10.17",null,6,"п/зач\n17.11.17",null,3,"п/зач01.11.17",null,3,"п/зач01.10.17",null,3,"п/атт\n03.11.17",null,3,"п/зач\n02.10.17",null,6,"п/зач10.11.17",null,6,"п/зач\n08.10.17",null,4,"п/зач\n05.11.17",null,3,"п/зач\n01.11.17",null,6,"п/зач\n02.11.17",null,6,"п/зач\n31.10.17",null,5,"п/зач\n10.11.17",null,3,"п/зач\n02.11.17",null,4,"п/зач\n10.11.17",null,3,"п/зач\n09.11.17",null,6,"п/атт\n20.11.17",null,null,null,null,6,"п/зач\n17.11.17",null,4,"п/зач 01.11.2017",null,null,null,null,4,"п/зач\n14.11.17",null,3,"п/атт\n18.11.17",null,4,"п/атт\n17.11.17",null,4,"п/зач\n16.11.17",null,4,"2018-06-05",7789492,6,"2018-06-05",7789541,4,"2018-06-05",7789554,null,null,"Управление государственным долгом России",5,"2018-06-05",7789557,4,"п/атт\n18.11.17",null,null,null,null,null,null,null,null,null,null,null,null,null,null,null,null,null,null,null,null,null,null,null,null,null,null,null,null,3,"п/зач\n18.11.17",null,null,null,null,null,null,null,null,null,null,null,null,null,null,null,null,null,null,null,null,null,null,null,"п/зач\n17.11.17",null,null,null,null,null,null,null,null,null,null,null,null,null,null,null,null,null,null,null,null,null,null,null,null,null,null,null,null,null,null,null,null,null,null,null,null,null,{"$f":"(JL44*3+JM44*4+JN44*5)/50","v":1.62},null,{"$f":"COUNTIF(CC44:JG44,3)","v":9},{"$f":"COUNTIF(CC44:JG44,4)","v":11},{"$f":"COUNTIF(CC44:JG44,5)","v":2},{"$f":"COUNTIF(CC44:JG44,6)","v":9},{"$f":"SUM(JL44:JN44)","v":22},{"$f":"SUMIF(CC44:JG44,\">0\",$CC$3:$JG$3)","v":4788},{"$f":"INT(JQ44/8+0.5)","v":599}]
[{"$f":"A44+1","v":40},"Пучкова(Мальцева)","Ксения","Михайловна",{"$f":"CONCATENATE(B45,\" \",LEFT(C45,1),\". \",LEFT(D45,1),\".\")","v":"Пучкова(Мальцева) К. М."},null,"Пучковой","Ксении","Михайловне","1996-11-07","г.Кострома","РФ","ж","МБОУ г.Костромы СОШ №8",2014,"замужем","г.Кострома, ул. Индустриальная, д.57А, кв. 75",null,null,null,null,null,null,null,14443,"Экономический","38.03.48","Экономика","Финансы и кредит","5 лет","БАКАЛАВР","2-524","2014-08-21","по договору с полным возмещением затрат","000002525","2014-06-27",null,null,null,null,null,null,null,null,null,null,null,null,null,"2-571","2015-09-01","2-339","2018-05-03",null,null,null,null,null,null,null,null,null,null,null,null,null,null,null,null,null,null,null,null,null,null,null,null,null,4,"243z",4,"2018-06-05",77810134,6,"2018-06-05",7781010,3,"2017-11-10",null,6,"п/зач",null,3,"п/зач",null,3,"2017-12-05",null,4,"2017-11-29",null,3,"п/зач",null,6,"2016-12-23",null,6,"2016-12-23",null,3,"п/зач",null,3,"2016-12-23",null,6,"п/зач",null,6,"2017-11-14",null,3,"п/зач",null,3,"п/зач",null,3,"п/зач",null,3,"2017-04-22",null,6,"2017-04-22",null,6,"2017-04-22",null,6,"2017-04-22",null,5,"2018-05-04",null,3,"2017-12-02",null,3,"2017-12-02",null,3,"2017-12-02",null,4,"2017-12-02",null,4,"2017-12-02",null,4,"2018-06-05",7789492,6,"2018-06-05",7789541,5,"2018-06-05",7789554,null,null,"Пенсионный фонд России и его роль в пенсионном обеспечении",5,"2018-06-05",7789557,4,"2018-06-05",7789545,4,"2018-06-05","Определение оптимальной структуры \nкормопроизводства сельскохозяйственных \nпредприятий.",null,null,"ООО \"Диапазон+\" г.Ярославль Ярославской обл.",null,null,null,null,null,null,null,null,null,null,null,null,null,null,null,null,null,null,null,null,null,null,null,null,null,null,null,null,null,null,null,null,null,null,null,null,null,null,null,null,null,null,null,null,null,null,null,null,null,null,null,null,null,null,null,null,null,null,null,null,null,null,null,null,null,null,null,null,null,null,null,null,null,null,null,null,null,null,null,null,null,null,null,null,{"$f":"(JL45*3+JM45*4+JN45*5)/50","v":1.64},null,{"$f":"COUNTIF(CC45:JG45,3)","v":13},{"$f":"COUNTIF(CC45:JG45,4)","v":7},{"$f":"COUNTIF(CC45:JG45,5)","v":3},{"$f":"COUNTIF(CC45:JG45,6)","v":10},{"$f":"SUM(JL45:JN45)","v":23},{"$f":"SUMIF(CC45:JG45,\">0\",$CC$3:$JG$3)","v":4788},{"$f":"INT(JQ45/8+0.5)","v":599}]
[{"$f":"A45+1","v":41},"Сорокин","Владислав","Андреевич",{"$f":"CONCATENATE(B46,\" \",LEFT(C46,1),\". \",LEFT(D46,1),\".\")","v":"Сорокин В. А."},null,"Сорокину","Владиславу","Андреевичу","1997-01-03","г.Кострома","РФ","м","МБОУ г.Костромы СОШ №4",2014,"холост","г.Кострома, пр.Рабочий, д.6, кв. 31",null,null,null,null,null,null,null,14455,"Экономический","38.03.53","Экономика","Финансы и кредит","5 лет","БАКАЛАВР","2-524","2014-08-21","по договору с полным возмещением затрат","000002711","2014-07-29",null,null,null,null,null,null,null,null,"2-458",42544,"в связи с призывом в ряды РФ","2016-06-29","2017-06-28","2-571","2015-09-01","2-458","2016-06-23",null,null,null,null,null,null,null,null,null,null,null,null,null,null,null,null,null,null,null,null,null,null,null,null,null,4,"243z",4,"2018-06-05",77810134,6,"2018-06-05",7781010,4,"п/зач",null,6,"п/зач",null,3,"п/зач",null,3,"п/зач",null,4,"п/зач",null,4,"п/зач",null,6,"п/зач",null,6,"п/зач",null,3,"п/зач",null,3,"п/зач",null,6,"п/зач",null,6,"п/зач",null,5,"п/зач",null,4,"п/зач",null,4,"п/зач",null,3,"п/зач",null,6,"п/зач",null,6,"п/зач",null,6,"2017-11-14",null,3,"п/зач",null,3,"02.12.20177789538",null,3,"п/зач",null,4,"п/зач",null,4,"02.12.20177789510",null,4,"п/зач",null,4,"2018-06-05",7789492,6,"2018-06-05",7789541,5,"2018-06-05",7789554,null,null,"Сущность  и функции налогов, их роль в современных условиях",5,"2018-06-05",7789557,4,"2018-06-05",7789545,4,"2018-06-05","Определение оптимальной специализациии \nсочетания отраслей сельскохозяйственного \nпредприятия.",null,null,"ООО \"Альфа-Рязань\" г.Кострома",null,null,null,null,null,null,null,null,null,null,null,null,null,null,null,null,null,null,null,null,null,null,null,null,null,null,null,null,null,null,null,null,null,null,null,null,null,null,null,null,null,null,4,"п/зач",null,6,"п/зач",null,null,null,null,null,null,null,null,null,null,null,null,null,null,null,null,null,null,null,null,null,null,null,null,null,6,"п/зач",null,null,null,null,null,null,null,null,null,null,{"$f":"(JL46*3+JM46*4+JN46*5)/50","v":1.82},null,{"$f":"COUNTIF(CC46:JG46,3)","v":8},{"$f":"COUNTIF(CC46:JG46,4)","v":13},{"$f":"COUNTIF(CC46:JG46,5)","v":3},{"$f":"COUNTIF(CC46:JG46,6)","v":12},{"$f":"SUM(JL46:JN46)","v":24},{"$f":"SUMIF(CC46:JG46,\">0\",$CC$3:$JG$3)","v":5112},{"$f":"INT(JQ46/8+0.5)","v":639}]
[{"$f":"A46+1","v":42},"Хохлова","Наталья","Владимировна",{"$f":"CONCATENATE(B47,\" \",LEFT(C47,1),\". \",LEFT(D47,1),\".\")","v":"Хохлова Н. В."},null,"Хохловой","Наталье","Владимировне","1987-12-25","г.ГаличКостромскойобл.","РФ","ж","НОУ СПО Костромской технологический техникум ОАО \"Костромакоопцентр\"",2008,"замужем","Костромская обл., Галичский р-н, д.Лобачи, д.6",null,null,null,null,null,null,null,"15750з","Экономический","38.03.55","Экономика","Финансы и кредит","5 лет","БАКАЛАВР","2-557","2015-08-21","по договору с полным возмещением затрат","000003271","2015-06-18",null,null,null,null,null,null,null,null,null,null,null,null,null,"2-561","2016-09-01","2-284","2018-04-17",null,null,null,null,null,null,null,null,null,null,null,null,null,null,null,null,null,null,null,null,null,null,null,null,null,4,"243z",null,null,null,6,"2018-06-05",7781010,4,"2016-09-12",null,6,"2016-06-11",null,5,"2016-06-30",null,4,"2016-06-30",null,5,"2016-06-11",null,3,"2016-10-03",null,6,"2016-12-23",null,6,"2016-12-23",null,3,"2016-12-23",null,3,"2017-12-08",328,6,"2017-12-08",329,6,"2017-04-22",null,4,"2017-05-30",989,4,"2017-12-22",488,5,"2017-04-22",null,3,"2017-12-07",288,6,"2017-04-22",null,6,"2017-04-22",null,6,"2017-04-22",null,3,"2017-12-20",null,null,null,null,null,null,null,null,null,null,null,null,null,null,null,null,null,null,null,null,null,null,null,null,null,null,null,"Рынок ценных бумаг в России и перспективы его \nразвития",null,null,null,null,null,null,null,null,null,null,null,"ФГБОУ ВО Костромская ГСХА Костромского р-на Костромской обл.",null,null,null,null,null,null,null,null,null,null,null,null,null,null,null,null,null,null,null,null,null,null,null,null,null,null,null,null,null,null,null,null,null,null,null,null,null,null,null,null,null,null,null,null,null,null,null,null,null,null,null,null,null,null,null,null,null,null,null,null,null,null,null,null,null,null,null,null,null,null,null,null,null,null,null,null,null,null,null,null,null,null,null,null,{"$f":"(JL47*3+JM47*4+JN47*5)/50","v":0.92},null,{"$f":"COUNTIF(CC47:JG47,3)","v":5},{"$f":"COUNTIF(CC47:JG47,4)","v":4},{"$f":"COUNTIF(CC47:JG47,5)","v":3},{"$f":"COUNTIF(CC47:JG47,6)","v":9},{"$f":"SUM(JL47:JN47)","v":12},{"$f":"SUMIF(CC47:JG47,\">0\",$CC$3:$JG$3)","v":3060},{"$f":"INT(JQ47/8+0.5)","v":383}]
[{"$f":"A47+1","v":43},"Шульженко","Антон","Николаевич",{"$f":"CONCATENATE(B48,\" \",LEFT(C48,1),\". \",LEFT(D48,1),\".\")","v":"Шульженко А. Н."},null,"Шульженко","Антону","Николаевичу","1983-07-20","г.Северодвинск Архангельской обл.","РФ","м","Профессиональное училище №21 с.Зебляки Шарьинского района",2001,"холост","Костромская обл., г.Шарья,ул. Черняховского, д.38, кв. 8",null,null,null,null,null,null,null,"15753з","Экономический","38.03.58","Экономика","Финансы и кредит","5 лет","БАКАЛАВР","2-585","2015-09-05","по договору с полным возмещением затрат","000003858","2015-09-01",null,null,null,null,null,null,null,null,null,null,null,null,null,"2-561","2016-09-01","2-339","2018-05-03",null,null,null,null,null,null,null,null,null,null,null,null,null,null,null,null,null,null,null,null,null,null,null,null,null,4,"243z",null,null,null,6,"2018-06-05",7781010,5,"2016-09-12",null,6,"2016-06-11",null,4,"2016-09-08",null,5,"2016-06-30",null,5,"2017-10-10",null,5,"2016-10-03",null,6,"2016-12-23",null,6,"2016-12-23",null,4,"2016-12-23",null,3,"2018-05-08",null,6,"2016-12-23",null,6,"2018-02-20",499,3,"2017-05-30",null,3,"2017-10-12",null,5,"2017-12-22",null,3,"2017-12-26",null,6,"2017-04-22",null,6,"2017-04-22",null,6,"2018-05-08",797,5,"2017-07-01",null,null,null,null,3,"2018-07-06",992,null,null,null,5,"2017-12-02",null,null,null,null,null,null,null,null,null,null,null,null,null,null,null,"Налоги с населения и их роль в современных \nусловиях",5,"2018-06-05",7789557,null,null,null,null,null,null,null,null,"ФГБОУ ВО Костромская ГСХА Костромского р-на Костромской обл.",null,null,null,null,null,null,null,null,null,null,null,null,null,null,null,null,null,null,null,null,null,null,null,null,null,null,null,null,null,null,null,null,null,null,null,null,null,null,null,null,null,null,null,null,null,null,null,null,null,null,null,null,null,null,null,null,null,null,null,null,null,null,null,null,null,null,null,null,null,null,null,null,null,null,null,null,null,null,null,null,null,null,null,null,{"$f":"(JL48*3+JM48*4+JN48*5)/50","v":1.26},null,{"$f":"COUNTIF(CC48:JG48,3)","v":5},{"$f":"COUNTIF(CC48:JG48,4)","v":2},{"$f":"COUNTIF(CC48:JG48,5)","v":8},{"$f":"COUNTIF(CC48:JG48,6)","v":9},{"$f":"SUM(JL48:JN48)","v":15},{"$f":"SUMIF(CC48:JG48,\">0\",$CC$3:$JG$3)","v":3528},{"$f":"INT(JQ48/8+0.5)","v":441}]
[{"$f":"A48+1","v":44},"Соколова (Катранюк)","Дарина","Вячеславовна",{"$f":"CONCATENATE(B49,\" \",LEFT(C49,1),\". \",LEFT(D49,1),\".\")","v":"Соколова (Катранюк) Д. В."},null,"Катранюк","Дарине","Вячеславовне","1996-03-02","г.Кишенев","РФ","ж","МБОУ г.Костромы СОШ №21",2014,"незамужем","г.Кострома, ул. Титова, д.13, кв. 47",null,null,null,null,null,null,null,170936,"Экономический","38.03.70","Экономика","Финансы и кредит","5 лет","БАКАЛАВР","2-524","2014-08-21","по договору с полным возмещением затрат","000002770","2014-08-06",null,null,null,null,null,null,null,null,"2-766","2015-11-17","по семейным обстоятельствам","2015-11-06","2016-11-06","2-561","2016-09-01",null,null,null,null,null,null,null,null,null,null,null,null,null,null,null,null,null,null,null,null,null,null,null,null,null,null,null,3,"231z",null,null,null,6,"2018-04-13",null,3,"п/зач",null,6,"п/зач",null,3,"2018-04-26",772,3,"2018-04-25",766,4,"2018-04-11",630,3,"2018-04-28",773,6,"2017-12-23",null,6,"2017-12-23",null,4,"2017-12-23",7909529,3,"2017-12-23",null,6,"2017-12-23",null,6,"2018-04-28",7909531,4,"2018-04-28",7909498,3,"2018-04-28",7909723,4,"2018-04-28",7909533,3,"2018-04-28",7909552,6,"п/зач",null,6,"2018-04-28",7909873,6,"2018-04-28",7909482,null,null,"ФГБОУ ВО Костромская ГСХА, кафедра экономической кибернетики",null,null,null,null,null,null,null,null,null,null,null,null,null,null,null,null,null,null,null,null,null,null,null,null,null,null,null,null,null,null,null,null,null,null,null,null,null,null,null,null,null,null,null,null,null,null,null,null,null,null,null,null,null,null,null,null,null,null,null,null,null,null,null,null,null,null,null,null,null,null,null,null,null,null,null,null,null,null,null,null,null,5,"п/зач",null,null,null,null,null,null,null,null,null,null,null,null,null,null,null,null,null,null,null,null,null,null,null,null,null,null,null,null,null,null,null,null,null,null,null,null,null,null,null,null,{"$f":"(JL49*3+JM49*4+JN49*5)/50","v":0.84},null,{"$f":"COUNTIF(CC49:JG49,3)","v":7},{"$f":"COUNTIF(CC49:JG49,4)","v":4},{"$f":"COUNTIF(CC49:JG49,5)","v":1},{"$f":"COUNTIF(CC49:JG49,6)","v":9},{"$f":"SUM(JL49:JN49)","v":12},{"$f":"SUMIF(CC49:JG49,\">0\",$CC$3:$JG$3)","v":3204},{"$f":"INT(JQ49/8+0.5)","v":401}]
[{"$f":"A49+1","v":45},"Бархатов","Аркадий","Андреевич",{"$f":"CONCATENATE(B50,\" \",LEFT(C50,1),\". \",LEFT(D50,1),\".\")","v":"Бархатов А. А."},null,"Бархатову","Аркадию","Андреевичу","1996-06-21","г.Кострома","РФ","м","МБОУ г.Костромы \"Средняя общеобразовательная школа №24\"",2014,"холост","г.Кострома, ул. Коммунаров,49а",null,null,null,null,null,null,null,160925,"Экономический","38.03.60","Экономика","Финансы и кредит","5 лет","БАКАЛАВР","2-524","2014-08-21","по договору с полным возмещением затрат","000002669","2014-07-17",null,null,"2-158",42088,"за академическую неуспеваемость","2-671","2016-10-18",null,null,null,null,null,null,null,null,null,null,null,null,null,null,null,null,null,null,null,null,null,null,null,null,null,null,null,null,null,null,null,null,null,null,null,3,"231z",null,null,null,6,"2018-09-19",41,3,"2017-06-10",null,6,"2017-06-10",null,3,"2017-06-10",null,3,"2017-06-10",null,3,"2018-09-04",1,3,"2017-06-10",null,6,"2017-12-23",null,6,"2017-12-23",null,null,null,null,null,null,null,6,"2017-12-23",null,6,"2018-04-28",7909531,4,"2018-04-28",7909498,null,null,null,null,null,null,null,null,null,null,null,null,null,null,null,6,"2018-04-28",7909482,null,null,"ФГБОУ ВО Костромская ГСХА, кафедра экономической кибернетики",null,null,null,null,null,null,null,null,null,null,null,null,null,null,null,null,null,null,null,null,null,null,null,null,null,null,null,null,null,null,null,null,null,null,null,null,null,null,null,null,null,null,null,null,null,null,null,null,null,null,null,null,null,null,null,null,null,null,null,null,null,null,null,null,null,null,null,null,null,null,null,null,null,null,null,null,null,null,null,null,null,null,null,null,null,null,null,null,null,null,null,null,null,null,null,null,null,null,null,null,null,null,null,null,null,null,null,null,null,null,null,null,null,null,null,null,null,null,null,null,null,null,null,{"$f":"(JL50*3+JM50*4+JN50*5)/50","v":0.38},null,{"$f":"COUNTIF(CC50:JG50,3)","v":5},{"$f":"COUNTIF(CC50:JG50,4)","v":1},{"$f":"COUNTIF(CC50:JG50,5)","v":0},{"$f":"COUNTIF(CC50:JG50,6)","v":7},{"$f":"SUM(JL50:JN50)","v":6},{"$f":"SUMIF(CC50:JG50,\">0\",$CC$3:$JG$3)","v":1936},{"$f":"INT(JQ50/8+0.5)","v":242}]
[{"$f":"A50+1","v":46},"Бойкова","Светлана","Игоревна",{"$f":"CONCATENATE(B51,\" \",LEFT(C51,1),\". \",LEFT(D51,1),\".\")","v":"Бойкова С. И."},null,"Бойковой","Светлане","Игоревне","1989-11-17","п.Дружба Судиславского р-на Костромской обл.","РФ","ж","ГОУ НПО Профессиональное училище №22",2008,"замужем","157302 Костромская обл., г.Мантурово, ул. Юбилейная, д.23, кв. 16",null,null,null,null,null,null,null,160629,"Экономический","38.03.63","Экономика","Финансы и кредит","5 лет","БАКАЛАВР","2-542","2016-08-19","по договору с полным возмещением затрат","000004062","2016-07-26",null,null,null,null,null,null,null,null,null,null,null,null,null,"2-703","2017-09-01",null,null,null,null,null,null,null,null,null,null,null,null,null,null,null,null,null,null,null,null,null,null,null,null,null,null,null,3,"231z",3,"2017-06-10",null,6,"2017-06-10",null,4,"2017-06-10",null,6,"2017-06-10",null,3,"2017-06-10",null,4,"2017-06-10",null,4,"2017-06-10",null,4,"2017-06-10",null,6,"2017-12-23",null,6,"2017-12-23",null,4,"2017-12-23",7909529,4,"2017-12-23",null,6,"2017-12-23",null,6,"2018-04-28",7909531,3,"2018-04-28",7909498,4,"2018-04-28",7909723,4,"2018-04-28",7909533,3,"2018-04-28",7909552,6,"2018-04-28",7909872,6,"2018-04-28",7909873,6,"2018-04-28",7909482,5,"2018-06-30","ФГБОУ ВО Костромская ГСХА, кафедра экономической кибернетики",null,null,null,null,null,null,null,null,null,null,null,null,null,null,null,null,null,null,null,null,null,null,null,null,null,null,null,null,null,null,null,null,null,null,null,null,null,null,null,null,null,null,null,null,null,null,null,null,null,null,null,null,null,null,null,null,null,null,null,null,null,null,null,null,null,null,null,null,null,null,null,null,null,null,null,null,null,null,null,null,null,null,null,null,null,null,null,null,null,null,null,null,null,null,null,null,null,null,null,null,null,null,null,null,null,null,null,null,null,null,null,null,null,null,null,null,null,null,null,null,null,null,null,{"$f":"(JL51*3+JM51*4+JN51*5)/50","v":0.98},null,{"$f":"COUNTIF(CC51:JG51,3)","v":4},{"$f":"COUNTIF(CC51:JG51,4)","v":8},{"$f":"COUNTIF(CC51:JG51,5)","v":1},{"$f":"COUNTIF(CC51:JG51,6)","v":9},{"$f":"SUM(JL51:JN51)","v":13},{"$f":"SUMIF(CC51:JG51,\">0\",$CC$3:$JG$3)","v":3276},{"$f":"INT(JQ51/8+0.5)","v":410}]
[{"$f":"A51+1","v":47},"Варенцова","Ксения","Павловна",{"$f":"CONCATENATE(B52,\" \",LEFT(C52,1),\". \",LEFT(D52,1),\".\")","v":"Варенцова К. П."},null,"Варенцовой","Ксении","Павловне","1996-12-10","г.Нерехта Костромской обл.","РФ","ж","ГПОУ Ярославской области Ярославский торгово-экономический колледж г.Ярославль",2016,"незамужем","156013 г.Кострома, ул. Катушечная, д.82А, кв. 27",null,null,null,null,null,null,null,160631,"Экономический","38.03.64","Экономика","Финансы и кредит","5 лет","БАКАЛАВР","2-542","2016-08-19","по договору с полным возмещением затрат","000004218","2016-08-18",null,null,null,null,null,null,null,null,null,null,null,null,null,"2-703","2017-09-01",null,null,null,null,null,null,null,null,null,null,null,null,null,null,null,null,null,null,null,null,null,null,null,null,null,null,null,3,"231z",5,"2017-06-10",null,6,"2017-06-10",null,4,"2017-06-10",null,6,"2017-06-10",null,3,"2017-06-10",null,4,"2017-06-10",null,4,"2017-06-10",null,4,"2017-06-10",null,6,"2017-12-23",null,6,"2017-12-23",null,3,"2017-12-23",7909529,4,"2017-12-23",null,6,"2017-12-23",null,6,"2018-04-28",7909531,4,"2018-04-28",7909498,4,"2018-04-28",7909723,3,"2018-04-28",7909533,4,"2018-04-28",7909552,6,"2018-04-28",7909872,6,"2018-04-28",7909873,6,"2018-04-28",7909482,null,null,"ФГБОУ ВО Костромская ГСХА, кафедра экономической кибернетики",null,null,null,null,null,null,null,null,null,null,null,null,null,null,null,null,null,null,null,null,null,null,null,null,null,null,null,null,null,null,null,null,null,null,null,null,null,null,null,null,null,null,null,null,null,null,null,null,null,null,null,null,null,null,null,null,null,null,null,null,null,null,null,null,null,null,null,null,null,null,null,null,null,null,null,null,null,null,null,null,null,null,null,null,null,null,null,null,null,null,null,null,null,null,null,null,null,null,null,null,null,null,null,null,null,null,null,null,null,null,null,null,null,null,null,null,null,null,null,null,null,null,null,{"$f":"(JL52*3+JM52*4+JN52*5)/50","v":0.92},null,{"$f":"COUNTIF(CC52:JG52,3)","v":3},{"$f":"COUNTIF(CC52:JG52,4)","v":8},{"$f":"COUNTIF(CC52:JG52,5)","v":1},{"$f":"COUNTIF(CC52:JG52,6)","v":9},{"$f":"SUM(JL52:JN52)","v":12},{"$f":"SUMIF(CC52:JG52,\">0\",$CC$3:$JG$3)","v":3276},{"$f":"INT(JQ52/8+0.5)","v":410}]
[{"$f":"A52+1","v":48},"Гладкова","Елизавета","Денисовна",{"$f":"CONCATENATE(B53,\" \",LEFT(C53,1),\". \",LEFT(D53,1),\".\")","v":"Гладкова Е. Д."},null,"Гладковой","Елизавете","Денисовне","1997-11-26","г.Кострома","РФ","ж","МБОУ города Костромы Средняя общеобразовательная школа №29",2015,"незамужем","156010 г.Кострома, мкр Паново, д.16, кв. 18",null,null,null,null,null,null,null,160632,"Экономический","38.03.65","Экономика","Финансы и кредит","5 лет","БАКАЛАВР","2-536","2016-08-15"," врамках контрольных цифр на основное место",null,null,null,null,null,null,null,null,null,null,null,null,null,null,null,"2-703","2017-09-01",null,null,null,null,null,null,null,null,null,null,null,null,null,null,null,null,null,null,null,null,null,null,null,null,null,null,null,3,"231z",4,"2017-06-10",null,6,"2017-06-10",null,3,"2017-06-10",null,6,"2017-06-10",null,3,"2017-06-10",null,3,"2017-06-10",null,3,"2017-06-10",null,4,"2017-06-10",null,6,"2017-12-23",null,6,"2017-12-23",null,3,"2017-12-23",7909529,3,"2017-12-23",null,6,"2017-12-23",null,6,"2018-04-28",7909531,4,"2018-04-28",7909498,3,"2018-04-28",7909723,3,"2018-04-28",7909533,3,"2018-04-28",7909552,6,"2018-04-28",7909872,6,"2018-04-28",7909873,6,"2018-04-28",7909482,null,null,"ФГБОУ ВО Костромская ГСХА, кафедра экономической кибернетики",null,null,null,null,null,null,null,null,null,null,null,null,null,null,null,null,null,null,null,null,null,null,null,null,null,null,null,null,null,null,null,null,null,null,null,null,null,null,null,null,null,null,null,null,null,null,null,null,null,null,null,null,null,null,null,null,null,null,null,null,null,null,null,null,null,null,null,null,null,null,null,null,null,null,null,null,null,null,null,null,null,null,null,null,null,null,null,null,null,null,null,null,null,null,null,null,null,null,null,null,null,null,null,null,null,null,null,null,null,null,null,null,null,null,null,null,null,null,null,null,null,null,null,{"$f":"(JL53*3+JM53*4+JN53*5)/50","v":0.78},null,{"$f":"COUNTIF(CC53:JG53,3)","v":9},{"$f":"COUNTIF(CC53:JG53,4)","v":3},{"$f":"COUNTIF(CC53:JG53,5)","v":0},{"$f":"COUNTIF(CC53:JG53,6)","v":9},{"$f":"SUM(JL53:JN53)","v":12},{"$f":"SUMIF(CC53:JG53,\">0\",$CC$3:$JG$3)","v":3276},{"$f":"INT(JQ53/8+0.5)","v":410}]
[{"$f":"A53+1","v":49},"Голубев","Владислав","Олегович",{"$f":"CONCATENATE(B54,\" \",LEFT(C54,1),\". \",LEFT(D54,1),\".\")","v":"Голубев В. О."},null,"Голубеву","Владиславу","Олеговичу","1994-11-26","г.Кострома","РФ","м","МБОУ г.Костромы СОШ №3 с углублённым изучением отдельных предметов",2013,"холост","156009 г.Кострома, ул. Усадебная, д.8",null,null,null,null,null,null,null,160633,"Экономический","38.03.67","Экономика","Финансы и кредит","5 лет","БАКАЛАВР","2-542","2016-08-19","по договору с полным возмещением затрат","000004162","2016-08-15",null,null,null,null,null,null,null,null,null,null,null,null,null,null,null,null,null,null,null,null,null,null,null,null,null,null,null,null,null,null,null,null,null,null,null,null,null,null,null,null,null,null,3,"231z",null,null,null,6,"2018-09-19",42,3,"2017-06-10",null,6,"2017-06-10",null,3,"2017-06-10",null,3,"2017-06-10",null,3,"2018-09-04",1,3,"2017-06-10",null,6,"2017-12-23",null,6,"2017-12-23",null,null,null,null,null,null,null,6,"2017-12-23",null,6,"2018-04-28",7909531,3,"2018-04-28",7909498,null,null,null,null,null,null,null,null,null,6,"2018-04-28",7909872,null,null,null,6,"2018-04-28",7909482,null,null,"ФГБОУ ВО Костромская ГСХА, кафедра экономической кибернетики",null,null,null,null,null,null,null,null,null,null,null,null,null,null,null,null,null,null,null,null,null,null,null,null,null,null,null,null,null,null,null,null,null,null,null,null,null,null,null,null,null,null,null,null,null,null,null,null,null,null,null,null,null,null,null,null,null,null,null,null,null,null,null,null,null,null,null,null,null,null,null,null,null,null,null,null,null,null,null,null,null,null,null,null,null,null,null,null,null,null,null,null,null,null,null,null,null,null,null,null,null,null,null,null,null,null,null,null,null,null,null,null,null,null,null,null,null,null,null,null,null,null,null,{"$f":"(JL54*3+JM54*4+JN54*5)/50","v":0.36},null,{"$f":"COUNTIF(CC54:JG54,3)","v":6},{"$f":"COUNTIF(CC54:JG54,4)","v":0},{"$f":"COUNTIF(CC54:JG54,5)","v":0},{"$f":"COUNTIF(CC54:JG54,6)","v":8},{"$f":"SUM(JL54:JN54)","v":6},{"$f":"SUMIF(CC54:JG54,\">0\",$CC$3:$JG$3)","v":2008},{"$f":"INT(JQ54/8+0.5)","v":251}]
[{"$f":"A54+1","v":50},"Долматова","Елена","Андреевна",{"$f":"CONCATENATE(B55,\" \",LEFT(C55,1),\". \",LEFT(D55,1),\".\")","v":"Долматова Е. А."},null,"Долматовой","Елене","Андреевне","1995-03-15","дер.Лебеди Октябрьского р-на Костромской обл.","РФ","ж","ОГБ ПОУ Костромской торгово-экономический колледж г.Кострома",2015,"незамужем","156026 г.Кострома, ул. Гагарина, д.5, кв. 33",null,null,null,null,null,null,null,160635,"Экономический","38.03.69","Экономика","Финансы и кредит","5 лет","БАКАЛАВР","2-536","2016-08-15"," врамках контрольных цифр на основное место",null,null,null,null,null,null,null,null,null,null,null,null,null,null,null,"2-703","2017-09-01",null,null,null,null,null,null,null,null,null,null,null,null,null,null,null,null,null,null,null,null,null,null,null,null,null,null,null,3,"231z",5,"2017-06-10",null,6,"2017-06-10",null,5,"2017-06-10",null,6,"2017-06-10",null,3,"2017-06-10",null,4,"2017-06-10",null,4,"2017-06-10",null,4,"2017-06-10",null,6,"2017-12-23",null,6,"2017-12-23",null,4,"2017-12-23",7909529,4,"2017-12-23",null,6,"2017-12-23",null,6,"2018-04-28",7909531,4,"2018-04-28",7909498,4,"2018-04-28",7909723,4,"2018-04-28",7909533,3,"2018-04-28",7909552,6,"2018-04-28",7909872,6,"2018-04-28",7909873,6,"2018-04-28",7909482,5,"2018-06-30","ФГБОУ ВО Костромская ГСХА, кафедра экономической кибернетики",null,null,null,null,null,null,null,null,null,null,null,null,null,null,null,null,null,null,null,null,null,null,null,null,null,null,null,null,null,null,null,null,null,null,null,null,null,null,null,null,null,null,null,null,null,null,null,null,null,null,null,null,null,null,null,null,null,null,null,null,null,null,null,null,null,null,null,null,null,null,null,null,null,null,null,null,null,null,null,null,null,null,null,null,null,null,null,null,null,null,null,null,null,null,null,null,null,null,null,null,null,null,null,null,null,null,null,null,null,null,null,null,null,null,null,null,null,null,null,null,null,null,null,{"$f":"(JL55*3+JM55*4+JN55*5)/50","v":1.06},null,{"$f":"COUNTIF(CC55:JG55,3)","v":2},{"$f":"COUNTIF(CC55:JG55,4)","v":8},{"$f":"COUNTIF(CC55:JG55,5)","v":3},{"$f":"COUNTIF(CC55:JG55,6)","v":9},{"$f":"SUM(JL55:JN55)","v":13},{"$f":"SUMIF(CC55:JG55,\">0\",$CC$3:$JG$3)","v":3276},{"$f":"INT(JQ55/8+0.5)","v":410}]
[{"$f":"A55+1","v":51},"Кулешус","Сергей","Витаутасович",{"$f":"CONCATENATE(B56,\" \",LEFT(C56,1),\". \",LEFT(D56,1),\".\")","v":"Кулешус С. В."},null,"Кулешусу","Сергею","Витаутасовичу","1996-04-15","г.Галич Костромской обл.","РФ","м","ОГБ ПОУ Галичский индустриальный колледж Костромской области город Галич",2015,"холост","157202 Костромская обл., г.Галич,  ул. Фестивальная, д.2, кв. 24",null,null,null,null,null,null,null,160636,"Экономический","38.03.71","Экономика","Финансы и кредит","5 лет","БАКАЛАВР","2-542","2016-08-19","по договору с полным возмещением затрат","000004161","2016-08-15",null,null,null,null,null,null,null,null,null,null,null,null,null,"2-703","2017-09-01",null,null,null,null,null,null,null,null,null,null,null,null,null,null,null,null,null,null,null,null,null,null,null,null,null,null,null,3,"231z",3,"2017-06-10",null,6,"2017-06-10",null,3,"2017-06-10",null,6,"2017-06-10",null,3,"2017-06-10",null,3,"2017-06-10",null,null,null,null,3,"2017-06-10",null,6,"2017-12-23",null,6,"2017-12-23",null,3,"2017-12-23",7909529,3,"2017-12-23",null,6,"2017-12-23",null,6,"2018-04-28",7909531,4,"2018-04-28",7909498,4,"2018-04-28",7909723,4,"2018-04-28",7909533,3,"2018-04-28",7909552,6,"2018-04-28",7909872,6,"2018-04-28",7909873,null,null,null,null,null,"ФГБОУ ВО Костромская ГСХА, кафедра экономической кибернетики",null,null,null,null,null,null,null,null,null,null,null,null,null,null,null,null,null,null,null,null,null,null,null,null,null,null,null,null,null,null,null,null,null,null,null,null,null,null,null,null,null,null,null,null,null,null,null,null,null,null,null,null,null,null,null,null,null,null,null,null,null,null,null,null,null,null,null,null,null,null,null,null,null,null,null,null,null,null,null,null,null,null,null,null,null,null,null,null,null,null,null,null,null,null,null,null,null,null,null,null,null,null,null,null,null,null,null,null,null,null,null,null,null,null,null,null,null,null,null,null,null,null,null,{"$f":"(JL56*3+JM56*4+JN56*5)/50","v":0.72},null,{"$f":"COUNTIF(CC56:JG56,3)","v":8},{"$f":"COUNTIF(CC56:JG56,4)","v":3},{"$f":"COUNTIF(CC56:JG56,5)","v":0},{"$f":"COUNTIF(CC56:JG56,6)","v":8},{"$f":"SUM(JL56:JN56)","v":11},{"$f":"SUMIF(CC56:JG56,\">0\",$CC$3:$JG$3)","v":2844},{"$f":"INT(JQ56/8+0.5)","v":356}]
[{"$f":"A56+1","v":52},"Матвеев","Алексей","Олегович",{"$f":"CONCATENATE(B57,\" \",LEFT(C57,1),\". \",LEFT(D57,1),\".\")","v":"Матвеев А. О."},null,"Матвееву","Алексею","Олеговичу","1996-01-06","п.Малинино Антроповского р-на Костромской обл.","РФ","м","МКОУ Палкинская СОШ Антроповского муниципального района Костромской области",2014,"холост","Костромская обл., Антроповский р-н, п.Малинино, ул. 1мая, д.9",null,null,null,null,null,null,null,14558,"Экономический","38.03.72","Экономика","Финансы и кредит","5 лет","БАКАЛАВР","2-524","2014-08-21","по договору с полным возмещением затрат","000002546","2014-07-01",null,null,"2-129",42444,"по собственному желанию","2-770","2017-09-29",null,null,null,null,null,null,"2-571","2015-09-01",null,null,null,null,null,null,null,null,null,null,null,null,null,null,null,null,null,null,null,null,null,null,null,null,null,null,null,3,"231z",null,null,null,6,"2018-04-27",722,3,"п/зач",null,6,"п/зач",null,3,"п/зач",null,3,"2018-04-24",750,3,"2018-04-27",721,3,"2017-12-20",null,6,"2017-12-23",null,6,"2017-12-23",null,3,"2017-12-23",7909529,3,"2017-12-23",null,6,"2017-12-23",null,6,"2018-04-28",7909531,4,"2018-04-28",7909498,4,"2018-04-28",7909723,3,"2018-04-28",7909533,3,"п/зач",null,6,"2018-04-28",7909872,6,"2018-04-28",7909873,6,"2018-04-28",7909482,3,"п/атт.",null,null,null,null,null,null,null,null,null,null,null,null,null,null,null,null,null,null,null,null,null,null,null,null,null,null,null,null,null,null,null,null,null,null,null,null,null,null,null,null,null,null,null,null,null,null,null,null,null,null,null,null,null,null,null,null,null,null,null,null,null,null,null,null,null,null,null,null,null,null,null,null,null,null,null,null,null,null,null,null,null,null,null,null,null,null,null,null,null,null,null,null,null,null,null,null,null,null,null,null,null,null,null,null,null,null,null,null,null,null,null,null,null,null,null,null,null,null,null,null,null,null,null,null,{"$f":"(JL57*3+JM57*4+JN57*5)/50","v":0.76},null,{"$f":"COUNTIF(CC57:JG57,3)","v":10},{"$f":"COUNTIF(CC57:JG57,4)","v":2},{"$f":"COUNTIF(CC57:JG57,5)","v":0},{"$f":"COUNTIF(CC57:JG57,6)","v":9},{"$f":"SUM(JL57:JN57)","v":12},{"$f":"SUMIF(CC57:JG57,\">0\",$CC$3:$JG$3)","v":3060},{"$f":"INT(JQ57/8+0.5)","v":383}]
[{"$f":"A57+1","v":53},"Нечаев","Дмитрий","Сергеевич",{"$f":"CONCATENATE(B58,\" \",LEFT(C58,1),\". \",LEFT(D58,1),\".\")","v":"Нечаев Д. С."},null,"Нечаеву","Дмитрию","Сергеевичу","1997-04-09","г.Кострома","РФ","м","МБОУ города Костромы Средняя общеобразовательная школа №1",2015,"холост","156003 г.Кострома, ул. Боровая д.10, кв.36",null,null,null,null,null,null,null,160843,"Экономический","38.03.73","Экономика","Финансы и кредит","5 лет","БАКАЛАВР","2-542","2016-08-19","по договору с полным возмещением затрат","000004239","2016-08-18",null,null,null,null,null,null,null,null,null,null,null,null,null,"2-703","2017-09-01",null,null,null,null,null,null,null,null,null,null,null,null,null,null,null,null,null,null,null,null,null,null,null,null,null,null,null,3,"231z",3,"2017-06-10",null,6,"2017-06-10",null,3,"2017-06-10",null,6,"2017-06-10",null,3,"2017-06-10",null,3,"2017-06-10",null,null,null,null,3,"2017-06-10",null,6,"2017-12-23",null,6,"2017-12-23",null,null,null,null,null,null,null,6,"2017-12-23",null,6,"2018-04-28",7909531,4,"2018-04-28",7909498,null,null,null,3,"2018-04-28",7909533,null,null,null,6,"2018-04-28",7909872,6,"2018-04-28",7909873,6,"2018-04-28",7909482,null,null,"ФГБОУ ВО Костромская ГСХА, кафедра экономической кибернетики",null,null,null,null,null,null,null,null,null,null,null,null,null,null,null,null,null,null,null,null,null,null,null,null,null,null,null,null,null,null,null,null,null,null,null,null,null,null,null,null,null,null,null,null,null,null,null,null,null,null,null,null,null,null,null,null,null,null,null,null,null,null,null,null,null,null,null,null,null,null,null,null,null,null,null,null,null,null,null,null,null,null,null,null,null,null,null,null,null,null,null,null,null,null,null,null,null,null,null,null,null,null,null,null,null,null,null,null,null,null,null,null,null,null,null,null,null,null,null,null,null,null,null,{"$f":"(JL58*3+JM58*4+JN58*5)/50","v":0.44},null,{"$f":"COUNTIF(CC58:JG58,3)","v":6},{"$f":"COUNTIF(CC58:JG58,4)","v":1},{"$f":"COUNTIF(CC58:JG58,5)","v":0},{"$f":"COUNTIF(CC58:JG58,6)","v":9},{"$f":"SUM(JL58:JN58)","v":7},{"$f":"SUMIF(CC58:JG58,\">0\",$CC$3:$JG$3)","v":2044},{"$f":"INT(JQ58/8+0.5)","v":256}]
[{"$f":"A58+1","v":54},"Никитина","Елена","Сергеевна",{"$f":"CONCATENATE(B59,\" \",LEFT(C59,1),\". \",LEFT(D59,1),\".\")","v":"Никитина Е. С."},null,"Никитиной","Елене","Сергеевне","1997-01-09","п.Сангар Кобяйского р-на Республика Саха","РФ","ж","МКОУ Костромского муниципального р-на, Костромской области Караваевская СОШ",2015,"незамужем","156530 Костромская обл., Костромской р-н, пос.Караваево, ул. Штеймана, д.63, кв. 76",null,null,null,null,null,null,null,160639,"Экономический","38.03.74","Экономика","Финансы и кредит","5 лет","БАКАЛАВР","2-542","2016-08-19","по договору с полным возмещением затрат","000004184","2016-08-16",null,null,null,null,null,null,null,null,null,null,null,null,null,"2-703","2017-09-01",null,null,null,null,null,null,null,null,null,null,null,null,null,null,null,null,null,null,null,null,null,null,null,null,null,null,null,3,"231z",5,"2017-06-10",null,6,"2017-06-10",null,3,"2017-06-10",null,6,"2017-06-10",null,3,"2017-06-10",null,4,"2017-06-10",null,3,"2017-06-10",null,4,"2017-06-10",null,6,"2017-12-23",null,6,"2017-12-23",null,null,null,null,3,"2017-12-23",null,6,"2017-12-23",null,6,"2018-04-28",7909531,4,"2018-04-28",7909498,null,null,null,4,"2018-04-28",7909533,null,null,null,null,null,null,null,null,null,null,null,null,null,null,"ФГБОУ ВО Костромская ГСХА, кафедра экономической кибернетики",null,null,null,null,null,null,null,null,null,null,null,null,null,null,null,null,null,null,null,null,null,null,null,null,null,null,null,null,null,null,null,null,null,null,null,null,null,null,null,null,null,null,null,null,null,null,null,null,null,null,null,null,null,null,null,null,null,null,null,null,null,null,null,null,null,null,null,null,null,null,null,null,null,null,null,null,null,null,null,null,null,null,null,null,null,null,null,null,null,null,null,null,null,null,null,null,null,null,null,null,null,null,null,null,null,null,null,null,null,null,null,null,null,null,null,null,null,null,null,null,null,null,null,{"$f":"(JL59*3+JM59*4+JN59*5)/50","v":0.66},null,{"$f":"COUNTIF(CC59:JG59,3)","v":4},{"$f":"COUNTIF(CC59:JG59,4)","v":4},{"$f":"COUNTIF(CC59:JG59,5)","v":1},{"$f":"COUNTIF(CC59:JG59,6)","v":6},{"$f":"SUM(JL59:JN59)","v":9},{"$f":"SUMIF(CC59:JG59,\">0\",$CC$3:$JG$3)","v":2404},{"$f":"INT(JQ59/8+0.5)","v":301}]
[{"$f":"A59+1","v":55},"Румянцева","Анастасия","Сергеевна",{"$f":"CONCATENATE(B60,\" \",LEFT(C60,1),\". \",LEFT(D60,1),\".\")","v":"Румянцева А. С."},null,"Румянцевой","Анастасии","Сергеевне","1995-04-16","г.Кострома","РФ","ж","МАОУ Лицей №20 г. Костромы",2013,"незамужем","г.Кострома, мкр. Давыдовский-2, д.59а, кв. 92",null,null,null,null,null,null,null,13515,"Экономический","38.03.75","Экономика","Финансы и кредит","5 лет","БАКАЛАВР","2-516","2013-08-10","по договору с полным возмещением затрат","000000564","2013-06-27",null,null,"2-571",42248,"не выполнение учебного плана","2-761","2017-09-27",null,null,null,null,null,null,null,null,null,null,null,null,null,null,null,null,null,null,null,null,null,null,null,null,null,null,null,null,null,null,null,null,null,null,null,3,"231z",null,null,null,6,"2017-12-07",null,4,"2018-04-16",659,6,"п/зач",null,3,"2018-04-19",707,3,"2018-04-19",706,3,"2018-07-02",980,4,"2017-12-06",null,6,"2017-12-23",null,6,"2017-12-23",null,4,"2017-12-23",7909529,3,"2018-04-24",751,6,"2017-12-23",null,6,"2018-04-28",7909531,4,"2018-04-28",7909498,4,"2018-04-28",7909723,4,"2018-04-28",7909533,3,"2018-04-28",7909552,6,"2018-04-28",7909872,6,"2018-04-28",7909873,6,"2018-04-28",7909482,null,null,"ФГБОУ ВО Костромская ГСХА, кафедра экономической кибернетики",null,null,null,null,null,null,null,null,null,null,null,null,null,null,null,null,null,null,null,null,null,null,null,null,null,null,null,null,null,null,null,null,null,null,null,null,null,null,null,null,null,null,null,null,null,null,null,null,null,null,null,null,null,null,null,null,null,null,null,null,null,null,null,null,null,null,null,null,null,null,null,null,null,null,null,null,null,null,null,null,null,null,null,null,null,null,null,null,null,null,null,null,null,null,null,null,null,null,null,null,null,null,null,null,null,null,null,null,null,null,null,null,null,null,null,null,null,null,null,null,null,null,null,{"$f":"(JL60*3+JM60*4+JN60*5)/50","v":0.78},null,{"$f":"COUNTIF(CC60:JG60,3)","v":5},{"$f":"COUNTIF(CC60:JG60,4)","v":6},{"$f":"COUNTIF(CC60:JG60,5)","v":0},{"$f":"COUNTIF(CC60:JG60,6)","v":9},{"$f":"SUM(JL60:JN60)","v":11},{"$f":"SUMIF(CC60:JG60,\">0\",$CC$3:$JG$3)","v":3060},{"$f":"INT(JQ60/8+0.5)","v":383}]
[{"$f":"A60+1","v":56},"Хохлова","Анжелика","Олеговна",{"$f":"CONCATENATE(B61,\" \",LEFT(C61,1),\". \",LEFT(D61,1),\".\")","v":"Хохлова А. О."},null,"Хохловой","Анжелике","Олеговне","1995-06-09","д.Коленково Заволжского р-на Ивановской обл.","РФ","ж","МОУ Антоновская СОШ Красносельского р-на, Костромской области пос.Гравийный Карьер",2013,"незамужем","157943 Костромская обл., Красносельский р-н,  пос. Гравийныйкарьер, ул. Волжская, д.69, кв. 16",null,null,null,null,null,null,null,160641,"Экономический","38.03.76","Экономика","Финансы и кредит","5 лет","БАКАЛАВР","2-536","2016-08-15"," врамках контрольных цифр на основное место",null,null,null,null,null,null,null,null,null,null,"2-391","2018-05-18","по семейным обстоятельствам","2018-04-18","2019-04-17","2-703","2017-09-01",null,null,null,null,null,null,null,null,null,null,null,null,null,null,null,null,null,null,null,null,null,null,null,null,null,null,null,2,"АО",4,"2017-06-10",null,6,"2017-06-10",null,5,"2017-06-10",null,6,"2017-06-10",null,4,"2017-06-10",null,5,"2017-06-10",null,5,"2017-06-10",null,4,"2017-06-10",null,6,"2017-12-23",null,6,"2017-12-23",null,null,null,null,4,"2017-12-23",null,6,"2017-12-23",null,null,null,null,null,null,null,null,null,null,null,null,null,null,null,null,null,null,null,null,null,null,null,null,null,null,null,null,null,null,null,null,null,null,null,null,null,null,null,null,null,null,null,null,null,null,null,null,null,null,null,null,null,null,null,null,null,null,null,null,null,null,null,null,null,null,null,null,null,null,null,null,null,null,null,null,null,null,null,null,null,null,null,null,null,null,null,null,null,null,null,null,null,null,null,null,null,null,null,null,null,null,null,null,null,null,null,null,null,null,null,null,null,null,null,null,null,null,null,null,null,null,null,null,null,null,null,null,null,null,null,null,null,null,null,null,null,null,null,null,null,null,null,null,null,null,null,null,null,null,null,{"$f":"(JL61*3+JM61*4+JN61*5)/50","v":0.62},null,{"$f":"COUNTIF(CC61:JG61,3)","v":0},{"$f":"COUNTIF(CC61:JG61,4)","v":4},{"$f":"COUNTIF(CC61:JG61,5)","v":3},{"$f":"COUNTIF(CC61:JG61,6)","v":5},{"$f":"SUM(JL61:JN61)","v":7},{"$f":"SUMIF(CC61:JG61,\">0\",$CC$3:$JG$3)","v":1997},{"$f":"INT(JQ61/8+0.5)","v":250}]
[{"$f":"A61+1","v":57},"Бережной","Сергей","Николаевич",{"$f":"CONCATENATE(B62,\" \",LEFT(C62,1),\". \",LEFT(D62,1),\".\")","v":"Бережной С. Н."},null,"Бережному","Сергею","Николаевичу","1989-07-02","п.Михайловский Михайловского р-на Алтайского края","РФ","м","Краевое ГОУ НПО Профессиональный лицей №12",2008,"холост","156016г.Кострома, ул. Профсоюзная, д.18а, кв. 96",null,null,null,null,null,null,null,160627,"Экономический","38.03.61","Экономика","Финансы и кредит","5 лет","БАКАЛАВР","2-542","2016-08-19","по договору с полным возмещением затрат","000004120","2016-08-11",null,null,null,null,null,null,null,null,null,null,null,null,null,"2-703","2017-09-01",null,null,null,null,null,null,null,null,null,null,null,null,null,null,null,null,null,null,null,null,null,null,null,null,null,null,null,3,"232z",3,"2018-05-08",783,6,"2017-06-10",null,5,"2017-06-10",null,6,"2017-06-10",null,4,"2017-06-10",null,5,"2017-06-10",null,4,"2017-06-10",null,4,"2017-06-10",null,6,"2017-12-23","Z-7849497",6,"2017-12-23","Z-7849528",4,"2017-12-23",7849529,4,"2017-12-23","Z-7849496",6,"2017-12-23","Z-7849722",null,null,null,4,"2018-04-28",7849498,4,"2018-04-28",7849723,5,"2018-05-18","7849533-1",3,"2018-04-28",7849552,6,"2018-04-28",7849872,6,"2018-04-28",7849873,6,"2018-04-28",7849482,null,null,"ФГБОУ ВО Костромская ГСХА, кафедра экономической кибернетики",null,null,null,null,null,null,null,null,null,null,null,null,null,null,null,null,null,null,null,null,null,null,null,null,null,null,null,null,null,null,null,null,null,null,null,null,null,null,null,null,null,null,null,null,null,null,null,null,null,null,null,null,null,null,null,null,null,null,null,null,null,null,null,null,null,null,null,null,null,null,null,null,null,null,null,null,null,null,null,null,null,null,null,null,null,null,null,null,null,null,null,null,null,null,null,null,null,null,null,null,null,null,null,null,null,null,null,null,null,null,null,null,null,null,null,null,null,null,null,null,null,null,null,{"$f":"(JL62*3+JM62*4+JN62*5)/50","v":0.98},null,{"$f":"COUNTIF(CC62:JG62,3)","v":2},{"$f":"COUNTIF(CC62:JG62,4)","v":7},{"$f":"COUNTIF(CC62:JG62,5)","v":3},{"$f":"COUNTIF(CC62:JG62,6)","v":8},{"$f":"SUM(JL62:JN62)","v":12},{"$f":"SUMIF(CC62:JG62,\">0\",$CC$3:$JG$3)","v":3168},{"$f":"INT(JQ62/8+0.5)","v":396}]
[{"$f":"A62+1","v":58},"Богушева","Ирина","Викторовна",{"$f":"CONCATENATE(B63,\" \",LEFT(C63,1),\". \",LEFT(D63,1),\".\")","v":"Богушева И. В."},null,"Богушевой","Ирине","Викторовне","1982-10-24","г.Буй Костромской обл.","РФ","ж","Профессиональный лицей №10 г.Костромы",2003,"незамужем","157008 Костромская обл., г.Буй, ул. Островского, д.9/3, кв. 52",null,null,null,null,null,null,null,160628,"Экономический","38.03.62","Экономика","Финансы и кредит","5 лет","БАКАЛАВР","2-542","2016-08-19","по договору с полным возмещением затрат","000004105","2016-08-11",null,null,null,null,null,null,null,null,null,null,null,null,null,"2-339","2018-05-03",null,null,null,null,null,null,null,null,null,null,null,null,null,null,null,null,null,null,null,null,null,null,null,null,null,null,null,3,"232z",3,"2018-05-08",782,6,"2017-06-10",null,5,"2017-06-10",null,6,"2017-06-10",null,4,"2018-04-02",594,4,"2017-06-10",null,5,"2017-10-10",null,4,"2018-04-02",595,6,"2017-12-23","Z-7849497",6,"2017-12-23","Z-7849528",4,"2017-12-23",7849529,null,null,null,null,null,null,6,"2018-04-28",7849531,4,"2018-04-28",7849498,null,null,null,null,null,null,null,null,null,6,"2018-04-28",7849872,6,"2018-04-28",7849873,null,null,null,null,null,"ФГБОУ ВО Костромская ГСХА, кафедра экономической кибернетики",null,null,null,null,null,null,null,null,null,null,null,null,null,null,null,null,null,null,null,null,null,null,null,null,null,null,null,null,null,null,null,null,null,null,null,null,null,null,null,null,null,null,null,null,null,null,null,null,null,null,null,null,null,null,null,null,null,null,null,null,null,null,null,null,null,null,null,null,null,null,null,null,null,null,null,null,null,null,null,null,null,null,null,null,null,null,null,null,null,null,null,null,null,null,null,null,null,null,null,null,null,null,null,null,null,null,null,null,null,null,null,null,null,null,null,null,null,null,null,null,null,null,null,{"$f":"(JL63*3+JM63*4+JN63*5)/50","v":0.66},null,{"$f":"COUNTIF(CC63:JG63,3)","v":1},{"$f":"COUNTIF(CC63:JG63,4)","v":5},{"$f":"COUNTIF(CC63:JG63,5)","v":2},{"$f":"COUNTIF(CC63:JG63,6)","v":7},{"$f":"SUM(JL63:JN63)","v":8},{"$f":"SUMIF(CC63:JG63,\">0\",$CC$3:$JG$3)","v":2196},{"$f":"INT(JQ63/8+0.5)","v":275}]
[{"$f":"A63+1","v":59},"Будкин","Станислав","Павлович",{"$f":"CONCATENATE(B64,\" \",LEFT(C64,1),\". \",LEFT(D64,1),\".\")","v":"Будкин С. П."},null,"Будкину","Станиславу","Павловичу","1993-05-03","д.Чебаново Антроповского р-на Костромской обл.","РФ","м","МОУ Антроповскую СОШ Антроповского муниципального р-на",2011,"холост","Антроповский р-н, п.Антропово, ул. Правды, д.7, кв. 1",null,null,null,3413,99327,"2013-11-07","ТерриториальнымпунктомУФМСРоссиипоКостромскойобластивп.Антропово",180018,"Экономический","38.03.84","Экономика","Финансы и кредит","5 лет","БАКАЛАВР","2-174","2018-03-13","переводизФГБОУВПО\"Костромскойгосударственныйуниверситет\"по договору с полным возмещением затрат","000004739","2018-03-06",null,null,null,null,null,null,null,null,null,null,null,null,null,null,null,null,null,null,null,null,null,null,null,null,null,null,null,null,null,null,null,null,null,null,null,null,null,null,null,null,null,null,3,"232z",null,null,null,6,"п/атт22.03.2018",531,4,"п/атт14.03.2018",533,null,null,null,3,"п/атт19.03.2018",534,null,null,null,3,"п/атт14.03.2018",532,null,null,null,6,"п/атт14.03.2018",535,null,null,null,null,null,null,null,null,null,null,null,null,null,null,null,4,"2018-03-19",552,null,null,null,null,null,null,4,"2018-06-13","7849552-2",6,"п/зач19.03.2018",530,6,"2018-04-28",7849873,null,null,null,null,null,"ФГБОУ ВО Костромская ГСХА, кафедра экономической кибернетики",null,null,null,null,null,null,null,null,null,null,null,null,null,null,null,null,null,null,null,null,null,null,null,null,null,null,null,null,null,null,null,null,null,null,null,null,null,null,null,null,null,null,null,null,null,null,null,null,null,null,null,null,null,null,null,null,null,null,null,null,null,null,null,null,null,null,null,null,null,null,null,null,null,null,null,null,null,null,null,null,null,null,null,null,null,null,null,null,null,null,null,null,null,null,null,null,null,null,null,null,null,null,null,null,null,null,null,null,null,null,null,null,null,null,null,null,null,null,null,null,null,null,null,{"$f":"(JL64*3+JM64*4+JN64*5)/50","v":0.36},null,{"$f":"COUNTIF(CC64:JG64,3)","v":2},{"$f":"COUNTIF(CC64:JG64,4)","v":3},{"$f":"COUNTIF(CC64:JG64,5)","v":0},{"$f":"COUNTIF(CC64:JG64,6)","v":4},{"$f":"SUM(JL64:JN64)","v":5},{"$f":"SUMIF(CC64:JG64,\">0\",$CC$3:$JG$3)","v":1440},{"$f":"INT(JQ64/8+0.5)","v":180}]
[{"$f":"A64+1","v":60},"Данилова","Мария","Александровна",{"$f":"CONCATENATE(B65,\" \",LEFT(C65,1),\". \",LEFT(D65,1),\".\")","v":"Данилова М. А."},null,"Даниловой","Марии","Александровне","1997-04-14","п.Караваево","РФ","ж","МКОУ Костромского муниципального района Костромской области \"Караваевская средняя общеобразовательная школа\"",2014,"незамужем","г.Кострома, ул. Димитрова,  д.31а, кв. 52",null,null,null,null,null,null,null,170823,"Экономический","38.03.68","Экономика","Финансы и кредит","5 лет","БАКАЛАВР","2-507","2014-07-31"," врамках контрольных цифр на основное место",null,null,null,null,null,null,null,null,null,null,"2-712","2016-11-09","по семейным обстоятельствам","2016-11-01","2017-10-31","2-571","2015-09-01","2-561","2016-11-01",null,null,null,null,null,null,null,null,null,null,null,null,null,null,null,null,null,null,null,null,null,null,null,null,null,3,"232z",5,"2017-11-13",null,null,null,null,5,"п/зач14.10.2017",null,6,"2017-11-07",null,3,"п/атт21.10.2017",null,null,null,null,5,"п/атт12.10.2017",null,null,null,null,6,"п/зач1.10.2017",null,6,"2017-12-23","Z-7849528",4,"2017-12-23",7849529,4,"2017-12-23","Z-7849496",6,"2017-12-23","Z-7849722",6,"2018-04-28",7849531,5,"п/зач11.10.2017",null,4,"2018-04-28",7849723,null,null,null,4,"2018-04-28",7849552,6,"п/зач20.11.2017",null,6,"2018-04-28",7849873,6,"2018-04-28",7849482,null,null,"ФГБОУ ВО Костромская ГСХА, кафедра экономической кибернетики",null,null,null,null,null,null,null,null,null,null,null,null,null,null,null,null,null,null,null,null,null,null,null,null,null,null,null,null,null,null,null,null,null,null,null,null,null,null,null,null,null,null,null,null,null,null,null,null,null,null,null,null,null,null,null,null,null,null,null,null,null,null,null,null,null,null,null,null,null,null,null,null,null,null,null,null,null,null,null,null,null,null,null,null,null,null,null,null,null,null,null,null,null,null,null,null,null,null,null,null,null,null,null,null,null,null,null,null,null,null,null,null,null,null,null,null,null,null,null,null,null,null,null,{"$f":"(JL65*3+JM65*4+JN65*5)/50","v":0.78},null,{"$f":"COUNTIF(CC65:JG65,3)","v":1},{"$f":"COUNTIF(CC65:JG65,4)","v":4},{"$f":"COUNTIF(CC65:JG65,5)","v":4},{"$f":"COUNTIF(CC65:JG65,6)","v":8},{"$f":"SUM(JL65:JN65)","v":9},{"$f":"SUMIF(CC65:JG65,\">0\",$CC$3:$JG$3)","v":2520},{"$f":"INT(JQ65/8+0.5)","v":315}]
[{"$f":"A65+1","v":61},"Агамырадов","Бабамырат",null,{"$f":"CONCATENATE(B66,\" \",LEFT(C66,1),\". \",LEFT(D66,1),\".\")","v":"Агамырадов Б. ."},null,"Агамырадову","Бабамыраду",null,"1995-02-01","р.Туркменистан","р.Туркменистан","м","СШ №9 п.Гарабекевуль, Гарабевульского р-на Лебапскойобл.",2012,"женат","р.Туркменистан, г.Туркменабат, 3-й квартал, д.7",null,null,null,null,null,null,null,180030,"Экономический","38.03.84","Экономика","Финансы и кредит","5 лет","БАКАЛАВР","2-675","2017-08-01","по договору с полным возмещением затрат","000004735","2018-02-26",null,null,null,null,null,null,null,null,null,null,null,null,null,null,null,null,null,null,null,null,null,null,null,null,null,null,null,null,null,null,null,null,null,null,null,null,null,null,null,null,null,null,2,"221z",null,null,null,null,null,null,3,"2018-06-09",7879530,null,null,null,null,null,null,null,null,null,3,"п/атт06.04.2018",null,null,null,null,6,"п/атт18.04.2018",null,null,null,null,null,null,null,null,null,null,null,null,null,null,null,null,null,null,null,null,null,null,null,null,null,null,null,null,null,null,null,null,null,null,null,null,null,null,null,null,null,null,null,null,null,null,null,null,null,null,null,null,null,null,null,null,null,null,null,null,null,null,null,null,null,null,null,null,null,null,null,null,null,null,null,null,null,null,null,null,null,null,null,null,null,null,null,null,null,null,null,null,null,null,null,null,null,null,null,null,null,null,null,null,null,null,null,null,null,null,null,null,null,null,null,null,null,null,null,null,null,null,null,null,null,null,null,null,null,null,null,null,null,null,null,null,null,null,null,null,null,null,null,null,null,null,null,null,null,null,null,null,null,null,null,null,null,null,null,null,null,null,null,{"$f":"(JL66*3+JM66*4+JN66*5)/50","v":0.12},null,{"$f":"COUNTIF(CC66:JG66,3)","v":2},{"$f":"COUNTIF(CC66:JG66,4)","v":0},{"$f":"COUNTIF(CC66:JG66,5)","v":0},{"$f":"COUNTIF(CC66:JG66,6)","v":1},{"$f":"SUM(JL66:JN66)","v":2},{"$f":"SUMIF(CC66:JG66,\">0\",$CC$3:$JG$3)","v":565},{"$f":"INT(JQ66/8+0.5)","v":71}]
[{"$f":"отчисление!A19+1","v":63},"Алиева","Сюзанна","Джаванширкызы",{"$f":"CONCATENATE(B67,\" \",LEFT(C67,1),\". \",LEFT(D67,1),\".\")","v":"Алиева С. Д."},null,"Алиевой","Сюзанне","Джаванширкызы","1997-02-17","п.Дымница Островского р-на Костромкой обл.","РФ","ж","ОГБ ПОУ Костромской торгово-экономический колледж г.Кострома",2017,"незамужем","г. Кострома, мкр. Юбилейный, д.18, кв. 82",null,null,null,null,null,null,null,170752,"Экономический","38.03.78","Экономика","Финансы и кредит","4 года","БАКАЛАВР","2-687","2017-08-19","по договору с полным возмещением затрат","000004479","2017-08-11",null,null,null,null,null,null,null,null,null,null,null,null,null,null,null,null,null,null,null,null,null,null,null,null,null,null,null,null,null,null,null,null,null,null,null,null,null,null,null,null,null,null,2,"222z",4,"2018-06-09",78710124,6,"2018-06-09",7879710,5,"п/атт.14.10.2017",null,6,"2018-06-09",7879527,3,"2018-06-09",7879494,4,"2018-06-09",7879495,4,"2018-06-09",7879551,4,"2018-06-09",7879724,null,null,null,null,null,null,null,null,null,null,null,null,null,null,null,6,"п/атт.31.10.2017",null,null,null,null,null,null,null,null,null,null,null,null,null,6,"п/атт.20.10.2017",null,null,null,null,null,null,null,5,"п/атт.24.10.2017",null,null,null,null,null,null,null,null,null,null,null,null,null,null,null,null,null,null,null,null,null,null,null,null,null,null,null,null,null,null,null,null,null,null,null,null,null,null,null,null,null,null,null,null,null,null,null,null,null,null,null,null,null,null,null,null,null,null,null,null,null,null,null,null,null,null,null,null,null,null,null,null,null,null,null,null,null,null,null,null,null,null,null,null,null,null,null,null,null,null,null,null,null,null,null,null,null,null,null,null,null,null,null,null,null,null,null,null,null,null,null,null,null,null,null,null,null,null,null,null,null,null,null,null,{"$f":"(JL67*3+JM67*4+JN67*5)/50","v":0.57999999999999996},null,{"$f":"COUNTIF(CC67:JG67,3)","v":1},{"$f":"COUNTIF(CC67:JG67,4)","v":4},{"$f":"COUNTIF(CC67:JG67,5)","v":2},{"$f":"COUNTIF(CC67:JG67,6)","v":4},{"$f":"SUM(JL67:JN67)","v":7},{"$f":"SUMIF(CC67:JG67,\">0\",$CC$3:$JG$3)","v":1728},{"$f":"INT(JQ67/8+0.5)","v":216}]
[{"$f":"A67+1","v":64},"Атакулиев","Какагелди",null,{"$f":"CONCATENATE(B68,\" \",LEFT(C68,1),\". \",LEFT(D68,1),\".\")","v":"Атакулиев К. ."},null,"Атакулиеву","Какагелди","","1995-11-06","Республика Туркменистан","Туркменистан","м","Средняя школа №1 Сарахского района Ахалской обл.",2012,"холост","РеспубликаТуркменистан",null,null,null,null,null,null,null,180003,"Экономический","38.03.84","Экономика","Финансы и кредит","5 лет","БАКАЛАВР","2-22","2018-01-17","по договору с полным возмещением затрат","113","2008-08-08",null,null,null,null,null,null,null,null,null,null,null,null,null,null,null,null,null,null,null,null,null,null,null,null,null,null,null,null,null,null,null,null,null,null,null,null,null,null,null,null,null,null,2,"221z",null,null,null,null,null,null,null,null,null,null,null,null,null,null,null,null,null,null,null,null,null,null,null,null,6,"п/зач",null,null,null,null,null,null,null,null,null,null,null,null,null,null,null,null,null,null,null,null,null,null,null,null,null,null,null,null,null,null,null,null,null,null,null,null,null,null,null,null,null,null,null,null,null,null,null,null,null,null,null,null,null,null,null,null,null,null,null,null,null,null,null,null,null,null,null,null,null,null,null,null,null,null,null,null,null,null,null,null,null,null,null,null,null,null,null,null,null,null,null,null,null,null,null,null,null,null,null,null,null,null,null,null,null,null,null,null,null,null,null,null,null,null,null,null,null,null,null,null,null,3,"п/зач",null,null,null,null,null,null,null,null,null,null,null,null,null,null,null,null,null,null,null,null,null,null,null,null,null,null,null,null,null,null,null,null,null,null,null,null,null,null,null,null,{"$f":"(JL68*3+JM68*4+JN68*5)/50","v":0.06},null,{"$f":"COUNTIF(CC68:JG68,3)","v":1},{"$f":"COUNTIF(CC68:JG68,4)","v":0},{"$f":"COUNTIF(CC68:JG68,5)","v":0},{"$f":"COUNTIF(CC68:JG68,6)","v":1},{"$f":"SUM(JL68:JN68)","v":1},{"$f":"SUMIF(CC68:JG68,\">0\",$CC$3:$JG$3)","v":241},{"$f":"INT(JQ68/8+0.5)","v":30}]
[{"$f":"A68+1","v":65},"Белова","Юлия","Олеговна",{"$f":"CONCATENATE(B69,\" \",LEFT(C69,1),\". \",LEFT(D69,1),\".\")","v":"Белова Ю. О."},null,"Беловой","Юлии","Олеговне","1989-12-04","г.Душамбе Таджикской ССР","РФ","ж","ФГОУ СПО Костромской торгово-экономический колледж",2008,"незамужем","Костромская обл., Костромской р-н,  д.Середняя,ул. Кузьмина, д.10, кв. 2",null,null,null,null,null,null,null,170754,"Экономический","38.03.79","Экономика","Финансы и кредит","4 года","БАКАЛАВР","2-687","2017-08-19","по договору с полным возмещением затрат","000004486","2017-08-11",null,null,null,null,null,null,null,null,null,null,null,null,null,null,null,null,null,null,null,null,null,null,null,null,null,null,null,null,null,null,null,null,null,null,null,null,null,null,null,null,null,null,2,"222z",4,"2018-06-09",78710124,6,"2018-06-09",7879710,4,"2018-06-09",7879530,6,"2018-06-09",7879527,3,"2018-06-09",7879494,3,"2018-06-09",7879495,5,"2018-06-09",7879551,4,"2018-06-09",7879724,6,"п/атт.11.10.2017",null,6,"п/атт.28.10.2017",null,null,null,null,null,null,null,null,null,null,6,"п/атт.31.10.2017",null,null,null,null,null,null,null,null,null,null,null,null,null,6,"п/атт.20.10.2017",null,null,null,null,null,null,null,null,null,null,null,null,null,null,null,null,null,null,null,null,null,null,null,null,null,null,null,null,null,null,null,null,null,null,null,null,null,null,null,null,null,null,null,null,null,null,null,null,null,null,null,null,null,null,null,null,null,null,null,null,null,null,null,null,null,null,null,null,null,null,null,null,null,null,null,null,null,null,null,null,null,null,null,null,null,null,null,null,null,null,null,null,null,null,null,null,null,null,null,null,null,null,null,null,null,null,null,null,null,null,null,null,null,null,null,null,null,null,null,null,null,null,null,null,null,null,null,null,null,null,null,null,null,{"$f":"(JL69*3+JM69*4+JN69*5)/50","v":0.46},null,{"$f":"COUNTIF(CC69:JG69,3)","v":2},{"$f":"COUNTIF(CC69:JG69,4)","v":3},{"$f":"COUNTIF(CC69:JG69,5)","v":1},{"$f":"COUNTIF(CC69:JG69,6)","v":6},{"$f":"SUM(JL69:JN69)","v":6},{"$f":"SUMIF(CC69:JG69,\">0\",$CC$3:$JG$3)","v":1897},{"$f":"INT(JQ69/8+0.5)","v":237}]
[{"$f":"A69+1","v":66},"Белова","Юлия","Сергеевна",{"$f":"CONCATENATE(B70,\" \",LEFT(C70,1),\". \",LEFT(D70,1),\".\")","v":"Белова Ю. С."},null,"Беловой","Юлии","Сергеевне","1997-02-25","Верхнеберезовец Солигаличского р-на Костромской обл.","РФ","ж","ОГБ ПОУ Костромской торгово-экономический колледж г.Кострома",2008,"замужем","Костромская обл., г.Солигалич, ул. Комсомольская, д.37,кв1",null,null,null,null,null,null,null,170755,"Экономический","38.03.80","Экономика","Финансы и кредит","4 года","БАКАЛАВР","2-701","2017-08-31","по договору с полным возмещением затрат","000004612","2017-08-29",null,null,null,null,null,null,null,null,null,null,null,null,null,null,null,null,null,null,null,null,null,null,null,null,null,null,null,null,null,null,null,null,null,null,null,null,null,null,null,null,null,null,2,"222z",5,"2018-06-09",78710124,6,"2018-06-09",7879710,4,"п/атт.14.10.2017",null,6,"2018-06-09",7879527,3,"2018-06-09",7879494,4,"2018-06-09",7879495,5,"2018-06-09",7879551,4,"2018-06-09",7879724,null,null,null,null,null,null,null,null,null,null,null,null,null,null,null,6,"п/атт.31.10.2017",null,null,null,null,null,null,null,null,null,null,null,null,null,6,"п/атт.20.10.2017",null,null,null,null,null,null,null,5,"п/атт.24.10.2017",null,null,null,null,null,null,null,null,null,null,null,null,null,null,null,null,null,null,null,null,null,null,null,null,null,null,null,null,null,null,null,null,null,null,null,null,null,5,"п/атт.25.10.2017",null,null,null,null,null,null,null,null,null,null,null,null,null,null,null,null,null,null,null,null,null,null,null,null,null,null,null,null,null,null,null,null,null,null,null,null,null,null,null,null,5,"п/атт.26.10.2017",null,null,null,null,null,null,null,null,null,null,null,null,null,null,null,null,null,null,null,null,null,null,null,null,null,null,null,null,null,null,null,null,null,null,null,null,null,null,null,null,null,null,null,{"$f":"(JL70*3+JM70*4+JN70*5)/50","v":0.8},null,{"$f":"COUNTIF(CC70:JG70,3)","v":1},{"$f":"COUNTIF(CC70:JG70,4)","v":3},{"$f":"COUNTIF(CC70:JG70,5)","v":5},{"$f":"COUNTIF(CC70:JG70,6)","v":4},{"$f":"SUM(JL70:JN70)","v":9},{"$f":"SUMIF(CC70:JG70,\">0\",$CC$3:$JG$3)","v":1728},{"$f":"INT(JQ70/8+0.5)","v":216}]
[{"$f":"A70+1","v":67},"Вилкова","Алина","Дмитриевна",{"$f":"CONCATENATE(B71,\" \",LEFT(C71,1),\". \",LEFT(D71,1),\".\")","v":"Вилкова А. Д."},null,"Вилковой","Алине","Дмитриевне","1998-11-18","г.Кострома","РФ","ж","ОГБ ПОУ Костромской торгово-экономический колледж г.Кострома",2017,"незамужем","г.Кострома, ул. Индустриальная, д.17, кв. 37",null,null,null,null,null,null,null,170756,"Экономический","38.03.82","Экономика","Финансы и кредит","4 года","БАКАЛАВР","2-687","2017-08-19","по договору с полным возмещением затрат","000004492","2017-08-11",null,null,null,null,null,null,null,null,null,null,null,null,null,null,null,null,null,null,null,null,null,null,null,null,null,null,null,null,null,null,null,null,null,null,null,null,null,null,null,null,null,null,2,"222z",4,"2018-06-09",78710124,6,"2018-06-09",7879710,3,"п/атт.14.10.2017",null,6,"2018-06-09",7879527,3,"2018-06-09",7879494,4,"2018-06-09",7879495,5,"2018-06-09",7879551,4,"2018-06-09",7879724,null,null,null,null,null,null,null,null,null,null,null,null,null,null,null,6,"п/атт.31.10.2017",null,null,null,null,null,null,null,null,null,null,null,null,null,6,"п/атт.20.10.2017",null,null,null,null,null,null,null,5,"п/атт.24.10.2017",null,null,null,null,null,null,null,null,null,null,null,null,null,null,null,null,null,null,null,null,null,null,null,null,null,null,null,null,null,null,null,null,null,null,null,null,null,5,"п/атт.25.10.2017",null,null,null,null,null,null,null,null,null,null,null,null,null,null,null,null,null,null,null,null,null,null,null,null,null,null,null,null,null,null,null,null,null,null,null,null,null,null,null,null,5,"п/атт.26.10.2017",null,null,null,null,null,null,null,null,null,null,null,null,null,null,null,null,null,null,null,null,null,null,null,null,null,null,null,null,null,null,null,null,null,null,null,null,null,null,null,null,null,null,null,{"$f":"(JL71*3+JM71*4+JN71*5)/50","v":0.76},null,{"$f":"COUNTIF(CC71:JG71,3)","v":2},{"$f":"COUNTIF(CC71:JG71,4)","v":3},{"$f":"COUNTIF(CC71:JG71,5)","v":4},{"$f":"COUNTIF(CC71:JG71,6)","v":4},{"$f":"SUM(JL71:JN71)","v":9},{"$f":"SUMIF(CC71:JG71,\">0\",$CC$3:$JG$3)","v":1728},{"$f":"INT(JQ71/8+0.5)","v":216}]
[{"$f":"A71+1","v":68},"Воронова","Наталья","Сергеевна",{"$f":"CONCATENATE(B72,\" \",LEFT(C72,1),\". \",LEFT(D72,1),\".\")","v":"Воронова Н. С."},null,"Вороновой","Наталье","Сергеевне","1998-12-10","с.Хомутово Островского р-на Костромской обл.","РФ","ж","ОГБ ПОУ Костромской торгово-экономический колледж г.Кострома",2017,"незамужем","157904 Костромская обл., Островский р-н, с.Хомутово,ул. Новая, д.8, кв. 2",null,null,null,null,null,null,null,170757,"Экономический","38.03.83","Экономика","Финансы и кредит","4 года","БАКАЛАВР","2-687","2017-08-19","по договору с полным возмещением затрат","000004476","2017-08-10",null,null,null,null,null,null,null,null,null,null,null,null,null,null,null,null,null,null,null,null,null,null,null,null,null,null,null,null,null,null,null,null,null,null,null,null,null,null,null,null,null,null,2,"222z",4,"2018-06-09",78710124,6,"2018-06-09",7879710,4,"п/атт.14.10.2017",null,6,"2018-06-09",7879527,3,"2018-06-15","7879494-2",4,"2018-06-09",7879495,4,"2018-06-09",7879551,4,"2018-06-09",7879724,null,null,null,null,null,null,null,null,null,null,null,null,null,null,null,6,"п/атт.31.10.2017",null,null,null,null,null,null,null,null,null,null,null,null,null,6,"п/атт.20.10.2017",null,null,null,null,null,null,null,5,"п/атт.24.10.2017",null,null,null,null,null,null,null,null,null,null,null,null,null,null,null,null,null,null,null,null,null,null,null,null,null,null,null,null,null,null,null,null,null,null,null,null,null,4,"п/атт.25.10.2017",null,null,null,null,null,null,null,null,null,null,null,null,null,null,null,null,null,null,null,null,null,null,null,null,null,null,null,null,null,null,null,null,null,null,null,null,null,null,null,null,4,"п/атт.26.10.2017",null,null,null,null,null,null,null,null,null,null,null,null,null,null,null,null,null,null,null,null,null,null,null,null,null,null,null,null,null,null,null,null,null,null,null,null,null,null,null,null,null,null,null,{"$f":"(JL72*3+JM72*4+JN72*5)/50","v":0.72},null,{"$f":"COUNTIF(CC72:JG72,3)","v":1},{"$f":"COUNTIF(CC72:JG72,4)","v":7},{"$f":"COUNTIF(CC72:JG72,5)","v":1},{"$f":"COUNTIF(CC72:JG72,6)","v":4},{"$f":"SUM(JL72:JN72)","v":9},{"$f":"SUMIF(CC72:JG72,\">0\",$CC$3:$JG$3)","v":1728},{"$f":"INT(JQ72/8+0.5)","v":216}]
[{"$f":"A72+1","v":69},"Дагаева","Ксения","Николаевна",{"$f":"CONCATENATE(B73,\" \",LEFT(C73,1),\". \",LEFT(D73,1),\".\")","v":"Дагаева К. Н."},null,"Дагаевой","Ксении","Николаевне","1992-07-24","п.Караваево Костромского р-на Костромской обл.","РФ","ж","ФГБОУ ВО Костромская государственная сельскохозяйственная академия пос.Караваево",2016,"замужем","Костромская обл., Костромской р-н, п.Караваево,ул. Механизаторов, д.7",null,null,null,null,null,null,null,170759,"Экономический","38.03.84","Экономика","Финансы и кредит","4 года","БАКАЛАВР","2-701","2017-08-31","по договору с полным возмещением затрат","000004606","2017-08-29",null,null,null,null,null,null,null,null,null,null,null,null,null,null,null,null,null,null,null,null,null,null,null,null,null,null,null,null,null,null,null,null,null,null,null,null,null,null,null,null,null,null,2,"222z",4,"2018-06-09",78710124,6,"2018-06-09",7879710,3,"п/атт.14.10.2017",null,6,"п/атт.27.10.2017",null,3,"2018-06-15","7879494-1",3,"2018-06-09",7879495,4,"2018-06-09",7879551,4,"2018-06-09",7879724,6,"п/зач.11.10.2017",null,6,"п/зач.28.10.2017",null,4,"п/атт.05.11.2017",null,null,null,null,null,null,null,6,"п/зач.31.10.2017",null,3,"п/зач.11.10.2017",null,null,null,null,null,null,null,null,null,null,6,"п/атт.20.10.2017",null,6,"п/атт.20.10.2017",null,null,null,null,null,null,null,null,null,null,null,null,null,null,null,null,null,null,null,null,null,null,null,null,null,null,null,null,null,null,null,null,null,null,null,null,null,null,null,null,null,null,null,null,null,null,null,null,null,null,null,null,null,null,null,null,null,null,null,null,null,null,null,null,null,null,null,null,null,null,null,null,null,null,null,null,null,null,null,null,null,null,null,null,null,null,null,null,null,null,null,null,null,null,null,null,null,null,null,null,null,null,null,null,null,null,null,null,null,null,null,null,null,null,null,null,null,null,null,null,null,null,null,null,null,null,null,null,null,null,{"$f":"(JL73*3+JM73*4+JN73*5)/50","v":0.56000000000000005},null,{"$f":"COUNTIF(CC73:JG73,3)","v":4},{"$f":"COUNTIF(CC73:JG73,4)","v":4},{"$f":"COUNTIF(CC73:JG73,5)","v":0},{"$f":"COUNTIF(CC73:JG73,6)","v":7},{"$f":"SUM(JL73:JN73)","v":8},{"$f":"SUMIF(CC73:JG73,\">0\",$CC$3:$JG$3)","v":2196},{"$f":"INT(JQ73/8+0.5)","v":275}]
[{"$f":"A73+1","v":70},"Зеленская","Мелана","Андреевна",{"$f":"CONCATENATE(B74,\" \",LEFT(C74,1),\". \",LEFT(D74,1),\".\")","v":"Зеленская М. А."},null,"Зеленской","Мелане","Андреевне","1997-11-18","г.Кострома","РФ","ж","ОГБ ПОУ Костромской торгово-экономический колледж г.Кострома",2016,"незамужем","156000 г.Кострома, мкр. Давыдовский-3, д.30, кв. 69",null,null,null,null,null,null,null,170760,"Экономический","38.03.84","Экономика","Финансы и кредит","4 года","БАКАЛАВР","2-687","2017-08-19","по договору с полным возмещением затрат","000004485","2017-08-11",null,null,null,null,null,null,null,null,null,null,null,null,null,null,null,null,null,null,null,null,null,null,null,null,null,null,null,null,null,null,null,null,null,null,null,null,null,null,null,null,null,null,2,"222z",3,"2018-06-09",78710124,6,"2018-06-09",7879710,3,"п/атт.14.10.2017",null,6,"2018-06-09",7879527,3,"2018-06-09",7879494,null,null,null,5,"2018-06-09",7879551,3,"2018-06-09",7879724,null,null,null,null,null,null,null,null,null,null,null,null,null,null,null,6,"п/атт.31.10.2017",null,null,null,null,null,null,null,null,null,null,null,null,null,6,"п/атт.20.10.2017",null,null,null,null,null,null,null,3,"п/атт.24.10.2017",null,null,null,null,null,null,null,null,null,null,null,null,null,null,null,null,null,null,null,null,null,null,null,null,null,null,null,null,null,null,null,null,null,null,null,null,null,4,"п/атт.25.10.2017",null,null,null,null,null,null,null,null,null,null,null,null,null,null,null,null,null,null,null,null,null,null,null,null,null,null,null,null,null,null,null,null,null,null,null,null,null,null,null,null,4,"п/атт.26.10.2017",null,null,null,null,null,null,null,null,null,null,null,null,null,null,null,null,null,null,null,null,null,null,null,null,null,null,null,null,null,null,null,null,null,null,null,null,null,null,null,null,null,null,null,{"$f":"(JL74*3+JM74*4+JN74*5)/50","v":0.56000000000000005},null,{"$f":"COUNTIF(CC74:JG74,3)","v":5},{"$f":"COUNTIF(CC74:JG74,4)","v":2},{"$f":"COUNTIF(CC74:JG74,5)","v":1},{"$f":"COUNTIF(CC74:JG74,6)","v":4},{"$f":"SUM(JL74:JN74)","v":8},{"$f":"SUMIF(CC74:JG74,\">0\",$CC$3:$JG$3)","v":1476},{"$f":"INT(JQ74/8+0.5)","v":185}]
[{"$f":"A74+1","v":71},"Зеленская","Эмилия","Андреевна",{"$f":"CONCATENATE(B75,\" \",LEFT(C75,1),\". \",LEFT(D75,1),\".\")","v":"Зеленская Э. А."},null,"Зеленской","Эмилии","Андреевне","1996-10-25","п. Красное-на-Волге Красносельского р-на Костромской обл.","РФ","ж","НОУ СПО Костромской технологический техникум ОАО Костромакоопцентр г.Кострома",2015,"незамужем","г.Кострома, мкр.Давыдовский-3, д.30, кв. 69",null,null,null,null,null,null,null,170761,"Экономический","38.03.84","Экономика","Финансы и кредит","4 года","БАКАЛАВР","2-687","2017-08-19","по договору с полным возмещением затрат","000004525","2017-08-15",null,null,null,null,null,null,null,null,null,null,null,null,null,null,null,null,null,null,null,null,null,null,null,null,null,null,null,null,null,null,null,null,null,null,null,null,null,null,null,null,null,null,2,"222z",null,null,null,6,"2018-06-09",7879710,4,"п/атт.14.10.2017",null,6,"2018-06-09",7879527,3,"2018-06-09",7879494,null,null,null,3,"2018-06-09",7879551,3,"2018-06-19",7879724,null,null,null,6,"п/атт.28.10.2017",null,null,null,null,null,null,null,null,null,null,6,"п/атт.31.10.2017",null,null,null,null,null,null,null,null,null,null,null,null,null,null,null,null,null,null,null,null,null,null,3,"п/атт.24.10.2017",null,null,null,null,null,null,null,null,null,null,null,null,null,null,null,null,null,null,null,null,null,null,null,null,null,null,null,null,null,null,null,null,null,null,null,null,null,3,"п/атт.25.10.2017",null,null,null,null,null,null,null,null,null,null,null,null,null,null,null,null,null,null,null,null,null,null,null,null,null,null,null,null,null,null,null,null,null,null,null,null,null,null,null,null,3,"п/атт.26.10.2017",null,null,null,null,null,null,null,null,null,null,null,null,null,null,null,null,null,null,null,null,null,null,null,null,null,null,null,null,null,null,null,null,null,null,null,null,null,null,null,null,null,null,null,{"$f":"(JL75*3+JM75*4+JN75*5)/50","v":0.44},null,{"$f":"COUNTIF(CC75:JG75,3)","v":6},{"$f":"COUNTIF(CC75:JG75,4)","v":1},{"$f":"COUNTIF(CC75:JG75,5)","v":0},{"$f":"COUNTIF(CC75:JG75,6)","v":4},{"$f":"SUM(JL75:JN75)","v":7},{"$f":"SUMIF(CC75:JG75,\">0\",$CC$3:$JG$3)","v":1260},{"$f":"INT(JQ75/8+0.5)","v":158}]
[{"$f":"отчисление!A20+1","v":73},"Красавина","Екатерина","Сергеевна",{"$f":"CONCATENATE(B76,\" \",LEFT(C76,1),\". \",LEFT(D76,1),\".\")","v":"Красавина Е. С."},null,"Красавиной","Екатерине","Сергеевне","1998-06-30","г.Кострома","РФ","ж","ОГБ ПОУ Костромской торгово-экономический колледж г.Кострома",2017,"незамужем","г.Кострома, ул. Профсоюзная, д.24, кв. 8",null,null,null,null,null,null,null,170763,"Экономический","38.03.84","Экономика","Финансы и кредит","4 года","БАКАЛАВР","2-687","2017-08-19","по договору с полным возмещением затрат","000004436","2017-08-07",null,null,null,null,null,null,null,null,null,null,null,null,null,null,null,null,null,null,null,null,null,null,null,null,null,null,null,null,null,null,null,null,null,null,null,null,null,null,null,null,null,null,2,"222z",4,"2018-06-09",78710124,6,"2018-06-09",7879710,3,"п/атт.14.10.2017",null,6,"2018-06-09",7879527,3,"2018-06-09",7879494,3,"2018-06-09",7879495,4,"2018-06-09",7879551,4,"2018-06-09",7879724,null,null,null,null,null,null,null,null,null,null,null,null,null,null,null,6,"п/атт.31.10.2017",null,null,null,null,null,null,null,null,null,null,null,null,null,6,"п/атт.20.10.2017",null,null,null,null,null,null,null,5,"п/атт.24.10.2017",null,null,null,null,null,null,null,null,null,null,null,null,null,null,null,null,null,null,null,null,null,null,null,null,null,null,null,null,null,null,null,null,null,null,null,null,null,4,"п/атт.25.10.2017",null,null,null,null,null,null,null,null,null,null,null,null,null,null,null,null,null,null,null,null,null,null,null,null,null,null,null,null,null,null,null,null,null,null,null,null,null,null,null,null,4,"п/атт.26.10.2017",null,null,null,null,null,null,null,null,null,null,null,null,null,null,null,null,null,null,null,null,null,null,null,null,null,null,null,null,null,null,null,null,null,null,null,null,null,null,null,null,null,null,null,{"$f":"(JL76*3+JM76*4+JN76*5)/50","v":0.68},null,{"$f":"COUNTIF(CC76:JG76,3)","v":3},{"$f":"COUNTIF(CC76:JG76,4)","v":5},{"$f":"COUNTIF(CC76:JG76,5)","v":1},{"$f":"COUNTIF(CC76:JG76,6)","v":4},{"$f":"SUM(JL76:JN76)","v":9},{"$f":"SUMIF(CC76:JG76,\">0\",$CC$3:$JG$3)","v":1728},{"$f":"INT(JQ76/8+0.5)","v":216}]
[{"$f":"A76+1","v":74},"Кривошеева","Екатерина","Леонидовна",{"$f":"CONCATENATE(B77,\" \",LEFT(C77,1),\". \",LEFT(D77,1),\".\")","v":"Кривошеева Е. Л."},null,"Кривошеевой","Екатерине","Леонидовне","1998-08-18","г.Кострома","РФ","ж","ОГБ ПОУ Костромской торгово-экономический колледж г.Кострома",2017,"незамужем","г.Кострома, мкр. Давыдовский-3, д.34, кв. 104",null,null,null,null,null,null,null,170764,"Экономический","38.03.84","Экономика","Финансы и кредит","4 года","БАКАЛАВР","2-687","2017-08-19","по договору с полным возмещением затрат","000004508","2017-08-14",null,null,null,null,null,null,null,null,null,null,null,null,null,null,null,null,null,null,null,null,null,null,null,null,null,null,null,null,null,null,null,null,null,null,null,null,null,null,null,null,null,null,2,"222z",3,"2018-06-09",78710124,6,"2018-06-09",7879710,3,"п/атт.14.10.2017",null,6,"2018-06-09",7879527,3,"2018-06-09",7879494,4,"2018-06-09",7879495,5,"2018-06-09",7879551,4,"2018-06-09",7879724,null,null,null,null,null,null,null,null,null,null,null,null,null,null,null,6,"п/атт.31.10.2017",null,null,null,null,null,null,null,null,null,null,null,null,null,6,"п/атт.20.10.2017",null,null,null,null,null,null,null,4,"п/атт.24.10.2017",null,null,null,null,null,null,null,null,null,null,null,null,null,null,null,null,null,null,null,null,null,null,null,null,null,null,null,null,null,null,null,null,null,null,null,null,null,5,"п/атт.25.10.2017",null,null,null,null,null,null,null,null,null,null,null,null,null,null,null,null,null,null,null,null,null,null,null,null,null,null,null,null,null,null,null,null,null,null,null,null,null,null,null,null,5,"п/атт.26.10.2017",null,null,null,null,null,null,null,null,null,null,null,null,null,null,null,null,null,null,null,null,null,null,null,null,null,null,null,null,null,null,null,null,null,null,null,null,null,null,null,null,null,null,null,{"$f":"(JL77*3+JM77*4+JN77*5)/50","v":0.72},null,{"$f":"COUNTIF(CC77:JG77,3)","v":3},{"$f":"COUNTIF(CC77:JG77,4)","v":3},{"$f":"COUNTIF(CC77:JG77,5)","v":3},{"$f":"COUNTIF(CC77:JG77,6)","v":4},{"$f":"SUM(JL77:JN77)","v":9},{"$f":"SUMIF(CC77:JG77,\">0\",$CC$3:$JG$3)","v":1728},{"$f":"INT(JQ77/8+0.5)","v":216}]
[{"$f":"A77+1","v":75},"Кузина","Анна","Алексеевна",{"$f":"CONCATENATE(B78,\" \",LEFT(C78,1),\". \",LEFT(D78,1),\".\")","v":"Кузина А. А."},null,"Кузиной","Анне","Алексеевне","1998-05-26","д.Ведрово Кадыйского р-на Костромской обл.","РФ","ж","ОГБПОУКостромскойторгово-экономическийколледжг.Кострома",2017,"незамужем","157998 Костромская обл., Кадыйский р-н, д.Ведрово, д.10",null,null,null,null,null,null,null,170765,"Экономический","38.03.84","Экономика","Финансы и кредит","4 года","БАКАЛАВР","2-687","2017-08-19","по договору с полным возмещением затрат","000004483","2017-08-11",null,null,null,null,null,null,null,null,null,null,null,null,null,null,null,null,null,null,null,null,null,null,null,null,null,null,null,null,null,null,null,null,null,null,null,null,null,null,null,null,null,null,2,"222z",4,"2018-06-09",78710124,6,"2018-06-09",7879710,4,"п/атт.14.10.2017",null,6,"2018-06-09",7879527,3,"2018-06-09",7879494,3,"2018-06-09",7879495,5,"2018-06-09",7879551,4,"2018-06-09",7879724,null,null,null,null,null,null,null,null,null,null,null,null,null,null,null,6,"п/атт.31.10.2017",null,null,null,null,null,null,null,null,null,null,null,null,null,6,"п/атт.20.10.2017",null,null,null,null,null,null,null,5,"п/атт.24.10.2017",null,null,null,null,null,null,null,null,null,null,null,null,null,null,null,null,null,null,null,null,null,null,null,null,null,null,null,null,null,null,null,null,null,null,null,null,null,3,"п/атт.25.10.2017",null,null,null,null,null,null,null,null,null,null,null,null,null,null,null,null,null,null,null,null,null,null,null,null,null,null,null,null,null,null,null,null,null,null,null,null,null,null,null,null,4,"п/атт.26.10.2017",null,null,null,null,null,null,null,null,null,null,null,null,null,null,null,null,null,null,null,null,null,null,null,null,null,null,null,null,null,null,null,null,null,null,null,null,null,null,null,null,null,null,null,{"$f":"(JL78*3+JM78*4+JN78*5)/50","v":0.7},null,{"$f":"COUNTIF(CC78:JG78,3)","v":3},{"$f":"COUNTIF(CC78:JG78,4)","v":4},{"$f":"COUNTIF(CC78:JG78,5)","v":2},{"$f":"COUNTIF(CC78:JG78,6)","v":4},{"$f":"SUM(JL78:JN78)","v":9},{"$f":"SUMIF(CC78:JG78,\">0\",$CC$3:$JG$3)","v":1728},{"$f":"INT(JQ78/8+0.5)","v":216}]
[{"$f":"A78+1","v":76},"Матвеева","Нина","Владиславовна",{"$f":"CONCATENATE(B79,\" \",LEFT(C79,1),\". \",LEFT(D79,1),\".\")","v":"Матвеева Н. В."},null,"Матвеевой","Нине","Владиславовне","1997-12-08","г.Кострома","РФ","ж","ОГБ ПОУ Костромской торгово-экономический колледж г.Кострома",2017,"незамужем","г.Кострома, мкр. Якиманиха, д.11, кв. 52",null,null,null,null,null,null,null,170766,"Экономический","38.03.84","Экономика","Финансы и кредит","4 года","БАКАЛАВР","2-687","2017-08-19","по договору с полным возмещением затрат","000004472","2017-08-10",null,null,null,null,null,null,null,null,null,null,null,null,null,null,null,null,null,null,null,null,null,null,null,null,null,null,null,null,null,null,null,null,null,null,null,null,null,null,null,null,null,null,2,"222z",4,"2018-06-09",78710124,6,"2018-06-09",7879710,4,"п/атт.14.10.2017",null,6,"2018-06-09",7879527,3,"2018-06-09",7879494,3,"2018-06-09",7879495,5,"2018-06-09",7879551,4,"2018-06-09",7879724,null,null,null,null,null,null,null,null,null,null,null,null,null,null,null,6,"п/атт.31.10.2017",null,null,null,null,null,null,null,null,null,null,null,null,null,6,"п/атт.20.10.2017",null,null,null,null,null,null,null,5,"п/атт.24.10.2017",null,null,null,null,null,null,null,null,null,null,null,null,null,null,null,null,null,null,null,null,null,null,null,null,null,null,null,null,null,null,null,null,null,null,null,null,null,5,"п/атт.25.10.2017",null,null,null,null,null,null,null,null,null,null,null,null,null,null,null,null,null,null,null,null,null,null,null,null,null,null,null,null,null,null,null,null,null,null,null,null,null,null,null,null,5,"п/атт.26.10.2017",null,null,null,null,null,null,null,null,null,null,null,null,null,null,null,null,null,null,null,null,null,null,null,null,null,null,null,null,null,null,null,null,null,null,null,null,null,null,null,null,null,null,null,{"$f":"(JL79*3+JM79*4+JN79*5)/50","v":0.76},null,{"$f":"COUNTIF(CC79:JG79,3)","v":2},{"$f":"COUNTIF(CC79:JG79,4)","v":3},{"$f":"COUNTIF(CC79:JG79,5)","v":4},{"$f":"COUNTIF(CC79:JG79,6)","v":4},{"$f":"SUM(JL79:JN79)","v":9},{"$f":"SUMIF(CC79:JG79,\">0\",$CC$3:$JG$3)","v":1728},{"$f":"INT(JQ79/8+0.5)","v":216}]
[{"$f":"A79+1","v":77},"Митина","Виктория","Алексеевна",{"$f":"CONCATENATE(B80,\" \",LEFT(C80,1),\". \",LEFT(D80,1),\".\")","v":"Митина В. А."},null,"Митиной","Виктории","Алексеевне","1995-01-29","г.Ярославль","РФ","ж","ФГБОУ ВПО Ярославский государственный университет им. П.Г.Демидова г.Ярославль",2015,"замужем","г.Кострома, ул. Соловьиная, д.4, кв. 34",null,null,null,null,null,null,null,170767,"Экономический","38.03.84","Экономика","Финансы и кредит","4 года","БАКАЛАВР","2-687","2017-08-19","по договору с полным возмещением затрат","000004550","2017-08-16",null,null,null,null,null,null,null,null,null,null,null,null,null,null,null,null,null,null,null,null,null,null,null,null,null,null,null,null,null,null,null,null,null,null,null,null,null,null,null,null,null,null,2,"222z",3,"2018-06-09",78710124,6,"2018-06-09",7879710,5,"п/атт.14.10.2017",null,null,null,null,null,null,null,3,"2018-06-09",7879495,4,"2018-06-09",7879551,null,null,null,6,"п/атт.11.10.2017",null,null,null,null,null,null,null,null,null,null,null,null,null,6,"п/атт.31.10.2017",null,3,"п/атт.11.10.2017",null,null,null,null,null,null,null,null,null,null,6,"п/атт.20.10.2017",null,null,null,null,null,null,null,3,"п/атт.24.10.2017",null,null,null,null,null,null,null,null,null,null,null,null,null,null,null,null,null,null,null,null,null,null,null,null,null,null,null,null,null,null,null,null,null,null,null,null,null,3,"п/атт.25.10.2017",null,null,null,null,null,null,null,null,null,null,null,null,null,null,null,null,null,null,null,null,null,null,null,null,null,null,null,null,null,null,null,null,null,null,null,null,null,null,null,null,3,"п/атт.26.10.2017",null,null,null,null,6,"п/атт.06.10.2017",null,null,null,null,null,null,null,null,null,null,null,null,null,null,null,null,null,null,null,null,null,null,null,null,null,null,null,null,null,null,null,null,null,null,null,null,null,{"$f":"(JL80*3+JM80*4+JN80*5)/50","v":0.54},null,{"$f":"COUNTIF(CC80:JG80,3)","v":6},{"$f":"COUNTIF(CC80:JG80,4)","v":1},{"$f":"COUNTIF(CC80:JG80,5)","v":1},{"$f":"COUNTIF(CC80:JG80,6)","v":5},{"$f":"SUM(JL80:JN80)","v":8},{"$f":"SUMIF(CC80:JG80,\">0\",$CC$3:$JG$3)","v":1512},{"$f":"INT(JQ80/8+0.5)","v":189}]
[{"$f":"A80+1","v":78},"Нагиев","Самид","Зейналоглы",{"$f":"CONCATENATE(B81,\" \",LEFT(C81,1),\". \",LEFT(D81,1),\".\")","v":"Нагиев С. З."},null,"Нагиеву","Самиду","Зейналу","1996-11-15","с.Осакуджа Ленкоранского р-на Республики Азербайджан","РФ","м","ФГКВОУ ВО Военная академия радиационной, химической и биологической защиты им. Маршала Советского Союза С.К. Тимошенко (г.Кострома) Министерства обороны Российской Федерации г. Кострома",2017,"холост","157246г.Кострома, ул. Никитская, д.116, кв. 30",null,null,null,null,null,null,null,170768,"Экономический","38.03.84","Экономика","Финансы и кредит","5 лет","БАКАЛАВР","2-687","2017-08-19","по договору с полным возмещением затрат","000004414","2017-07-31",null,null,null,null,null,null,null,null,null,null,null,null,null,null,null,null,null,null,null,null,null,null,null,null,null,null,null,null,null,null,null,null,null,null,null,null,null,null,null,null,null,null,2,"221z",null,null,null,null,null,null,4,"2018-06-09",7879530,6,"2018-06-09",7879527,null,null,null,null,null,null,null,null,null,null,null,null,null,null,null,null,null,null,null,null,null,null,null,null,null,null,null,null,null,null,null,null,null,null,null,null,null,null,null,null,null,null,null,null,null,null,null,null,null,null,null,null,null,null,null,null,null,null,null,null,null,null,null,null,null,null,null,null,null,null,null,null,null,null,null,null,null,null,null,null,null,null,null,null,null,null,null,null,null,null,null,null,null,null,null,null,null,null,null,null,null,null,null,null,null,null,null,null,null,null,null,null,null,null,null,null,null,null,null,null,null,null,null,null,null,null,null,null,null,null,null,null,null,null,null,null,null,null,null,null,null,null,null,null,null,null,null,null,null,null,null,null,null,null,null,null,null,null,null,null,null,null,null,null,null,null,null,null,null,null,null,null,null,null,null,null,null,{"$f":"(JL81*3+JM81*4+JN81*5)/50","v":0.08},null,{"$f":"COUNTIF(CC81:JG81,3)","v":0},{"$f":"COUNTIF(CC81:JG81,4)","v":1},{"$f":"COUNTIF(CC81:JG81,5)","v":0},{"$f":"COUNTIF(CC81:JG81,6)","v":1},{"$f":"SUM(JL81:JN81)","v":1},{"$f":"SUMIF(CC81:JG81,\">0\",$CC$3:$JG$3)","v":180},{"$f":"INT(JQ81/8+0.5)","v":23}]
[{"$f":"A81+1","v":79},"Никитченко","Валентин","Васильевич",{"$f":"CONCATENATE(B82,\" \",LEFT(C82,1),\". \",LEFT(D82,1),\".\")","v":"Никитченко В. В."},null,"Никитченко","Валентину","Васильевичу","1997-04-27","с.Новоомское Омского р-на Омской обл.","РФ","м","МКОУ Кадыйская СОШ имени М.А. Четвертного",2015,"холост","157980 Костромская обл., Кадыйскийр-н, д.Жуково, ул. Советская, д.37",null,null,null,null,null,null,null,170769,"Экономический","38.03.84","Экономика","Финансы и кредит","5 лет","БАКАЛАВР","2-687","2017-08-19","по договору с полным возмещением затрат","000004464","2017-08-10",null,null,null,null,null,null,null,null,null,null,null,null,null,null,null,null,null,null,null,null,null,null,null,null,null,null,null,null,null,null,null,null,null,null,null,null,null,null,null,null,null,null,2,"221z",4,"2018-06-09",78710124,6,"2018-06-09",7879710,4,"2018-06-09",7879530,6,"2018-06-09",7879527,null,null,null,4,"2018-06-09",7879495,4,"2018-06-09",7879551,4,"2018-06-09",7879724,null,null,null,null,null,null,null,null,null,null,null,null,null,null,null,null,null,null,null,null,null,null,null,null,null,null,null,null,null,null,null,null,null,null,null,null,null,null,null,null,null,null,null,null,null,null,null,null,null,null,null,null,null,null,null,null,null,null,null,null,null,null,null,null,null,null,null,null,null,null,null,null,null,null,null,null,null,null,null,null,null,null,null,null,null,null,null,null,null,null,null,null,null,null,null,null,null,null,null,null,null,null,null,null,null,null,null,null,null,null,null,null,null,null,null,null,null,null,null,null,null,null,null,null,null,null,null,null,null,null,null,null,null,null,null,null,null,null,null,null,null,null,null,null,null,null,null,null,null,null,null,null,null,null,null,null,null,null,null,null,null,null,null,null,null,{"$f":"(JL82*3+JM82*4+JN82*5)/50","v":0.4},null,{"$f":"COUNTIF(CC82:JG82,3)","v":0},{"$f":"COUNTIF(CC82:JG82,4)","v":5},{"$f":"COUNTIF(CC82:JG82,5)","v":0},{"$f":"COUNTIF(CC82:JG82,6)","v":2},{"$f":"SUM(JL82:JN82)","v":5},{"$f":"SUMIF(CC82:JG82,\">0\",$CC$3:$JG$3)","v":1332},{"$f":"INT(JQ82/8+0.5)","v":167}]
[{"$f":"A82+1","v":80},"Новожилов","Валерий","Евгеньевич",{"$f":"CONCATENATE(B83,\" \",LEFT(C83,1),\". \",LEFT(D83,1),\".\")","v":"Новожилов В. Е."},null,"Новожилову","Валерию","Евгеньевичу","1981-04-30","г.Кострома","РФ","м","Профессиональный лицей №6 г.Костромы",2000,"холост","г.Кострома, мкр. Давыдовский-3, д.10, кв. 40",null,null,null,null,null,null,null,170770,"Экономический","38.03.84","Экономика","Финансы и кредит","5 лет","БАКАЛАВР","2-701","2017-08-31","по договору с полным возмещением затрат","000004604","2017-08-29",null,null,null,null,null,null,null,null,null,null,null,null,null,null,null,null,null,null,null,null,null,null,null,null,null,null,null,null,null,null,null,null,null,null,null,null,null,null,null,null,null,null,2,"221z",3,"2018-06-20","78710124-4",6,"2018-06-09",7879710,4,"2018-06-09",7879530,6,"2018-06-09",7879527,3,"2018-06-09",7879494,3,"2018-06-09",7879495,4,"2018-06-09",7879551,3,"2018-06-09",7879724,null,null,null,null,null,null,null,null,null,null,null,null,null,null,null,null,null,null,null,null,null,null,null,null,null,null,null,null,null,null,null,null,null,null,null,null,null,null,null,null,null,null,null,null,null,null,null,null,null,null,null,null,null,null,null,null,null,null,null,null,null,null,null,null,null,null,null,null,null,null,null,null,null,null,null,null,null,null,null,null,null,null,null,null,null,null,null,null,null,null,null,null,null,null,null,null,null,null,null,null,null,null,null,null,null,null,null,null,null,null,null,null,null,null,null,null,null,null,null,null,null,null,null,null,null,null,null,null,null,null,null,null,null,null,null,null,null,null,null,null,null,null,null,null,null,null,null,null,null,null,null,null,null,null,null,null,null,null,null,null,null,null,null,null,null,{"$f":"(JL83*3+JM83*4+JN83*5)/50","v":0.4},null,{"$f":"COUNTIF(CC83:JG83,3)","v":4},{"$f":"COUNTIF(CC83:JG83,4)","v":2},{"$f":"COUNTIF(CC83:JG83,5)","v":0},{"$f":"COUNTIF(CC83:JG83,6)","v":2},{"$f":"SUM(JL83:JN83)","v":6},{"$f":"SUMIF(CC83:JG83,\">0\",$CC$3:$JG$3)","v":1548},{"$f":"INT(JQ83/8+0.5)","v":194}]
[{"$f":"A83+1","v":81},"Орлова","Ольга","Александровна",{"$f":"CONCATENATE(B84,\" \",LEFT(C84,1),\". \",LEFT(D84,1),\".\")","v":"Орлова О. А."},null,"Орловой","Ольге","Александровне","1998-08-18","г.Кострома","РФ","ж","ОГБ ПОУ Костромской торгово-экономический колледж г.Кострома",2017,"незамужем","г.Кострома, ул. Новосельская, д.15, кв. 162",null,null,null,null,null,null,null,170771,"Экономический","38.03.84","Экономика","Финансы и кредит","4 года","БАКАЛАВР","2-687","2017-08-19","по договору с полным возмещением затрат","000004440","2017-08-07",null,null,null,null,null,null,null,null,null,null,null,null,null,null,null,null,null,null,null,null,null,null,null,null,null,null,null,null,null,null,null,null,null,null,null,null,null,null,null,null,null,null,2,"222z",null,null,null,6,"2018-06-09",7879710,5,"п/атт.14.10.2017",null,6,"2018-06-09",7879527,3,"2018-06-09",7879494,4,"2018-06-09",7879495,4,"2018-06-09",7879551,3,"2018-06-09",7879724,null,null,null,null,null,null,null,null,null,null,null,null,null,null,null,6,"п/атт.31.10.2017",null,null,null,null,null,null,null,null,null,null,null,null,null,6,"п/атт.20.10.2017",null,null,null,null,null,null,null,5,"п/атт.24.10.2017",null,null,null,null,null,null,null,null,null,null,null,null,null,null,null,null,null,null,null,null,null,null,null,null,null,null,null,null,null,null,null,null,null,null,null,null,null,5,"п/атт.25.10.2017",null,null,null,null,null,null,null,null,null,null,null,null,null,null,null,null,null,null,null,null,null,null,null,null,null,null,null,null,null,null,null,null,null,null,null,null,null,null,null,null,5,"п/атт.26.10.2017",null,null,null,null,null,null,null,null,null,null,null,null,null,null,null,null,null,null,null,null,null,null,null,null,null,null,null,null,null,null,null,null,null,null,null,null,null,null,null,null,null,null,null,{"$f":"(JL84*3+JM84*4+JN84*5)/50","v":0.68},null,{"$f":"COUNTIF(CC84:JG84,3)","v":2},{"$f":"COUNTIF(CC84:JG84,4)","v":2},{"$f":"COUNTIF(CC84:JG84,5)","v":4},{"$f":"COUNTIF(CC84:JG84,6)","v":4},{"$f":"SUM(JL84:JN84)","v":8},{"$f":"SUMIF(CC84:JG84,\">0\",$CC$3:$JG$3)","v":1512},{"$f":"INT(JQ84/8+0.5)","v":189}]
[{"$f":"A84+1","v":82},"Пальшина","Надежда","Витальевна",{"$f":"CONCATENATE(B85,\" \",LEFT(C85,1),\". \",LEFT(D85,1),\".\")","v":"Пальшина Н. В."},null,"Пальшиной","Надежде","Витальевне","1982-08-01","с.Визинга Сысольского р-на Республика Коми","РФ","ж","ГОУ ВПО Кировская государственная медицинская академия Федерального агентства по здравоохранению и социальному развитию г.Киров",2005,"незамужем","г.Кострома, ул. Задорина, д.43",null,null,null,null,null,null,null,170772,"Экономический","38.03.84","Экономика","Финансы и кредит","4 года","БАКАЛАВР","2-687","2017-08-19","по договору с полным возмещением затрат","000004567","2017-08-17",null,null,null,null,null,null,null,null,null,null,null,null,null,null,null,null,null,null,null,null,null,null,null,null,null,null,null,null,null,null,null,null,null,null,null,null,null,null,null,null,null,null,2,"222z",4,"2018-06-09",78710124,6,"2018-06-09",7879710,4,"п/атт.14.10.2017",null,6,"п/атт.27.10.2017",null,4,"2018-06-09",7879494,4,"2018-06-09",7879495,4,"2018-06-09",7879551,4,"2018-06-09",7879724,6,"п/зач.11.10.2017",null,6,"п/атт.28.10.2017",null,4,"п/атт.05.11.2017",null,null,null,null,null,null,null,6,"п/атт.31.10.2017",null,4,"п/зач.11.10.2017",null,null,null,null,null,null,null,null,null,null,6,"п/атт.20.10.2017",null,6,"п/атт.20.10.2017",null,null,null,null,null,null,null,null,null,null,null,null,null,null,null,null,null,null,null,null,null,null,null,null,null,null,null,null,null,null,null,null,null,null,null,null,null,null,null,null,null,null,null,null,null,null,null,null,null,null,null,null,null,null,null,null,null,null,null,null,null,null,null,null,null,null,null,null,null,null,null,null,null,null,null,null,null,null,null,null,null,null,null,null,null,null,null,null,null,null,null,null,null,null,null,null,null,null,null,null,null,null,null,null,null,null,null,null,null,null,null,null,null,null,null,null,null,null,null,null,null,null,null,null,null,null,null,null,null,null,{"$f":"(JL85*3+JM85*4+JN85*5)/50","v":0.64},null,{"$f":"COUNTIF(CC85:JG85,3)","v":0},{"$f":"COUNTIF(CC85:JG85,4)","v":8},{"$f":"COUNTIF(CC85:JG85,5)","v":0},{"$f":"COUNTIF(CC85:JG85,6)","v":7},{"$f":"SUM(JL85:JN85)","v":8},{"$f":"SUMIF(CC85:JG85,\">0\",$CC$3:$JG$3)","v":2196},{"$f":"INT(JQ85/8+0.5)","v":275}]
[{"$f":"A85+1","v":83},"Серых","Любовь","Николаевна",{"$f":"CONCATENATE(B86,\" \",LEFT(C86,1),\". \",LEFT(D86,1),\".\")","v":"Серых Л. Н."},null,"Серых","Любови","Николаевне","1998-10-24","с.Хомутово Островского р-на Костромской обл.","РФ","ж","ОГБ ПОУ Костромской торгово-экономический колледж г.Кострома",2017,"незамужем","157860Костромская обл., Судиславский р-н, д.Глебово, ул. Фабричная, д.25, кв. 1",null,null,null,null,null,null,null,170774,"Экономический","38.03.84","Экономика","Финансы и кредит","4 года","БАКАЛАВР","2-687","2017-08-19","по договору с полным возмещением затрат","000004501","2017-08-14",null,null,null,null,null,null,null,null,null,null,null,null,null,null,null,null,null,null,null,null,null,null,null,null,null,null,null,null,null,null,null,null,null,null,null,null,null,null,null,null,null,null,2,"222z",4,"2018-06-09",78710124,6,"2018-06-09",7879710,4,"п/атт.14.10.2017",null,6,"2018-06-09",7879527,3,"2018-06-09",7879494,3,"2018-06-09",7879495,5,"2018-06-09",7879551,4,"2018-06-09",7879724,null,null,null,null,null,null,null,null,null,null,null,null,null,null,null,6,"п/атт.31.10.2017",null,null,null,null,null,null,null,null,null,null,null,null,null,6,"п/атт.20.10.2017",null,null,null,null,null,null,null,5,"п/атт.24.10.2017",null,null,null,null,null,null,null,null,null,null,null,null,null,null,null,null,null,null,null,null,null,null,null,null,null,null,null,null,null,null,null,null,null,null,null,null,null,5,"п/атт.25.10.2017",null,null,null,null,null,null,null,null,null,null,null,null,null,null,null,null,null,null,null,null,null,null,null,null,null,null,null,null,null,null,null,null,null,null,null,null,null,null,null,null,null,null,null,null,null,null,null,null,null,null,null,null,null,null,null,null,null,null,null,null,null,null,null,null,null,null,null,null,null,null,null,null,null,null,null,null,null,null,null,null,null,null,null,null,null,{"$f":"(JL86*3+JM86*4+JN86*5)/50","v":0.66},null,{"$f":"COUNTIF(CC86:JG86,3)","v":2},{"$f":"COUNTIF(CC86:JG86,4)","v":3},{"$f":"COUNTIF(CC86:JG86,5)","v":3},{"$f":"COUNTIF(CC86:JG86,6)","v":4},{"$f":"SUM(JL86:JN86)","v":8},{"$f":"SUMIF(CC86:JG86,\">0\",$CC$3:$JG$3)","v":1728},{"$f":"INT(JQ86/8+0.5)","v":216}]
[{"$f":"A86+1","v":84},"Смирнова","Виктория","Валентиновна",{"$f":"CONCATENATE(B87,\" \",LEFT(C87,1),\". \",LEFT(D87,1),\".\")","v":"Смирнова В. В."},null,"Смирновой","Виктории","Валентиновне","1994-12-31","г.Мантурово Костромской обл.","РФ","ж","ФГБОУ ВО Костромская государственная сельскохозяйственная академия пос.Караваево",2017,"незамужем","г.Кострома, мкр. Давыдовский-3, д.28а, кв. 47",null,null,null,null,null,null,null,170775,"Экономический","38.03.84","Экономика","Финансы и кредит","4 года","БАКАЛАВР","2-687","2017-08-19","по договору с полным возмещением затрат","000004557","2017-08-17",null,null,null,null,null,null,null,null,null,null,null,null,null,null,null,null,null,null,null,null,null,null,null,null,null,null,null,null,null,null,null,null,null,null,null,null,null,null,null,null,null,null,2,"222z",4,"2018-06-09",78710124,6,"2018-06-09",7879710,4,"п/атт.14.10.2017",null,6,"п/атт.27.10.2017",null,4,"п/атт.21.10.2017",null,4,"п/атт.21.10.2017",null,4,"п/атт.12.10.2017",null,4,"2018-06-09",7879724,6,"п/зач.11.10.2017",null,6,"п/атт.28.10.2017",null,null,null,null,null,null,null,null,null,null,6,"п/атт.31.10.2017",null,4,"п/зач.11.10.2017",null,null,null,null,null,null,null,null,null,null,6,"п/зач.20.10.2017",null,6,"п/зач.20.10.2017",null,null,null,null,null,null,null,null,null,null,4,"п/атт.13.10.2017",null,null,null,null,null,null,null,null,null,null,null,null,null,null,null,null,null,null,null,null,null,null,null,null,null,null,null,null,null,null,null,null,null,null,null,null,null,null,null,null,null,null,null,null,null,null,null,null,null,null,null,null,null,null,null,null,null,null,null,null,null,null,null,null,null,null,null,null,null,null,null,null,null,null,null,null,null,null,null,6,"п/зач.06.10.2017",null,null,null,null,null,null,null,null,null,null,null,null,null,null,null,null,null,null,null,null,null,null,null,null,null,null,null,null,null,null,null,null,null,null,null,null,null,{"$f":"(JL87*3+JM87*4+JN87*5)/50","v":0.64},null,{"$f":"COUNTIF(CC87:JG87,3)","v":0},{"$f":"COUNTIF(CC87:JG87,4)","v":8},{"$f":"COUNTIF(CC87:JG87,5)","v":0},{"$f":"COUNTIF(CC87:JG87,6)","v":8},{"$f":"SUM(JL87:JN87)","v":8},{"$f":"SUMIF(CC87:JG87,\">0\",$CC$3:$JG$3)","v":2232},{"$f":"INT(JQ87/8+0.5)","v":279}]
[{"$f":"A87+1","v":85},"Смирнова","Виктория","Сергеевна",{"$f":"CONCATENATE(B88,\" \",LEFT(C88,1),\". \",LEFT(D88,1),\".\")","v":"Смирнова В. С."},null,"Смирновой","Виктории","Сергеевне","1995-01-07","д.Карьково Макарьевского р-на Костромской обл.","РФ","ж","ОГБОУ СПО Костромской торгово-экономический колледж г.Кострома",2013,"незамужем","Костромская обл., Макарьевский р-н, дер.Карьково, д.28",null,null,null,null,null,null,null,13948,"Экономический","38.03.84","Экономика","Финансы и кредит","5 лет","БАКАЛАВР","2-552","2013-08-30","по договору с полным возмещением затрат","000000929","2013-08-16",null,null,"2-449",42542,"в связи с академической неуспеваемостью","2-12","2018-01-12",null,null,null,null,null,null,null,null,null,null,null,null,null,null,null,null,null,null,null,null,null,null,null,null,null,null,null,null,null,null,null,null,null,null,null,2,"221z",null,null,null,null,null,null,3,"2018-06-09",7879530,6,"2018-06-09",7879527,null,null,null,null,null,null,4,"2018-06-09",7879551,null,null,null,null,null,null,null,null,null,null,null,null,null,null,null,null,null,null,null,null,null,null,null,null,null,null,null,null,null,null,null,null,null,null,null,null,null,null,null,null,null,null,null,null,null,null,null,null,null,null,null,null,null,null,null,null,null,null,null,null,null,null,null,null,null,null,null,null,null,null,null,null,null,null,null,null,null,null,null,null,null,null,null,null,null,null,null,null,null,null,null,null,null,null,null,null,null,null,null,null,null,null,null,null,null,null,null,null,null,null,null,null,null,null,null,null,null,null,null,null,null,null,null,null,null,null,null,null,null,null,null,null,null,null,null,null,null,null,null,null,null,null,null,null,null,null,null,null,null,null,null,null,null,null,null,null,null,null,null,null,null,null,null,null,null,null,null,null,{"$f":"(JL88*3+JM88*4+JN88*5)/50","v":0.14000000000000001},null,{"$f":"COUNTIF(CC88:JG88,3)","v":1},{"$f":"COUNTIF(CC88:JG88,4)","v":1},{"$f":"COUNTIF(CC88:JG88,5)","v":0},{"$f":"COUNTIF(CC88:JG88,6)","v":1},{"$f":"SUM(JL88:JN88)","v":2},{"$f":"SUMIF(CC88:JG88,\">0\",$CC$3:$JG$3)","v":540},{"$f":"INT(JQ88/8+0.5)","v":68}]
[{"$f":"A88+1","v":86},"Сорокина","Анна","Александровна",{"$f":"CONCATENATE(B89,\" \",LEFT(C89,1),\". \",LEFT(D89,1),\".\")","v":"Сорокина А. А."},null,"Сорокиной","Анне","Александровне","1998-09-20","п.Александровское Островского р-на Костромской обл.","РФ","ж","ОГБ ПОУ Костромской торгово-экономический колледж г.Кострома",2017,"незамужем","г.Кострома, ул. Полянская, д.35, кв. 47",null,null,null,null,null,null,null,170776,"Экономический","38.03.84","Экономика","Финансы и кредит","4 года","БАКАЛАВР","2-687","2017-08-19","по договору с полным возмещением затрат","000004458","2017-08-09",null,null,null,null,null,null,null,null,null,null,null,null,null,null,null,null,null,null,null,null,null,null,null,null,null,null,null,null,null,null,null,null,null,null,null,null,null,null,null,null,null,null,2,"222z",4,"2018-06-09",78710124,6,"2018-06-09",7879710,3,"п/атт.14.10.2017",null,6,"2018-06-09",7879527,3,"2018-06-09",7879494,4,"2018-06-09",7879495,5,"2018-06-09",7879551,3,"2018-06-09",7879724,null,null,null,null,null,null,null,null,null,null,null,null,null,null,null,6,"п/атт.31.10.2017",null,null,null,null,null,null,null,null,null,null,null,null,null,6,"п/атт.20.10.2017",null,null,null,null,null,null,null,5,"п/атт.24.10.2017",null,null,null,null,null,null,null,null,null,null,null,null,null,null,null,null,null,null,null,null,null,null,null,null,null,null,null,null,null,null,null,null,null,null,null,null,null,4,"п/атт.25.10.2017",null,null,null,null,null,null,null,null,null,null,null,null,null,null,null,null,null,null,null,null,null,null,null,null,null,null,null,null,null,null,null,null,null,null,null,null,null,null,null,null,4,"п/атт.26.10.2017",null,null,null,null,null,null,null,null,null,null,null,null,null,null,null,null,null,null,null,null,null,null,null,null,null,null,null,null,null,null,null,null,null,null,null,null,null,null,null,null,null,null,null,{"$f":"(JL89*3+JM89*4+JN89*5)/50","v":0.7},null,{"$f":"COUNTIF(CC89:JG89,3)","v":3},{"$f":"COUNTIF(CC89:JG89,4)","v":4},{"$f":"COUNTIF(CC89:JG89,5)","v":2},{"$f":"COUNTIF(CC89:JG89,6)","v":4},{"$f":"SUM(JL89:JN89)","v":9},{"$f":"SUMIF(CC89:JG89,\">0\",$CC$3:$JG$3)","v":1728},{"$f":"INT(JQ89/8+0.5)","v":216}]
[{"$f":"A89+1","v":87},"Фабрина","Вероника","Андреевна",{"$f":"CONCATENATE(B90,\" \",LEFT(C90,1),\". \",LEFT(D90,1),\".\")","v":"Фабрина В. А."},null,"Фабриной","Веронике","Андреевне","1998-04-07","г.Кострома","РФ","ж","ОГБ ПОУ Костромской торгово-экономический колледж г.Кострома",2017,"незамужем","г.Кострома, Давыдовский4-йпроезд, д.24, кв. 2",null,null,null,null,null,null,null,170777,"Экономический","38.03.84","Экономика","Финансы и кредит","4 года","БАКАЛАВР","2-687","2017-08-19","по договору с полным возмещением затрат","000004491","2017-08-11",null,null,null,null,null,null,null,null,null,null,null,null,null,null,null,null,null,null,null,null,null,null,null,null,null,null,null,null,null,null,null,null,null,null,null,null,null,null,null,null,null,null,2,"222z",3,"2018-06-09",78710124,6,"2018-06-09",7879710,3,"п/атт.14.10.2017",null,6,"2018-06-09",7879527,3,"2018-06-09",7879494,4,"2018-06-09",7879495,5,"2018-06-09",7879551,4,"2018-06-09",7879724,null,null,null,null,null,null,null,null,null,null,null,null,null,null,null,6,"п/атт.31.10.2017",null,null,null,null,null,null,null,null,null,null,null,null,null,6,"п/атт.20.10.2017",null,null,null,null,null,null,null,4,"п/атт.24.10.2017",null,null,null,null,null,null,null,null,null,null,null,null,null,null,null,null,null,null,null,null,null,null,null,null,null,null,null,null,null,null,null,null,null,null,null,null,null,4,"п/атт.25.10.2017",null,null,null,null,null,null,null,null,null,null,null,null,null,null,null,null,null,null,null,null,null,null,null,null,null,null,null,null,null,null,null,null,null,null,null,null,null,null,null,null,4,"п/атт.26.10.2017",null,null,null,null,null,null,null,null,null,null,null,null,null,null,null,null,null,null,null,null,null,null,null,null,null,null,null,null,null,null,null,null,null,null,null,null,null,null,null,null,null,null,null,{"$f":"(JL90*3+JM90*4+JN90*5)/50","v":0.68},null,{"$f":"COUNTIF(CC90:JG90,3)","v":3},{"$f":"COUNTIF(CC90:JG90,4)","v":5},{"$f":"COUNTIF(CC90:JG90,5)","v":1},{"$f":"COUNTIF(CC90:JG90,6)","v":4},{"$f":"SUM(JL90:JN90)","v":9},{"$f":"SUMIF(CC90:JG90,\">0\",$CC$3:$JG$3)","v":1728},{"$f":"INT(JQ90/8+0.5)","v":216}]
[{"$f":"A90+1","v":88},"Халилов","Халид","Андреевич",{"$f":"CONCATENATE(B91,\" \",LEFT(C91,1),\". \",LEFT(D91,1),\".\")","v":"Халилов Х. А."},null,"Халилову","Халиду","Андреевичу","1997-10-02","с.Головинское Сусанинского р-на Костромской обл.","РФ","м","МБОУ города Костромы СОШ №22",2015,"холост","156014 г.Кострома, Давыдовский 3-й проезд, д.23, кв. 1",null,null,null,null,null,null,null,170778,"Экономический","38.03.84","Экономика","Финансы и кредит","5 лет","БАКАЛАВР","2-687","2017-08-19","по договору с полным возмещением затрат","000004442","2017-08-07",null,null,null,null,null,null,null,null,null,null,null,null,null,null,null,null,null,null,null,null,null,null,null,null,null,null,null,null,null,null,null,null,null,null,null,null,null,null,null,null,null,null,2,"221z",null,null,null,null,null,null,4,"2018-06-09",7879530,6,"2018-06-09",7879527,null,null,null,null,null,null,4,"2018-06-09",7879551,null,null,null,null,null,null,null,null,null,null,null,null,null,null,null,null,null,null,null,null,null,null,null,null,null,null,null,null,null,null,null,null,null,null,null,null,null,null,null,null,null,null,null,null,null,null,null,null,null,null,null,null,null,null,null,null,null,null,null,null,null,null,null,null,null,null,null,null,null,null,null,null,null,null,null,null,null,null,null,null,null,null,null,null,null,null,null,null,null,null,null,null,null,null,null,null,null,null,null,null,null,null,null,null,null,null,null,null,null,null,null,null,null,null,null,null,null,null,null,null,null,null,null,null,null,null,null,null,null,null,null,null,null,null,null,null,null,null,null,null,null,null,null,null,null,null,null,null,null,null,null,null,null,null,null,null,null,null,null,null,null,null,null,null,null,null,null,null,{"$f":"(JL91*3+JM91*4+JN91*5)/50","v":0.16},null,{"$f":"COUNTIF(CC91:JG91,3)","v":0},{"$f":"COUNTIF(CC91:JG91,4)","v":2},{"$f":"COUNTIF(CC91:JG91,5)","v":0},{"$f":"COUNTIF(CC91:JG91,6)","v":1},{"$f":"SUM(JL91:JN91)","v":2},{"$f":"SUMIF(CC91:JG91,\">0\",$CC$3:$JG$3)","v":540},{"$f":"INT(JQ91/8+0.5)","v":68}]
[{"$f":"A91+1","v":89},"Харинов","Илья","Евгеньевич",{"$f":"CONCATENATE(B92,\" \",LEFT(C92,1),\". \",LEFT(D92,1),\".\")","v":"Харинов И. Е."},null,"Харинову","Илье","Евгеньевичу","1995-03-18","г.Шарья Костромской обл.","РФ","м","Областное государственное бюджетное профессиональное образовательное учреждение Шарьинский аграрный техникум Костромской области г.Шарья",2015,"холост","157500 Костромская обл., г.Шарья, ул. Юбилейная, д.14А, кв. 29",null,null,null,null,null,null,null,170779,"Экономический","38.03.84","Экономика","Финансы и кредит","5 лет","БАКАЛАВР","2-687","2017-08-19","по договору с полным возмещением затрат","000004456","2017-08-08",null,null,null,null,null,null,null,null,null,null,null,null,null,null,null,null,null,null,null,null,null,null,null,null,null,null,null,null,null,null,null,null,null,null,null,null,null,null,null,null,null,null,2,"221z",null,null,null,null,null,null,4,"2018-06-09",7879530,6,"2018-06-09",7879527,null,null,null,4,"2018-06-09",7879495,null,null,null,null,null,null,null,null,null,null,null,null,null,null,null,null,null,null,null,null,null,null,null,null,null,null,null,null,null,null,null,null,null,null,null,null,null,null,null,null,null,null,null,null,null,null,null,null,null,null,null,null,null,null,null,null,null,null,null,null,null,null,null,null,null,null,null,null,null,null,null,null,null,null,null,null,null,null,null,null,null,null,null,null,null,null,null,null,null,null,null,null,null,null,null,null,null,null,null,null,null,null,null,null,null,null,null,null,null,null,null,null,null,null,null,null,null,null,null,null,null,null,null,null,null,null,null,null,null,null,null,null,null,null,null,null,null,null,null,null,null,null,null,null,null,null,null,null,null,null,null,null,null,null,null,null,null,null,null,null,null,null,null,null,null,null,null,null,null,null,null,{"$f":"(JL92*3+JM92*4+JN92*5)/50","v":0.16},null,{"$f":"COUNTIF(CC92:JG92,3)","v":0},{"$f":"COUNTIF(CC92:JG92,4)","v":2},{"$f":"COUNTIF(CC92:JG92,5)","v":0},{"$f":"COUNTIF(CC92:JG92,6)","v":1},{"$f":"SUM(JL92:JN92)","v":2},{"$f":"SUMIF(CC92:JG92,\">0\",$CC$3:$JG$3)","v":432},{"$f":"INT(JQ92/8+0.5)","v":54}]
[{"$f":"A92+1","v":90},"Широва","Майса",null,{"$f":"CONCATENATE(B93,\" \",LEFT(C93,1),\". \",LEFT(D93,1),\".\")","v":"Широва М. ."},null,null,null,null,null,null,null,null,null,null,null,null,null,null,null,null,null,null,null,null,null,null,null,null,null,null,null,null,null,null,null,null,null,null,null,null,null,null,null,null,null,null,null,null,null,null,null,null,null,null,null,null,null,null,null,null,null,null,null,null,null,null,null,null,null,null,null,null,null,null,null,null,null,2,"221z",null,null,null,null,null,null,3,"2018-06-09",7879530,6,"п/зач12.04.2018",null,null,null,null,null,null,null,null,null,null,3,"п/зач17.04.2018",null,6,"п/атт.18.04.2018"]
[{"$f":"A93+1","v":91},"Белова","Елена","Владимировна",{"$f":"CONCATENATE(B94,\" \",LEFT(C94,1),\". \",LEFT(D94,1),\".\")","v":"Белова Е. В."},null,"Беловой","Елене","Владимировне","1993-08-30","г.Галич Костромскойо бл.","РФ","ж","ОГБОУ СПО Галичский аграрный техникум Костромской области г.Галич Костромская обл.",2012,"незамужем","Костромская обл., г.Галич, ул. Кирова, д.6, кв. 4",null,null,null,null,null,null,null,170753,"Экономический","38.03.81","Экономика","Финансы и кредит","4 года","БАКАЛАВР","2-687","2017-08-19","по договору с полным возмещением затрат","000004461","2017-08-10",null,null,null,null,null,null,null,null,null,null,null,null,null,null,null,null,null,null,null,null,null,null,null,null,null,null,null,null,null,null,null,null,null,null,null,null,null,null,null,null,null,null,2,"224z",3,"2018-06-09",78810124,6,"2018-06-09",7889710,4,"2018-06-09",7889530,6,"2018-06-09",7889527,4,"2018-06-09",7889494,3,"2018-06-09",7889495,5,"2018-06-09",7889551,3,"2018-06-09",7889724,6,"п/атт.11.10.2017",null,6,"п/атт.28.10.2017",null,null,null,null,null,null,null,null,null,null,6,"п/атт.31.10.2017",null,null,null,null,null,null,null,null,null,null,null,null,null,6,"п/атт.20.10.2017",null,null,null,null,null,null,null,5,"п/атт.24.10.2017",null,null,null,null,null,null,null,null,null,null,null,null,null,null,null,null,null,null,null,null,null,null,null,null,null,null,null,null,null,null,null,null,null,null,null,null,null,5,"п/атт.25.10.2017",null,null,null,null,null,null,null,null,null,null,null,null,null,null,null,null,null,null,null,null,null,null,null,null,null,null,null,null,null,null,null,null,null,null,null,null,null,null,null,null,4,"п/атт.26.10.2017",null,null,null,null,null,null,null,null,null,null,null,null,null,null,null,null,null,null,null,null,null,null,null,null,null,null,null,null,null,null,null,null,null,null,null,null,null,null,null,null,null,null,null,{"$f":"(JL94*3+JM94*4+JN94*5)/50","v":0.72},null,{"$f":"COUNTIF(CC94:JG94,3)","v":3},{"$f":"COUNTIF(CC94:JG94,4)","v":3},{"$f":"COUNTIF(CC94:JG94,5)","v":3},{"$f":"COUNTIF(CC94:JG94,6)","v":6},{"$f":"SUM(JL94:JN94)","v":9},{"$f":"SUMIF(CC94:JG94,\">0\",$CC$3:$JG$3)","v":1897},{"$f":"INT(JQ94/8+0.5)","v":237}]
[{"$f":"A94+1","v":92},"Горюнов","Сергей","Александрович",{"$f":"CONCATENATE(B95,\" \",LEFT(C95,1),\". \",LEFT(D95,1),\".\")","v":"Горюнов С. А."},null,"Горюнову","Сергею","Александровичу","1989-01-27","с.Минское Костромского р-на Костромской обл.","РФ","м","ГОУ НПО Профессиональный лицей №9 г.Костромы",2007,"холост","Костромская обл., Костромской р-н, с.Минское, ул. Рабочая, д.11, кв. 1",null,null,null,null,null,null,null,170758,"Экономический","38.03.84","Экономика","Финансы и кредит","5 лет","БАКАЛАВР","2-687","2017-08-19","по договору с полным возмещением затрат","000004435","2017-08-07",null,null,null,null,null,null,null,null,null,null,null,null,null,null,null,null,null,null,null,null,null,null,null,null,null,null,null,null,null,null,null,null,null,null,null,null,null,null,null,null,null,null,2,"223z",3,"2018-06-09",78810124,6,"2018-06-09",7889710,4,"2018-06-09",7889530,6,"2018-06-09",7889527,null,null,null,null,null,null,null,null,null,null,null,null,null,null,null,null,null,null,null,null,null,null,null,null,null,null,null,null,null,null,null,null,null,null,null,null,null,null,null,null,null,null,null,null,null,null,null,null,null,null,null,null,null,null,null,null,null,null,null,null,null,null,null,null,null,null,null,null,null,null,null,null,null,null,null,null,null,null,null,null,null,null,null,null,null,null,null,null,null,null,null,null,null,null,null,null,null,null,null,null,null,null,null,null,null,null,null,null,null,null,null,null,null,null,null,null,null,null,null,null,null,null,null,null,null,null,null,null,null,null,null,null,null,null,null,null,null,null,null,null,null,null,null,null,null,null,null,null,null,null,null,null,null,null,null,null,null,null,null,null,null,null,null,null,null,null,null,null,null,null,null,null,null,null,null,null,null,{"$f":"(JL95*3+JM95*4+JN95*5)/50","v":0.14000000000000001},null,{"$f":"COUNTIF(CC95:JG95,3)","v":1},{"$f":"COUNTIF(CC95:JG95,4)","v":1},{"$f":"COUNTIF(CC95:JG95,5)","v":0},{"$f":"COUNTIF(CC95:JG95,6)","v":2},{"$f":"SUM(JL95:JN95)","v":2},{"$f":"SUMIF(CC95:JG95,\">0\",$CC$3:$JG$3)","v":504},{"$f":"INT(JQ95/8+0.5)","v":63}]
[{"$f":"A95+1","v":93},"Старых","Диана","Олеговна",{"$f":"CONCATENATE(B96,\" \",LEFT(C96,1),\". \",LEFT(D96,1),\".\")","v":"Старых Д. О."},null,"Старых","Диане","Олеговне","1995-11-24","г.Горловка Донецкой обл.","РФ","ж","Горловский машиностоительный колледж",2017,"незамужем","Костромская обл., г.Галич, ул. Гоголя, д.1, кв. 9",null,null,null,null,null,null,null,170773,"Экономический","38.03.84","Экономика","Финансы и кредит","5 лет","БАКАЛАВР","2-687","2017-08-19","по договору с полным возмещением затрат","000004460","2017-08-09",null,null,null,null,null,null,null,null,null,null,null,null,null,null,null,null,null,null,null,null,null,null,null,null,null,null,null,null,null,null,null,null,null,null,null,null,null,null,null,null,null,null,2,"223z",3,"2018-06-09",78810124,6,"2018-06-09",7889710,4,"2018-06-09",7889530,6,"2018-06-09",7889527,4,"2018-06-09",7889494,3,"2018-06-09",7889495,5,"2018-06-09",7889551,3,"2018-06-09",7889724,null,null,null,null,null,null,null,null,null,null,null,null,null,null,null,null,null,null,null,null,null,null,null,null,null,null,null,null,null,null,null,null,null,null,null,null,null,null,null,null,null,null,null,null,null,null,null,null,null,null,null,null,null,null,null,null,null,null,null,null,null,null,null,null,null,null,null,null,null,null,null,null,null,null,null,null,null,null,null,null,null,null,null,null,null,null,null,null,null,null,null,null,null,null,null,null,null,null,null,null,null,null,null,null,null,null,null,null,null,null,null,null,null,null,null,null,null,null,null,null,null,null,null,null,null,null,null,null,null,null,null,null,null,null,null,null,null,null,null,null,null,null,null,null,null,null,null,null,null,null,null,null,null,null,null,null,null,null,null,null,null,null,null,null,null,{"$f":"(JL96*3+JM96*4+JN96*5)/50","v":0.44},null,{"$f":"COUNTIF(CC96:JG96,3)","v":3},{"$f":"COUNTIF(CC96:JG96,4)","v":2},{"$f":"COUNTIF(CC96:JG96,5)","v":1},{"$f":"COUNTIF(CC96:JG96,6)","v":2},{"$f":"SUM(JL96:JN96)","v":6},{"$f":"SUMIF(CC96:JG96,\">0\",$CC$3:$JG$3)","v":1548},{"$f":"INT(JQ96/8+0.5)","v":194}]
[{"$f":"A96+1","v":94},"Шарова","Анжелика","Михайловна",{"$f":"CONCATENATE(B97,\" \",LEFT(C97,1),\". \",LEFT(D97,1),\".\")","v":"Шарова А. М."},null,"Шаровой","Анжелике","Михайловне","1991-09-03","п.Талица Вохомского р-на Костромской обл.","РФ","ж","ОГБОУ СПО Костромской областной медицинский колледж имени Героя Советского Союза С.А. Богомолова",2013,"незамужем","155043 Ивановскаяобласть, Тейковский р-н, г.Тейково,у л. Советской Армии, д.13, кв. общ.1/3",null,null,null,null,null,null,null,170780,"Экономический","38.03.84","Экономика","Финансы и кредит","5 лет","БАКАЛАВР","2-687","2017-08-19","по договору с полным возмещением затрат","000004401","2017-07-20",null,null,null,null,null,null,null,null,null,null,null,null,null,null,null,null,null,null,null,null,null,null,null,null,null,null,null,null,null,null,null,null,null,null,null,null,null,null,null,null,null,null,2,"223z",3,"2018-06-09",78810124,6,"2018-06-09",7889710,4,"2018-06-09",7889530,6,"2018-06-09",7889527,3,"2018-06-09",7889494,3,"2018-06-09",7889495,4,"2018-06-09",7889551,3,"2018-06-09",7889724,6,"2018-04-18",634,null,null,null,null,null,null,null,null,null,null,null,null,null,null,null,null,null,null,null,null,null,null,null,null,null,null,null,null,null,null,null,null,null,null,null,null,null,null,null,null,null,null,null,null,null,null,null,null,null,null,null,null,null,null,null,null,null,null,null,null,null,null,null,null,null,null,null,null,null,null,null,null,null,null,null,null,null,null,null,null,null,null,null,null,null,null,null,null,null,null,null,null,null,null,null,null,null,null,null,null,null,null,null,null,null,null,null,null,null,null,null,null,null,null,null,null,null,null,null,null,null,null,null,null,null,null,null,null,null,null,null,null,null,null,null,null,null,null,null,null,null,null,null,null,null,null,null,null,null,null,null,null,null,null,null,null,null,null,null,null,null,null,{"$f":"(JL97*3+JM97*4+JN97*5)/50","v":0.4},null,{"$f":"COUNTIF(CC97:JG97,3)","v":4},{"$f":"COUNTIF(CC97:JG97,4)","v":2},{"$f":"COUNTIF(CC97:JG97,5)","v":0},{"$f":"COUNTIF(CC97:JG97,6)","v":3},{"$f":"SUM(JL97:JN97)","v":6},{"$f":"SUMIF(CC97:JG97,\">0\",$CC$3:$JG$3)","v":1645},{"$f":"INT(JQ97/8+0.5)","v":206}]
[{"$f":"A97+1","v":95},"Антонов","Роман","Вадимович",{"$f":"CONCATENATE(B98,\" \",LEFT(C98,1),\". \",LEFT(D98,1),\".\")","v":"Антонов Р. В."},null,null,null,null,"1991-06-04","гор. Кострома","РФ","м","ФГБОУ ВПО\n\"Костромская государственная сельскохозяйственная академия\" пос. Караваево, Костромская обл., Костромской р-н",2013,null,"Кострома г.  8 Марта ул. д.53 кв.1",null,null,null,null,null,null,null,null,"Экономический","38.03.85","Экономика","Финансы и кредит","5 лет","БАКАЛАВР","2-670","2018-08-20","по договору с полным возмещением затрат","000004768","2018-07-02",null,null,null,null,null,null,null,null,null,null,null,null,null,null,null,null,null,null,null,null,null,null,null,null,null,null,null,null,null,null,null,null,null,null,null,null,null,null,null,null,null,null,1,"211z"]
[{"$f":"A98+1","v":96},"Васильева","Кристина","Алексеевна",{"$f":"CONCATENATE(B99,\" \",LEFT(C99,1),\". \",LEFT(D99,1),\".\")","v":"Васильева К. А."},null,null,null,null,"1999-10-28","гор. Кострома","РФ","ж","Муниципальное бюджетное общеобразовательное учреждение\nгорода Костромы \"Средняя общеобразовательная школа №24\"",2018,null,"Кострома г.  Профсоюзная ул. д.32а кв.33",null,null,null,null,null,null,null,null,"Экономический","38.03.86","Экономика","Финансы и кредит","5 лет","БАКАЛАВР","2-670","2018-08-20","по договору с полным возмещением затрат","000005005","2018-08-16",null,null,null,null,null,null,null,null,null,null,null,null,null,null,null,null,null,null,null,null,null,null,null,null,null,null,null,null,null,null,null,null,null,null,null,null,null,null,null,null,null,null,1,"212z"]
[{"$f":"A99+1","v":97},"Карпушов","Алексей","Эдуардович",{"$f":"CONCATENATE(B100,\" \",LEFT(C100,1),\". \",LEFT(D100,1),\".\")","v":"Карпушов А. Э."},null,null,null,null,"1997-02-26","гор. Кострома","РФ","м","ОГБПОУ \"Костромской автотранспортный колледж\" г. Кострома",2016,null,"Кострома г.  Шагова ул. д.215 кв.57",null,null,null,null,null,null,null,null,"Экономический","38.03.87","Экономика","Финансы и кредит","5 лет","БАКАЛАВР","2-670","2018-08-20","по договору с полным возмещением затрат","000005038","2018-08-17",null,null,null,null,null,null,null,null,null,null,null,null,null,null,null,null,null,null,null,null,null,null,null,null,null,null,null,null,null,null,null,null,null,null,null,null,null,null,null,null,null,null,1,"211z"]
[{"$f":"A100+1","v":98},"Козлова","Анна","Владимировна",{"$f":"CONCATENATE(B101,\" \",LEFT(C101,1),\". \",LEFT(D101,1),\".\")","v":"Козлова А. В."},null,null,null,null,"1998-04-28","пос. Антропово Антроповский р-он Костромская обл.","РФ","ж","ОГБОУ СПО \"Костромской торгово-экономический колледж\" г.Кострома",2018,null,"Костромская обл., Антроповский р-н, Антропово п.  Безымянная ул. д.6 кв.1",null,null,null,null,null,null,null,null,"Экономический","38.03.88","Экономика","Финансы и кредит","5 лет","БАКАЛАВР","2-670","2018-08-20","по договору с полным возмещением затрат","000004973","2018-08-15",null,null,null,null,null,null,null,null,null,null,null,null,null,null,null,null,null,null,null,null,null,null,null,null,null,null,null,null,null,null,null,null,null,null,null,null,null,null,null,null,null,null,1,"211z"]
[{"$f":"A101+1","v":99},"Колбина","Майя","Сергеевна",{"$f":"CONCATENATE(B102,\" \",LEFT(C102,1),\". \",LEFT(D102,1),\".\")","v":"Колбина М. С."},null,null,null,null,"1999-07-27","с. Ильинское Октябрьского района Костромской области","РФ","ж","ОГБОУ СПО \"Костромской торгово-экономический колледж\" г.Кострома",2018,null,"Костромская обл., Октябрьский р-н, Боговарово с.  Победы ул. д.33 кв.8",null,null,null,null,null,null,null,null,"Экономический","38.03.89","Экономика","Финансы и кредит","5 лет","БАКАЛАВР","2-670","2018-08-20","по договору с полным возмещением затрат","000004931","2018-08-13",null,null,null,null,null,null,null,null,null,null,null,null,null,null,null,null,null,null,null,null,null,null,null,null,null,null,null,null,null,null,null,null,null,null,null,null,null,null,null,null,null,null,1,"211z"]
[{"$f":"A102+1","v":100},"Конаичева","Полина","Максимова",{"$f":"CONCATENATE(B103,\" \",LEFT(C103,1),\". \",LEFT(D103,1),\".\")","v":"Конаичева П. М."},null,null,null,null,"1999-10-23","гор. Кострома","РФ","ж","ОГБ ПОУ Костромской колледж отраслевых технологий\nстроительства и лесной промышленности",2018,null,"Кострома г.  Венеция мкр. д.58 кв.63",null,null,null,null,null,null,null,null,"Экономический","38.03.90","Экономика","Финансы и кредит","5 лет","БАКАЛАВР","2-670","2018-08-20","по договору с полным возмещением затрат","000004983","2018-08-15",null,null,null,null,null,null,null,null,null,null,null,null,null,null,null,null,null,null,null,null,null,null,null,null,null,null,null,null,null,null,null,null,null,null,null,null,null,null,null,null,null,null,1,"211z"]
[{"$f":"A103+1","v":101},"Коптелова","Виктория","Денисовна",{"$f":"CONCATENATE(B104,\" \",LEFT(C104,1),\". \",LEFT(D104,1),\".\")","v":"Коптелова В. Д."},null,null,null,null,"1999-01-30","гор. Кострома","РФ","ж","ОГБОУ СПО \"Костромской торгово-экономический колледж\" г.Кострома",2018,null,"Костромская обл., Костромской р-н, Середняя д.  Волжская ул. д.24",null,null,null,null,null,null,null,null,"Экономический","38.03.91","Экономика","Финансы и кредит","5 лет","БАКАЛАВР","2-670","2018-08-20","по договору с полным возмещением затрат","000004945","2018-08-14",null,null,null,null,null,null,null,null,null,null,null,null,null,null,null,null,null,null,null,null,null,null,null,null,null,null,null,null,null,null,null,null,null,null,null,null,null,null,null,null,null,null,1,"211z"]
[{"$f":"A104+1","v":102},"Лебедев","Алексей","Владимирович",{"$f":"CONCATENATE(B105,\" \",LEFT(C105,1),\". \",LEFT(D105,1),\".\")","v":"Лебедев А. В."},null,null,null,null,"1991-04-30","гор. Шарья Костромская обл.","РФ","м","НОУ СПО Костромской технологический техникум ОАО \"Костромакоопцентр\"",2010,null,"Кострома г.  Никитская ул. д.72 кв.14",null,null,null,null,null,null,null,null,"Экономический","38.03.92","Экономика","Финансы и кредит","5 лет","БАКАЛАВР","2-670","2018-08-20","по договору с полным возмещением затрат","000004991","2018-08-16",null,null,null,null,null,null,null,null,null,null,null,null,null,null,null,null,null,null,null,null,null,null,null,null,null,null,null,null,null,null,null,null,null,null,null,null,null,null,null,null,null,null,1,"211z"]
[{"$f":"A105+1","v":103},"Николаева","Галина","Евгеньевна",{"$f":"CONCATENATE(B106,\" \",LEFT(C106,1),\". \",LEFT(D106,1),\".\")","v":"Николаева Г. Е."},null,null,null,null,"1982-01-24","г. Галич Костромской обл.","РФ","ж","Галичский аграрный техникум г. Галич Костромская область",2001,null,"Костромская обл., Галич г.  Железнодорожная ул. д.17 А кв.12",null,null,null,null,null,null,null,null,"Экономический","38.03.93","Экономика","Финансы и кредит","5 лет","БАКАЛАВР","2-670","2018-08-20","по договору с полным возмещением затрат","000004852","2018-08-06",null,null,null,null,null,null,null,null,null,null,null,null,null,null,null,null,null,null,null,null,null,null,null,null,null,null,null,null,null,null,null,null,null,null,null,null,null,null,null,null,null,null,1,"211z"]
[{"$f":"A106+1","v":104},"Фокин","Иван","Вадимович",{"$f":"CONCATENATE(B107,\" \",LEFT(C107,1),\". \",LEFT(D107,1),\".\")","v":"Фокин И. В."},null,null,null,null,"1999-07-22","гор. Кострома","РФ","м","МБОУ СОШ № 3 городского округа\nг. Волгореченск Костромской области",2016,null,"Костромская обл., Волгореченск г.  им 50-летия Ленинского Комсомола ул. д.57 кв.12",null,null,null,null,null,null,null,null,"Экономический","38.03.94","Экономика","Финансы и кредит","5 лет","БАКАЛАВР","2-670","2018-08-20","по договору с полным возмещением затрат","000005057","2018-08-20",null,null,null,null,null,null,null,null,null,null,null,null,null,null,null,null,null,null,null,null,null,null,null,null,null,null,null,null,null,null,null,null,null,null,null,null,null,null,null,null,null,null,1,"211z"]
[{"$f":"A107+1","v":105},"Хомутова","Кристина","Андреевна",{"$f":"CONCATENATE(B108,\" \",LEFT(C108,1),\". \",LEFT(D108,1),\".\")","v":"Хомутова К. А."},null,null,null,null,"1994-11-15","гор. Галич","РФ","ж","ОГБОУ СПО \"Костромской торгово-экономический колледж\" г.Кострома",2013,null,"156014 Кострома г., Дорожная ул., д. 16/10, кв. 20",null,null,null,null,null,null,null,null,"Экономический","38.03.95","Экономика","Финансы и кредит","5 лет","БАКАЛАВР","2-670","2018-08-20","по договору с полным возмещением затрат","000004943","2018-08-14",null,null,null,null,null,null,null,null,null,null,null,null,null,null,null,null,null,null,null,null,null,null,null,null,null,null,null,null,null,null,null,null,null,null,null,null,null,null,null,null,null,null,1,"211z"]
[{"$f":"A108+1","v":106},"Шаталова","Софья","Алексеевна",{"$f":"CONCATENATE(B109,\" \",LEFT(C109,1),\". \",LEFT(D109,1),\".\")","v":"Шаталова С. А."},null,null,null,null,"1999-04-18","гор. Кострома","РФ","ж","ОГБОУ СПО \"Костромской торгово-экономический колледж\" г.Кострома",2017,null,"Костромская обл., Костромской р-н, Яковлевское с.  Новая ул. д.2 А кв.2",null,null,null,null,null,null,null,null,"Экономический","38.03.96","Экономика","Финансы и кредит","5 лет","БАКАЛАВР","2-670","2018-08-20","по договору с полным возмещением затрат","000004960","2018-08-14",null,null,null,null,null,null,null,null,null,null,null,null,null,null,null,null,null,null,null,null,null,null,null,null,null,null,null,null,null,null,null,null,null,null,null,null,null,null,null,null,null,null,1,"211z"]
[{"$f":"A109+1","v":107},"Сухарева","Ксения","Сергеевна",{"$f":"CONCATENATE(B110,\" \",LEFT(C110,1),\". \",LEFT(D110,1),\".\")","v":"Сухарева К. С."},null,null,null,null,"1996-12-12","с. Пыщуг Пущугского р-на Костромской обл.","РФ","ж","ОГБ ПОУ \"Костромской областной медицинский колледж им. Героя Советского Союза С.А. Богомолова\"",2018,null,"Кострома г. Кинешемское ш д. 6 кв. 27",null,null,null,null,null,null,null,null,"Экономический","38.03.96","Экономика","Финансы и кредит","5 лет","БАКАЛАВР","2-685","2018-08-31","по договору с полным возмещением затрат","000005077","2018-08-27",null,null,null,null,null,null,null,null,null,null,null,null,null,null,null,null,null,null,null,null,null,null,null,null,null,null,null,null,null,null,null,null,null,null,null,null,null,null,null,null,null,null,1,"212z"]
[{"$f":"A110+1","v":108},"Замир кызы","Сезим",null,{"$f":"CONCATENATE(B111,\" \",LEFT(C111,1),\". \",LEFT(D111,1),\".\")","v":"Замир кызы С. ."},null,null,null,null,"1999-08-21","Чуйская обл. Кыргызкой Республики","Кыргыская Республика","ж","Средняя школа имени О. Болобаева Ысык-Атинского района Чуйской области",2017,null,"Кыргыская Республика",null,null,null,null,null,null,null,null,"Экономический","38.03.96","Экономика","Финансы и кредит","5 лет","БАКАЛАВР","2-685","2018-08-31","по договору с полным возмещением затрат","000005156","2018-07-23",null,null,null,null,null,null,null,null,null,null,null,null,null,null,null,null,null,null,null,null,null,null,null,null,null,null,null,null,null,null,null,null,null,null,null,null,null,null,null,null,null,null,1,"212z"]
[{"$f":"A111+1","v":109},"Алымов","Аман ","Алымович",{"$f":"CONCATENATE(B112,\" \",LEFT(C112,1),\". \",LEFT(D112,1),\".\")","v":"Алымов А. А."},null,null,null,null,"2000-10-07","Таласская обл. Кыргызкой Республики","Кыргыская Республика","м","Общеобразовательная средняя школа им. Айтапаева Кара-Бууринского р-на Таласской обл.",2018,null,"Кыргыская Республика",null,null,null,null,null,null,null,null,"Экономический","38.03.96","Экономика","Финансы и кредит","5 лет","БАКАЛАВР","2-685","2018-08-31","по договору с полным возмещением затрат","000005153","2018-07-23",null,null,null,null,null,null,null,null,null,null,null,null,null,null,null,null,null,null,null,null,null,null,null,null,null,null,null,null,null,null,null,null,null,null,null,null,null,null,null,null,null,null,1,"212z"]
[{"$f":"A112+1","v":110},"Айбек кызы ","Гулайым",null,{"$f":"CONCATENATE(B113,\" \",LEFT(C113,1),\". \",LEFT(D113,1),\".\")","v":"Айбек кызы  Г. ."},null,null,null,null,"2001-05-31","Нарынская обл. Кыргызкой Республики","Кыргыская Республика","ж","Средняя школа имени Кайыпа Темирова",2018,null,"Кыргыская Республика",null,null,null,null,null,null,null,null,"Экономический","38.03.96","Экономика","Финансы и кредит","5 лет","БАКАЛАВР","2-685","2018-08-31","по договору с полным возмещением затрат","000005152","2018-07-23",null,null,null,null,null,null,null,null,null,null,null,null,null,null,null,null,null,null,null,null,null,null,null,null,null,null,null,null,null,null,null,null,null,null,null,null,null,null,null,null,null,null,1,"212z"]
[{"$f":"A113+1","v":111},"Мейманбеков","Рамазан","Мейманбекович",{"$f":"CONCATENATE(B114,\" \",LEFT(C114,1),\". \",LEFT(D114,1),\".\")","v":"Мейманбеков Р. М."},null,null,null,null,"2000-01-11","Жалал-Абадская обл. Кыргызской Республики","Кыргыская Республика","м","Общеобразовательная средняя школа №5 Барктабаса Тогуз-Тороуского района Жалал-Абадской области",2018,null,"Кыргыская Республика",null,null,null,null,null,null,null,null,"Экономический","38.03.96","Экономика","Финансы и кредит","5 лет","БАКАЛАВР","2-685","2018-08-31","по договору с полным возмещением затрат","000005157","2018-07-23",null,null,null,null,null,null,null,null,null,null,null,null,null,null,null,null,null,null,null,null,null,null,null,null,null,null,null,null,null,null,null,null,null,null,null,null,null,null,null,null,null,null,1,"212z"]
[{"$f":"A114+1","v":112},"Жеенкулов","Байэл","Ташмырзаевич",{"$f":"CONCATENATE(B115,\" \",LEFT(C115,1),\". \",LEFT(D115,1),\".\")","v":"Жеенкулов Б. Т."},null,null,null,null,"2000-05-29","Жалал-Абадская обл. Кыргызской Республики","Кыргыская Республика","м","Общеобразовательная средняя школа №1 имени Т. Балтагулова",2018,null,"Кыргыская Республика",null,null,null,null,null,null,null,null,"Экономический","38.03.96","Экономика","Финансы и кредит","5 лет","БАКАЛАВР","2-685","2018-08-31","по договору с полным возмещением затрат","000005155","2018-07-23",null,null,null,null,null,null,null,null,null,null,null,null,null,null,null,null,null,null,null,null,null,null,null,null,null,null,null,null,null,null,null,null,null,null,null,null,null,null,null,null,null,null,1,"212z"]
[{"$f":"A115+1","v":113},"Торокулов","Айдар","Бакытбекович",{"$f":"CONCATENATE(B116,\" \",LEFT(C116,1),\". \",LEFT(D116,1),\".\")","v":"Торокулов А. Б."},null,null,null,null,"1998-07-11","Нарынская обл. Кыргызкой Республики","Кыргыская Республика","м","Профессиональный колледж института современных информационных технологий в образовании г. Бишкек",2015,null,"Кыргыская Республика",null,null,null,null,null,null,null,null,"Экономический","38.03.96","Экономика","Финансы и кредит","5 лет","БАКАЛАВР","2-685","2018-08-31","по договору с полным возмещением затрат","000005162","2018-07-23",null,null,null,null,null,null,null,null,null,null,null,null,null,null,null,null,null,null,null,null,null,null,null,null,null,null,null,null,null,null,null,null,null,null,null,null,null,null,null,null,null,null,1,"212z"]
[{"$f":"A116+1","v":114},"Эмилова","Акара","Эмиловна",{"$f":"CONCATENATE(B117,\" \",LEFT(C117,1),\". \",LEFT(D117,1),\".\")","v":"Эмилова А. Э."},null,null,null,null,"2001-04-08","Жалал-Абадская обл. Кыргызской Республики","Кыргыская Республика","ж","Общеобразовательная средняя школа №1 имени С. Токтогула Токтогульского р-на Жалал-Абадской обл",2018,null,"Кыргыская Республика",null,null,null,null,null,null,null,null,"Экономический","38.03.96","Экономика","Финансы и кредит","5 лет","БАКАЛАВР","2-685","2018-08-31","по договору с полным возмещением затрат","000005161","2018-07-23",null,null,null,null,null,null,null,null,null,null,null,null,null,null,null,null,null,null,null,null,null,null,null,null,null,null,null,null,null,null,null,null,null,null,null,null,null,null,null,null,null,null,1,"212z"]
[{"$f":"A117+1","v":115},"Бакытбек уулу ","Нуржигит",null,{"$f":"CONCATENATE(B118,\" \",LEFT(C118,1),\". \",LEFT(D118,1),\".\")","v":"Бакытбек уулу  Н. ."},null,null,null,null,"1999-09-14","Жалал-Абадская обл. Кыргызской Республики","Кыргыская Республика","м","Общеобразовательная средняя школа №36 им. Жоомарта Боконбаева с гимназическими классами Аксыйского р-на Жалал-Абадской обл.",2017,null,"Кыргыская Республика",null,null,null,null,null,null,null,null,"Экономический","38.03.96","Экономика","Финансы и кредит","5 лет","БАКАЛАВР","2-685","2018-08-31","по договору с полным возмещением затрат","000005154","2018-07-23",null,null,null,null,null,null,null,null,null,null,null,null,null,null,null,null,null,null,null,null,null,null,null,null,null,null,null,null,null,null,null,null,null,null,null,null,null,null,null,null,null,null,1,"212z"]
[{"$f":"A118+1","v":116},"Токоев","Закир","Пайзиллаевич",{"$f":"CONCATENATE(B119,\" \",LEFT(C119,1),\". \",LEFT(D119,1),\".\")","v":"Токоев З. П."},null,null,null,null,"1986-06-12","Чуйская обл. Кыргызкой Республики","Кыргыская Республика","м","Средняя школа имени Шакирова Камчибека Ысык-Атинского р-на Чуйской обл.",2003,null,"Кыргыская Республика",null,null,null,null,null,null,null,null,"Экономический","38.03.96","Экономика","Финансы и кредит","5 лет","БАКАЛАВР","2-685","2018-08-31","по договору с полным возмещением затрат","000005160","2018-07-23",null,null,null,null,null,null,null,null,null,null,null,null,null,null,null,null,null,null,null,null,null,null,null,null,null,null,null,null,null,null,null,null,null,null,null,null,null,null,null,null,null,null,1,"212z"]
[{"$f":"A119+1","v":117},"Нурбекова","Асель","Нурбековна",{"$f":"CONCATENATE(B120,\" \",LEFT(C120,1),\". \",LEFT(D120,1),\".\")","v":"Нурбекова А. Н."},null,null,null,null,"1998-12-14","г. Бишкек Кыргыская Республика","Кыргыская Республика","ж","Средняя общеобразовательная школа №82 г. Бишкек",2017,null,"Кыргыская Республика",null,null,null,null,null,null,null,null,"Экономический","38.03.96","Экономика","Финансы и кредит","5 лет","БАКАЛАВР","2-685","2018-08-31","по договору с полным возмещением затрат","000005158","2018-07-23",null,null,null,null,null,null,null,null,null,null,null,null,null,null,null,null,null,null,null,null,null,null,null,null,null,null,null,null,null,null,null,null,null,null,null,null,null,null,null,null,null,null,1,"212z"]
[{"$f":"A120+1","v":118},"Нуржанов","Айдар","Нуржанович",{"$f":"CONCATENATE(B121,\" \",LEFT(C121,1),\". \",LEFT(D121,1),\".\")","v":"Нуржанов А. Н."},null,null,null,null,"2000-06-07","Чуйская обл. Кыргызкой Республики","Кыргыская Республика","м","Профессиональный лицей №23 г. Токмок Чуйской обл.",2018,null,"Кыргыская Республика",null,null,null,null,null,null,null,null,"Экономический","38.03.96","Экономика","Финансы и кредит","5 лет","БАКАЛАВР","2-685","2018-08-31","по договору с полным возмещением затрат","000005159","2018-07-23",null,null,null,null,null,null,null,null,null,null,null,null,null,null,null,null,null,null,null,null,null,null,null,null,null,null,null,null,null,null,null,null,null,null,null,null,null,null,null,null,null,null,1,"212z"]

{"sheet":"форма","index":2,"n_rows":199,"n_cols":27,"rows_kept":199,"cut":false,"hidden":false,"merged":[[3,25,5,26],[47,1,47,4],[47,6,47,7],[48,1,48,4],[48,6,48,7],[49,1,49,4],[49,6,49,7],[64,1,64,2],[65,1,65,2],[66,1,66,2],[67,1,67,2],[51,1,51,7],[58,1,58,2],[59,1,59,2],[60,1,60,2],[61,1,61,2],[62,1,62,2],[63,1,63,2],[68,1,68,2],[69,1,69,2],[70,1,70,2],[71,1,71,2],[72,1,72,2],[73,1,73,2],[74,1,74,2],[75,1,75,2],[76,1,76,2],[77,1,77,2],[78,1,78,2],[79,1,79,2],[80,1,80,2],[81,1,81,2],[82,1,82,2],[83,1,83,2],[84,1,84,2],[85,1,85,2],[86,1,86,2],[87,1,87,2],[88,1,88,2],[89,1,89,2],[90,1,90,2],[91,1,91,2],[92,1,92,2],[93,1,93,2],[94,1,94,2],[95,1,95,2],[96,1,96,2],[97,1,97,2],[98,1,98,2],[99,1,99,2],[100,1,100,2],[101,1,101,2],[102,1,102,2],[103,1,103,2],[104,1,104,2],[105,1,105,2],[106,1,106,2],[107,1,107,2],[108,1,108,2],[109,1,109,2],[110,1,110,2],[111,1,111,2],[112,1,112,2],[113,1,113,2],[114,1,114,2],[115,1,115,2],[116,1,116,2],[117,1,117,2],[118,1,118,2],[119,1,119,2],[120,1,120,2],[121,1,121,2],[122,1,122,2],[123,1,123,2],[124,1,124,2],[125,1,125,2],[126,1,126,2],[127,1,127,2],[128,1,128,2],[129,1,129,2],[130,1,130,2],[131,1,131,2],[132,1,132,2],[133,1,133,2],[134,1,134,2],[135,1,135,2],[136,1,136,2],[137,1,137,2],[138,1,138,2],[139,1,139,2],[140,1,140,2],[141,1,141,2],[142,1,142,2],[143,1,143,2],[144,1,144,2],[145,1,145,2],[146,1,146,2],[147,1,147,2],[148,1,148,2],[149,1,149,2],[150,1,150,2],[151,1,151,2],[152,1,152,2],[153,1,153,2],[154,1,154,2],[155,1,155,2],[156,1,156,2],[157,1,157,2],[158,1,158,2],[161,2,161,4],[161,6,161,7],[162,2,162,4],[162,6,162,7],[163,2,163,4],[163,6,163,7],[164,2,164,4],[164,6,164,7],[165,2,165,4],[165,6,165,7],[166,2,166,4],[166,6,166,7],[167,2,167,4],[167,6,167,7],[168,2,168,4],[168,6,168,7],[169,2,169,4],[169,6,169,7],[170,2,170,4],[170,6,170,7],[171,2,171,4],[171,6,171,7],[172,2,172,4],[172,6,172,7],[173,2,173,4],[173,6,173,7],[174,2,174,4],[174,6,174,7],[175,2,175,4],[175,6,175,7],[176,2,176,4],[176,6,176,7],[177,2,177,4],[177,6,177,7],[178,2,178,4],[178,6,178,7],[179,2,179,4],[179,6,179,7],[180,2,180,4],[180,6,180,7],[181,2,181,4],[181,6,181,7],[184,2,184,3],[184,6,184,7],[185,2,185,3],[185,6,185,7],[186,2,186,3],[186,6,186,7],[187,2,187,3],[187,6,187,7],[188,2,188,3],[188,6,188,7],[189,2,189,3],[189,6,189,7],[193,2,193,3],[193,6,193,7],[194,2,194,3],[194,6,194,7],[190,2,190,3],[190,6,190,7],[191,2,191,3],[191,6,191,7],[192,2,192,3],[192,6,192,7]]}
["Федеральное государственное бюджетное образовательное учреждения высшего  образования",null,null,null,null,null,null,null,26,null,null,null,null,null,null,"января",null,null,null,null,null,null,null,null,null,"Папка","C:\\5\\"]
[" «Костромская государственная сельскохозяйственная академия»",null,null,null,null,null,null,null,null,{"$f":"IF(J3=\"Экономический\",деканаты!F2,IF(J3=\"Архитектурно-строительный\",деканаты!F3,IF(J3=\"Агробизнеса\",деканаты!F4,IF(J3=\"Ветеринарной медицины и зоотехнии\",деканаты!F5,IF(J3=\"Инженерно-технологический\",деканаты!F6,IF(J3=\"Электроэнергетический\",деканаты!F7,0))))))","v":"И.о. декана"},null,null,null,null,null,"февраля",null,null,null,null,null,null,null,null,null,"Имя файла",{"$f":"CONCATENATE(R11,\"_\",\"УК_\",S25)","v":"15738з_УК_2015"}]
[null,{"$f":"J3","v":"Экономический"},null,null,null,null,null,null,null,{"$f":"INDEX(Предметы!$B$6:$JR$147,$I1,25)","v":"Экономический"},null,null,null,"Удовлетворительно","Удовлет.","марта",null,null,null,null,null,null,null,null,null,null,{"$f":"NOW()","v":"2018-09-26T14:37:14.560"}]
[null,"Факультет",null,null,null,null,null,null,null,null,null,null,null,"Хорошо","Хорошо","апреля",null,null,null,null,null,null,null,null,null,"- сохранить карточку в PDF"]
[null,{"$f":"CONCATENATE(J5,\" \",K5)","v":"38.03.40 Экономика"},null,null,null,null,null,null,null,{"$f":"INDEX(Предметы!$B$6:$JR$147,$I1,26)","v":"38.03.40"},{"$f":"INDEX(Предметы!$B$6:$JR$147,$I1,27)","v":"Экономика"},null,null,"Отлично","Отлично","мая"]
[null,"Направление",null,null,null,null,null,null,null,null,null,null,null,"Зачет","Зачет","июня"]
[null,{"$f":"J7","v":"Финансы и кредит"},null,null,null,null,null,null,null,{"$f":"INDEX(Предметы!$B$6:$JR$147,$I1,28)","v":"Финансы и кредит"},null,null,null,null,null,"июля"]
[null,"Профиль",null,null,null,null,null,null,null,null,null,null,null,null,null,"августа"]
["Учебная  карточка  студента",null,null,null,null,null,null,null,null,null,null,null,null,null,null,"сентября"]
[null,null,null,null,null,null,"Личное  дело №",null,null,null,null,null,null,null,null,"октября"]
[1,{"$f":"CONCATENATE(J11,\" \",K11,\" \",L11)","v":"Дмитриева Дарья Аркадьевна"},null,null,null,null,null,null,1,{"$f":"INDEX(Предметы!$B$6:$JR$147,$I1,1)","v":"Дмитриева"},{"$f":"INDEX(Предметы!$B$6:$JR$147,$I1,2)","v":"Дарья"},{"$f":"INDEX(Предметы!$B$6:$JR$147,$I1,3)","v":"Аркадьевна"},{"$f":"INDEX(Предметы!$B$6:$JR$147,$I1,12)","v":"ж"},{"$f":"IF(M11=\"м\",\"\",\"а\")","v":"а"},null,"ноября",null,{"$f":"INDEX(Предметы!$B$6:$JR$147,$I1,24)","v":"15738з"}]
[null,"Фамилия, имя, отчество",null,null,null,null,null,null,1,null,null,null,null,null,null,"декабря"]
[{"$f":"A11+1","v":2},{"$f":"CONCATENATE(L13,\" \",O13,\" \",M13)","v":"19 декабря 1992"},null,null,null,null,null,null,1,{"$f":"INDEX(Предметы!$B$6:$JR$147,$I1,9)","v":33957},{"$f":"TEXT(J13,\"ДД ММММ ГГГГ\")","v":"19 Декабрь 1992"},{"$f":"TEXT(J13,\"ДД\")","v":"19"},{"$f":"TEXT(J13,\"ГГГГ\")","v":"1992"},{"$f":"VALUE(TEXT(J13,\"М\"))","v":12},{"$f":"CHOOSE(N13,$P$1,$P$2,$P$3,$P$4,$P$5,$P$6,P7,P8,P9,P10,P11,P12)","v":"декабря"}]
[null,"Год и месяц рождения",null,null,null,null,null,null,1]
[{"$f":"A13+1","v":3},{"$f":"J15","v":"п.Волгореченск Костромской обл."},null,null,null,null,null,null,1,{"$f":"INDEX(Предметы!$B$6:$JR$147,$I1,10)","v":"п.Волгореченск Костромской обл."}]
[null,"Место рождения",null,null,null,null,null,null,1]
[{"$f":"A15+1","v":4},{"$f":"J17","v":"РФ"},null,null,null,null,null,null,1,{"$f":"INDEX(Предметы!$B$6:$JR$147,$I1,11)","v":"РФ"}]
[null,"Гражданство",null,null,null,null,null,null,1]
[{"$f":"A17+1","v":5},{"$f":"J19","v":"ОГБ ПОУ \"Костромской лесомеханический колледж\""},null,null,null,null,"  год окончания  ",{"$f":"K19","v":2015},1,{"$f":"INDEX(Предметы!$B$6:$JR$147,$I1,13)","v":"ОГБ ПОУ \"Костромской лесомеханический колледж\""},{"$f":"INDEX(Предметы!$B$6:$JR$147,$I1,14)","v":2015}]
[null,"Что окончил (а)",null,null,null,null,null,null,1]
[{"$f":"A19+1","v":6},{"$f":"J21","v":"незамужем"},null,null,null,null,null,null,1,{"$f":"INDEX(Предметы!$B$6:$JR$147,$I1,15)","v":"незамужем"}]
[null,"Семейное положение",null,null,null,null,null,null,1]
[{"$f":"A21+1","v":7},{"$f":"J23","v":"Костромская обл., г.Волгореченск, ул. им50-летия Ленинского Комсомола, д.36, кв. 27"},null,null,null,null,null,null,null,{"$f":"INDEX(Предметы!$B$6:$JR$147,$I1,16)","v":"Костромская обл., г.Волгореченск, ул. им50-летия Ленинского Комсомола, д.36, кв. 27"}]
[null,"Адрес местожительства"]
[{"$f":"A23+1","v":8},{"$f":"CONCATENATE(\"Зачислен\",N11,\" в вуз приказ № \",J25,\"   от  \",L25,\"\")","v":"Зачислена в вуз приказ № 2-557   от  21.08.2015"},null,null,null,null,null,null,1,{"$f":"INDEX(Предметы!$B$6:$JR$147,$I1,31)","v":"2-557"},{"$f":"INDEX(Предметы!$B$6:$JR$147,$I1,32)","v":42237},{"$f":"TEXT(K25,\"ДД.ММ.ГГГГ\")","v":"21.08.2015"},null,null,null,null,null,null,{"$f":"TEXT(K25,\"ГГГГ\")","v":"2015"}]
[null,{"$f":"CONCATENATE(J26,M26)","v":"по договору с полным возмещением затрат   договор № 000003633 от 12 08 2015"},null,null,null,null,null,null,1,{"$f":"INDEX(Предметы!$B$6:$JR$147,$I1,33)","v":"по договору с полным возмещением затрат"},{"$f":"INDEX(Предметы!$B$6:$JR$147,$I1,34)","v":"000003633"},{"$f":"INDEX(Предметы!$B$6:$JR$147,$I1,35)","v":42228},{"$f":"IF(K26=0,\"\",CONCATENATE(\"   договор № \",K26,\" от \",TEXT(L26,\"ДД ММ ГГГГ\") ))","v":"   договор № 000003633 от 12 08 2015"}]
[{"$f":"A25+I25","v":9},{"$f":"CONCATENATE(\"Трудовая  книжка \",M27)","v":"Трудовая  книжка "},null,null,null,null,null,null,{"$f":"IF(J27=0,0,1)","v":0},{"$f":"INDEX(Предметы!$B$6:$JR$147,$I1,17)","v":0},{"$error":"#REF!"},{"$error":"#REF!"},{"$f":"IF(J27=0,\"\",CONCATENATE(\"  № \",J27,\"  дата выдачи \",TEXT(K27,\"ДД.ММ.ГГГГ\"),\"  выдана \",L27))","v":""}]
[null,null,null,null,null,null,null,null,{"$f":"I27","v":0}]
[{"$f":"A27+I27","v":9},{"$f":"CONCATENATE(\"Отчислен\",N11,\" \",M29)","v":"Отчислена "},null,null,null,null,null,null,{"$f":"IF(J29=0,0,1)","v":0},{"$f":"INDEX(Предметы!$B$6:$JR$147,$I1,38)","v":0},{"$f":"INDEX(Предметы!$B$6:$JR$147,$I1,39)","v":0},{"$f":"INDEX(Предметы!$B$6:$JR$147,$I1,40)","v":0},{"$f":"IF(J29=0,\"\",CONCATENATE(\"  приказ №  \",J29,\"  от \",TEXT(K29,\"ДД.ММ.ГГГГ\"),\"   \",IF(L29=0,\"\",L29)))","v":""}]
[null,null,null,null,null,null,null,null,{"$f":"I29","v":0}]
[{"$f":"A29+I29","v":9},{"$f":"CONCATENATE(\"Востановлен\",N11,\" \",M31)","v":"Востановлена "},null,null,null,null,null,null,{"$f":"IF(J31=0,0,1)","v":0},{"$f":"INDEX(Предметы!$B$6:$JR$147,$I$1,41)","v":0},{"$f":"INDEX(Предметы!$B$6:$JR$147,$I$1,42)","v":0},{"$f":"INDEX(Предметы!$B$6:$JR$147,$I$1,43)","v":0},{"$f":"IF(J31=0,\"\",CONCATENATE(\"  приказ №  \",J31,\"  от \",TEXT(K31,\"ДД.ММ.ГГГГ\"),\"   \",IF(L31=0,\"\",L31)))","v":""}]
[null,null,null,null,null,null,null,null,{"$f":"I31","v":0}]
[{"$f":"A31+I31","v":9},{"$f":"CONCATENATE(\"Предоставлен длительный отпуск\",O33)","v":"Предоставлен длительный отпуск"},null,null,null,null,null,null,{"$f":"IF(J33=0,0,1)","v":0},{"$f":"INDEX(Предметы!$B$6:$JR$147,$I1,44)","v":0},{"$f":"INDEX(Предметы!$B$6:$JR$147,$I1,45)","v":0},{"$f":"INDEX(Предметы!$B$6:$JR$147,$I1,46)","v":0},{"$f":"INDEX(Предметы!$B$6:$JR$147,$I1,47)","v":0},{"$f":"INDEX(Предметы!$B$6:$JR$147,$I1,48)","v":0},{"$f":"IF(J33=0,\"\",CONCATENATE(\" сроком на \",IF(N34=0,\"____\",N34),O34,\"     приказ № \",J33,\" от \",J34))","v":""}]
[null,{"$f":"L33","v":0},null,{"$f":"IF(J33=0,\"\",CONCATENATE(\"с \",K34,\" по \",L34))","v":""},null,null,null,null,{"$f":"I33","v":0},{"$f":"TEXT(K33,\"ДД.ММ.ГГГГ\")","v":"00.01.1900"},{"$f":"TEXT(M33,\"ДД.ММ.ГГГГ\")","v":"00.01.1900"},{"$f":"TEXT(N33,\"ДД.ММ.ГГГГ\")","v":"00.01.1900"},{"$f":"N33-M33+182","v":182},{"$f":"INT(M34/365+0.1)","v":0},{"$f":"IF(N34=1,\" год\",\" года\")","v":" года"}]
[{"$f":"A33+I33","v":9},{"$f":"CONCATENATE(\"Переведен\",N11,M35)","v":"Переведена на 2 курс приказ № 2-561   от  01.09.2016"},null,null,null,null,null,null,1,{"$f":"INDEX(Предметы!$B$6:$JR$147,$I1,49)","v":"2-561"},{"$f":"INDEX(Предметы!$B$6:$JR$147,$I1,50)","v":42614},{"$f":"TEXT(K35,\"ДД.ММ.ГГГГ\")","v":"01.09.2016"},{"$f":"IF(J35=0,\"\",CONCATENATE(\" на 2 курс приказ № \",J35,\"   от  \",L35,\"\"))","v":" на 2 курс приказ № 2-561   от  01.09.2016"}]
[]
[{"$f":"A35+I35","v":10},{"$f":"CONCATENATE(\"Переведен\",N11,M37)","v":"Переведена на 3 курс приказ № 2-703   от  01.09.2017"},null,null,null,null,null,null,1,{"$f":"INDEX(Предметы!$B$6:$JR$147,$I1,51)","v":"2-703"},{"$f":"INDEX(Предметы!$B$6:$JR$147,$I1,52)","v":42979},{"$f":"TEXT(K37,\"ДД.ММ.ГГГГ\")","v":"01.09.2017"},{"$f":"IF(J37=0,\"\",CONCATENATE(\" на 3 курс приказ № \",J37,\"   от  \",L37,\"\"))","v":" на 3 курс приказ № 2-703   от  01.09.2017"}]
[]
[{"$f":"A37+I37","v":11},{"$f":"CONCATENATE(\"Переведен\",N11,M39)","v":"Переведена"},null,null,null,null,null,null,1,{"$f":"INDEX(Предметы!$B$6:$JR$147,$I1,53)","v":0},{"$f":"INDEX(Предметы!$B$6:$JR$147,$I1,54)","v":0},{"$f":"TEXT(K39,\"ДД.ММ.ГГГГ\")","v":"00.01.1900"},{"$f":"IF(J39=0,\"\",CONCATENATE(\" на 4 курс приказ № \",J39,\"   от  \",L39,\"\"))","v":""}]
[]
[{"$f":"A39+I39","v":12},{"$f":"CONCATENATE(\"Переведен\",N11,M41)","v":"Переведена"},null,null,null,null,null,null,1,{"$f":"INDEX(Предметы!$B$6:$JR$147,$I1,55)","v":0},{"$f":"INDEX(Предметы!$B$6:$JR$147,$I1,56)","v":0},{"$f":"TEXT(K41,\"ДД.ММ.ГГГГ\")","v":"00.01.1900"},{"$f":"IF(J41=0,\"\",CONCATENATE(\" на 5 курс приказ № \",J41,\"   от  \",L41,\"\"))","v":""}]
[null,null,null,null,null,null,null,null,1]
[{"$f":"A41+I41","v":13},{"$f":"CONCATENATE(\"Сдано за весь срок обучения \",N43,\" предметов, средний балл  \",O43)","v":"Сдано за весь срок обучения 23 предметов, средний балл  1,76"},null,null,null,null,null,null,1,{"$f":"INDEX(Предметы!$B$6:$JR$147,$I1,271)","v":6},{"$f":"INDEX(Предметы!$B$6:$JR$147,$I1,272)","v":15},{"$f":"INDEX(Предметы!$B$6:$JR$147,$I1,273)","v":2},{"$f":"INDEX(Предметы!$B$6:$JR$147,$I1,274)","v":10},{"$f":"INDEX(Предметы!$B$6:$JR$147,$I1,275)","v":23},{"$f":"INDEX(Предметы!$B$6:$JR$147,$I1,269)","v":1.76}]
[null,{"$f":"CONCATENATE(\"  из них: отлично - \",L44,\";  хорошо - \",K44,\"; удовлетворительно - \",J44)","v":"  из них: отлично - 2;  хорошо - 15; удовлетворительно - 6"},null,null,null,null,null,null,1,{"$f":"IF(J43=0,\"нет\",J43)","v":6},{"$f":"IF(K43=0,\"нет\",K43)","v":15},{"$f":"IF(L43=0,\"нет\",L43)","v":2},{"$f":"IF(M43=0,\"нет\",M43)","v":10}]
[{"$f":"A43+I43","v":14},{"$f":"CONCATENATE(\"Допущен\",N11,\" к защите выпускной квалификационной работы \",M45)","v":"Допущена к защите выпускной квалификационной работы "},null,null,null,null,null,null,1,{"$f":"INDEX(Предметы!$B$6:$JR$147,$I1,61)","v":0},{"$f":"INDEX(Предметы!$B$6:$JR$147,$I1,62)","v":0},{"$f":"TEXT(K45,\"ДД.ММ.ГГГГ\")","v":"00.01.1900"},{"$f":"IF(J45=0,\"\",CONCATENATE(\"  приказ №  \",J45,\"  от \",L45))","v":""}]
[null,null,null,null,null,null,null,null,1]
[{"$f":"A45+I45","v":15},"Итоговый экзамен:",null,null,null,null,null,null,1]
["№","Название дисциплины",null,null,null,"Дата сдачи экзамена","Экзаменационная  оценка",null,1]
[{"$f":"IF(B49=0,\"\",1)","v":1},{"$f":"IF(J49=0,\"\",J49)","v":""},null,null,null,{"$f":"IF(K49=0,\"\",TEXT(K49,\"ДД.ММ.ГГГГ\"))","v":""},{"$f":"IF(L49=0,\"\",M49)","v":""},null,{"$f":"IF(J49=0,0,1)","v":0},{"$f":"INDEX(Предметы!$B$6:$JR$147,$I1,63)","v":0},{"$f":"INDEX(Предметы!$B$6:$JR$147,$I1,64)","v":0},{"$f":"INDEX(Предметы!$B$6:$JR$147,$I1,65)","v":0},{"$f":"CHOOSE(L49,$N$1,$N$2,$N$3,$N$4,$N$5,$N$6)","v":{"$error":"#VALUE!"}}]
[{"$f":"IF(B50=0,\"\",2)","v":2},{"$f":"IF(J50=0,\"\",J50)","v":""},null,null,null,{"$f":"IF(K50=0,\"\",TEXT(K50,\"ДД.ММ.ГГГГ\"))","v":""},null,null,{"$f":"IF(J50=0,0,1)","v":0},{"$f":"INDEX(Предметы!$B$6:$JR$147,$I1,66)","v":0},{"$f":"INDEX(Предметы!$B$6:$JR$147,$I1,67)","v":0},{"$f":"INDEX(Предметы!$B$6:$JR$147,$I1,68)","v":0},{"$f":"CHOOSE(L50,$N$1,$N$2,$N$3,$N$4,$N$5,$N$6)","v":{"$error":"#VALUE!"}}]
[null,null,null,null,null,null,null,null,1]
[{"$f":"A47+I47","v":16},{"$f":"CONCATENATE(\"Дипломный проект (работу) выполнил\",N11,\" на тему: \"\"\",IF(J52=0,\"\",J52),\"\"\"\")","v":"Дипломный проект (работу) выполнила на тему: \"\""},null,null,null,null,null,null,1,{"$f":"INDEX(Предметы!$B$6:$JR$147,$I1,69)","v":0}]
[null,{"$f":"CONCATENATE(\"и защитил\",N11,\"   \",IF(K54=0,\"____________\",L54),\"    с оценкой   \",IF(J53=0,\"__________\",K53))","v":"и защитила   ____________    с оценкой   __________"},null,null,null,null,null,null,1,{"$f":"INDEX(Предметы!$B$6:$JR$147,$I1,70)","v":0},{"$f":"CHOOSE(J53,$N$1,$N$2,$N$3,$N$4,$N$5,$N$6)","v":{"$error":"#VALUE!"}}]
[{"$f":"A52+I52","v":17},{"$f":"CONCATENATE(\"Постановлением государственной аттестационной комиссии  (протокол № \",IF(J54=0,\"____\",J54),\" от \",IF(J54=0,\"____________\",L54),\" )\")","v":"Постановлением государственной аттестационной комиссии  (протокол № ____ от ____________ )"},null,null,null,null,null,null,1,{"$f":"INDEX(Предметы!$B$6:$JR$147,$I1,71)","v":0},{"$f":"INDEX(Предметы!$B$6:$JR$147,$I1,72)","v":0},{"$f":"TEXT(K54,\"ДД.ММ.ГГГГ\")","v":"00.01.1900"},{"$f":"INDEX(Предметы!$B$6:$JR$147,$I1,30)","v":"БАКАЛАВР"}]
[null,{"$f":"CONCATENATE(\"присвоена квалификация  \",IF(J54=0,\"__________\",M54))","v":"присвоена квалификация  __________"},null,null,null,null,null,null,1]
[null,{"$f":"CONCATENATE(\"Диплом с отличием, без отличия, за № \",M56,\" выдан \",L56)","v":"Диплом с отличием, без отличия, за № 0 выдан 00.01.1900"},null,null,null,null,null,null,{"$f":"IF(K56=0,0,1)","v":0},null,{"$f":"INDEX(Предметы!$B$6:$JR$147,$I1,77)","v":0},{"$f":"TEXT(K56,\"ДД.ММ.ГГГГ\")","v":"00.01.1900"},{"$f":"INDEX(Предметы!$B$6:$JR$147,$I1,76)","v":0}]
[null,{"$f":"CONCATENATE(J2,\" факультета ______________________\",J57)","v":"И.о. декана факультета ______________________Н.А. Середа"},null,null,null,null,null,null,1,{"$f":"IF(J3=\"Экономический\",деканаты!D2,IF(J3=\"Архитектурно-строительный\",деканаты!D3,IF(J3=\"Агробизнеса\",деканаты!D4,IF(J3=\"Ветеринарной медицины и зоотехнии\",деканаты!D5,IF(J3=\"Инженерно-технологический\",деканаты!D6,IF(J3=\"Электроэнергетический\",деканаты!D7,0))))))","v":"Н.А. Середа"},3,3,3,3,3,3,3,3,3,3,3,3]
[{"$f":"A54+I53","v":18},"Выполнение учебного плана",null,null,null,null,null,null,1,null,1,2,3,4,5,6,7,8,9,10,11,12]
["Семестры","Название    предмета",null,"Число часов по плану/ зачетных единиц","Экзамена- \nционная \nоценка","Отметка о зачете","Дата ведомости",null,1,{"$f":"I1","v":26},{"$f":"COUNTIF(Предметы!$CC$2:$JG$2,1)","v":0},{"$f":"COUNTIF(Предметы!$CC$2:$JG$2,2)","v":8},{"$f":"COUNTIF(Предметы!$CC$2:$JG$2,3)","v":5},{"$f":"COUNTIF(Предметы!$CC$2:$JG$2,4)","v":9},{"$f":"COUNTIF(Предметы!$CC$2:$JG$2,5)","v":5},{"$f":"COUNTIF(Предметы!$CC$2:$JG$2,6)","v":8},{"$f":"COUNTIF(Предметы!$CC$2:$JG$2,7)","v":7},{"$f":"COUNTIF(Предметы!$CC$2:$JG$2,8)","v":7},{"$f":"COUNTIF(Предметы!$CC$2:$JG$2,9)","v":12},{"$f":"COUNTIF(Предметы!$CC$2:$JG$2,10)","v":2},{"$f":"COUNTIF(Предметы!$CC$2:$JG$2,11)","v":0},{"$f":"COUNTIF(Предметы!$CC$2:$JG$2,12)","v":0}]
[{"$f":"K60","v":2},"Делопроизводство и документооборот в финансовой сфере",null,{"$f":"CONCATENATE(Предметы!CC3,\" / \",Предметы!CC3/36)","v":"216 / 6"},{"$f":"IF(AND(L60>2, L60<6),P60,\"------\")","v":"Хорошо"},{"$f":"IF(M60=0,\"------\",IF(L60=6,P60,\"------\"))","v":"------"},{"$f":"CONCATENATE(IF(M60=0,\"------\",N60),\"  \",IF(O60=0,\"\",CONCATENATE(\"№ \",O60)))","v":"05.06.2018  № 77610134"},null,{"$f":"IF(M60=0,0,1)","v":1},5,{"$f":"Предметы!CC2","v":2},{"$f":"INDEX(Предметы!$B$6:$JR$147,$I1,80)","v":4},{"$f":"INDEX(Предметы!$B$6:$JR$147,$I1,81)","v":43256},{"$f":"TEXT(M60,\"ДД.ММ.ГГГГ\")","v":"05.06.2018"},{"$f":"INDEX(Предметы!$B$6:$JR$147,$I1,82)","v":77610134},{"$f":"CHOOSE(L60,$O$1,$O$2,$O$3,$O$4,$O$5,$O$6)","v":"Хорошо"}]
[{"$f":"K61","v":2},"Введение в профессию и основы научных исследований",null,{"$f":"CONCATENATE(Предметы!CF3,\" / \",Предметы!CF3/36)","v":"108 / 3"},{"$f":"IF(AND(L61>2, L61<6),P61,\"------\")","v":"------"},{"$f":"IF(M61=0,\"------\",IF(L61=6,P61,\"------\"))","v":"Зачет"},{"$f":"CONCATENATE(IF(M61=0,\"------\",N61),\"  \",IF(O61=0,\"\",CONCATENATE(\"№ \",O61)))","v":"05.06.2018  № 77610110"},null,{"$f":"IF(M61=0,0,1)","v":1},{"$f":"J60+1","v":6},{"$f":"Предметы!CF2","v":2},{"$f":"INDEX(Предметы!$B$6:$JR$147,$I1,83)","v":6},{"$f":"INDEX(Предметы!$B$6:$JR$147,$I1,84)","v":43256},"05.06.2018",{"$f":"INDEX(Предметы!$B$6:$JR$147,$I1,85)","v":77610110},{"$f":"CHOOSE(L61,$O$1,$O$2,$O$3,$O$4,$O$5,$O$6)","v":"Зачет"}]
[2,"История",null,{"$f":"CONCATENATE(Предметы!CI3,\" / \",Предметы!CI3/36)","v":"108 / 3"},"Хорошо","------","11.06.2016  ",null,1,{"$f":"J61+1","v":7},{"$f":"Предметы!CI2","v":2},{"$f":"INDEX(Предметы!$B$6:$JR$147,$I1,86)","v":4},{"$f":"INDEX(Предметы!$B$6:$JR$147,$I1,87)","v":42532},"11.06.2016",{"$f":"INDEX(Предметы!$B$6:$JR$147,$I1,88)","v":0},"Хорошо"]
[2,"Психология",null,{"$f":"CONCATENATE(Предметы!CL3,\" / \",Предметы!CL3/36)","v":"72 / 2"},"------","Зачет","11.06.2016  ",null,1,8,{"$f":"Предметы!CL2","v":2},{"$f":"INDEX(Предметы!$B$6:$JR$147,$I1,89)","v":6},{"$f":"INDEX(Предметы!$B$6:$JR$147,$I1,90)","v":42532},"11.06.2016",{"$f":"INDEX(Предметы!$B$6:$JR$147,$I1,91)","v":0},"Зачет"]
[2,"Математический анализ",null,{"$f":"CONCATENATE(Предметы!CO3,\" / \",Предметы!CO3/36)","v":"216 / 6"},"Хорошо","------","11.06.2016  ",null,1,9,{"$f":"Предметы!CO2","v":2},{"$f":"INDEX(Предметы!$B$6:$JR$147,$I1,92)","v":4},{"$f":"INDEX(Предметы!$B$6:$JR$147,$I1,93)","v":42532},"11.06.2016",{"$f":"INDEX(Предметы!$B$6:$JR$147,$I1,94)","v":0},"Хорошо"]
[2,"Линейная алгебра",null,{"$f":"CONCATENATE(Предметы!CR3,\" / \",Предметы!CR3/36)","v":"252 / 7"},"Удовлет.","------","11.06.2016  ",null,1,10,{"$f":"Предметы!CR2","v":2},{"$f":"INDEX(Предметы!$B$6:$JR$147,$I1,95)","v":3},{"$f":"INDEX(Предметы!$B$6:$JR$147,$I1,96)","v":42532},"11.06.2016",{"$f":"INDEX(Предметы!$B$6:$JR$147,$I1,97)","v":0},"Удовлет."]
[2,"Информатика и информационное обеспечение финансовой деятельности",null,{"$f":"CONCATENATE(Предметы!CU3,\" / \",Предметы!CU3/36)","v":"360 / 10"},"Хорошо","------","11.06.2016  ",null,1,11,{"$f":"Предметы!CU2","v":2},{"$f":"INDEX(Предметы!$B$6:$JR$147,$I1,98)","v":4},{"$f":"INDEX(Предметы!$B$6:$JR$147,$I1,99)","v":42532},"11.06.2016",{"$f":"INDEX(Предметы!$B$6:$JR$147,$I1,100)","v":0},"Хорошо"]
[2,"Микроэкономика",null,{"$f":"CONCATENATE(Предметы!CX3,\" / \",Предметы!CX3/36)","v":"216 / 6"},"Удовлет.","------","11.06.2016  ",null,1,12,{"$f":"Предметы!CX2","v":2},{"$f":"INDEX(Предметы!$B$6:$JR$147,$I1,101)","v":3},{"$f":"INDEX(Предметы!$B$6:$JR$147,$I1,102)","v":42532},"11.06.2016",{"$f":"INDEX(Предметы!$B$6:$JR$147,$I1,103)","v":0},"Удовлет."]
[3,"Иностранный язык (З)",null,{"$f":"CONCATENATE(Предметы!DA3,\" / \",Предметы!DA3/36)","v":"97 / 2,69444444444444"},"------","Зачет","23.12.2016  ",null,1,13,{"$f":"Предметы!DA2","v":3},{"$f":"INDEX(Предметы!$B$6:$JR$147,$I1,104)","v":6},{"$f":"INDEX(Предметы!$B$6:$JR$147,$I1,105)","v":42727},"23.12.2016",{"$f":"INDEX(Предметы!$B$6:$JR$147,$I1,106)","v":0},"Зачет"]
[3,"Социология",null,{"$f":"CONCATENATE(Предметы!DD3,\" / \",Предметы!DD3/36)","v":"72 / 2"},"------","Зачет","23.12.2016  ",null,1,14,{"$f":"Предметы!DD2","v":3},{"$f":"INDEX(Предметы!$B$6:$JR$147,$I1,107)","v":6},{"$f":"INDEX(Предметы!$B$6:$JR$147,$I1,108)","v":42727},"23.12.2016",{"$f":"INDEX(Предметы!$B$6:$JR$147,$I1,109)","v":0},"Зачет"]
[3,"Политология",null,{"$f":"CONCATENATE(Предметы!DG3,\" / \",Предметы!DG3/36)","v":"180 / 5"},"Хорошо","------","23.12.2016  ",null,1,15,{"$f":"Предметы!DG2","v":3},{"$f":"INDEX(Предметы!$B$6:$JR$147,$I1,110)","v":4},{"$f":"INDEX(Предметы!$B$6:$JR$147,$I1,111)","v":42727},"23.12.2016",{"$f":"INDEX(Предметы!$B$6:$JR$147,$I1,112)","v":0},"Хорошо"]
[3,"Теория вероятности и математическая статистика",null,{"$f":"CONCATENATE(Предметы!DJ3,\" / \",Предметы!DJ3/36)","v":"144 / 4"},"Отлично","------","23.12.2016  ",null,1,16,{"$f":"Предметы!DJ2","v":3},{"$f":"INDEX(Предметы!$B$6:$JR$147,$I1,113)","v":5},{"$f":"INDEX(Предметы!$B$6:$JR$147,$I1,114)","v":42727},"23.12.2016",{"$f":"INDEX(Предметы!$B$6:$JR$147,$I1,115)","v":0},"Отлично"]
[3,"Макроэкономика (З)",null,{"$f":"CONCATENATE(Предметы!DM3,\" / \",Предметы!DM3/36)","v":"136 / 3,77777777777778"},"------","Зачет","23.12.2016  ",null,1,17,{"$f":"Предметы!DM2","v":3},{"$f":"INDEX(Предметы!$B$6:$JR$147,$I1,116)","v":6},{"$f":"INDEX(Предметы!$B$6:$JR$147,$I1,117)","v":42727},"23.12.2016",{"$f":"INDEX(Предметы!$B$6:$JR$147,$I1,118)","v":0},"Зачет"]
[4,"Философия",null,{"$f":"CONCATENATE(Предметы!DP3,\" / \",Предметы!DP3/36)","v":"108 / 3"},"------","Зачет","21.04.2017  ",null,1,18,{"$f":"Предметы!DP2","v":4},{"$f":"INDEX(Предметы!$B$6:$JR$147,$I1,119)","v":6},{"$f":"INDEX(Предметы!$B$6:$JR$147,$I1,120)","v":42846},"21.04.2017",{"$f":"INDEX(Предметы!$B$6:$JR$147,$I1,121)","v":0},"Зачет"]
[4,"Иностранный язык",null,{"$f":"CONCATENATE(Предметы!DS3,\" / \",Предметы!DS3/36)","v":"119 / 3,30555555555556"},"Хорошо","------","20.04.2017  ",null,1,19,{"$f":"Предметы!DS2","v":4},{"$f":"INDEX(Предметы!$B$6:$JR$147,$I1,122)","v":4},{"$f":"INDEX(Предметы!$B$6:$JR$147,$I1,123)","v":42845},"20.04.2017",{"$f":"INDEX(Предметы!$B$6:$JR$147,$I1,124)","v":0},"Хорошо"]
[4,"Макроэкономика",null,{"$f":"CONCATENATE(Предметы!DV3,\" / \",Предметы!DV3/36)","v":"188 / 5,22222222222222"},"------","------","------  ",null,0,20,{"$f":"Предметы!DV2","v":4},{"$f":"INDEX(Предметы!$B$6:$JR$147,$I1,125)","v":0},{"$f":"INDEX(Предметы!$B$6:$JR$147,$I1,126)","v":0},"00.01.1900",{"$f":"INDEX(Предметы!$B$6:$JR$147,$I1,127)","v":0},{"$error":"#VALUE!"}]
[4,"Эконометрика",null,{"$f":"CONCATENATE(Предметы!DY3,\" / \",Предметы!DY3/36)","v":"180 / 5"},"Удовлет.","------","22.04.2017  ",null,1,21,{"$f":"Предметы!DY2","v":4},{"$f":"INDEX(Предметы!$B$6:$JR$147,$I1,128)","v":3},{"$f":"INDEX(Предметы!$B$6:$JR$147,$I1,129)","v":42847},"22.04.2017",{"$f":"INDEX(Предметы!$B$6:$JR$147,$I1,130)","v":0},"Удовлет."]
[4,"Статистика",null,{"$f":"CONCATENATE(Предметы!EB3,\" / \",Предметы!EB3/36)","v":"360 / 10"},"Удовлет.","------","22.04.2017  ",null,1,22,{"$f":"Предметы!EB2","v":4},{"$f":"INDEX(Предметы!$B$6:$JR$147,$I1,131)","v":3},{"$f":"INDEX(Предметы!$B$6:$JR$147,$I1,132)","v":42847},"22.04.2017",{"$f":"INDEX(Предметы!$B$6:$JR$147,$I1,133)","v":0},"Удовлет."]
[4,"Физическая культура и спорт",null,{"$f":"CONCATENATE(Предметы!EE3,\" / \",Предметы!EE3/36)","v":"72 / 2"},"------","Зачет","22.04.2017  ",null,1,23,{"$f":"Предметы!EE2","v":4},{"$f":"INDEX(Предметы!$B$6:$JR$147,$I1,134)","v":6},{"$f":"INDEX(Предметы!$B$6:$JR$147,$I1,135)","v":42847},"22.04.2017",{"$f":"INDEX(Предметы!$B$6:$JR$147,$I1,136)","v":0},"Зачет"]
[4,"Общая физическая подготовка",null,"328 час.","------","Зачет","22.04.2017  ",null,1,24,{"$f":"Предметы!EH2","v":4},{"$f":"INDEX(Предметы!$B$6:$JR$147,$I1,137)","v":6},{"$f":"INDEX(Предметы!$B$6:$JR$147,$I1,138)","v":42847},"22.04.2017",{"$f":"INDEX(Предметы!$B$6:$JR$147,$I1,139)","v":0},"Зачет"]
[4,"Деловые коммуникации",null,{"$f":"CONCATENATE(Предметы!EK3,\" / \",Предметы!EK3/36)","v":"72 / 2"},"------","Зачет","22.04.2017  ",null,1,25,{"$f":"Предметы!EK2","v":4},{"$f":"INDEX(Предметы!$B$6:$JR$147,$I1,140)","v":6},{"$f":"INDEX(Предметы!$B$6:$JR$147,$I1,141)","v":42847},"22.04.2017",{"$f":"INDEX(Предметы!$B$6:$JR$147,$I1,142)","v":0},"Зачет"]
[5,"Методы оптимальных решений  ",null,{"$f":"CONCATENATE(Предметы!EQ3,\" / \",Предметы!EQ3/36)","v":"144 / 4"},"Удовлет.","------","02.12.2017  ",null,1,26,{"$f":"Предметы!EQ2","v":5},{"$f":"INDEX(Предметы!$B$6:$JR$147,$I1,146)","v":3},{"$f":"INDEX(Предметы!$B$6:$JR$147,$I1,147)","v":43071},"02.12.2017",{"$f":"INDEX(Предметы!$B$6:$JR$147,$I1,148)","v":0},"Удовлет."]
[5,"Информационные технологии и базы данных в сфере финансов и кредита",null,{"$f":"CONCATENATE(Предметы!ET3,\" / \",Предметы!ET3/36)","v":"144 / 4"},"Хорошо","------","02.12.2017  ",null,1,27,{"$f":"Предметы!ET2","v":5},{"$f":"INDEX(Предметы!$B$6:$JR$147,$I1,149)","v":4},{"$f":"INDEX(Предметы!$B$6:$JR$147,$I1,150)","v":43071},"02.12.2017",{"$f":"INDEX(Предметы!$B$6:$JR$147,$I1,151)","v":0},"Хорошо"]
[5,"Программирование финансовых операций",null,{"$f":"CONCATENATE(Предметы!EW3,\" / \",Предметы!EW3/36)","v":"216 / 6"},"Хорошо","------","02.12.2017  ",null,1,28,{"$f":"Предметы!EW2","v":5},{"$f":"INDEX(Предметы!$B$6:$JR$147,$I1,152)","v":4},{"$f":"INDEX(Предметы!$B$6:$JR$147,$I1,153)","v":43071},"02.12.2017",{"$f":"INDEX(Предметы!$B$6:$JR$147,$I1,154)","v":0},"Хорошо"]
[5,"Бухгалтерский учет и анализ",null,{"$f":"CONCATENATE(Предметы!EZ3,\" / \",Предметы!EZ3/36)","v":"216 / 6"},"Хорошо","------","02.12.2017  ",null,1,29,{"$f":"Предметы!EZ2","v":5},{"$f":"INDEX(Предметы!$B$6:$JR$147,$I1,155)","v":4},{"$f":"INDEX(Предметы!$B$6:$JR$147,$I1,156)","v":43071},"02.12.2017",{"$f":"INDEX(Предметы!$B$6:$JR$147,$I1,157)","v":0},"Хорошо"]
[5,"Мировая экономика и международные экономические отношения",null,{"$f":"CONCATENATE(Предметы!FC3,\" / \",Предметы!FC3/36)","v":"144 / 4"},"Хорошо","------","02.12.2017  ",null,1,30,{"$f":"Предметы!FC2","v":5},{"$f":"INDEX(Предметы!$B$6:$JR$147,$I1,158)","v":4},{"$f":"INDEX(Предметы!$B$6:$JR$147,$I1,159)","v":43071},"02.12.2017",{"$f":"INDEX(Предметы!$B$6:$JR$147,$I1,160)","v":0},"Хорошо"]
[6,"Регионалистика",null,{"$f":"CONCATENATE(Предметы!FF3,\" / \",Предметы!FF3/36)","v":"144 / 4"},"Хорошо","------","05.06.2018  № 7769492",null,1,31,{"$f":"Предметы!FF2","v":6},{"$f":"INDEX(Предметы!$B$6:$JR$147,$I1,161)","v":4},{"$f":"INDEX(Предметы!$B$6:$JR$147,$I1,162)","v":43256},"05.06.2018",{"$f":"INDEX(Предметы!$B$6:$JR$147,$I1,163)","v":7769492},"Хорошо"]
[6,"Методы принятия управленческих решений в сфере финансов и кредита",null,{"$f":"CONCATENATE(Предметы!FI3,\" / \",Предметы!FI3/36)","v":"72 / 2"},"------","Зачет","05.06.2018  № 7769541",null,1,32,{"$f":"Предметы!FI2","v":6},{"$f":"INDEX(Предметы!$B$6:$JR$147,$I1,164)","v":6},{"$f":"INDEX(Предметы!$B$6:$JR$147,$I1,165)","v":43256},"05.06.2018",{"$f":"INDEX(Предметы!$B$6:$JR$147,$I1,166)","v":7769541},"Зачет"]
[6,"Финансы",null,{"$f":"CONCATENATE(Предметы!FL3,\" / \",Предметы!FL3/36)","v":"144 / 4"},"Отлично","------","05.06.2018  № 7769554",null,1,33,{"$f":"Предметы!FL2","v":6},{"$f":"INDEX(Предметы!$B$6:$JR$147,$I1,167)","v":5},{"$f":"INDEX(Предметы!$B$6:$JR$147,$I1,168)","v":43256},"05.06.2018",{"$f":"INDEX(Предметы!$B$6:$JR$147,$I1,169)","v":7769554},"Отлично"]
[6,"Деньги, кредит, банки",null,{"$f":"CONCATENATE(Предметы!FR3,\" / \",Предметы!FR3/36)","v":"108 / 3"},"Хорошо","------","05.06.2018  № 7769557",null,1,34,{"$f":"Предметы!FR2","v":6},{"$f":"INDEX(Предметы!$B$6:$JR$147,$I1,173)","v":4},{"$f":"INDEX(Предметы!$B$6:$JR$147,$I1,174)","v":43256},"05.06.2018",{"$f":"INDEX(Предметы!$B$6:$JR$147,$I1,175)","v":7769557},"Хорошо"]
[6,"Моделирование социально-экономических систем  ",null,{"$f":"CONCATENATE(Предметы!FU3,\" / \",Предметы!FU3/36)","v":"180 / 5"},"Хорошо","------","05.06.2018  № 7769545",null,1,35,{"$f":"Предметы!FU2","v":6},{"$f":"INDEX(Предметы!$B$6:$JR$147,$I1,176)","v":4},{"$f":"INDEX(Предметы!$B$6:$JR$147,$I1,177)","v":43256},"05.06.2018",{"$f":"INDEX(Предметы!$B$6:$JR$147,$I1,178)","v":7769545},"Хорошо"]
[7,"Корпоративные финансы",null,{"$f":"CONCATENATE(Предметы!GD3,\" / \",Предметы!GD3/36)","v":"144 / 4"},"------","------","------  ",null,0,36,{"$f":"Предметы!GD2","v":7},{"$f":"INDEX(Предметы!$B$6:$JR$147,$I1,185)","v":0},{"$f":"INDEX(Предметы!$B$6:$JR$147,$I1,186)","v":0},"00.01.1900",{"$f":"INDEX(Предметы!$B$6:$JR$147,$I1,187)","v":0},{"$error":"#VALUE!"}]
[7,"Страхование",null,{"$f":"CONCATENATE(Предметы!GJ3,\" / \",Предметы!GJ3/36)","v":"144 / 4"},"------","------","------  ",null,0,37,{"$f":"Предметы!GJ2","v":7},{"$f":"INDEX(Предметы!$B$6:$JR$147,$I1,191)","v":0},{"$f":"INDEX(Предметы!$B$6:$JR$147,$I1,192)","v":0},"00.01.1900",{"$f":"INDEX(Предметы!$B$6:$JR$147,$I1,193)","v":0},{"$error":"#VALUE!"}]
[7,"Финансовые рынки",null,{"$f":"CONCATENATE(Предметы!GM3,\" / \",Предметы!GM3/36)","v":"180 / 5"},"------","------","------  ",null,0,38,{"$f":"Предметы!GM2","v":7},{"$f":"INDEX(Предметы!$B$6:$JR$147,$I1,194)","v":0},{"$f":"INDEX(Предметы!$B$6:$JR$147,$I1,195)","v":0},"00.01.1900",{"$f":"INDEX(Предметы!$B$6:$JR$147,$I1,196)","v":0},{"$error":"#VALUE!"}]
[7,"Экономика организаций (предприятий)",null,{"$f":"CONCATENATE(Предметы!GP3,\" / \",Предметы!GP3/36)","v":"180 / 5"},"------","------","------  ",null,0,39,{"$f":"Предметы!GP2","v":7},{"$f":"INDEX(Предметы!$B$6:$JR$147,$I1,197)","v":0},{"$f":"INDEX(Предметы!$B$6:$JR$147,$I1,198)","v":0},"00.01.1900",{"$f":"INDEX(Предметы!$B$6:$JR$147,$I1,199)","v":0},{"$error":"#VALUE!"}]
[7,"Планирование на предприятии  ",null,{"$f":"CONCATENATE(Предметы!GV3,\" / \",Предметы!GV3/36)","v":"144 / 4"},"------","------","------  ",null,0,40,{"$f":"Предметы!GV2","v":7},{"$f":"INDEX(Предметы!$B$6:$JR$147,$I1,203)","v":0},{"$f":"INDEX(Предметы!$B$6:$JR$147,$I1,204)","v":0},"00.01.1900",{"$f":"INDEX(Предметы!$B$6:$JR$147,$I1,205)","v":0},{"$error":"#VALUE!"}]
[8,"Менеджмент",null,{"$f":"CONCATENATE(Предметы!GY3,\" / \",Предметы!GY3/36)","v":"144 / 4"},"------","------","------  ",null,0,41,{"$f":"Предметы!GY2","v":8},{"$f":"INDEX(Предметы!$B$6:$JR$147,$I1,206)","v":0},{"$f":"INDEX(Предметы!$B$6:$JR$147,$I1,207)","v":0},"00.01.1900",{"$f":"INDEX(Предметы!$B$6:$JR$147,$I1,208)","v":0},{"$error":"#VALUE!"}]
[8,"Государственные и муниципальные финансы",null,{"$f":"CONCATENATE(Предметы!HB3,\" / \",Предметы!HB3/36)","v":"108 / 3"},"------","------","------  ",null,0,42,{"$f":"Предметы!HB2","v":8},{"$f":"INDEX(Предметы!$B$6:$JR$147,$I1,209)","v":0},{"$f":"INDEX(Предметы!$B$6:$JR$147,$I1,210)","v":0},"00.01.1900",{"$f":"INDEX(Предметы!$B$6:$JR$147,$I1,211)","v":0},{"$error":"#VALUE!"}]
[8,"Налоги и налоговая система",null,{"$f":"CONCATENATE(Предметы!HE3,\" / \",Предметы!HE3/36)","v":"216 / 6"},"------","------","------  ",null,0,43,{"$f":"Предметы!HE2","v":8},{"$f":"INDEX(Предметы!$B$6:$JR$147,$I1,212)","v":0},{"$f":"INDEX(Предметы!$B$6:$JR$147,$I1,213)","v":0},"00.01.1900",{"$f":"INDEX(Предметы!$B$6:$JR$147,$I1,214)","v":0},{"$error":"#VALUE!"}]
[8,"Международные валютно-кредитные и финансовые отношения",null,{"$f":"CONCATENATE(Предметы!HH3,\" / \",Предметы!HH3/36)","v":"180 / 5"},"------","------","------  ",null,0,44,{"$f":"Предметы!HH2","v":8},{"$f":"INDEX(Предметы!$B$6:$JR$147,$I1,215)","v":0},{"$f":"INDEX(Предметы!$B$6:$JR$147,$I1,216)","v":0},"00.01.1900",{"$f":"INDEX(Предметы!$B$6:$JR$147,$I1,217)","v":0},{"$error":"#VALUE!"}]
[8,"Анализ финансовой отчетности  ",null,{"$f":"CONCATENATE(Предметы!HK3,\" / \",Предметы!HK3/36)","v":"180 / 5"},"------","------","------  ",null,0,45,{"$f":"Предметы!HK2","v":8},{"$f":"INDEX(Предметы!$B$6:$JR$147,$I1,218)","v":0},{"$f":"INDEX(Предметы!$B$6:$JR$147,$I1,219)","v":0},"00.01.1900",{"$f":"INDEX(Предметы!$B$6:$JR$147,$I1,220)","v":0},{"$error":"#VALUE!"}]
[9,"Право",null,{"$f":"CONCATENATE(Предметы!HT3,\" / \",Предметы!HT3/36)","v":"144 / 4"},"------","------","------  ",null,0,46,{"$f":"Предметы!HT2","v":9},{"$f":"INDEX(Предметы!$B$6:$JR$147,$I1,227)","v":0},{"$f":"INDEX(Предметы!$B$6:$JR$147,$I1,228)","v":0},"00.01.1900",{"$f":"INDEX(Предметы!$B$6:$JR$147,$I1,229)","v":0},{"$error":"#VALUE!"}]
[9,"Безопасность жизнедеятельности",null,{"$f":"CONCATENATE(Предметы!HW3,\" / \",Предметы!HW3/36)","v":"72 / 2"},"------","------","------  ",null,0,47,{"$f":"Предметы!HW2","v":9},{"$f":"INDEX(Предметы!$B$6:$JR$147,$I1,230)","v":0},{"$f":"INDEX(Предметы!$B$6:$JR$147,$I1,231)","v":0},"00.01.1900",{"$f":"INDEX(Предметы!$B$6:$JR$147,$I1,232)","v":0},{"$error":"#VALUE!"}]
[9,"Маркетинг",null,{"$f":"CONCATENATE(Предметы!HZ3,\" / \",Предметы!HZ3/36)","v":"108 / 3"},"------","------","------  ",null,0,48,{"$f":"Предметы!HZ2","v":9},{"$f":"INDEX(Предметы!$B$6:$JR$147,$I1,233)","v":0},{"$f":"INDEX(Предметы!$B$6:$JR$147,$I1,234)","v":0},"00.01.1900",{"$f":"INDEX(Предметы!$B$6:$JR$147,$I1,235)","v":0},{"$error":"#VALUE!"}]
[9,"Макроэкономическое планирование и прогнозирование",null,{"$f":"CONCATENATE(Предметы!IC3,\" / \",Предметы!IC3/36)","v":"108 / 3"},"------","------","------  ",null,0,49,{"$f":"Предметы!IC2","v":9},{"$f":"INDEX(Предметы!$B$6:$JR$147,$I1,236)","v":0},{"$f":"INDEX(Предметы!$B$6:$JR$147,$I1,237)","v":0},"00.01.1900",{"$f":"INDEX(Предметы!$B$6:$JR$147,$I1,238)","v":0},{"$error":"#VALUE!"}]
[9,"Инвестиции",null,{"$f":"CONCATENATE(Предметы!IF3,\" / \",Предметы!IF3/36)","v":"144 / 4"},"------","------","------  ",null,0,50,{"$f":"Предметы!IF2","v":9},{"$f":"INDEX(Предметы!$B$6:$JR$147,$I1,239)","v":0},{"$f":"INDEX(Предметы!$B$6:$JR$147,$I1,240)","v":0},"00.01.1900",{"$f":"INDEX(Предметы!$B$6:$JR$147,$I1,241)","v":0},{"$error":"#VALUE!"}]
[9,"Финансовый менеджмент",null,{"$f":"CONCATENATE(Предметы!IL3,\" / \",Предметы!IL3/36)","v":"180 / 5"},"------","------","------  ",null,0,51,{"$f":"Предметы!IL2","v":9},{"$f":"INDEX(Предметы!$B$6:$JR$147,$I1,245)","v":0},{"$f":"INDEX(Предметы!$B$6:$JR$147,$I1,246)","v":0},"00.01.1900",{"$f":"INDEX(Предметы!$B$6:$JR$147,$I1,247)","v":0},{"$error":"#VALUE!"}]
[9,"Оценка стоимости бизнеса",null,{"$f":"CONCATENATE(Предметы!IO3,\" / \",Предметы!IO3/36)","v":"180 / 5"},"------","------","------  ",null,0,52,{"$f":"Предметы!IO2","v":9},{"$f":"INDEX(Предметы!$B$6:$JR$147,$I1,248)","v":0},{"$f":"INDEX(Предметы!$B$6:$JR$147,$I1,249)","v":0},"00.01.1900",{"$f":"INDEX(Предметы!$B$6:$JR$147,$I1,250)","v":0},{"$error":"#VALUE!"}]
[9,"Финансовая политика",null,{"$f":"CONCATENATE(Предметы!IR3,\" / \",Предметы!IR3/36)","v":"180 / 5"},"------","------","------  ",null,0,53,{"$f":"Предметы!IR2","v":9},{"$f":"INDEX(Предметы!$B$6:$JR$147,$I1,251)","v":0},{"$f":"INDEX(Предметы!$B$6:$JR$147,$I1,252)","v":0},"00.01.1900",{"$f":"INDEX(Предметы!$B$6:$JR$147,$I1,253)","v":0},{"$error":"#VALUE!"}]
[9,"Банковское дело",null,{"$f":"CONCATENATE(Предметы!IU3,\" / \",Предметы!IU3/36)","v":"144 / 4"},"------","------","------  ",null,0,54,{"$f":"Предметы!IU2","v":9},{"$f":"INDEX(Предметы!$B$6:$JR$147,$I1,254)","v":0},{"$f":"INDEX(Предметы!$B$6:$JR$147,$I1,255)","v":0},"00.01.1900",{"$f":"INDEX(Предметы!$B$6:$JR$147,$I1,256)","v":0},{"$error":"#VALUE!"}]
[9,"Организация, нормирование и оплата труда на предприятии",null,{"$f":"CONCATENATE(Предметы!IX3,\" / \",Предметы!IX3/36)","v":"108 / 3"},"------","------","------  ",null,0,55,{"$f":"Предметы!IX2","v":9},{"$f":"INDEX(Предметы!$B$6:$JR$147,$I1,257)","v":0},{"$f":"INDEX(Предметы!$B$6:$JR$147,$I1,258)","v":0},"00.01.1900",{"$f":"INDEX(Предметы!$B$6:$JR$147,$I1,259)","v":0},{"$error":"#VALUE!"}]
[9,"Практикум 1С:Бухгалтерия",null,{"$f":"CONCATENATE(Предметы!JA3,\" / \",Предметы!JA3/36)","v":"72 / 2"},"------","------","------  ",null,0,56,{"$f":"Предметы!JA2","v":9},{"$f":"INDEX(Предметы!$B$6:$JR$147,$I1,260)","v":0},{"$f":"INDEX(Предметы!$B$6:$JR$147,$I1,261)","v":0},"00.01.1900",{"$f":"INDEX(Предметы!$B$6:$JR$147,$I1,262)","v":0},{"$error":"#VALUE!"}]
[0,null,null,null,"------","------","------  ",null,{"$f":"IF(M112=0,0,1)","v":0},57,null,null,null,"00.01.1900",null,{"$error":"#VALUE!"}]
[0,null,null,null,"------","------","------  ",null,0,58,null,null,null,"00.01.1900",null,{"$error":"#VALUE!"}]
[0,null,null,null,"------","------","------  ",null,0,59,null,null,null,"00.01.1900",null,{"$error":"#VALUE!"}]
[0,null,null,null,"------","------","------  ",null,0,60,null,null,null,"00.01.1900",null,{"$error":"#VALUE!"}]
[0,null,null,null,"------","------","------  ",null,0,61,null,null,null,"00.01.1900",null,{"$error":"#VALUE!"}]
[0,null,null,null,"------","------","------  ",null,0,62,null,null,null,"00.01.1900",null,{"$error":"#VALUE!"}]
[0,null,null,null,"------","------","------  ",null,0,63,null,null,null,"00.01.1900",null,{"$error":"#VALUE!"}]
[0,null,null,null,"------","------","------  ",null,0,64,null,null,null,"00.01.1900",null,{"$error":"#VALUE!"}]
[0,null,null,null,"------","------","------  ",null,0,65,null,null,null,"00.01.1900",null,{"$error":"#VALUE!"}]
[0,null,null,null,"------","------","------  ",null,0,66,null,null,null,"00.01.1900",null,{"$error":"#VALUE!"}]
[0,null,null,null,"------","------","------  ",null,0,67,null,null,null,"00.01.1900",null,{"$error":"#VALUE!"}]
[0,null,null,null,"------","------","------  ",null,0,68,null,null,null,"00.01.1900",null,{"$error":"#VALUE!"}]
[0,null,null,null,"------","------","------  ",null,0,69,null,null,null,"00.01.1900",null,{"$error":"#VALUE!"}]
[{"$f":"K125","v":0},null,null,null,{"$f":"IF(AND(L125>2, L125<6),P125,\"------\")","v":"------"},{"$f":"IF(M125=0,\"------\",IF(L125=6,P125,\"------\"))","v":"------"},{"$f":"CONCATENATE(IF(M125=0,\"------\",N125),\"  \",IF(O125=0,\"\",CONCATENATE(\"№ \",O125)))","v":"------  "},null,{"$f":"IF(M125=0,0,1)","v":0},70,null,null,null,{"$f":"TEXT(M125,\"ДД.ММ.ГГГГ\")","v":"00.01.1900"},null,{"$f":"CHOOSE(L125,$O$1,$O$2,$O$3,$O$4,$O$5,$O$6)","v":{"$error":"#VALUE!"}}]
[0,null,null,null,"------","------","------  ",null,0,{"$f":"J125+1","v":71},null,null,null,"00.01.1900",null,{"$error":"#VALUE!"}]
[0,null,null,null,"------","------","------  ",null,0,72,null,null,null,"00.01.1900",null,{"$error":"#VALUE!"}]
[0,null,null,null,"------","------","------  ",null,0,73,null,null,null,"00.01.1900",null,{"$error":"#VALUE!"}]
[0,null,null,null,"------","------","------  ",null,0,74,null,null,null,"00.01.1900",null,{"$error":"#VALUE!"}]
[0,null,null,null,"------","------","------  ",null,0,75,null,null,null,"00.01.1900",null,{"$error":"#VALUE!"}]
[0,null,null,null,"------","------","------  ",null,0,76,null,null,null,"00.01.1900",null,{"$error":"#VALUE!"}]
[0,null,null,null,"------","------","------  ",null,0,77,null,null,null,"00.01.1900",null,{"$error":"#VALUE!"}]
[0,null,null,null,"------","------","------  ",null,0,78,null,null,null,"00.01.1900",null,{"$error":"#VALUE!"}]
[0,null,null,null,"------","------","------  ",null,0,79,null,null,null,"00.01.1900",null,{"$error":"#VALUE!"}]
[0,null,null,null,"------","------","------  ",null,0,80,null,null,null,"00.01.1900",null,{"$error":"#VALUE!"}]
[0,null,null,null,"------","------","------  ",null,0,81,null,null,null,"00.01.1900",null,{"$error":"#VALUE!"}]
[0,null,null,null,"------","------","------  ",null,0,82,null,null,null,"00.01.1900",null,{"$error":"#VALUE!"}]
[0,null,null,null,"------","------","------  ",null,0,83,null,null,null,"00.01.1900",null,{"$error":"#VALUE!"}]
[0,null,null,null,"------","------","------  ",null,0,{"$f":"J138+1","v":84},null,null,null,"00.01.1900",null,{"$error":"#VALUE!"}]
[0,null,null,null,"------","------","------  ",null,0,85,null,null,null,"00.01.1900",null,{"$error":"#VALUE!"}]
[0,null,null,null,"------","------","------  ",null,0,86,null,null,null,"00.01.1900",null,{"$error":"#VALUE!"}]
[0,null,null,null,"------","------","------  ",null,0,87,null,null,null,"00.01.1900",null,{"$error":"#VALUE!"}]
[0,null,null,null,"------","------","------  ",null,0,88,null,null,null,"00.01.1900",null,{"$error":"#VALUE!"}]
[0,null,null,null,"------","------","------  ",null,0,89,null,null,null,"00.01.1900",null,{"$error":"#VALUE!"}]
[0,null,null,null,"------","------","------  ",null,0,90,null,null,null,"00.01.1900",null,{"$error":"#VALUE!"}]
[0,null,null,null,"------","------","------  ",null,0,91,null,null,null,"00.01.1900",null,{"$error":"#VALUE!"}]
[0,null,null,null,"------","------","------  ",null,0,92,null,null,null,"00.01.1900",null,{"$error":"#VALUE!"}]
[0,null,null,null,{"$f":"IF(AND(L148>2, L148<6),P148,\"------\")","v":"------"},{"$f":"IF(M148=0,\"------\",IF(L148=6,P148,\"------\"))","v":"------"},"------  ",null,0,93,null,null,null,"00.01.1900",null,{"$error":"#VALUE!"}]
[0,null,null,null,{"$f":"IF(AND(L149>2, L149<6),P149,\"------\")","v":"------"},{"$f":"IF(M149=0,\"------\",IF(L149=6,P149,\"------\"))","v":"------"},"------  ",null,0,94,null,null,null,"00.01.1900",null,{"$error":"#VALUE!"}]
[0,null,null,null,"------","------","------  ",null,0,95,null,null,null,"00.01.1900",null,{"$error":"#VALUE!"}]
[0,null,null,null,"------","------","------  ",null,0,96,null,null,null,"00.01.1900",null,{"$error":"#VALUE!"}]
[0,null,null,null,"------","------","------  ",null,0,97,null,null,null,"00.01.1900",null,{"$error":"#VALUE!"}]
[0,null,null,null,"------","------","------  ",null,0,98,null,null,null,"00.01.1900",null,{"$error":"#VALUE!"}]
[0,null,null,null,"------","------","------  ",null,0,99,null,null,null,"00.01.1900",null,{"$error":"#VALUE!"}]
[0,null,null,null,"------","------","------  ",null,0,100,null,null,null,"00.01.1900",null,{"$error":"#VALUE!"}]
[0,null,null,null,"------","------","------  ",null,0,101,null,null,null,"00.01.1900",null,{"$error":"#VALUE!"}]
[0,null,null,null,"------","------","------  ",null,0,102,null,null,null,"00.01.1900",null,{"$error":"#VALUE!"}]
[0,null,null,null,"------","------","------  ",null,0,103,null,null,null,"00.01.1900",null,{"$error":"#VALUE!"}]
[0,null,null,null,"------","------","------  ",null,0,104,null,null,null,"00.01.1900",null,{"$error":"#VALUE!"}]
[null,null,null,null,null,null,null,null,1]
[{"$f":"A58+I58","v":19},"Курсовые работы",null,null,null,null,null,null,1]
["Семестры","Название дисциплины","Тема курсовой работы",null,null,"Оценка","Дата сдачи",null,1]
[{"$f":"K163","v":6},"Финансы",{"$f":"O163","v":"Налоги с населения и их роль в современных условиях"},null,null,{"$f":"IF(L163=0,\"------\",P163)","v":"Хорошо"},{"$f":"IF(M163=0,\"------\",N163)","v":"05.06.2018"},null,{"$f":"IF(M163=0,0,1)","v":1},107,{"$f":"Предметы!FO2","v":6},{"$f":"INDEX(Предметы!$B$6:$JR$147,$I1,170)","v":4},{"$f":"INDEX(Предметы!$B$6:$JR$147,$I1,171)","v":43256},{"$f":"TEXT(M163,\"ДД.ММ.ГГГГ\")","v":"05.06.2018"},{"$f":"INDEX(Предметы!$B$6:$JR$147,$I1,172)","v":"Налоги с населения и их роль в современных условиях"},{"$f":"CHOOSE(L163,$O$1,$O$2,$O$3,$O$4,$O$5,$O$6)","v":"Хорошо"}]
[{"$f":"K164","v":6},"Моделирование социально-экономических систем  ",{"$f":"O164","v":"Оптимизация сочетания отраслей и специализации предприятия\nагропромышленногокомплекса"},null,null,{"$f":"IF(L164=0,\"------\",P164)","v":"Удовлет."},"05.06.2018",null,1,{"$f":"J163+1","v":108},{"$f":"Предметы!FX2","v":6},{"$f":"INDEX(Предметы!$B$6:$JR$147,$I1,179)","v":3},{"$f":"INDEX(Предметы!$B$6:$JR$147,$I1,180)","v":43256},"05.06.2018",{"$f":"INDEX(Предметы!$B$6:$JR$147,$I1,181)","v":"Оптимизация сочетания отраслей и специализации предприятия\nагропромышленногокомплекса"},"Удовлет."]
[7,"Корпоративные финансы",0,null,null,"------","------",null,0,109,{"$f":"Предметы!GG2","v":7},{"$f":"INDEX(Предметы!$B$6:$JR$147,$I1,188)","v":0},{"$f":"INDEX(Предметы!$B$6:$JR$147,$I1,189)","v":0},"00.01.1900",{"$f":"INDEX(Предметы!$B$6:$JR$147,$I1,190)","v":0},{"$error":"#VALUE!"}]
[7,"Экономика организаций (предприятий)",0,null,null,"------","------",null,0,110,{"$f":"Предметы!GS2","v":7},{"$f":"INDEX(Предметы!$B$6:$JR$147,$I1,200)","v":0},{"$f":"INDEX(Предметы!$B$6:$JR$147,$I1,201)","v":0},"00.01.1900",{"$f":"INDEX(Предметы!$B$6:$JR$147,$I1,202)","v":0},{"$error":"#VALUE!"}]
[8,"Анализ финансовой отчетности  ",0,null,null,"------","------",null,0,111,{"$f":"Предметы!HN2","v":8},{"$f":"INDEX(Предметы!$B$6:$JR$147,$I1,221)","v":0},{"$f":"INDEX(Предметы!$B$6:$JR$147,$I1,222)","v":0},"00.01.1900",{"$f":"INDEX(Предметы!$B$6:$JR$147,$I1,223)","v":0},{"$error":"#VALUE!"}]
[9,"Инвестиции",0,null,null,"------","------",null,0,112,{"$f":"Предметы!II2","v":9},{"$f":"INDEX(Предметы!$B$6:$JR$147,$I1,242)","v":0},{"$f":"INDEX(Предметы!$B$6:$JR$147,$I1,243)","v":0},"00.01.1900",{"$f":"INDEX(Предметы!$B$6:$JR$147,$I1,244)","v":0},{"$error":"#VALUE!"}]
[0,null,0,null,null,"------","------",null,0,113,null,null,null,"00.01.1900",null,{"$error":"#VALUE!"}]
[0,null,0,null,null,"------","------",null,0,114,null,null,null,"00.01.1900",null,{"$error":"#VALUE!"}]
[0,null,0,null,null,"------","------",null,0,115,null,null,null,"00.01.1900",null,{"$error":"#VALUE!"}]
[0,null,0,null,null,"------","------",null,0,116,null,null,null,"00.01.1900",null,{"$error":"#VALUE!"}]
[0,null,0,null,null,"------","------",null,0,117,null,null,null,"00.01.1900",null,{"$error":"#VALUE!"}]
[null,null,0,null,null,"------","------",null,0,118,null,null,null,"00.01.1900",null,{"$error":"#VALUE!"}]
[13,null,0,null,null,"------","------",null,0,119,null,null,null,"00.01.1900",null,{"$error":"#VALUE!"}]
[14,null,0,null,null,"------","------",null,0,120,null,null,null,"00.01.1900",null,{"$error":"#VALUE!"}]
[15,null,0,null,null,"------","------",null,0,121,null,null,null,"00.01.1900",null,{"$error":"#VALUE!"}]
[16,null,0,null,null,"------","------",null,0,122,null,null,null,"00.01.1900",null,{"$error":"#VALUE!"}]
[17,null,0,null,null,"------","------",null,0,123,null,null,null,"00.01.1900",null,{"$error":"#VALUE!"}]
[18,null,0,null,null,"------","------",null,0,124,null,null,null,"00.01.1900",null,{"$error":"#VALUE!"}]
[19,null,0,null,null,"------","------",null,0,125,null,null,null,"00.01.1900",null,{"$error":"#VALUE!"}]
[20,null,0,null,null,"------","------",null,0,126,null,null,null,"00.01.1900",null,{"$error":"#VALUE!"}]
[null,null,null,null,null,null,null,null,1]
[{"$f":"A161+I161","v":20},"Прохождение практик",null,null,null,null,null,null,1]
["Курс","Наименование \nпрактики","Место практики",null,"Продолжи-\nтельность","Оценка","Дата ведомости",null,1]
[{"$f":"INT(K186/2+0.5)","v":{"$error":"#REF!"}},{"$error":"#REF!"},null,null,{"$f":"IF(Q186=0,\"\",CONCATENATE(Q186,\" \",T186))","v":{"$error":"#REF!"}},{"$f":"IF(L186=0,\"------\",P186)","v":"------"},{"$f":"CONCATENATE(IF(M186=0,\"------\",N186),\"  \",IF(O186=0,\"\",CONCATENATE(\"№ \",O186)))","v":"------  "},null,{"$f":"IF(M186=0,0,1)","v":0},129,{"$error":"#REF!"},{"$f":"INDIRECT(ADDRESS(J186,$J$59*3+4,,,\"Предметы\"))","v":0},{"$f":"INDIRECT(ADDRESS(J186,$J$59*3+5,,,\"Предметы\"))","v":0},{"$f":"TEXT(M186,\"ДД.ММ.ГГГГ\")","v":"00.01.1900"},{"$f":"INDIRECT(ADDRESS(J186,$J$59*3+6,,,\"Предметы\"))","v":0},{"$f":"CHOOSE(L186,$O$1,$O$2,$O$3,$O$4,$O$5,$O$6)","v":{"$error":"#VALUE!"}},{"$error":"#REF!"},1,"неделя",{"$f":"CHOOSE(Q186,$S$186,$S$187,$S$188,$S$189,$S$190,$S$191,$S$192,$S$193,$S$194,$S$195)","v":{"$error":"#REF!"}}]
[{"$f":"INT(K187/2+0.5)","v":2},"Учебная. Практика по получению первичных профессиональных умений и навыков, в том числе первичных умений и навыков научно-исследовательской деятельности",{"$f":"O187","v":0},null,{"$f":"IF(Q187=0,\"\",CONCATENATE(Q187,\" \",T187))","v":"2 недели"},{"$f":"IF(L187=0,\"------\",P187)","v":"------"},{"$f":"IF(M187=0,\"------\",N187)","v":"------"},null,0,{"$f":"J186+1","v":130},{"$f":"Предметы!EN2","v":4},{"$f":"INDEX(Предметы!$B$6:$JR$147,$I1,143)","v":0},{"$f":"INDEX(Предметы!$B$6:$JR$147,$I1,144)","v":0},"00.01.1900",{"$f":"INDEX(Предметы!$B$6:$JR$147,$I1,145)","v":0},{"$f":"CHOOSE(L187,$O$1,$O$2,$O$3,$O$4,$O$5,$O$6)","v":{"$error":"#VALUE!"}},2,2,"недели",{"$f":"CHOOSE(Q187,$S$186,$S$187,$S$188,$S$189,$S$190,$S$191,$S$192,$S$193,$S$194,$S$195)","v":"недели"}]
[3,"Производственная. Практика по получению профессиональных умений и опыта профессиональной деятельности",null,null,"2 недели","Хорошо",{"$f":"CONCATENATE(IF(M188=0,\"------\",N188),\"  \",IF(O188=0,\"\",CONCATENATE(\"№ \",O188)))","v":"31.08.2018  № МБДОУ ОВГО г.Волгореченск  Костромской области \"Детский сад №2\" Солнышко\""},null,1,{"$f":"J187+1","v":131},{"$f":"Предметы!GA2","v":6},{"$f":"INDEX(Предметы!$B$6:$JR$147,$I1,182)","v":4},{"$f":"INDEX(Предметы!$B$6:$JR$147,$I1,183)","v":43343},"31.08.2018",{"$f":"INDEX(Предметы!$B$6:$JR$147,$I1,184)","v":"МБДОУ ОВГО г.Волгореченск  Костромской области \"Детский сад №2\" Солнышко\""},"Хорошо",2,3,"недели","недели"]
[4,"Производственная. Технологическая",{"$f":"O189","v":"ФГБОУ ВО Костромская ГСХА"},null,"2 недели",{"$f":"IF(L189=0,\"------\",P189)","v":"------"},{"$f":"IF(M189=0,\"------\",N189)","v":"------"},null,0,132,{"$f":"Предметы!HQ2","v":8},{"$f":"INDEX(Предметы!$B$6:$JR$147,$I1,224)","v":0},{"$f":"INDEX(Предметы!$B$6:$JR$147,$I1,225)","v":0},"00.01.1900","ФГБОУ ВО Костромская ГСХА",{"$f":"CHOOSE(L189,$O$1,$O$2,$O$3,$O$4,$O$5,$O$6)","v":{"$error":"#VALUE!"}},2,4,"недели","недели"]
[5,"Научно-исследовательская работа",0,null,"2 недели",{"$f":"IF(L190=0,\"------\",P190)","v":"------"},"------",null,0,133,{"$f":"Предметы!JD2","v":10},{"$f":"INDEX(Предметы!$B$6:$JR$147,$I1,263)","v":0},{"$f":"INDEX(Предметы!$B$6:$JR$147,$I1,264)","v":0},"00.01.1900",{"$f":"INDEX(Предметы!$B$6:$JR$147,$I1,265)","v":0},{"$error":"#VALUE!"},2,5,"недель","недели"]
[5,"Преддипломная",0,null,"2 недели","------","------",null,0,134,{"$f":"Предметы!JG2","v":10},{"$f":"INDEX(Предметы!$B$6:$JR$147,$I1,266)","v":0},{"$f":"INDEX(Предметы!$B$6:$JR$147,$I1,267)","v":0},"00.01.1900",{"$f":"INDEX(Предметы!$B$6:$JR$147,$I1,268)","v":0},{"$error":"#VALUE!"},2,6,"недель","недели"]
[{"$error":"#REF!"},{"$error":"#REF!"},null,null,{"$error":"#REF!"},"------","------  ",null,0,135,{"$error":"#REF!"},{"$f":"INDIRECT(ADDRESS(J192,$J$59*3+4,,,\"Предметы\"))","v":0},{"$f":"INDIRECT(ADDRESS(J192,$J$59*3+5,,,\"Предметы\"))","v":0},"00.01.1900",{"$f":"INDIRECT(ADDRESS(J192,$J$59*3+6,,,\"Предметы\"))","v":0},{"$error":"#VALUE!"},{"$error":"#REF!"},7,"недель",{"$error":"#REF!"}]
[{"$error":"#REF!"},{"$error":"#REF!"},null,null,{"$error":"#REF!"},{"$f":"IF(L193=0,\"\",P193)","v":""},{"$f":"CONCATENATE(IF(M193=0,\"\",N193),\"  \",IF(O193=0,\"\",CONCATENATE(\"№ \",O193)))","v":"  "},null,0,136,{"$error":"#REF!"},{"$f":"INDIRECT(ADDRESS(J193,$J$59*3+4,,,\"Предметы\"))","v":0},{"$f":"INDIRECT(ADDRESS(J193,$J$59*3+5,,,\"Предметы\"))","v":0},"00.01.1900",{"$f":"INDIRECT(ADDRESS(J193,$J$59*3+6,,,\"Предметы\"))","v":0},{"$error":"#VALUE!"},{"$error":"#REF!"},8,"недель",{"$error":"#REF!"}]
[{"$error":"#REF!"},{"$error":"#REF!"},null,null,{"$error":"#REF!"},{"$f":"IF(L194=0,\"\",P194)","v":""},{"$f":"CONCATENATE(IF(M194=0,\"\",N194),\"  \",IF(O194=0,\"\",CONCATENATE(\"№ \",O194)))","v":"  "},null,0,137,{"$error":"#REF!"},{"$f":"INDIRECT(ADDRESS(J194,$J$59*3+4,,,\"Предметы\"))","v":0},{"$f":"INDIRECT(ADDRESS(J194,$J$59*3+5,,,\"Предметы\"))","v":0},"00.01.1900",{"$f":"INDIRECT(ADDRESS(J194,$J$59*3+6,,,\"Предметы\"))","v":0},{"$error":"#VALUE!"},{"$error":"#REF!"},9,"недель",{"$error":"#REF!"}]
[{"$error":"#REF!"},{"$error":"#REF!"},null,null,{"$error":"#REF!"},{"$f":"IF(L195=0,\"\",P195)","v":""},{"$f":"CONCATENATE(IF(M195=0,\"\",N195),\"  \",IF(O195=0,\"\",CONCATENATE(\"№ \",O195)))","v":"  "},null,0,138,{"$error":"#REF!"},{"$f":"INDIRECT(ADDRESS(J195,$J$59*3+4,,,\"Предметы\"))","v":0},{"$f":"INDIRECT(ADDRESS(J195,$J$59*3+5,,,\"Предметы\"))","v":0},"00.01.1900",{"$f":"INDIRECT(ADDRESS(J195,$J$59*3+6,,,\"Предметы\"))","v":0},{"$error":"#VALUE!"},{"$error":"#REF!"},10,"недель",{"$error":"#REF!"}]
[null,null,null,null,null,null,null,null,1,null,null,null,null,null,null,null,{"$error":"#REF!"},null,null,{"$error":"#REF!"}]
[null,"И. о. декана факультета   ____________________________ Н. А. Середа",null,null,null,null,null,null,1]
[null,null,null,null,null,null,null,null,1]
[null,"Специалист по УМР   ________________________ О. В. Сосова",null,null,null,null,null,null,1,null,null,null,null,null,null,null,{"$error":"#REF!"},null,null,{"$f":"CHOOSE(Q199,$S$186,$S$187,$S$188,$S$189,$S$190,$S$191,$S$192,$S$193,$S$194,$S$195)","v":{"$error":"#REF!"}}]

{"sheet":"!справочники","index":3,"n_rows":51,"n_cols":16,"rows_kept":51,"cut":false,"hidden":false,"merged":[]}
["Муж","07.02.01 Архитектура",{"$f":"RIGHT(LEFT(D1,5),2)","v":"02"},{"$f":"LEFT(B1,8)","v":"07.02.01"},{"$f":"RIGHT(B1,LEN(B1)-9)","v":"Архитектура"},null,null,null,null,null,null,null,null,null,"Муж","Жен"]
["Жен","23.02.03 Техническое обслуживание и ремонт автомобильного транспорта","02","23.02.03",{"$f":"RIGHT(B2,LEN(B2)-9)","v":"Техническое обслуживание и ремонт автомобильного транспорта"},null,null,null,null,null,null,null,null,null,"холост","не замужем"]
[null,"35.02.15 Кинология","02","35.02.15","Кинология",null,null,null,null,null,null,null,null,null,"женат","замужем"]
[null,"38.02.01 Экономика и бухгалтерский учет","02","38.02.01","Экономика и бухгалтерский учет"]
["БАКАЛАВР","43.02.05 Флористика","02","43.02.05","Флористика"]
["МАГИСТР","07.03.01 Архитектура","03","07.03.01","Архитектура"]
["ИНЖЕНЕР","08.03.01 Строительство","03","08.03.01","Строительство"]
["ВЕТЕРИНАРНЫЙ ВРАЧ","13.03.02 Электроэнергетика и электротехника","03","13.03.02","Электроэнергетика и электротехника"]
["АРХИТЕКТОР","23.03.03 Эксплуатация транспортно-технологических машин и комплексов","03","23.03.03","Эксплуатация транспортно-технологических машин и комплексов"]
["КИНОЛОГ","35.03.04 Агрономия","03","35.03.04","Агрономия"]
["ТЕХНИК","35.03.06 Агроинженерия","03","35.03.06","Агроинженерия"]
[null,"36.03.02 Зоотехния","03","36.03.02","Зоотехния"]
[null,"38.03.01 Экономика","03","38.03.01","Экономика"]
[null,"38.03.02 Менеджмент","03","38.03.02","Менеджмент"]
[null,"08.04.01 Строительство","04","08.04.01","Строительство"]
[null,"35.04.04 Агрономия","04","35.04.04","Агрономия"]
[null,"35.04.06 Агроинженерия","04","35.04.06","Агроинженерия"]
[null,"36.04.02 Зоотехния","04","36.04.02","Зоотехния"]
[null,"38.04.01 Экономика","04","38.04.01","Экономика"]
[null,"38.04.02 Менеджмент","04","38.04.02","Менеджмент"]
[null,"23.05.01 Наземные и транспортно-технологические средства","05","23.05.01","Наземные и транспортно-технологические средства"]
[null,"36.05.01 Ветеринария","05","36.05.01","Ветеринария"]
[null,"06.06.01 Паразитология","06","06.06.01","Паразитология"]
[null,"08.06.01 Строительные материалы и изделия","06","08.06.01","Строительные материалы и изделия"]
[null,"13.06.01 Тепловые двигатели","06","13.06.01","Тепловые двигатели"]
[null,"35.06.01 Общее земледелие, растениеводство","06","35.06.01","Общее земледелие, растениеводство"]
[null,"35.06.04 Технологии и средства механизации сельского хозяйства","06","35.06.04","Технологии и средства механизации сельского хозяйства"]
[null,"36.06.01 Диагностика болезней и терапия животных, патология, онкология и морфология животных","06","36.06.01","Диагностика болезней и терапия животных, патология, онкология и морфология животных"]
[null,"38.06.01 Экономика и управление народным хозяйством","06","38.06.01","Экономика и управление народным хозяйством"]
[null,"46.06.01 Отечественная история","06","46.06.01","Отечественная история"]
[null,"47.06.01 Этика","06","47.06.01","Этика"]
[]
[]
[]
[]
[]
[]
[]
[]
[]
[]
[]
[]
[]
[]
[]
[]
[]
[]
[null,"Техник деканата"]
[null,"Специалист по УМР"]

{"sheet":"отчисление","index":4,"n_rows":20,"n_cols":278,"rows_kept":20,"cut":false,"hidden":false,"merged":[]}
[]
[8,"Зубов","Алексей","Владимирович",{"$f":"CONCATENATE(B2,\" \",LEFT(C2,1),\". \",LEFT(D2,1),\".\")","v":"Зубов А. В."},{"$f":"DativeCase(CONCATENATE(B2,\" \", C2,\" \",D2))","v":{"$error":"#NAME?"}},"Зубову","Алексею","Владимировичу","1995-05-26","г. Галич Костромской обл.","РФ","м","МОУ лицей №3 города Галича Костромской области",2012,"холост","Костромская обл., г. Галич, ул. Колхозная, д. 22, кв. 61",null,null,null,null,null,null,null,160909,"Экономический","38.03.03","Экономика","Финансы и кредит","5 лет","БАКАЛАВР","2-553","2012-08-05","по договору с полным возмещением затрат","526-2012","2012-07-19",null,null,null,null,null,null,null,null,"2-788","2015-11-26","в связи с призывом в ряды ВС РФ","2015-12-10","2015-12-09","2-728","2013-11-25","2-533","2014-09-01","2-571","2015-09-01",null,null,null,null,null,null,null,null,null,null,null,null,null,null,null,null,null,null,null,null,null,null,null,5,"253z",3,"2017-11-01",null,6,"2017-11-01",null,5,"п/зач ",null,6,"п/зач ",null,3,"п/зач ",null,3,"п/зач ",null,3,"п/зач ",null,3,"п/зач ",null,6,"п/зач ",null,6,"п/зач ",null,4,"п/зач ",null,3,"п/зач ",null,6,"п/зач ",null,6,"п/зач ",null,3,"п/зач ",null,3,"п/зач ",null,null," ",null,3,"п/зач ",null,6,"п/зач ",null,6,"п/зач ",null,0," ",null,4,"п/зач ",null,3,"п/зач ",null,3,"п/зач ",null,3,"п/зач ",null,3,"п/зач ",null,3,"п/зач ",null,5,"п/зач ",null,null," ",null,3,"п/зач ",null,null,null,null,4,"п/зач ",null,3,"п/зач ",null,3,"п/зач",null,null,null,null,3,"2017-10-18",null,null," ",null,null,null,null,null,null,null,null,null,null,null,null,null,null," ",null,3,"п/зач ",null,4,"2017-04-08",null,0," ",null,0," ",null,0," ",null,0," ",0," "," ",null,3,"п/зач ",null,6,"п/зач ",null,null," ",null,3,"п/зач ",null,null," ",null,null," ",null,null," ",null,null," ",null,null," ",null,null," ",null,null," ",null,null," ",null,null," ","ФГБОУ ВО Костромская ГСХА, кафедра \"Финансы и кредит\"",null,"   ","ФГБОУ ВО Костромская ГСХА, кафедра \"Финансы и кредит\""]
[{"$f":"A2+1","v":9},"Долинина","Анастасия ","Анатольевна","Долинина А. А.",{"$error":"#NAME?"},"Долининой","Анастасии","Анатольевне","1993-11-19","п. Караваево Костромского р-на Костромской обл.","РФ","ж","МБОУ Костромского муниципального района Костромской области \"Караваевская средняя общеобразовательная школа\"",2012,"замужем","Костромская обл., Костромской р-н, пос. Караваево, ул. Учебный городок, д. 3, кв. 2",null,null,null,null,null,null,null,12445,"Экономический","38.03.06","Экономика","Финансы и кредит","5 лет","БАКАЛАВР","2-561","2012-08-16","по договору с полным возмещением затрат","611-2012","2012-08-03",null,null,null,null,null,null,null,null,"2-335","2017-04-26","по семейным обстоятельствам",null,null,"2-592","2013-09-16","2-533","2014-09-01","2-571","2015-09-01","2-561","2016-09-01",null,null,null,null,null,null,null,null,null,null,null,null,null,null,null,null,null,null,null,null,null,5,"АО",null,null,null,null,null,null,5,"п/зач ",null,6,"п/зач ",null,3,"п/зач ",null,4,"п/зач ",null,4,"п/зач ",null,5,"п/зач ",null,6,"п/зач ",null,6,"п/зач ",null,4,"п/зач ",null,3,"п/зач ",null,6,"п/зач ",null,6,"п/зач ",null,5,"п/зач ",null,4,"п/зач ",null,4,"п/зач ",null,3,"п/зач ",null,6,"п/зач ",null,null," ",null,null," ",null,5,"п/зач ",null,4,"2014-11-28",null,3,"п/зач ",null,5,"2014-12-04",null,5,"2014-11-20",null,4,"2014-11-25",null,5,"2015-05-18",null,6,"2015-05-23",null,3,"2015-05-29",null,3,"17.12.2015",null,4,"2015-05-25",null,4,"2015-07-04",null,4,"10.12.2015",null,null,null,null,4,"2015-12-04",null,null," ",null,4,"2015-12-15",null,4,"2015-12-11",null,4,"2015-12-16",null,3,"14.12.2015",null,5,"2015-11-26",null,4,"п/зач ",null,4,"2016-04-07",null,5,"2016-04-08",null,3,"2016-10-06",null,4,"2016-04-14",null,null," ",null,null," ",null,4,"2016-11-02",null,6,"п/зач ",null,null," ",null,null," ",null,null," ",null,null," ",null,null," ",null,null," ",null,null," ",null,4,"2016-11-02",null,null," ",null,null," ",null,null," ",null,null,"   ",null,{"$f":"(JL3*3+JM3*4+JN3*5)/50","v":2.9},null,{"$f":"COUNTIF(CC3:JG3,3)","v":8},{"$f":"COUNTIF(CC3:JG3,4)","v":19},{"$f":"COUNTIF(CC3:JG3,5)","v":9},{"$f":"COUNTIF(CC3:JG3,6)","v":8},{"$f":"SUM(JL3:JN3)","v":36},{"$f":"SUMIF(CC3:JG3,\">0\",$CC$3:$JG$3)","v":845994},{"$f":"INT(JQ3/8+0.5)","v":105749}]
[10,"Гнатюк","Михаил ","Романович","Гнатюк М. Р.",null,"Гнатюку","Михаилу","Романовичу","1995-10-10","г. Кострома","РФ","м","Костромской автотранспортный колледж",2015,"холост","г. Кострома, Михалевский б-р,  д. 26Б, кв. 7",null,null,null,null,null,null,null,"15734з","Экономический","38.03.66","Экономика","Финансы и кредит","5 лет","БАКАЛАВР","2-557","2015-08-21","по договору с полным возмещением затрат ","000003644","2015-08-12",null,null,null,null,null,null,null,null,null,null,null,null,null,null,null,null,null,null,null,null,null,null,null,null,null,null,null,null,null,null,null,null,null,null,null,null,null,null,null,null,null,null,2,"221z",null,null,null,null," ",null,4,"2017-06-10",null,6,"2017-06-10",null,3,"2017-06-10",null,null,null,null,null," ",null,0," ",null,0," ",null,6,"2017-12-23",null,null,null,null,null," ",null,null," ",null,6,"2018-04-28",7909531,null,null,null,null,null,null," "," ",null,null,null,null,null,null,null," "," ",null," "," ",null," "," ",null," "," ",null," "," ",null," "," ",null," "," ",null," "," ",null," "," ",null," "," ",null," "," ",null," "," ",null," "," ",null," "," ",null," "," ",null," "," ",null," "," ",null," "," ",0," "," ",null," "," ",null," "," ",null," "," ",null," "," ",null," "," ",null," "," ",null," "," ",null," "," ",null," "," ",null," "," ",null," "," ",null," "," ",null," "," ",null," "," ",null," "," ",null," "," ",null," "," ",null," "," ",null," "," ",null," "," ",null," "," ",null," "," ",null," "," ",null," "," ",null," ","   ",null,0.14000000000000001,null,1,1,0,3,2,26,3]
[11,"Власов","Николай ","Олегович","Власов Н. О.",null,"Власову","Николаю","Олеговичу","1994-08-15","с. Сартичала Гардабанского р-на респ. Грузия","РФ","м","Лицей №34 г. Кострома",2012,"холост","г. Кострома, ул. Проезд Луговой, д. 24",null,null,null,null,null,null,null,160025,"Экономический","38.03.16","Экономика","Финансы и кредит","5 лет","БАКАЛАВР","2-547","2012-07-30","в рамках контрольных цифр в пределах целевой квоты",null,null,null,null,"2-754",42248,"как невышедшего из академического отпуска","2-165",42461,null,"2-296",41785,41780,42144,null,"2-592","2013-09-16","2-672","2017-08-01",null,null,null,null,null,null,null,null,null,null,null,null,null,null,null,null,null,null,null,null,null,null,null,null,null,4,"241z",null,null,null,6,"2018-04-13",76810137,5,"п/зач ",null,6,"2016-04-26",null,null,null,null,null,null,null,null,null,null,3,"2016-04-25",null,6,"п/зач ",null,6,"2016-04-26",null,3,"2016-04-20",null,null," ",null,6,"2016-04-25",null,6,"2016-04-27",null,3,"п/зач ",null,3,"2016-04-19",null,null," ",null,3,"2016-04-23",null,null," ",null,6,"п/зач ",null,0," ",null,0," ",null,null," ",null,3,"2016-12-05"," Z-6278431",3,"2016-12-05"," Z-6278889",4,"2016-12-05"," Z-6278442",4,"2016-11-24"," Z-6278577",4,"2017-05-30"," Z-6278581",null,null,null,null,null,null,null,null,null,null,null,null,null,null,null,null,null,null,null,null,null,3,"2017-12-06"," Z-7689567",null," ",null,3,"2017-12-06"," Z-7689579",null,null,null,null,null,null,null,null,null,null," ",null,null,null,null,3,"2018-04-13",7689580,4,"2018-04-13",7689577,3,"2018-04-13",7689583,5,"2018-04-13",7689559,null,null,null,null,null,null," "," ",null," "," ",null," "," ",null," "," ",null," "," ",null," "," ",null," "," ",null," "," ",null," "," ",null," "," ",null," "," ",null,null,null,null,null,null,null,null,null,null,1.18,null,11,4,2,7,17,422905,52863]
[12,"Данилова","Анна ","Юрьевна","Данилова А. Ю.",null,"Даниловой","Анне","Юрьевне","1996-09-16","п. Росляково Североморского р-на Мурманской обл.","РФ","ж","МОУ Красносельская СОШ",2014,"замужем","Костромская обл., Красносельский р-н, пгт Красное-на-Волге, мкр Восточный, д. 17, кв. 3",null,null,null,null,null,null,null,14569,"Экономический","38.03.17","Экономика","Финансы и кредит","5 лет","БАКАЛАВР","2-524","2014-08-21","по договору с полным возмещением затрат","000002746","2014-08-05",null,null,null,null,null,null,null,null,null,null,null,null,null,"2-285","2015-05-25","2-672","2017-08-01",null,null,null,null,null,null,null,null,null,null,null,null,null,null,null,null,null,null,null,null,null,null,null,null,null,4,"241z",null,null,null,6,"2018-06-01",932,3,"п/зач ",null,6,"2016-09-07",1357,3,"п/зач ",null,3,"2016-09-12",1482,4,"2017-06-23",1138,3,"2017-06-23",1113,6,"п/зач ",null,6,"2017-06-22",1140,3,"2017-06-14",1114,3,"2016-02-24",null,6,"2017-06-07",1109,6,"2016-04-27",null,4,"2016-09-13",1483,4,"2016-04-19",null,null," ",null,null," ",null,null," ",null,null," ",null,null," ",null,null," ",null,null,null,null,null,null,null,null,null,null,null,null,null,null,null,null,4,"2017-06-26",1147,null,null,null,5,"2017-05-30"," Z-6278436",5,"30.05.2017","Фонд социального страхования\nРоссийской Федерации и его роль в\nсистеме государственного социального\nстрахования",null,null,null,null,null,null,null,null,null,null,null,null,null," ",null,null," ",null,null," ",null,null,null,null,null,null,null,null,null,null,null," ",null,null,null,null,null,null,null,null,null,null,null,null,null,null,null,null,null,null,null,null,null,null,4,"п/зач ",null," "," ",null," "," ",null," "," ",null," "," ",null," "," ",null," "," ",null," "," ",null," "," ",null," "," ",null," "," ",null,null,null,null,null,null,null,null,null,null,0.96,null,6,5,2,6,13,84377,10547]
[13,"Расулова","Оксана ","Расуловна","Расулова О. Р.",null,"Расуловой","Оксане","Расуловне","1996-07-20","г. Кострома","РФ","ж","СОШ №13 г. Кострома",2014,"не замужем","г. Кострома, ул. Партизанская, д. 141, кв. 1   ",null,null,null,null,null,null,null,14449,"Экономический","38.03.28","Экономика","Финансы и кредит","5 лет","БАКАЛАВР","2-524","2014-08-21","по договору с полным возмещением затрат","000002551","2014-07-02",null,null,null,null,null,null,null,null,null,null,null,null,null,"2-571","2015-09-01","2-561","2016-09-01",null,null,null,null,null,null,null,null,null,null,null,null,null,null,null,null,null,null,null,null,null,null,null,null,null,4,"241z",null,null,null,null,null,null,3,"п/зач ",null,6,"п/зач ",null,3,"п/зач ",null,null,null,null,null,null,null,3,"п/зач ",null,6,"п/зач ",null,0," ",null,3,"п/зач ",null,null,null,null,6,"п/зач ",null,6,"2016-04-27",null,null," ",null,null," ",null,3,"2016-04-27",null,null," ",null,0," ",null,6,"п/зач ",null,0," ",null,4,"п/зач ",null,null,null,null,null,null,null,null," ",null,3,"2016-12-05"," Z-6278442",null,null,null,5,"2017-05-30"," Z-6278581",6,"2017-05-30"," Z-6278435",null,null,null,null,null,null,null,null,null,null,null,null,null," ",null,null," ",null,3,"2017-12-06"," Z-7689567",null," ",null,null," ",null,4,"2017-12-06"," Z-7689592",null,null,null,null,null,null,null," ",null,null," ",null,null," ",null,null,null,null,null,null,null,null,null,null,null," ",null,null," ",null," "," ",null," "," ",null," "," ",null," "," ",null," "," ",null," "," ",null," "," ",null," "," ",null," "," ",null," "," ",null," "," ",null,null,null,null,null,null,null,null,null,null,0.68,null,7,2,1,6,10,211017,26377]
[14,"Рукавишникова","Юлия","Олеговна","Рукавишникова Ю. О.",null,"Рукавишниковой","Юлии","Олеговне","1996-12-17","с. Минское Костромского р-на Костромской обл.","РФ","ж","МКОУ Костромского муниципального -на Костромской обл.",2014,"не замужем","Костромская обл., Костромской р-н, п. Минское ул.Куколевского, д. 3, кв. 7",null,null,null,null,null,null,null,14450,"Экономический","38.03.30","Экономика","Финансы и кредит","5 лет","БАКАЛАВР","2-524","2014-08-21","по договору с полным возмещением затрат","000002540","2014-07-01",null,null,null,null,null,null,null,null,null,null,null,null,null,"2-571","2015-09-01","2-561","2016-09-01",null,null,null,null,null,null,null,null,null,null,null,null,null,null,null,null,null,null,null,null,null,null,null,null,null,4,"241z",null,null,null,null,null,null,3,"п/зач ",null,6,"п/зач ",null,3,"п/зач ",null,3,"п/зач ",null,null,null,null,3,"п/зач ",null,6,"п/зач ",null,0,null,null,3,"п/зач ",null,null,null,null,6,"п/зач ",null,6,"2016-04-27",null,3,"п/зач ",null,null," ",null,4,"2016-04-27",null,null," ",null,0," ",null,6,"п/зач ",null,0," ",null,4,"п/зач ",null,0," ",null,0," ",null,0," ",null,3,"2016-12-05"," Z-6278442",0," ",null,5,"2017-05-30"," Z-6278581",6,"2017-05-30"," Z-6278435",null,null,null,null,null,null,null,null,null,null,null,null,null," ",null,null," ",null,3,"2017-12-06"," Z-7689567",null," ",null,null," ",null,4,"2017-12-06"," Z-7689592",null," ",null,null," ",null,null," ",null,null," ",null," "," ",null," "," ",null," "," ",null," "," ",null," "," ",null," "," ",null," "," ",null," "," ",null," "," ",null," "," ",null," "," ",null," "," ",null," "," ",null," "," ",null," "," ",null," "," ",null," "," ",null,null,null,null,null,null,null,null,null,null,0.82,null,8,3,1,6,12,211026,26378]
[15,"Абрамова","Ксения","Олеговна","Абрамова К. О.",null,"Абрамовой","Ксении","Олеговне","1994-11-12","г. Удомля Тверской обл.","РФ","ж","МБОУ г. Костромы \"Средняя общеобразовательная школа №24\"",2015,"не замужем","Костромская обл. Красносельский р-н, п. Красное-на-Волге, д.15, кв. 71",null,null,null,null,null,null,null,15636,"Экономический","38.03.59","Экономика","Финансы и кредит","5 лет","БАКАЛАВР","2-555","2015-08-21","по договору с полным возмещением затрат","000003371","2015-07-06",null,null,null,null,null,null,null,null,"2-671","2016-10-18","по семейным обстоятельствам","2016-10-04","2017-10-04","2-561","2016-09-01",null,null,null,null,null,null,null,null,null,null,null,null,null,null,null,null,null,null,null,null,null,null,null,null,null,null,null,2,"221z",null,null,null,null,null,null,3,"п/зач",null,6,"п/зач",null,null,null,null,null,null,null,null,null,null,null,null,null,6,"п/зач",null,null,null,null,4,"п/зач",null,null,null,null,null,null,null,6,"2018-04-28",7909531,null,null,null,null,null,null,null,null,null,null,null,null,null,null,null,null,null,null,null,null,null,null,null,null,null,null,null,null,null,null,null,null,null,null,null,null,null,null,null,null,null,null,null,null,null,null,null,null,null,null,null,null,null,null,null,null,null,null,null,null,null,null,null,null,null,null,null,null,null,null,null,null,null,null,null,null,null,null,null,null,null,null,null,null,null,null,null,null,null,null,null,null,null,null,null,null,null,null,null,null,null,null,null,null,null,4,"п/зач",null,null,null,null,null,null,null,null,null,null,null,null,null,null,null,null,null,null,null,null,null,null,null,null,null,null,null,null,null,null,null,null,null,null,null,null,null,null,null,null,0.22,null,1,2,0,3,3,31,4]
[16,"Еперина ","Ольга ","Сергеевна","Еперина  О. С.",{"$f":"DativeCase(CONCATENATE(B10,\" \", C10,\" \",D10))","v":{"$error":"#NAME?"}},"Епериной","Ольге","Сергеевне","1996-07-05","п. Горчуха Макарьевского р-на Костромской обл.","РФ","ж","МК СОШ  1 г. Макарьев, Костромская область",2013,"не замужем","Костромская обл.,  Макарьевский р-н, п. Горчуха, ул. Пролетарская, д. 20, кв. 1      ",null,null,null,null,null,null,null,13541,"Экономический","38.03.05","Экономика","Финансы и кредит","5 лет","БАКАЛАВР","2-516","2013-08-10","по договору с полным возмещением затрат","000000739","2013-07-29",null,null,"2-448","2018-05-31","за невыполнение учебного плана",null,null,null,null,null,null,null,null,"2-553","2014-09-05","2-571","2015-09-01","2-561","2016-09-01","2-339","2018-05-03",null,null,null,null,null,null,null,null,null,null,null,null,"Организация кредитования физических лиц в ООО КБ «Аксонбанк» г. Кострома. Развитие системы потребительского кредитования.",null,null,null,null,null,null,null,null,5,"253z",4,"2017-11-01",null,6,"2017-11-01",null,3,"п/зач ",null,6,"п/зач ",null,3,"п/зач ",null,3,"п/зач ",null,3,"п/зач ",null,3,"п/зач ",null,6,"2015-11-18",null,6,"2014-12-24",null,3,"2014-12-27",null,3,"2014-12-27",null,6,"п/зач ",null,6,"2015-04-16",null,4,"2015-04-24",null,null," ",null,3,"2015-04-24",null,3,"2015-04-25",null,6,"п/зач ",null," "," ",null," "," ",null,null,null,null,null," ",null,3,"2015-11-27",null,4,"2015-11-30",null,5,"2015-11-25",null,4,"2015-11-23",null,5,"2016-06-01",null,6,"2016-06-01",null,4,"2016-06-01",null,3,"04.06.2016","Финансовая политика государства и ее особенности в России",3,"2016-06-01",null,3,"2016-06-01",null,3,"04.06.2016",null,null,null,null,3,"2016-12-12",null,5,"12.12.2016","Особенности организации финансовой работы МУП г. Кострома \"Костромагортранс\"",3,"2016-12-12",null,3,"2016-12-12",null,4,"2016-12-12",null,4,"18.10.2017","Себестоимость и рентабельность производства продукции животноводства",3,"2016-12-12",null,3,"2017-12-22",455,3,"2017-04-08",null,3,"2017-10-18",null,null," ",null,null," ",null,null," ",null,null," ",null,null," ",null,6,"п/зач ",null,3,"2018-04-16",656,4,"2018-04-17",674,null," ",null,null," ",null,null," ",null,3,"2018-05-14",833,null," ",null,3,"2017-11-01"," Z-7659582",null," ",null,null," ",null,null," ","ФГБОУ ВО Костромская ГСХА, кафедра \"Финансы и кредит\"",null,"   ","ООО КБ \"Аксонбанк\" г. Кострома",2.38,null,24,8,3,9,35,676200,84525]
[{"$f":"A10+1","v":17},"Зорин ","Антон ","Константинович","Зорин  А. К.",{"$error":"#NAME?"},"Зорину","Антону","Константиновичу","1992-12-03","г. Кострома","РФ","м","МОУ средняя общеобразовательная школа  5 города Костромы",2009,"холост","г. Кострома, м/р-н. Венеция, д. 12, кв. 50",null,null,null,null,null,null,null,"09480","Экономический","38.03.04","Экономика","Финансы и кредит","5 лет","БАКАЛАВР","2-370","2009-08-13","по договору с полным возмещением затрат","134","2009-08-05",null,null,"2-715\n2-379","06.11.2012\n16.05.2018","по собственному желанию\nкак невышедшего из академического отпуска","2-639","2014-10-08",null,"2-491","2017-06-06","по семейным обстоятельствам","2017-05-11","2018-05-10","2-405","2010-09-01","2-382","2011-08-31","2-571","2015-09-01","2-402","2017-05-18",null,null,null,null,null,null,null,null,null,null,null,null,null,null,null,null,null,null,null,null,null,5,"АО",null,null,null,null,null,null,4,"п/зач ",null,6,"п/зач ",null,3,"п/зач ",null,3,"п/зач ",null,3,"п/зач ",null,4,"п/зач ",null,6,"п/зач ",null,6,"п/зач ",null,3,"2016-02-03",null,3,"п/зач ",null,6,"п/зач ",null,6,"п/зач ",null,3,"п/зач ",null,4,"п/зач ",null,3,"п/зач ",null,3,"п/зач ",null,6,"п/зач ",null," "," ",null," "," ",null,4,"п/зач ",null,3,"2014-11-28",null,3,"2014-12-05",null,3,"2014-12-04",null,4,"2014-11-20",null,3,"п/зач ",null,4,"п/зач ",null,6,"2015-05-23",null,3,"2015-05-29",null,null,null,null,4,"2015-05-25",null,3,"2015-05-28",null,3,"29.05.2015",null,null,null,null,null," ",null,null," ",null,3,"2015-12-15",null,3,"2016-02-10",null,3,"2015-12-16",null,3,"04.02.2016",null,3,"2015-11-26",null,5,"2016-04-14",null,3,"2016-11-02",null,4,"2016-04-08",null,3,"2016-04-05",null,3,"2016-10-26",null,3,"26.10.2016",null,null," ",null,3,"п/зач ",null,6,"п/зач ",null,3,"2016-11-02",null,null," ",null,null," ",null,null," ",null,null," ",null,null," ",null,4,"2016-10-04",null,4,"2016-11-02",null,6,"п/зач ",null,6,"2016-11-02",null,null," ",null,null,"   ",null,2.46,null,26,10,1,10,37,676859,84607]
[{"$f":"A11+1","v":18},"Соловьёва","Виктория","Евгеньевна","Соловьёва В. Е.",{"$error":"#NAME?"},"Соловьёвой","Виктории","Евгеньевне","1994-11-13","г. Галич Костромской обл.","РФ","ж","МОУ лицей  3 гор. Галича Костромской области",2012,"не замужем","Костромская обл., г.  Галич, ул. Солнечная, д. 8",null,null,null,null,null,null,null,12484,"Экономический","38.03.07","Экономика","Финансы и кредит","5 лет","БАКАЛАВР","2-553","2012-08-05","по договору с полным возмещением затрат","517-2012","2012-07-13",null,null,"2-379","2018-05-16","как невышедшую из академического отпуска",null,null,null,"2-491","2017-06-06","по семейным обстоятельствам","2017-05-11","2018-05-10","2-592","2013-09-16","2-533","2014-09-01","2-571","2015-09-01","2-561","2016-09-01",null,null,null,null,null,null,null,null,null,null,null,null,null,null,null,null,null,null,null,null,null,5,"АО",null,null,null,null,null,null,3,"п/зач ",null,6,"п/зач ",null,3,"п/зач ",null,3,"п/зач ",null,3,"п/зач ",null,4,"п/зач ",null,0,null,null,6,"п/зач ",null,3,"п/зач ",null,3,"п/зач ",null,6,"п/зач ",null,6,"п/зач ",null,null," ",null,3,"п/зач ",null,3,"п/зач ",null,3,"п/зач ",null,6,"п/зач ",null,null," ",null,0," ",null,4," ",null,3,"2014-11-28",null,4,"2014-12-05",null,3,"п/зач ",null,0," ",null,4,"2014-11-25",null,5,"2015-05-18",null,6,"2015-05-23",null,3,"2015-05-29",null,null,null,null,4,"2015-05-25",null,3,"2015-05-28",null,3,"29.05.2015",null,5,"п/зач ",null,3,"2015-12-04",null,null," ",null,5,"2015-12-15",null,4,"2015-12-11",null,3,"2015-12-16",null,3,"14.12.2015",null,4,"2015-11-26",null,3,"п/зач ",null,3,"2016-04-07",null,3,"2016-04-08",null,4,"2016-04-05",null,5,"2016-04-14",null,4,"26.10.2016",null," "," ",null,4,"2016-11-02",null,6,"2016-11-02",null,4,"2016-11-02",null,3,"2016-11-02",null,null," ",null,null," ",null,3,"2016-11-02",null,4,"2016-11-02",null,4,"2016-11-02",null,5,"2016-11-02",null,null," ",null,6,"2016-11-02",null,null," ",null,null,null,null,2.86,null,22,13,5,8,40,762035,95254]
[19,"Ермаков","Роман","Сергеевич","Ермаков Р. С.",null,"Ермакову","Роману","Сергеевичу","1983-03-01","с. Столпино Кадыйского р-на Костромской обл.","РФ","м","Костромской политехнический колледж",2008,"холост","г. Кострома, ул. 11-я Рабочая, д. 5, кв. 117",null,null,null,3403,"668162","2004-06-18","Отделом внутренних дел Кадыйского р-на Костромской области",180004,"Экономический","38.03.84","Экономика","Финансы и кредит","5 лет","БАКАЛАВР","2-377","2008-08-08","по договору с полным возмещением затрат","000004720","2018-01-10",null,null,"2-565","2018-06-25","по собственному желанию","2-125",43152,null,null,null,null,null,null,"2-399","2009-09-01","2-400","2010-09-01",null,null,null,null,null,null,null,null,null,null,null,null,null,null,null,null,null,null,null,null,null,null,null,null,null,3,"231z",null,null,null,null,null,null,3,"п/зач 31.05.2018",null,6,"п/атт 30.05.2018",null,3,"п/атт 14.02.2018",null,3,"п/атт 14.02.2018",null,3,"п/атт 14.02.2018",null,3,"п/атт 30.05.2018",null,6,"п/зач 04.06.2018",null,6,"п/зач 31.05.2018",null,3,"п/атт. 31.05.2018 ",null,3,"п/атт 14.02.2018",null,null,null,null,6,"п/зач 31.05.2018",null,null,null,null,null,null,null,3,"п/атт 14.02.2018",null,3,"п/атт 14.02.2018",null,null,null,null,null,null,null,null,null,null,null,null,"ФГБОУ ВО Костромская ГСХА, кафедра экономической кибернетики",null,null,null,null,null,null,3,"п/атт 14.02.2018",null,3,"п/атт\n14.02.2018",null,3,"п/зач 30.05.2018",null,3,"п/зач 30.05.2018",null,null,null,null,null,null,null,null,null,null,null,null,null,null,null,null,null,null,null,null,null,null,null,null,null,null,null,null,null,null,null,null,null,null,3,"п/атт 30.05.2018",null,3,"п/атт 30.05.2018",null,null,null,null,null,null,null,null,null,null,null,null,null,null,null,null,null,null,null,null,null,null,null,null,null,4,"п/атт 30.05.2018",null,6,"п/зач 31.05.2018",null,null,null,null,null,null,null,null,null,null,null,null,null,null,null,null,null,null,null,null,null,null,null,null,null,null,null,null,null,null,null,null,null,null,null,null,null,0.98,null,15,1,0,5,16,95,12]
[20,"Васильев","Андрей","Алексеевич","Васильев А. А.",null,"Васильеву","Андрею","Алексеевичу","1994-12-21","г. Кострома","РФ","м","МБОУ г. Костромы СОШ №24",2012,"холост","г. Кострома, ул. Индустриальная, д. 10, кв. 4",null,null,null,null,null,null,null,12471,"Экономический","38.03.36","Экономика","Финансы и кредит","5 лет","БАКАЛАВР","2-553","2012-08-05","по договору с полным возмещением затрат","563-2012","2012-07-27",null,null,"2-449",42542,"как не вышедший из АО","2-773",42716,null,"2-354",42164,"в связи с призывом в ряды ВС РФ",42152,42518,"2-592","2013-09-16","2-772","2014-12-12",null,null,null,null,null,null,null,null,null,null,null,null,null,null,null,null,null,null,null,null,null,null,null,null,null,3,"231z",null,null,null,null,null,null,3,"п/зач ",null,6,"п/зач ",null,3,"п/зач ",null,3,"п/зач ",null,null," ",null,3,"п/зач ",null,6,"2016-12-23",null,6,"2016-12-23",null,3,"2016-12-23",null,3,"2016-12-23",null,6,"2014-12-18",null,null," ",null,null," ",null,null," ",null,null," ",null,null," ",null,6,"п/зач ",null,null," ",null,null," ",null,null," ",null,null," ",null,null," ",null,null,null,null,null,null,null,null," ",null,null,null,null," "," ",null," "," ",null," "," ",null," "," ",null," "," ",null," "," ",null," "," ",null," "," ",null," "," ",null," "," ",null," "," ",null," "," ",null," "," ",null," "," ",null," "," ",null," "," ",null," "," ",null," "," ",null," "," ",null," "," ",null," "," ",null," "," ",null," "," ",null," "," ",null," "," ",null," "," ",null," "," ",null," "," ",null," "," ",null," "," ",null," "," ",null," "," ",null," "," ",null," "," ",null," ","   ",null,0.36,null,6,0,0,5,6,54,7]
[21,"Скобельцина","Светлана ","Юрьевна","Скобельцина С. Ю.",null,"Скобельциной","Светлане","Юрьевне","1986-08-31","п.  Красное-на-Волге Красносельского р-на Костромской обл.","РФ","ж","МБОУ г. Костромы Вечерняя (сменная) ОШ №8",2015,"не замужем","Костромская обл., Красносельский р-н,  пгт Красное-на-Волге, ул. Мелиоративная, д. 2, кв. 1",null,null,null,null,null,null,null,"15749з","Экономический","38.03.51","Экономика","Финансы и кредит","5 лет","БАКАЛАВР","2-557","2015-08-21","по договору с полным возмещением затрат","000003700","2015-08-14",null,null,null,null,null,null,null,null,null,null,null,null,null,"2-561","2016-09-01",null,null,null,null,null,null,null,null,null,null,null,null,null,null,null,null,null,null,null,null,null,null,null,null,null,null,null,3,"233z",null,null,null,6,"2018-06-05",7781010,5,"2016-09-12",null,6,"2016-06-11",null,5,"2017-10-10",null,5,"2016-06-30",null,4,"2016-09-09",null,3,"2016-07-01",null,6,"2017-05-30",null,6,"2017-10-12",null,null," ",null,4,"2017-12-22",472,6,"2018-05-07",780,6,"2017-12-22",469,4,"2017-05-30",null,4,"2017-12-08",null,5,"2018-05-07",778,3,"2017-12-26",null,6,"2017-04-22",null,6,"2017-04-22",null,null," ",null," "," ",null,null,null,null,null,null,null,null,null,null,5,"02.12.2017 7789510",null,null,null,null,null,null,null,null,null,null,null,null,null,null," ","Структура финансовой системы России и\nперспективы ее развития",null,null,null,null,null,null,null,null,null,null," ",null," "," ",null," "," ",null," "," ",null," "," ",null," "," ",null," "," ",null," "," ",null," "," ",null," "," ",null," "," ",null," "," ",null," "," ",null," "," ",null," "," ",null," "," ",null," "," ",null," "," ",null," "," ",null," "," ",null," "," ",null," "," ",null," "," ",null," "," ",null," "," ",null," "," ",null," "," ",null," "," ",null," ","   ",null,0.94,null,2,4,5,8,11,81,10]
[22,"Капустина (Моисеева)"," Ирина ","Геннадьевна","Капустина (Моисеева)  . Г.",null,"Капустиной","Ирине","Геннадьевне","1996-07-05","г. Солигалич Костромской обл","РФ","ж","МБОУ Солигаличская СОШ Костромской обл.",2014,"замужем","Костромская обл., г.Солигалич,  ул. Набережная реки Костромы, д. 93 ",null,null,null,null,null,null,null,14551,"Экономический","38.03.22","Экономика","Финансы и кредит","5 лет","БАКАЛАВР","2-524","2014-08-21","по договору с полным возмещением затрат","000002671","2014-07-18",null,null,"2-565","2018-06-25","за академическую неуспеваемость",null,null,null,null,null,null,null,null,"2-571","2015-09-01","2-554","2016-06-16",null,null,null,null,null,null,null,null,null,null,null,null,null,null,null,null,null,null,null,null,null,null,null,null,null,4,"243z",null,null,null,null,null,null,4,"2015-06-01",null,6,"п/зач ",null,3,"2016-09-08",null,3,"п/зач ",null,4,"2016-09-09",null,3,"2016-07-01",null,6,"п/зач ",null,6,"2016-09-07",null,4,"2015-12-26",null,5,"2016-09-08",null,6,"2016-10-03",null,6,"2016-04-25",null,null," ",null,3,"2016-10-03",null,3,"2016-05-27",null,3,"2016-09-09",null,null," ",null,6,"п/зач ",null,null," ",null,null," ",null,null,null,null,null,null,null,null,null,null,5,"2016-12-05"," Z-6278442",5,"2017-10-13",116,null,null,null,null,null,null,null,null,null,null,null,"Фонд социального страхования\nРоссийской Федерации и его роль в\nсистеме государственного социального\nстрахования",5,"2017-05-30"," Z-62798453",null,null,null,null,null,"Оптимизация структуры посевных\nплощадей предприятия",null," ",null,null," ",null,null," ",null,4,"2017-12-06"," Z-7709579",null,null,null,null,null,null,null,null,null,null," ",null,null,null,null,null,null,null,3,"2018-04-13",7709577,null,null,null,null,null,null,null,null,null,null,null,"ООО \"Солигаличский известковый комбинат\" Сольгаличского р-на Костромской обл.",4,"п/зач ",null," "," ",null," "," ",null," "," ",null," "," ",null," "," ",null," "," ",null," "," ",null," "," ",null," "," ",null," "," ",null,null,null,null,null,null,null,null,null,null,1.22,null,7,5,4,6,16,210996,26375]
[23,"Котова","Светлана","Александровна","Котова С. А.",null,"Котовой","Светлане","Александровне","1972-08-25","г. Кострома","РФ","ж","СШ №17 г. Кострома",1989,"не замужем","г. Кострома, ул. Жужелинская, д. 30, кв. 43 ",null,null,null,null,null,null,null,14910,"Экономический","38.03.25","Экономика","Финансы и кредит","5 лет","БАКАЛАВР","2-525","2014-08-21","по договору с полным возмещением затрат","000002839","2014-08-12",null,null,"2-565","2018-06-25","за академическую неуспеваемость",null,null,null,null,null,null,null,null,"2-571","2015-09-01","2-561","2016-09-01",null,null,null,null,null,null,null,null,null,null,null,null,null,null,null,null,null,null,null,null,null,null,null,null,null,4,"241z",null,null,null,null,null,null,3,"2015-06-01",null,6,"2015-06-02",null,3,"2015-06-02",null,3,"2015-06-06",null,3,"2015-05-30",null,3,"2015-06-05",null,6,"2015-12-22",null,6,"2015-12-22",null,5,"2015-12-26",null,3,"2015-12-25",null,6,"2015-12-24",null,6,"2016-04-27",null,4,"2016-06-11",null,4,"2016-04-19",null,3,"2016-04-27",null,4,"2016-04-23",null,null," ",null,6,"2015-05-22",null,0," ",null,5,"2016-07-02"," Z-6278411",null," ",null,3,"2017-09-15",14,null,null,null,3,"2016-12-05"," Z-6278442",4,"2016-11-24"," Z-6278577",null,null,null,null,null,null,null,null,null,null,null,"Налоги с населения и их роль в\nсовременных условиях",null,null,null,null,null,null," "," ",null," "," ",null,null," ",null,null," ",null,null,null,null,null,null,null,null,null,null,null,null,null,null," ",null,null,null,null,null,null,null,null,null,null,null,null,null,null,null,null,null,null,null,null,null,"ФГБОУ ВО Костромская ГСХА Костромского р-на Костромской обл."," "," ",null," "," ",null," "," ",null," "," ",null," "," ",null," "," ",null," "," ",null," "," ",null," "," ",null," "," ",null," "," ",null,null,null,null,null,null,null,null,null,null,1.06,null,9,4,2,6,15,84022,10503]
[24,"Шарова","Анна ","Борисовна ","Шарова А. Б.",null,"Шаровой","Анне","Борисовне","1987-02-11","г. Ярославль","РФ","ж","МОУ Караваевская СОШ Костромской обл.",2014,"замужем","Костромская обл., Костромской р-н, п. Караваево, ул. Учебный городок, д. 16, кв. 33",null,null,null,null,null,null,null,14914,"Экономический","38.03.35","Экономика","Финансы и кредит","5 лет","БАКАЛАВР","2-525","2014-08-21","по договору с полным возмещением затрат","000002805","2014-08-08",null,null,"2-565","2018-06-25","за академическую неуспеваемость",null,null,null,null,null,null,null,null,"2-571","2015-09-01","2-561","2016-09-01",null,null,null,null,null,null,null,null,null,null,null,null,null,null,null,null,null,null,null,null,null,null,null,null,null,4,"243z",null,null,null,null,null,null,4,"2015-06-01",null,6,"2015-06-02",null,3,"2015-06-02",null,4,"2015-06-06",null,4,"2015-05-30",null,4,"2015-06-05",null,6,"2015-12-22",null,6,"2015-12-22",null,5,"2015-12-26",null,4,"2015-12-25",null,6,"2015-12-24",null,6,"2016-04-27",null,4,"2016-06-11",null,4,"2016-04-19",null,null," ",null,3,"2016-04-23",null,null," ",null,6,"2015-05-22",null,null," ",null,3,"2016-07-02"," Z-6278411",null," ",null,4,"2016-12-05"," Z-6278431",3,"2016-12-05"," Z-6278889",3,"2016-12-05"," Z-6278442",3,"2016-11-24"," Z-6278577",null,null,null,null,null,null,null,null,null,null,null,null,null,null,null,null,null,null,null,null,null,null,null,null,null,null,null,null,null,null,null,null,null,null,null,null,null,null,null,null,null,null,null,null,null,null,null,null,null,null,null,null,null,null,null,null,null,null,null,null,null,null,null," "," ","ФГБОУ ВО Костромская ГСХА Костромского р-на Костромской обл."," "," ",null," "," ",null," "," ",null," "," ",null," "," ",null," "," ",null," "," ",null," "," ",null," "," ",null," "," ",null," "," ",null,null,null,null,null,null,null,null,null,null,1.1000000000000001,null,6,8,1,6,15,126000,15750]
[{"$f":"Предметы!A66+1","v":62},"Алексеев","Евгений","Игоревич",{"$f":"CONCATENATE(B19,\" \",LEFT(C19,1),\". \",LEFT(D19,1),\".\")","v":"Алексеев Е. И."},null,"Алексееву","Евгению","Игоревичу","1991-03-08","г.Кострома","РФ","м","ГОУ СПО Костромской автодорожный колледж",2010,"холост","г.Кострома, ул. Шагова, д.215, кв. 30",null,null,null,null,null,null,null,170751,"Экономический","38.03.77","Экономика","Финансы и кредит","5 лет","БАКАЛАВР","2-701","2017-08-31","по договору с полным возмещением затрат","000004589","2017-08-22",null,null,null,null,null,null,null,null,null,null,null,null,null,null,null,null,null,null,null,null,null,null,null,null,null,null,null,null,null,null,null,null,null,null,null,null,null,null,null,null,null,null,1,"211z",null,null,null,null,null,null,4,"2018-06-09",7879530,null,null,null,null,null,null,null,null,null,3,"патт.06.04.2018",601,null,null,null,null,null,null,null,null,null,null,null,null,null,null,null,null,null,null,null,null,null,null,null,null,null,null,null,null,null,null,null,null,null,null,null,null,null,null,null,null,null,null,null,null,null,null,null,null,null,null,null,null,null,null,null,null,null,null,null,null,null,null,null,null,null,null,null,null,null,null,null,null,null,null,null,null,null,null,null,null,null,null,null,null,null,null,null,null,null,null,null,null,null,null,null,null,null,null,null,null,null,null,null,null,null,null,null,null,null,null,null,null,null,null,null,null,null,null,null,null,null,null,null,null,null,null,null,null,null,null,null,null,null,null,null,null,null,null,null,null,null,null,null,null,null,null,null,null,null,null,null,null,null,null,null,null,null,null,null,null,null,null,null,null,null,null,null,null,{"$f":"(JL19*3+JM19*4+JN19*5)/50","v":0.14000000000000001},null,{"$f":"COUNTIF(CC19:JG19,3)","v":1},{"$f":"COUNTIF(CC19:JG19,4)","v":1},{"$f":"COUNTIF(CC19:JG19,5)","v":0},{"$f":"COUNTIF(CC19:JG19,6)","v":0},{"$f":"SUM(JL19:JN19)","v":2},{"$f":"SUMIF(CC19:JG19,\">0\",Предметы!$CC$3:$JG$3)","v":468},{"$f":"INT(JQ19/8+0.5)","v":59}]
[{"$f":"Предметы!A75+1","v":72},"Карпов","Сергей","Васильевич",{"$f":"CONCATENATE(B20,\" \",LEFT(C20,1),\". \",LEFT(D20,1),\".\")","v":"Карпов С. В."},null,"Карпову","Сергею","Васильевичу","1997-12-29","г.Ясный Оренбургской обл.","РФ","м","МБОУ СОШ р.п.Магнитка Кусинский район Челябинской области",2016,"холост","г.Кострома, ул. Никитская,  д.47б",null,null,null,null,null,null,null,170762,"Экономический","38.03.84","Экономика","Финансы и кредит","5 лет","БАКАЛАВР","2-687","2017-08-19","по договору с полным возмещением затрат","000004398","2017-07-17",null,null,null,null,null,null,null,null,null,null,null,null,null,null,null,null,null,null,null,null,null,null,null,null,null,null,null,null,null,null,null,null,null,null,null,null,null,null,null,null,null,null,1,"211z",null,null,null,null,null,null,4,"2018-06-09",7879530,6,"2018-06-09",7879527,null,null,null,null,null,null,null,null,null,null,null,null,null,null,null,null,null,null,null,null,null,null,null,null,null,null,null,null,null,null,null,null,null,null,null,null,null,null,null,null,null,null,null,null,null,null,null,null,null,null,null,null,null,null,null,null,null,null,null,null,null,null,null,null,null,null,null,null,null,null,null,null,null,null,null,null,null,null,null,null,null,null,null,null,null,null,null,null,null,null,null,null,null,null,null,null,null,null,null,null,null,null,null,null,null,null,null,null,null,null,null,null,null,null,null,null,null,null,null,null,null,null,null,null,null,null,null,null,null,null,null,null,null,null,null,null,null,null,null,null,null,null,null,null,null,null,null,null,null,null,null,null,null,null,null,null,null,null,null,null,null,null,null,null,null,null,null,null,null,null,null,null,null,null,null,null,null,{"$f":"(JL20*3+JM20*4+JN20*5)/50","v":0.08},null,{"$f":"COUNTIF(CC20:JG20,3)","v":0},{"$f":"COUNTIF(CC20:JG20,4)","v":1},{"$f":"COUNTIF(CC20:JG20,5)","v":0},{"$f":"COUNTIF(CC20:JG20,6)","v":1},{"$f":"SUM(JL20:JN20)","v":1},{"$f":"SUMIF(CC20:JG20,\">0\",Предметы!$CC$3:$JG$3)","v":180},{"$f":"INT(JQ20/8+0.5)","v":23}]

{"sheet":"Для диплома","index":5,"n_rows":5,"n_cols":200,"rows_kept":5,"cut":false,"hidden":false,"merged":[]}
[]
["№\nп.п.","Фамилия ","Имя","Отчество","Пол","день (цифры)\nдата рождения","месяц (цифры)\nдата рождения","год (цифры)\nдата рождения","Год поступления","Отличие (цифра 5)","гражданство \n(РФ, ближнее, дальнее, без гражданства)","источник финансирования \n(платно, бюджет, целевое)","Предыдущий \nдокумент, год выдачи,  \n(С УКАЗАНИЕМ СТРАНЫ ВЫДАЧИ КРОМЕ РФ)","Примечание","государственный экзамен","Вид выпускной  работы\n(ДП, ДР, МД)","Тема диплома","выпускная квалификационная работа","№ протокола \nаттестационной комиссии","день (цифры)\nдата защиты ","месяц (цифры)\nдата защиты","год (цифры)\nдата защиты","№ приказа об отчислении","день (цифры)\nдата приказа об отчислении","месяц (цифры)\nдата приказа об отчислении","год (цифры)\nдата приказа об отчислении","Серия диплома","№ диплома","Серия приложения к диплому","№ приложения к диплому","Регистрационный номер",null,"Моделирование социально-экономических систем",null,"Корпоративные финансы",null,"Экономика организаций (предприятий)",null,"Финансы",null,"Анализ финансовой отчетности",null,"Инвестиции",null,0,null,0,null,0,null,0,null,0,null,0,null,0,null,0,null,0,null,0,null,0,null,0,null,0,null,0,null,null,"Учебная (практика по получению первичных профессиональных умений и навыков, в том","     числе первичных умений и навыков научно-исследовательской деятельности)","Производственная (научно-исследовательская работа)","Производственная (практика по получению профессиональных","      умений и опыта профессиональной деятельности)","Производственная (технологическая)","Производственная (преддипломная)",0,0,0,null,"История","Философия","Иностранный язык","Право","Социология","Психология","Математический анализ","Линейная алгебра","Теория вероятности и математическая статистика","Методы оптимальных решений  ","Макроэкономика","Микроэкономика","Политология","Статистика","Безопасность жизнедеятельности","Финансы","Бухгалтерский учет и анализ","Деньги, кредит, банки","Менеджмент","Маркетинг","Мировая экономика и международные экономические отношения","Макроэкономическое планирование и прогнозирование","Корпоративные финансы","Физическая культура и спорт","Эконометрика","Делопроизводство и документооборот в финансовой сфере","Информатика и информационное обеспечение финансовой деятельности","Информационные технологии и базы данных в сфере финансов и кредита","Методы принятия управленческих решений в сфере финансов и кредита","Регионалистика","Инвестиции","Государственные и муниципальные финансы","Страхование","Финансовый менеджмент","Налоги и налоговая система","Международные валютно-кредитные и финансовые отношения","Оценка стоимости бизнеса","Финансовая политика","Финансовые рынки","Введение в профессию и основы научных исследований","Программирование финансовых операций","Экономика организаций (предприятий)","Банковское дело","Моделирование социально-экономических систем  ","Организация, нормирование и оплата труда на предприятии","Планирование на предприятии  ","Анализ финансовой отчетности  ","Практикум 1С:Бухгалтерия","Общая физическая подготовка",0,0,0,0,0,0,0,0,0,0,0,0,0,0,0,0,0,0,0,0,0,0,0,0,0,0,0,0,0,0,0,0,0,0,0,0,0,0,0,0,0,0,0,0,0,0,0,0,0,0,0,"факультативные \nдисциплины",0,0,0,0,0,0,0,0,0,0,0,0,0,0,0]
[null,null,null,null,null,null,null,null,null,null,null,null,null,null,null,null,null,null,null,null,null,null,null,null,null,null,null,null,null,null,null,null,1,null,2,null,3,null,4,null,5,null,6,null,7,null,8,null,9,null,10,null,11,null,12,null,13,null,14,null,15,null,16,null,17,null,18,null,19,null,20,null,null,"","3 з.е.","3 з.е.","","3 з.е.","3 з.е.","3 з.е.","","","",null,"3 з.е.","3 з.е.","6 з.е.","4 з.е.","2 з.е.","2 з.е.","6 з.е.","7 з.е.","4 з.е.","4 з.е.","9 з.е.","6 з.е.","5 з.е.","10 з.е.","2 з.е.","4 з.е.","6 з.е.","3 з.е.","4 з.е.","3 з.е.","4 з.е.","3 з.е.","4 з.е.","2 з.е.","5 з.е.","6 з.е.","10 з.е.","4 з.е.","2 з.е.","4 з.е.","4 з.е.","3 з.е.","4 з.е.","5 з.е.","6 з.е.","5 з.е.","5 з.е.","5 з.е.","5 з.е.","3 з.е.","6 з.е.","5 з.е.","4 з.е.","5 з.е.","3 з.е.","4 з.е.","5 з.е.","2 з.е.","328 час."," час."," час."," час."," час."," час."," час."," час."," час."," час."," час."," час."," час."," час."," час."," час."," час."," час."," час."," час."," час."," час."," час."," час."," час."," час."," час."," час."," час."," час."," час."," час."," час."," час."," час."," час."," час."," час."," час."," час."," час."," час."," час."," час."," час."," час."," час."," час."," час."," час."," час."," час.",null,0,0,0,0,0,0,0,0,0,0,0,0,0,0,0]
[14,{"$f":"VLOOKUP(A4,Предметы!$A$6:$JJ$97,2,FALSE)","v":"Рудин"},{"$f":"VLOOKUP(A4,Предметы!$A$6:$JJ$97,3)","v":"Сергей"},{"$f":"VLOOKUP(A4,Предметы!$A$6:$JJ$97,4)","v":"Николаевич"},{"$f":"VLOOKUP(A4,Предметы!$A$6:$JJ$97,13)","v":"м"},{"$f":"DAY(VLOOKUP(A4,Предметы!$A$6:$JJ$97,10))","v":25},{"$f":"MONTH(VLOOKUP(A4,Предметы!$A$6:$JJ$97,10))","v":7},{"$f":"YEAR(VLOOKUP(A4,Предметы!$A$6:$JJ$97,10))","v":1982},{"$f":"YEAR(VLOOKUP(A4,Предметы!$A$6:$JJ$97,33))","v":1999},null,{"$f":"VLOOKUP(A4,Предметы!$A$6:$JJ$97,12)","v":"РФ"},"платно",null,null,{"$f":"VLOOKUP(A4,Предметы!$A$6:$JJ$97,66)","v":0},null,{"$f":"VLOOKUP(A4,Предметы!$A$6:$JJ$97,70)","v":0},"ВКР",{"$f":"VLOOKUP(A4,Предметы!$A$6:$JJ$97,72)","v":0},{"$f":"DAY(VLOOKUP(A4,Предметы!$A$6:$JJ$97,73))","v":0},{"$f":"MONTH(VLOOKUP(A4,Предметы!$A$6:$JJ$97,73))","v":1},{"$f":"YEAR(VLOOKUP(A4,Предметы!$A$6:$JJ$97,73))","v":1900},null,29,6,2018,"104406","0005647","104406","0012997","35385",null,null,{"$f":"VLOOKUP(A4,Предметы!$A$6:$JJ$97,180)","v":3},null,{"$f":"VLOOKUP(A4,Предметы!$A$6:$JJ$97,189)","v":0},null,{"$f":"VLOOKUP(A4,Предметы!$A$6:$JJ$97,201)","v":4},null,{"$f":"VLOOKUP(A4,Предметы!$A$6:$JJ$97,171)","v":4},null,{"$f":"VLOOKUP(A4,Предметы!$A$6:$JJ$97,222)","v":4},null,{"$f":"VLOOKUP(A4,Предметы!$A$6:$JJ$97,243)","v":0},null,null,null,null,null,null,null,null,null,null,null,null,null,null,null,null,null,null,null,null,null,null,null,null,null,null,null,null,null,null,{"$f":"VLOOKUP(A4,Предметы!$A$6:$JJ$97,144)","v":0},{"$f":"VLOOKUP(A4,Предметы!$A$6:$JJ$97,264)","v":0},null,{"$f":"VLOOKUP(A4,Предметы!$A$6:$JJ$97,183)","v":0},{"$f":"VLOOKUP(A4,Предметы!$A$6:$JJ$97,225)","v":0},{"$f":"VLOOKUP(A4,Предметы!$A$6:$JJ$97,267)","v":0},null,null,null,null,{"$f":"VLOOKUP(A4,Предметы!$A$6:$JJ$97,87)","v":4},{"$f":"VLOOKUP(A4,Предметы!$A$6:$JJ$97,120)","v":6},{"$f":"VLOOKUP(A4,Предметы!$A$6:$JJ$97,123)","v":3},{"$f":"VLOOKUP(A4,Предметы!$A$6:$JJ$97,228)","v":3},{"$f":"VLOOKUP(A4,Предметы!$A$6:$JJ$97,108)","v":6},{"$f":"VLOOKUP(A4,Предметы!$A$6:$JJ$97,90)","v":6},{"$f":"VLOOKUP(A4,Предметы!$A$6:$JJ$97,93)","v":4},{"$f":"VLOOKUP(A4,Предметы!$A$6:$JJ$97,96)","v":4},{"$f":"VLOOKUP(A4,Предметы!$A$6:$JJ$97,114)","v":3},{"$f":"VLOOKUP(A4,Предметы!$A$6:$JJ$97,147)","v":4},{"$f":"VLOOKUP(A4,Предметы!$A$6:$JJ$97,126)","v":3},{"$f":"VLOOKUP(A4,Предметы!$A$6:$JJ$97,102)","v":3},{"$f":"VLOOKUP(A4,Предметы!$A$6:$JJ$97,111)","v":3},{"$f":"VLOOKUP(A4,Предметы!$A$6:$JJ$97,132)","v":3},{"$f":"VLOOKUP(A4,Предметы!$A$6:$JJ$97,231)","v":6},{"$f":"VLOOKUP(A4,Предметы!$A$6:$JJ$97,168)","v":4},{"$f":"VLOOKUP(A4,Предметы!$A$6:$JJ$97,156)","v":4},{"$f":"VLOOKUP(A4,Предметы!$A$6:$JJ$97,174)","v":4},{"$f":"VLOOKUP(A4,Предметы!$A$6:$JJ$97,207)","v":3},{"$f":"VLOOKUP(A4,Предметы!$A$6:$JJ$97,234)","v":3},{"$f":"VLOOKUP(A4,Предметы!$A$6:$JJ$97,159)","v":4},{"$f":"VLOOKUP(A4,Предметы!$A$6:$JJ$97,237)","v":0},{"$f":"VLOOKUP(A4,Предметы!$A$6:$JJ$97,186)","v":4},6,{"$f":"VLOOKUP(A4,Предметы!$A$6:$JJ$97,129)","v":3},{"$f":"VLOOKUP(A4,Предметы!$A$6:$JJ$97,81)","v":0},{"$f":"VLOOKUP(A4,Предметы!$A$6:$JJ$97,99)","v":3},{"$f":"VLOOKUP(A4,Предметы!$A$6:$JJ$97,150)","v":3},{"$f":"VLOOKUP(A4,Предметы!$A$6:$JJ$97,165)","v":6},{"$f":"VLOOKUP(A4,Предметы!$A$6:$JJ$97,162)","v":5},{"$f":"VLOOKUP(A4,Предметы!$A$6:$JJ$97,240)","v":0},{"$f":"VLOOKUP(A4,Предметы!$A$6:$JJ$97,210)","v":5},{"$f":"VLOOKUP(A4,Предметы!$A$6:$JJ$97,192)","v":5},{"$f":"VLOOKUP(A4,Предметы!$A$6:$JJ$97,246)","v":0},{"$f":"VLOOKUP(A4,Предметы!$A$6:$JJ$97,213)","v":4},{"$f":"VLOOKUP(A4,Предметы!$A$6:$JJ$97,216)","v":3},{"$f":"VLOOKUP(A4,Предметы!$A$6:$JJ$97,249)","v":0},{"$f":"VLOOKUP(A4,Предметы!$A$6:$JJ$97,252)","v":0},{"$f":"VLOOKUP(A4,Предметы!$A$6:$JJ$97,195)","v":4},{"$f":"VLOOKUP(A4,Предметы!$A$6:$JJ$97,84)","v":6},{"$f":"VLOOKUP(A4,Предметы!$A$6:$JJ$97,153)","v":3},{"$f":"VLOOKUP(A4,Предметы!$A$6:$JJ$97,198)","v":3},{"$f":"VLOOKUP(A4,Предметы!$A$6:$JJ$97,255)","v":0},{"$f":"VLOOKUP(A4,Предметы!$A$6:$JJ$97,177)","v":4},{"$f":"VLOOKUP(A4,Предметы!$A$6:$JJ$97,258)","v":0},{"$f":"VLOOKUP(A4,Предметы!$A$6:$JJ$97,204)","v":3},{"$f":"VLOOKUP(A4,Предметы!$A$6:$JJ$97,219)","v":4},{"$f":"VLOOKUP(A4,Предметы!$A$6:$JJ$97,261)","v":0},6,null,null,null,null,null,null,null,null,null,null,null,null,null,null,null,null,null,null,null,null,null,null,null,null,null,null,null,null,null,null,null,null,null,null,null,null,null,null,null,null,null,null,null,null,null,null,null,null,null,null,null,null,6]
[null,null,null,null,null,null,null,null,null,null,null,null,"аттестат о среднем (полном) общем образовании, 2012 год"]

{"sheet":"ВЫПУСКНИКИ","index":6,"n_rows":16,"n_cols":278,"rows_kept":16,"cut":false,"hidden":false,"merged":[]}
[1,"Абакумова ","Ирина ","Игоревна",{"$f":"CONCATENATE(B1,\" \",LEFT(C1,1),\". \",LEFT(D1,1),\".\")","v":"Абакумова  И. И."},{"$f":"DativeCase(CONCATENATE(B1,\" \", C1,\" \",D1))","v":{"$error":"#NAME?"}},"Абакумовой","Ирине","Игоревне","1985-12-24","п. Караваево Костромского р-на Костромской обл.","РФ","ж","СМОШ Костромского р-на Костромской области",2003,"замужем","г. Кострома, ул. Фестивальная, д 5/26 кв 7",null,null,null,null,null,null,null,13971,"Экономический","38.03.01","Экономика","Финансы и кредит","5 лет","БАКАЛАВР","2-552","2013-08-30","по договору с полным возмещением затрат","000000988","2013-08-19",null,null,null,null,null,null,null,null,null,null,null,null,null,"2-532","2014-09-01","2-571","2015-09-01","2-561","2016-09-01","2-339","2018-05-03",null,null,null,null,"2-395","2018-05-21","Государственный экзамен","2018-06-02",5,null,null,null,"Финансовые аспекты ликвидации предприятия (на примере АО «Нерехтская межрайонная льносеменоводческая станция» г. Нерехта Костромской области)",5,24,"2018-06-22",null,36190,104406,"0018130","2018-06-29",5,"251z",4,"2017-11-01",null,6,"2017-11-01",null,5,"2014-05-29",null,6,"2014-06-03",null,3,"2018-04-23",726,3,"2014-06-25",null,5,"2014-05-30",null,4,"2014-06-05",null,6,"2014-12-24",null,6,"2014-12-24",null,3,"2014-12-27",null,3,"2018-04-23",725,6,"2014-12-19",null,6,"2015-04-16",null,5,"2015-04-23",null,3,"2015-04-21",null,5,"2015-04-25",null,4,"2015-04-25",null,6,"2014-05-21",null,6,"2014-05-21",null,null,null,null,5,"2015-07-04",null,3,"2015-12-04",null,3,"2016-02-09",null,5,"2015-11-30",null,5,"2015-11-25",null,5,"2015-11-23",null,5,"2016-06-01",null,6,"2016-06-01",null,5,"2016-06-01",null,5,"01.06.2016","Сущность и функции налогов, их роль в современных условиях",4,"2016-06-01",null,3,"2016-06-01",null,3,"2018-04-18","Определение оптимальной специализации ОАО \"Зарница\" Буйского района Костромской области",4,"2018-05-14",null,3,"2018-04-23",null,4,"2018-05-08","Формирование, распределение и использование доходов ООО \"Велес-Пыщуг\" Костромской области",5,"2016-12-12",null,4,"2018-04-17",680,5,"2016-12-12",null,3,"2018-05-11","Формирование и использование прибыли ОАО \"Племзавод Караваево\" Костромского района Костромской области",4,"2018-04-28",731,5,"2017-04-08",null,5,"2017-04-08",null,5,"2017-04-08",null,4,"2017-04-08",null,5,"2017-04-08",null,5,"2018-04-23","Оценка риска вероятности банкротства предприятия",4,"2018-04-28",null,4,"2017-11-01",null,6,"2017-11-01",null,3,"2018-05-15",846,4,"2017-11-01",null,4,"2017-11-01",null,4,"2018-05-16","Анализ инвестиционной деятельности ОАО \"Нерехтское межрайонное семеноводческая станция\" г. Нерехта Костромской области",3,"2017-11-01",null,4,"2017-11-01",null,4,"2017-11-01",null,4,"2017-11-01",null,6,"2017-11-01",null,6,"2017-11-01",null,5,"2018-04-28","ФГБОУ ВО Костромская ГСХА, кафедра \"Финансы и кредит\"",4,"2018-04-28","ОАО Нерехтская межрайонная льносеменоводческая станция\" г. Нерехта Костромской обл.",{"$f":"(JL1*3+JM1*4+JN1*5)/50","v":4.12},null,{"$f":"COUNTIF(CC1:JG1,3)","v":13},{"$f":"COUNTIF(CC1:JG1,4)","v":18},{"$f":"COUNTIF(CC1:JG1,5)","v":19},{"$f":"COUNTIF(CC1:JG1,6)","v":12},{"$f":"SUM(JL1:JN1)","v":50},{"$f":"SUMIF(CC1:JG1,\">0\",$CC$3:$JG$3)","v":2041676},{"$f":"INT(JQ1/8+0.5)","v":255210}]
[{"$f":"A1+1","v":2},"Гущин","Дмитрий","Андреевич","Гущин Д. А.",{"$error":"#NAME?"},"Гущину","Дмитрию","Антреевичу","1983-08-30","г. Нерехта Костромская обл.","РФ","м","МСОШ №3 г.Нерехта, Костромская область",2000,"женат","Костромская обл., г Нерехта, ул. Ломоносова, д. 27, кв. 1",null,null,null,null,null,null,null,13977,"Экономический","38.03.01","Экономика","Финансы и кредит","5 лет","БАКАЛАВР","2-552","2013-08-30","по договору с полным возмещением затрат","000001083","2013-08-21",null,null,null,null,null,null,null,null,null,null,null,null,null,"2-532","2014-09-01","2-571","2015-09-01","2-561","2016-09-01","2-703","2017-09-01",null,null,null,null,"2-395","2018-05-21","Государственный экзамен","2018-06-02",5,null,null,null,"Управление финансовыми результатами ООО « Путь Ленина» Борисоглебского района Ярославской области. Разработка мероприятий по увеличению прибыли от основной деятельности предприятия",4,26,"2018-06-22",null,36193,104406,"0018132","2018-06-29",5,"251z",4,"2017-11-01",null,6,"2017-11-01",null,4,"2014-05-29",null,6,"2014-06-03",null,4,"2014-06-07",null,4,"2014-06-09",null,5,"2014-05-30",null,4,"2014-06-10",null,6,"2014-12-24",null,6,"2014-12-24",null,5,"2014-12-27",null,5,"2014-12-26",null,6,"2014-12-18",null,6,"2015-04-16",null,3,"2015-04-23",null,4,"2015-04-21",null,5,"2015-04-27",null,4,"2015-04-25",null,6,"2014-05-21",null,6,"2014-05-21",null,null,null,null,5,"2015-07-04",null,4,"2015-12-04",null,4,"2015-11-27",null,4,"2015-11-30",null,5,"2015-11-25",null,5,"2015-11-23",null,5,"2016-06-01",null,6,"2016-06-01",null,4,"2016-06-01",null,5,"04.06.2016","Налоги с населения и их роль в\nсовременных условиях",4,"2016-06-01",null,4,"2016-06-01",null,3,"04.06.2016","Оптимизация структуры кормопроизводства СПК \"Сокол\" Мантуовского района Костромской области",3,"2018-05-10",null,4,"2016-12-01",null,4,"12.12.2016","Оборотные активы и пути повышения\nэффективности их использования в ОАО\nПлемзавод \"Караваево\"",5,"2016-12-12",null,4,"2016-12-12",null,5,"2016-12-12",null,4,"12.12.2016","Себестоимость и рентабельность\nпроизводства продукции животноводства",5,"2016-12-12",null,5,"2017-04-08",null,4,"2017-04-08",null,4,"2017-04-08",null,4,"2017-04-08",null,5,"2017-04-08",null,4,"08.04.2017","Анализ движения денежных средст ОАО\n\"Племзавод \"Караваево\"",4,"2018-05-14",null,4,"2017-11-01",null,6,"2017-11-01",null,4,"2017-11-01",null,4,"2017-11-01",null,4,"2017-11-01",null,3,"2018-02-26","Оценка рисков инвестиционного проекта по рпедприятию сельскохозяйственной техники в в СПк им. Ленина Нерехтского района Костромской области",4,"2017-11-01",null,4,"2017-11-01",null,4,"2017-11-01",null,4,"2017-11-01",null,6,"2017-11-01",null,6,"2017-11-01",null,5,"2018-05-16","ФГБОУ ВО Костромская ГСХА, кафедра \"Финансы и кредит\"",4,"2018-05-16","ООО \"Путь Ленина\" Борисоглебского р-на Ярославской обл.",4.22,null,4,31,15,12,50,2041676,255210]
[3,"Качкова ","Мария","Александровна","Качкова  М. А.",{"$error":"#NAME?"},"Качковой","Марии","Александровне","1995-03-03","п. Шекшема Шарьинского р-на Костромской обл.","РФ","ж","Шекшенская средняя образовательная школа",2013,"не замужем","Костромская обл.,  Шарьинский р-н, п. Шекшема, ул. Березовая, д. 9   ",null,null,null,null,null,null,null,13941,"Экономический","38.03.01","Экономика","Финансы и кредит","5 лет","БАКАЛАВР","2-522","2013-08-16","по договору с полным возмещением затрат","00000811","2013-08-06",null,null,null,null,null,null,null,null,null,null,null,null,null,"2-532","2014-09-01","2-558","2015-08-21","2-561","2016-09-01","2-703","2017-09-01",null,null,null,null,"2-395","2018-05-21","Государственный экзамен","2018-06-02",4,null,null,null,"Оценка финансовых результатов деятельности и пути их повышения в ООО «Альянс-Авто-Шарья» г. Шарья Костромской области",5,28,"2018-06-22",null,36194,104406,"0018133","2018-06-29",5,"251z",4,"2017-11-01",null,6,"2017-11-01",null,5,"2014-05-29",null,6,"2014-06-03",null,3,"2014-06-07",null,5,"2014-06-03",null,5,"2014-05-30",null,3,"2014-06-10",null,6,"2014-12-24",null,6,"2014-12-24",null,4,"2014-12-27",null,3,"2014-12-27",null,6,"2014-12-18",null,6,"2014-05-16",null,3,"2015-04-23",null,4,"2015-04-21",null,3,"2015-04-27",null,4,"2015-04-27",null,6,"2014-05-21",null,6,"2014-05-21",null,null,null,null,4,"2017-10-12",null,4,"п/зач ",null,3,"2016-05-19",null,3,"2017-10-25",null,5,"п/зач ",null,4,"п/зач ",null,5,"п/зач ",null,6,"п/зач ",null,4,"п/зач ",null,5,"п/зач","Бюджетный дефицит и его экономические и социальные последствия",3,"2016-06-01",null,4,"п/зач ",null,3,"п/зач","Оптимальная специализация и сочетание отраслей сельскохозяйственного предприятия",4,"2017-04-07",null,3,"2016-12-01",null,3,"12.12.2016","Налогообложение корпораций на примере\nСПК \"Яковлевское\" Костромского района\nКостромской области",3,"2016-12-12",null,4,"2016-12-12",null,3,"2016-12-12",null,3,"12.12.2016","Персонал организации (предприятия) и\nпути повышения эффективности его\nиспользования",4,"2016-12-12",null,4,"2015-12-23",null,4,"2017-04-08",null,4,"2017-04-08",null,4,"2017-04-08",null,5,"2017-04-08",null,5,"08.04.2017","Анализ дебиторской и кредиторской\nзадолженности ООО \"Заболотье\"",4,"2017-08-31",null,4,"2017-11-01",null,6,"2017-11-01",null,5,"2017-11-01",null,3,"2017-11-01",null,4,"2017-11-01",null,4,"01.11.2017","Оптимизация структуры инвестиционных ресурсов ОАО \"Племзавод Караыаево\" Костромского р-на Костромской обл.",3,"2017-11-01",null,4,"2017-11-01",null,4,"2017-11-01",null,4,"2017-11-01",null,6,"2017-11-01",null,6,"2017-11-01",null,5,"2018-03-20","ФГБОУ ВО Костромская ГСХА, кафедра \"Финансы и кредит\"",5,"2018-04-28","ООО \"Альянс-Авто-Шарья\" г. Шарья Костромской обл.",3.9,null,16,23,11,12,50,2041676,255210]
[4,"Коурова","Юлия","Владимировна","Коурова Ю. В.",{"$error":"#NAME?"},"Коуровой Юлии","Владимировне",{"$f":"RIGHT(F4,LEN(F4)-SEARCH(\"^\",SUBSTITUTE(F4,\" \",\"^\",2)))","v":{"$error":"#NAME?"}},"1995-05-16","д. 1-й Стариковский Павинского р-на Костромской обл.","РФ","ж","МБОУ СОШ  7 г. Шарья",2013,"не замужем","Костромская обл.,  Павинский р-н, дер. 1-й Стариковский ",null,null,null,null,null,null,null,13973,"Экономический","38.03.01","Экономика","Финансы и кредит","5 лет","БАКАЛАВР","2-522","2013-08-16","по договору с полным возмещением затрат","000000920","2013-08-15",null,null,null,null,null,null,null,null,null,null,null,null,null,"2-532","2014-09-01","2-571","2015-09-01","2-561","2016-09-01","2-703","2017-09-01",null,null,null,null,"2-395","2018-05-21","Государственный экзамен","2018-06-02",4,null,null,null,"Анализ финансового состояния  и пути его улучшения в ООО «Луч» Шарьинского района Костромской области",3,38,"2018-06-22",null,36195,104406,"0018134","2018-06-29",5,"251z",3,"2017-11-01",null,6,"2017-11-01",null,4,"2014-05-29",null,6,"2014-06-03",null,3,"2014-06-07",null,4,"2014-06-03",null,4,"2014-05-30",null,3,"2014-06-05",null,6,"2014-12-24",null,6,"2014-12-24",null,4,"2014-12-27",null,3,"2014-12-26",null,6,"2014-12-27",null,6,"2015-04-16",null,3,"2015-04-23",null,4,"2015-04-21",null,4,"2015-04-27",null,3,"2015-04-25",null,6,"2014-05-21",null,6,"2014-05-21",null,null,null,null,5,"2015-07-04",null,4,"2015-12-21",null,3,"2015-11-27",null,5,"2015-11-30",null,5,"2015-11-25",null,4,"2015-11-23",null,5,"2016-06-01",null,6,"2016-06-01",null,5,"2016-06-01",null,4,"2016-06-01","Бюджетный дефицит и его экономические и социальные последствия",3,"2016-06-01",null,3,"2016-06-01",null,3,"2016-06-04","Оптимизация структуры кормопроизводства предприятия",4,"2017-04-07",null,4,"2016-12-01",null,4,"2017-04-06","Формирование, распределение и использование доходов корпораций, пути их увеличения",3,"2016-12-12",null,4,"2016-12-12",null,4,"2016-12-12",null,3,"2016-12-12","Эффективность использования основных средств организации (предприятия)",4,"2016-12-12",null,5,"2017-04-08",null,4,"2017-04-08",null,5,"2017-04-08",null,4,"2017-04-08",null,5,"2017-04-08",null,5,"2017-04-08","Анализ заемного капитала ООО \"Воскресенский сыродел\" ",5,"2017-08-31",null,4,"2017-11-01",null,6,"2017-11-01",null,4,"2017-11-01",null,3,"2017-11-01",null,4,"2017-11-01",null,5,"2017-11-01","Государственное регулирование инвестиционной деятельности в ООО Луч Шарьинского района Костромской области",4,"2017-11-01",null,4,"2017-11-01",null,4,"2017-11-01",null,4,"2017-11-01",null,6,"2017-11-01",null,6,"2017-11-01",null,5,"2018-05-04","ФГБОУ ВО Костромская ГСХА, кафедра \"Финансы и кредит\"",5,"2018-05-04","ООО \"Луч\" Шарьинского р-на Костромской обл.",4,null,13,24,13,12,50,2041676,255210]
[5,"Муравьёв ","Илья ","Сергеевич","Муравьёв  И. С.",{"$error":"#NAME?"},"Муравьёву","Илье","Сергеевичу","1989-03-16","д. Инальцино Борисоглебского р-на Ярославской обл.","РФ","м","МОУ СОШ д. Березники, Борисоглебского р-на  Ярославской области",2007,"холост","Ярославская обл., Борисоглебский р-н, д. Инальцино, ул. Новая д. 5, кв. 2",null,null,null,null,null,null,null,13982,"Экономический","38.03.01","Экономика","Финансы и кредит","5 лет","БАКАЛАВР","2-552","2013-08-30","по договору с полным возмещением затрат","000001012","2013-08-19",null,null,null,null,null,null,null,null,null,null,null,null,null,"2-532","2014-09-01","2-571","2015-09-01","2-561","2016-09-01","2-703","2017-09-01",null,null,null,null,"2-395","2018-05-21","Государственный экзамен","2018-06-02",4,null,null,null,"Управление финансовыми результатами ООО «Путь Ленина» Борисоглебского района Ярославской области. Разработка мероприятий по увеличению прибыли от  вспомогательных видов  деятельности предприятия",4,30,"2018-06-22",null,36197,104406,"0018136","2018-06-29",5,"251z",3,"2017-11-01",null,6,"2017-11-01",null,3,"2014-05-29",null,6,"2014-06-03",null,3,"2014-06-07",null,4,"2014-06-03",null,4,"2014-05-30",null,3,"2014-06-10",null,6,"2014-12-19",null,6,"2014-12-24",null,4,"2014-12-27",null,4,"2014-12-26",null,6,"2014-12-27",null,6,"2015-04-16",null,3,"2015-04-24",null,3,"2015-04-21",null,3,"2015-04-27",null,3,"2015-04-25",null,6,"2014-05-21",null,6,"2014-05-21",null,null,null,null,4,"2015-07-04",null,4,"2015-12-04",null,3,"2015-11-27",null,4,"2015-11-30",null,4,"2015-11-25",null,4,"23,.11.2015 ",null,5,"2016-06-01",null,6,"2016-06-01",null,3,"2016-06-01",null,3,"2016-06-01","Федеральный бюджет, его роль в\nразвитии экономики и социальной сферы\nстраны",4,"2016-06-01",null,3,"2016-06-01",null,3,"04.06.2016","Срчетание отраслей в СПК \"Трудовик\" Судиславского района Костромской области",3,"2018-05-10",null,3,"2016-12-01",null,4,"12.12.2016","Денежные средства и организация\nрасчетов в АО \"некрасовский\nмашиностроительный завод\"",4,"2016-12-12",null,4,"2016-12-12",null,3,"2016-12-12",null,3,"12.12.2016","Персонал организации (предприятия) и\nпути повышения эффективности его\nиспользования",4,"2016-12-12",null,3,"2017-04-08",null,4,"2017-04-08",null,3,"2017-04-08",null,3,"2017-04-08",null,5,"2017-04-08",null,3,"2018-04-19","Анализ размещения средств и источников их формирования в АО \"НМЗ\"",3,"2018-05-14",null,4,"2017-11-01",null,6,"2017-11-01",null,4,"2017-11-01",null,3,"2017-11-01",null,3,"2017-11-01",null,3,"2018-04-23","Формирование инвестиционной программы АО Некрасовский машиностроительный завод\" Некрасовского р-на, Ярославской области",3,"2017-11-01",null,4,"2017-11-01",null,4,"2017-11-01",null,4,"2017-11-01",null,6,"2017-11-01",null,6,"2017-11-01",null,4,"2018-05-16","ФГБОУ ВО Костромская ГСХА, кафедра \"Финансы и кредит\"",4,"2018-05-16","ООО \"Путь Ленина\" Борисоглебского р-на Ярославской обл.",3.52,null,26,22,2,12,50,2041676,255210]
[6,"Петров ","Роман ","Александрович","Петров  Р. А.",{"$error":"#NAME?"},"Петрову","Роману","Александровичу","1993-12-08","г. Нерехта Костромской обл.","РФ","м","МОУ СОШ  3 г.Нерехта",2011,"холост","Костромская обл., г. Нерехта, ул. Дружбы, д. 19, кв. 14  ",null,null,null,null,null,null,null,11444,"Экономический","38.03.01","Экономика","Финансы и кредит","5 лет","БАКАЛАВР","2-363","2011-08-05","по договору с полным возмещением затрат","24-2011","2011-07-11",null,null,"2-173","2014-04-01","по собственному желанию","2-563","2015-08-26",null,null,null,null,null,null,"2-590","2012-09-10","2-592","2013-09-16","2-561","2016-09-01","2-339","2018-05-03",null,null,null,null,"2-395","2018-05-21","Государственный экзамен","2018-06-02",4,null,null,null,"Анализ прибыли и пути ее повышения в СПК «Тетеринское» Нерехтского района Костромской области",4,31,"2018-06-22",null,36198,104406,"0018137","2018-06-29",5,"251z",3,"2017-11-01",null,6,"2017-11-01",null,3,"п/зач ",null,6,"п/зач ",null,3,"п/зач ",null,3,"п/зач ",null,4,"п/зач ",null,3,"п/зач ",null,6,"п/зач ",null,6,"п/зач ",null,4,"п/зач ",null,3,"п/зач ",null,6,"п/зач ",null,6,"п/зач ",null,3,"п/зач ",null,3,"п/зач ",null,4,"п/зач ",null,3,"п/зач ",null,6,"п/зач ",null,6,"2014-05-21",null,null,null,null,3,"п/зач ",null,3,"2017-03-29",null,3,"п/зач ",null,3,"п/зач ",null,3,"2018-05-03",739,3,"2015-11-23",null,5,"2016-06-01",null,6,"2016-06-25",1199,4,"2016-06-01",null,3,"2018-04-14","Проблемы и перспективы формирования доходов региональных бюджетов",4,"2016-06-01",null,3,"2016-06-01",null,3,"04.06.2016","Сочетание отраслей",3,"2018-04-23",713,3,"2016-12-01",null,3,"2018-04-23","Источники финансирования деятельности",3,"2016-12-12",null,3,"2016-12-12",null,4,"2016-12-12",null,3,"2018-04-20","Формирование и использование прибыли\nорганизации (предприятия)",3,"2016-12-12",null,3,"2017-04-08",null,3,"2017-04-08",null,4,"2017-04-08",null,3,"2017-04-08",null,4,"2017-04-08",null,4,"2018-03-22","Анализ финансовых результатов деятельности предприятия",4,"2018-04-28",null,4,"п/зач ",null,6,"п/зач ",null,4,"2017-11-01",null,3,"2017-11-01",null,3,"2017-11-01",null,4,"2018-03-22","Инвестиционная деятельность в СПК \"Татаринское\"",4,"2017-11-01",null,4,"2017-11-01",null,4,"2017-11-01",null,5,"2017-11-01",null,6,"2017-11-01",null,6,"2017-11-01",null,4,"2018-04-28","ФГБОУ ВО Костромская ГСХА, кафедра \"Финансы и кредит\"",4,"2018-04-28","СПК \"Тетеринское\" Нерехтского р-на Костромской обл.",3.44,null,30,18,2,12,50,1114260,139283]
[7,"Поливалова (Кузьмичева)","Екатерина ","Викторовна","Поливалова (Кузьмичева) Е. В.",{"$error":"#NAME?"},"Поливаловой","Екатерине","Викторовне","1995-03-08","г. Галич Костромской обл.","РФ","ж","МОУ СОШ  4 им. Ф.Н. Красовского г. Галич",2013,"замужем","Костромская обл., г. Галич, ул. Семашко, д. 1, кв. 5 ",null,null,null,null,null,null,null,13974,"Экономический","38.03.01","Экономика","Финансы и кредит","5 лет","БАКАЛАВР","2-522","2013-08-16","по договору с полным возмещением затрат","000000915","2013-08-15",null,null,null,null,null,null,null,null,null,null,null,null,null,"2-532","2014-09-01","2-571","2015-09-01","2-561","2016-09-01","2-703","2017-09-01",null,null,null,null,"2-395","2018-05-21","Государственный экзамен","2018-06-02",5,null,null,null,"Оценка и пути повышения инвестиционной привлекательности ООО «Чайка-ПРО» г. Кострома",4,32,"2018-06-22",null,36199,104406,"0018138","2018-06-29",5,"251z",3,"2017-11-01",null,6,"2017-11-01",null,4,"2014-05-29",null,6,"2014-06-03",null,3,"2014-06-09",null,4,"2014-06-03",null,4,"2014-05-30",null,3,"2017-10-27",null,6,"2014-12-24",null,6,"2014-12-24",null,5,"2014-12-27",null,4,"2014-12-26",null,6,"2014-12-27",null,6,"2015-04-16",null,3,"2015-04-23",null,3,"2015-04-21",null,3,"2015-04-27",null,3,"2015-04-25",null,6,"2014-05-21",null,6,"2014-05-21",null,null,null,null,4,"2015-07-04",null,3,"2017-03-29",null,3,"2015-11-27",null,4,"2015-11-30",null,5,"2015-11-25",null,4,"2015-11-23",null,5,"2016-06-01",null,6,"2016-06-01",null,3,"2016-06-01",null,3,"04.06.2016","Экономическая характеристика расходов федерального бюджета",3,"2016-06-01",null,3,"2016-06-01",null,3,"04.06.2016","Оптимизация структуры кормопроизводства предприятия",4,"2017-04-07",null,3,"2016-12-01",null,3,"06.04.2017","Особенности организации финансовой\nработы корпораций",4,"2016-12-12",null,4,"2016-12-12",null,4,"2016-12-12",null,3,"12.12.2016","Пути повышения финансовых результатов\nорганизаций (на примере ОАО ПЗ\n\"Караваево\" Костромского района\nКостромской области)",3,"2016-12-12",null,5,"2017-04-08",null,4,"2017-04-08",null,5,"2017-04-08",null,4,"2017-04-08",null,4,"2017-04-08",null,4,"08.04.2017","Анализ ликвидности и\nплатежеспособности \"(На примере ОАО\nПЗ \"Караваево\" Костромского района\nКостромской области)",5,"2017-08-31",null,4,"2017-11-01",null,6,"2017-11-01",null,4,"2017-11-01",null,3,"2017-11-01",null,4,"2017-11-01",null,4,"01.11.2017","Оценка инвестиционного предприятия ОАО ПЗ \"Племзавод Караваево\" Костромского района Костромской области",4,"2017-11-01",null,4,"2017-11-01",null,4,"2017-11-01",null,4,"2017-11-01",null,6,"2017-11-01",null,6,"2017-11-01",null,5,"2018-03-20","ФГБОУ ВО Костромская ГСХА, кафедра \"Финансы и кредит\"",5,"2018-03-31","ООО \"Чайка-ПРО\" г. Кострома",3.78,null,19,23,8,12,50,2041676,255210]
[8,"Романова (Зарихина)"," Дарья ","Леонидовна","Романова (Зарихина)  . Л.",{"$error":"#NAME?"},"Романовой","Дарье","Леонидовне","1995-11-19","п. Боровской, Пыщукского р-на","РФ","ж","Пыщугская СОШ",2013,"замужем","Костромская обл.,  Пыщугский р-н, п. Боровский, ул. Центральная, д. 13, кв. 2   ",null,null,null,null,null,null,null,13525,"Экономический","38.03.01","Экономика","Финансы и кредит","5 лет","БАКАЛАВР","2-509","2013-08-05","по договору с полным возмещением затрат","000000766","2013-08-02",null,null,null,null,null,null,null,null,null,null,null,null,null,"2-533","2014-09-01","2-558","2015-08-21","2-561","2016-09-01","2-703","2017-09-01",null,null,null,null,"2-395","2018-05-21","Государственный экзамен","2018-06-02",5,null,null,null,"Оценка финансовой устойчивости и пути ее повышения в ООО «Велес-Пыщуг» Пыщугского района Костромской области",5,33,"2018-06-22",null,36200,104406,"0018141","2018-06-29",5,"251z",4,"2017-11-01",null,6,"2017-11-01",null,3,"п/зач ",null,6,"п/зач ",null,3,"п/зач ",null,4,"п/зач ",null,4,"п/зач ",null,4,"п/зач ",null,6,"п/зач ",null,6,"п/зач ",null,4,"п/зач ",null,3,"п/зач ",null,6,"п/зач ",null,6,"п/зач ",null,5,"п/зач ",null,4,"п/зач ",null,4,"п/зач ",null,4,"п/зач ",null,6,"п/зач ",null,6,"2014-05-21",null,null,null,null,5,"п/зач ",null,4,"2015-12-04",null,4,"п/зач ",null,4,"п/зач ",null,4,"2018-05-16",872,5,"п/зач ",null,5,"2016-06-01",null,6,"2016-06-01",null,5,"2016-06-01",null,4,"01.06.2016","Управление государственным долгом\nРоссии",4,"2016-06-01",null,3,"2016-06-01",null,3,"04.06.2016","Определение оптимальной специализации ОАО \"Зарница\" Буйского района Костромской области",4,"2017-04-07",null,3,"2016-12-01",null,4,"04.04.2017","Особенности организации финансовой\nработы корпорации",5,"2016-12-12",null,4,"2016-12-12",null,4,"2016-12-12",null,4,"12.12.2016","Экономическая оценка ресурсного\nпотенциала ООО \"Велес-Пыщуг\"",5,"2016-12-12",null,4,"2017-04-08",null,4,"2017-04-08",null,4,"2017-04-08",null,4,"2017-04-08",null,5,"2017-04-08",null,5,"08.04.2017","Анализ размещения средств и источников\nих формирования в ООО \"Велес-Пыщуг\"",5,"2017-08-31",null,4,"2017-11-01",null,6,"2017-11-01",null,4,"2017-11-01",null,4,"2017-11-01",null,4,"2017-11-01",null,4,"01.11.2017","Анализ инвестиционной деятельности ООО \"Велес-Пыщуг\" Пыщугского района Костромской области",4,"2017-11-01",null,4,"2017-11-01",null,5,"2017-11-01",null,4,"2017-11-01",null,6,"2017-11-01",null,6,"2017-11-01",null,5,"2018-03-20","ФГБОУ ВО Костромская ГСХА, кафедра \"Финансы и кредит\"",4,"2018-05-11","ООО \"Велес-Пыщуг\" Пыщугского р-на Костромской обл.",4.12,null,6,32,12,12,50,1200340,150043]
[9,"Гущин","Дмитрий","Андреевич","Гущин Д. А.",{"$error":"#NAME?"},"Гущину","Дмитрию","Антреевичу","1983-08-30","г. Нерехта Костромская обл.","РФ","м","МСОШ №3 г.Нерехта, Костромская область",2000,"женат","Костромская обл., г Нерехта, ул. Ломоносова, д. 27, кв. 1",null,null,null,null,null,null,null,13977,"Экономический","38.03.01","Экономика","Финансы и кредит","5 лет","БАКАЛАВР","2-552","2013-08-30","по договору с полным возмещением затрат","000001083","2013-08-21",null,null,null,null,null,null,null,null,null,null,null,null,null,"2-532","2014-09-01","2-571","2015-09-01","2-561","2016-09-01","2-703","2017-09-01",null,null,null,null,"2-395","2018-05-21","Государственный экзамен","2018-06-02",5,null,null,null,"Управление финансовыми результатами ООО « Путь Ленина» Борисоглебского района Ярославской области. Разработка мероприятий по увеличению прибыли от основной деятельности предприятия",4,26,"2018-06-22",null,36193,104406,"0018132","2018-06-29",5,"251z",4,"2017-11-01",null,6,"2017-11-01",null,4,"2014-05-29",null,6,"2014-06-03",null,4,"2014-06-07",null,4,"2014-06-09",null,5,"2014-05-30",null,4,"2014-06-10",null,6,"2014-12-24",null,6,"2014-12-24",null,5,"2014-12-27",null,5,"2014-12-26",null,6,"2014-12-18",null,6,"2015-04-16",null,3,"2015-04-23",null,4,"2015-04-21",null,5,"2015-04-27",null,4,"2015-04-25",null,6,"2014-05-21",null,6,"2014-05-21",null,null,null,null,5,"2015-07-04",null,4,"2015-12-04",null,4,"2015-11-27",null,4,"2015-11-30",null,5,"2015-11-25",null,5,"2015-11-23",null,5,"2016-06-01",null,6,"2016-06-01",null,4,"2016-06-01",null,5,"04.06.2016","Налоги с населения и их роль в\nсовременных условиях",4,"2016-06-01",null,4,"2016-06-01",null,3,"04.06.2016","Оптимизация структуры кормопроизводства СПК \"Сокол\" Мантуовского района Костромской области",3,"2018-05-10",null,4,"2016-12-01",null,4,"12.12.2016","Оборотные активы и пути повышения\nэффективности их использования в ОАО\nПлемзавод \"Караваево\"",5,"2016-12-12",null,4,"2016-12-12",null,5,"2016-12-12",null,4,"12.12.2016","Себестоимость и рентабельность\nпроизводства продукции животноводства",5,"2016-12-12",null,5,"2017-04-08",null,4,"2017-04-08",null,4,"2017-04-08",null,4,"2017-04-08",null,5,"2017-04-08",null,4,"08.04.2017","Анализ движения денежных средст ОАО\n\"Племзавод \"Караваево\"",4,"2018-05-14",null,4,"2017-11-01",null,6,"2017-11-01",null,4,"2017-11-01",null,4,"2017-11-01",null,4,"2017-11-01",null,3,"2018-02-26","Оценка рисков инвестиционного проекта по рпедприятию сельскохозяйственной техники в в СПк им. Ленина Нерехтского района Костромской области",4,"2017-11-01",null,4,"2017-11-01",null,4,"2017-11-01",null,4,"2017-11-01",null,6,"2017-11-01",null,6,"2017-11-01",null,5,"2018-05-16","ФГБОУ ВО Костромская ГСХА, кафедра \"Финансы и кредит\"",4,"2018-05-16","ООО \"Путь Ленина\" Борисоглебского р-на Ярославской обл.",4.22,null,4,31,15,12,50,2041676,255210]
[10,"Качкова ","Мария","Александровна","Качкова  М. А.",{"$error":"#NAME?"},"Качковой","Марии","Александровне","1995-03-03","п. Шекшема Шарьинского р-на Костромской обл.","РФ","ж","Шекшенская средняя образовательная школа",2013,"не замужем","Костромская обл.,  Шарьинский р-н, п. Шекшема, ул. Березовая, д. 9   ",null,null,null,null,null,null,null,13941,"Экономический","38.03.01","Экономика","Финансы и кредит","5 лет","БАКАЛАВР","2-522","2013-08-16","по договору с полным возмещением затрат","00000811","2013-08-06",null,null,null,null,null,null,null,null,null,null,null,null,null,"2-532","2014-09-01","2-558","2015-08-21","2-561","2016-09-01","2-703","2017-09-01",null,null,null,null,"2-395","2018-05-21","Государственный экзамен","2018-06-02",4,null,null,null,"Оценка финансовых результатов деятельности и пути их повышения в ООО «Альянс-Авто-Шарья» г. Шарья Костромской области",5,28,"2018-06-22",null,36194,104406,"0018133","2018-06-29",5,"251z",4,"2017-11-01",null,6,"2017-11-01",null,5,"2014-05-29",null,6,"2014-06-03",null,3,"2014-06-07",null,5,"2014-06-03",null,5,"2014-05-30",null,3,"2014-06-10",null,6,"2014-12-24",null,6,"2014-12-24",null,4,"2014-12-27",null,3,"2014-12-27",null,6,"2014-12-18",null,6,"2014-05-16",null,3,"2015-04-23",null,4,"2015-04-21",null,3,"2015-04-27",null,4,"2015-04-27",null,6,"2014-05-21",null,6,"2014-05-21",null,null,null,null,4,"2017-10-12",null,4,"п/зач ",null,3,"2016-05-19",null,3,"2017-10-25",null,5,"п/зач ",null,4,"п/зач ",null,5,"п/зач ",null,6,"п/зач ",null,4,"п/зач ",null,5,"п/зач","Бюджетный дефицит и его экономические и социальные последствия",3,"2016-06-01",null,4,"п/зач ",null,3,"п/зач","Оптимальная специализация и сочетание отраслей сельскохозяйственного предприятия",4,"2017-04-07",null,3,"2016-12-01",null,3,"12.12.2016","Налогообложение корпораций на примере\nСПК \"Яковлевское\" Костромского района\nКостромской области",3,"2016-12-12",null,4,"2016-12-12",null,3,"2016-12-12",null,3,"12.12.2016","Персонал организации (предприятия) и\nпути повышения эффективности его\nиспользования",4,"2016-12-12",null,4,"2015-12-23",null,4,"2017-04-08",null,4,"2017-04-08",null,4,"2017-04-08",null,5,"2017-04-08",null,5,"08.04.2017","Анализ дебиторской и кредиторской\nзадолженности ООО \"Заболотье\"",4,"2017-08-31",null,4,"2017-11-01",null,6,"2017-11-01",null,5,"2017-11-01",null,3,"2017-11-01",null,4,"2017-11-01",null,4,"01.11.2017","Оптимизация структуры инвестиционных ресурсов ОАО \"Племзавод Караыаево\" Костромского р-на Костромской обл.",3,"2017-11-01",null,4,"2017-11-01",null,4,"2017-11-01",null,4,"2017-11-01",null,6,"2017-11-01",null,6,"2017-11-01",null,5,"2018-03-20","ФГБОУ ВО Костромская ГСХА, кафедра \"Финансы и кредит\"",5,"2018-04-28","ООО \"Альянс-Авто-Шарья\" г. Шарья Костромской обл.",3.9,null,16,23,11,12,50,2041676,255210]
[{"$f":"Предметы!A7+1","v":3},"Чернова (Васильева)","Дарья ","Андреевна",{"$f":"CONCATENATE(B11,\" \",LEFT(C11,1),\". \",LEFT(D11,1),\".\")","v":"Чернова (Васильева) Д. А."},{"$f":"DativeCase(CONCATENATE(B11,\" \", C11,\" \",D11))","v":{"$error":"#NAME?"}},"Черновой","Дарье","Андреевне","1988-10-13","г. Кострома","РФ","ж","МОУ Караваевская СОШ Костромского р-на Костромской области",2005,"замужем","Костромская обл.,  Костромской р-н, п. Караваево ул. Шувалово, д. 39   ",null,null,null,null,null,null,null,13939,"Экономический","38.03.01","Экономика","Финансы и кредит","5 лет","БАКАЛАВР","2-522","2013-08-16","по договору с полным возмещением затрат","000000882","2013-08-13",null,null,null,null,null,null,null,null,null,null,null,null,null,"2-532","2014-09-01","2-571","2015-09-01","2-561","2016-09-01","2-703","2017-09-01",null,null,null,null,"2-395","2018-05-21","Государственный экзамен","2018-06-02",5,null,null,null,"Управление доходами строительной организации (на примере ООО «Стройподряд» г. Кострома)",5,35,"2018-06-22",null,36202,104406,"0018140","2018-06-29",5,"251z",4,"2017-11-01",null,6,"2017-11-01",null,3,"2014-05-29",null,6,"2014-06-03",null,3,"2014-06-09",null,4,"2014-06-03",null,4,"2014-05-30",null,4,"2015-11-23",null,6,"2014-12-19",null,6,"2014-12-24",null,3,"2014-12-27",null,3,"2014-12-26",null,6,"2014-12-27",null,6,"2015-04-16",null,4,"2015-12-18",null,3,"2015-04-21",null,4,"2015-04-27",null,3,"2015-04-25",null,6,"2014-05-21",null,6,"2014-05-21",null,null,null,null,5,"2015-07-04",null,3,"2015-12-17",null,3,"2015-11-27",null,4,"2015-11-30",null,5,"2015-11-25",null,4,"2015-11-23",null,5,"2016-06-01",null,6,"2016-06-01",null,5,"2016-06-01",null,5,"01.06.2016","Косвенные налоги и перспективы их развития",3,"2016-06-01",null,3,"2016-06-01",null,3,"04.06.2016","Оптимизация плана по производству месячного ассортименат миолочной продукции ООО \"Воскресенский сыродел\"",4,"2017-04-07",null,3,"2016-12-01",null,4,"06.04.2017","Формирование, распределение и\nиспользование доходов корпораций, пути\nих увеличения",3,"2016-12-12",null,4,"2016-12-12",null,3,"2016-12-12",null,3,"12.12.2016","Пути повышения финансовых результатов организации",4,"2016-12-12",null,5,"2017-04-08",null,4,"2017-04-08",null,4,"2017-04-08",null,4,"2017-04-08",null,5,"2017-04-08",null,5,"08.04.2017","Анализ финансовой устойчивости ОАО\n\"Племзавод \"Караваево\" Костромского\nрайона Костромской области\"",5,"2017-08-21",null,4,"2017-11-01",null,6,"2017-11-01",null,4,"2017-11-01",null,3,"2017-11-01",null,3,"2017-11-01",null,5,"01.11.2017","Развитие инвестиционного рынка Костромской области",4,"2017-11-01",null,4,"2017-11-01",null,4,"2017-11-01",null,5,"2017-11-01",null,6,"2017-11-01",null,6,"2017-11-01",null,5,"2018-03-20","ФГБОУ ВО Костромская ГСХА, кафедра \"Финансы и кредит\"",5,"2018-03-31","ООО \"Стройподряд\" г. Кострома",{"$f":"(JL11*3+JM11*4+JN11*5)/50","v":3.92},null,{"$f":"COUNTIF(CC11:JG11,3)","v":17},{"$f":"COUNTIF(CC11:JG11,4)","v":20},{"$f":"COUNTIF(CC11:JG11,5)","v":13},{"$f":"COUNTIF(CC11:JG11,6)","v":12},{"$f":"SUM(JL11:JN11)","v":50},{"$f":"SUMIF(CC11:JG11,\">0\",Предметы!$CC$3:$JG$3)","v":7776},{"$f":"INT(JQ11/8+0.5)","v":972}]
[{"$f":"A11+1","v":4},"Аристов ","Антон ","Владимирович","Аристов  А. В.",{"$error":"#NAME?"},"Аристову","Антону","Владимировичу","1993-06-19","г. Шарья, Костромская область","РФ","м","Шарьинский аграрный техникум",2011,"холост","Костромская обл., г. Шарья, ул. 50 лет Советской Власти, д. 3-Б, кв. 63  ",null,null,null,null,null,null,null,11430,"Экономический","38.03.01","Экономика","Финансы и кредит","5 лет","БАКАЛАВР","2-363","2011-08-05","по договору с полным возмещением затрат","64-2011","2011-07-28",null,null,null,null,null,null,null,null,"2-473","2014-07-14","в связи с призывом в ряды ВС РФ","2014-07-03","2015-07-02","2-590","2012-09-10","2-58","2016-02-08","2-561","2016-09-01","2-703","2017-09-01",null,null,null,null,"2-395","2018-05-21","Государственный экзамен","2018-06-01",3,null,null,null,"Разработка инвестиционной стратегии ООО «Шарьинская вода» г. Шарья Костромской области",5,25,"2018-06-22",null,36192,104406,"0018131","2018-06-29",5,"253z",4,"2017-11-01",null,6,"2017-11-01",null,4,"п/зач ",null,6,"п/зач ",null,3,"п/зач ",null,3,"п/зач ",null,3,"п/зач ",null,3,"п/зач ",null,6,"п/зач ",null,6,"п/зач ",null,4,"п/зач ",null,3,"п/зач ",null,6,"п/зач ",null,6,"п/зач ",null,4,"п/зач ",null,4,"п/зач ",null,3,"п/зач ",null,3,"п/зач ",null,6,"п/зач ",null,6,"2014-05-21",null,null,null,null,4,"п/зач ",null,3,"2015-12-04",null,3,"п/зач ",null,3,"п/зач ",null,5,"2015-11-25",null,3,"п/зач ",null,5,"2016-07-01",null,6,"2016-12-05",null,3,"п/зач ",null,5,"06.10.2016",null,4,"2016-09-14",null,5,"2016-09-06",null,5,"04.06.2016",null,3,"2016-08-31",null,3,"2016-12-12",null,4,"12.12.2016","Источники финансирования деятельности корпораций, их состав, структура и основные характеристики на примере ООО \"Кроностар\" Костромской области, г. Шарья",3,"2016-12-12",null,4,"2016-12-12",null,4,"2016-12-12",null,3,"18.10.2017",null,4,"2016-12-12",null,3,"п/зач ",null,4,"2017-04-08",null,4,"2017-04-08",null,4,"2017-04-08",null,4,"2017-04-08",null,3,"22.12.2017",null,4,"2017-08-31",null,4,"п/зач ",null,6,"п/зач ",null,4,"2018-05-15",831,4,"2018-04-17",675,4,"2018-05-14",830,4,"2018-05-14",null,4,"2018-05-14",835,5,"2018-04-10",620,4,"2018-05-14",832,5,"2017-11-01"," Z-7659582",6,"2018-04-23",757,6,"2018-04-23",743,4,"2018-05-17","ФГБОУ ВО Костромская ГСХА, кафедра \"Финансы и кредит\"",4,"2018-05-17","ООО Шарьинская вода\" г. Шарья Костромской обл.",3.78,null,18,25,7,12,50,{"$f":"SUMIF(CC12:JG12,\">0\",Предметы!$CC$3:$JG$3)","v":7776},972]
[{"$f":"A12+1","v":5},"Азарова (Касаткина)","Алёна ","Сергеевна","Азарова (Касаткина) А. С.",{"$error":"#NAME?"},"Касаткиной","Алёне","Сергеевне","1989-10-27","г. Кострома","РФ","ж","ГОУ НПО Профессиональный лицей  20, г. Кострома",2007,"замужем","г. Кострома, ул. 2-я Центральная, д. 7/18, кв. 8  ",null,null,null,null,null,null,null,13975,"Экономический","38.03.01","Экономика","Финансы и кредит","5 лет","БАКАЛАВР","2-522","2013-08-30","по договору с полным возмещением затрат","000000905","2013-08-15",null,null,null,null,null,null,null,null,null,null,null,null,null,"2-532","2014-09-01","2-571","2015-09-01","2-561","2016-09-01","2-339","2018-05-03",null,null,null,null,"2-395","2018-05-21","Государственный экзамен","2018-06-01",4,null,null,null,"Организация кредитования физических лиц в ООО КБ «Аксонбанк» г. Кострома. Развитие системы ипотечного кредитования",4,27,"2018-06-22",null,36191,104406,"0018130","2018-06-29",5,"253z",5,"2017-11-01",null,6,"2017-11-01",null,3,"2013-12-21",null,6,"2013-01-16",null,4,"2014-06-18",null,5,"2014-04-28",null,5,"2014-06-27",null,4,"2016-11-30",null,6,"2014-12-24",null,6,"2014-12-24",null,4,"2014-12-27",null,4,"2014-12-27",null,6,"2014-12-26",null,6,"2015-04-16",null,4,"2015-04-23",null,3,"2015-04-21",null,4,"2015-04-27",null,3,"2015-04-25",null,6,"п/зач ",null,6,"2014-05-21",null,null,null,null,4,"2016-09-09",null,3,"2015-12-21",null,3,"2016-06-29",null,4,"2016-07-01",null,4,"2015-11-25",null,5,"2015-11-25",null,4,"2016-07-01",null,6,"2016-06-21",null,5,"2016-06-01",null,4,"2018-05-17","Финансовая политика государства и ее особенности в России",5,"2016-09-14",null,3,"2016-03-02",null,4,"04.06.2016","Оптимизация состава и использования машинно-тракторного парка",3,"2016-08-31",null,4,"2016-12-12",null,3,"12.12.2016","Особенности организации финансовой работы корпораций",3,"2016-12-12",null,3,"2016-12-12",null,5,"2016-12-12",null,3,"2018-05-16","Анализ эффективности использования ОПФ предприятия",4,"2016-12-12",null,4,"2017-12-13",362,4,"2017-04-08",null,4,"2017-04-08",null,3,"2017-04-08",null,4,"2017-12-22",456,3,"22.12.2017","Анализ размещения средств и источников\nих формирования ",4,"2017-08-31",null,5,"2017-11-01"," Z-7659491",6,"2017-11-01"," Z-7659500",4,"2017-11-01"," Z-7659486",4,"2018-04-17",673,3,"2017-11-01"," Z-7659572",4,"01.11.2017","Разработка финансового плана бизнес-плана инвестиционного проекта",5,"2018-05-14",null,5,"2017-11-01"," Z-7659588",3,"2017-11-01"," Z-7659590",5,"2017-11-01"," Z-7659582",6,"2017-11-01"," Z-7659716",6,"2017-11-01"," Z-7659547",4,"2018-04-28","ФГБОУ ВО Костромская ГСХА, кафедра \"Финансы и кредит\"",5,"2018-04-28","ООО КБ \"Аксонбанк\" г. Кострома",3.94,null,15,23,12,12,50,{"$f":"SUMIF(CC13:JG13,\">0\",Предметы!$CC$3:$JG$3)","v":7776},972]
[{"$f":"A13+1","v":6},"Мельников ","Денис ","Борисович","Мельников  Д. Б.",{"$error":"#NAME?"},"Мельникову","Денису","Борисовичу","1989-06-22","г. .Буй Костромской обл.","РФ","м","МОУ СОШ  9 г. Буй, Костромская обл.",2006,"холост","Костромская обл., г.Буй, ул. Боровая, д. 40а кв. 8        ",null,null,null,null,null,null,null,13970,"Экономический","38.03.01","Экономика","Финансы и кредит","5 лет","БАКАЛАВР","2-552","2013-08-30","по договору с полным возмещением затрат","000001315","2013-08-29",null,null,null,null,null,null,null,null,null,null,null,null,null,"2-532","2014-09-01","2-571","2015-09-01","2-561","2016-09-01","2-339","2018-05-03",null,null,null,null,"2-395","2018-05-21","Государственный экзамен","2018-06-01",3,null,null,null,"Управление доходами ЗАО  «Птицефабрика «Буйская» Буйского района Костромской области",4,29,"2018-06-22",null,36196,104406,"0018135","2018-06-29",5,"253z",4,"2017-11-01",null,6,"2017-11-01",null,5,"2014-05-29",null,6,"2014-06-03",null,3,"2014-06-07",null,4,"2014-06-03",null,5,"2014-05-30",null,4,"2014-06-10",null,6,"2014-12-24",null,6,"2014-12-24",null,5,"2014-12-27",null,3,"2015-12-03",null,6,"2014-12-27",null,6,"2015-04-16",null,5,"2015-04-23",null,4,"2015-04-21",null,4,"2015-04-27",null,4,"2015-04-25",null,6,"2014-05-21",null,6,"2014-05-21",null,null,null,null,5,"2015-07-04",null,4,"2015-12-04",null,4,"2015-11-27",null,4,"2015-11-30",null,4,"2015-11-25",null,4,"2015-11-23",null,5,"2018-04-23",717,6,"2018-04-25",718,5,"2016-06-01",null,5,"2018-04-24","Упрвление государственным долгом России",5,"2016-09-14",null,4,"2016-09-06",null,4,"04.06.2016","Оптимизация структуры кормопроизводства МУП \"Лужок\" Буйского района Костромской области",3,"2016-08-31",null,4,"2016-12-12",null,3,"12.12.2016","Оборотные активы и пути повышения\nэффективности их использования ЗАО \"Птицефабрика Буйская\" Буйского района Костромской области",4,"2016-12-12",null,4,"2016-12-12",null,4,"2018-04-23",720,4,"2018-04-23","Эффективность использования основных средств ОАО \"Восресенье-Агро\" Буйского района Костромской области",4,"2018-04-23",721,5,"2018-04-25",760,4,"2017-04-08",null,3,"2018-04-24",755,4,"2017-04-08",null,4,"2017-04-08",null,4,"08.04.2017","Анализ ликвидности и платёжоспособности ЗАО \"Птицефабрика Буйская\" Буйского района Костромской области",3,"2016-08-31",null,5,"2017-11-01"," Z-7659491",6,"2018-04-26",759,4,"2018-04-23",722,3,"2018-04-17",672,4,"2017-11-01"," Z-7659572",4,"01.11.2017","Управление инвестиционной деятельностью ЗАО \"Птицефабрика Буйская\" Буйского района Костромской области",5,"2017-11-01"," Z-7659575",5,"2017-11-01"," Z-7659588",4,"2018-04-23",723,5,"2017-11-01"," Z-7659582",6,"2018-04-24",756,6,"2017-11-01"," Z-7659547",5,"2018-03-20","ФГБОУ ВО Костромская ГСХА, кафедра \"Финансы и кредит\"",4,"2018-04-28","ЗАО \"Птицефабрика \"Буйская\" Буйского р-на Костромской обл.",4.16,null,7,28,15,12,50,{"$f":"SUMIF(CC14:JG14,\">0\",Предметы!$CC$3:$JG$3)","v":7776},972]
[{"$f":"A14+1","v":7},"Федосова","Ольга","Олеговна","Федосова О. О.",{"$error":"#NAME?"},"Федосовой","Ольге","Олеговне","1991-10-18","п. Якшанга Поназыревского р-на Костромской обл.","РФ","ж","МОУ Якшангская средняя общеобразовательная школа пос. Якшанка Поназыревского муниципального района Костромской области",2010,"замужем","Костромская обл., Поназыревский р-н, п. Якшанга, ул. Труда, д. 37",null,null,null,null,null,null,null,10263,"Экономический","38.03.01","Экономика","Финансы и кредит","5 лет","БАКАЛАВР","2-385","2010-08-19","по договору с полным возмещением затрат","442","2010-08-02",null,null,"2-30","2012-02-03","по собственному желанию","2-639","2014-10-08",null,"2-491","2017-06-06","по семейным обстоятельствам","2017-05-26","2018-05-25","2-382","2011-08-31","2-590","2012-09-10","2-571","2015-09-01","2-402","2017-05-18",null,null,null,null,"2-395","2018-05-21","Государственный экзамен","2018-06-02",5,null,null,null,"Депозитные операции коммерческого банка и направления их совершенствования (на примере ПАО Сбербанк)",5,34,"2018-06-22",null,36201,104406,"0018139","2018-06-29",5,"253z",3,"2018-05-18","7659480-7",6,"2018-05-11",819,4,"п/зач ",null,6,"п/зач ",null,3,"п/зач ",null,3,"п/зач ",null,4,"п/зач ",null,5,"п/зач ",null,6,"п/зач ",null,6,"п/зач ",null,3,"2015-06-11",null,3,"п/зач ",null,6,"п/зач ",null,6,"п/зач ",null,3,"2015-06-09",null,5,"п/зач ",null,3,"2015-06-09",null,4,"2015-12-21",null,6,"п/зач ",null,6,"2014-05-21",null,null,null,null,4,"2018-05-11",null,4,"2014-11-28",null,3,"2016-09-13",null,3,"2016-03-17",null,5,"2014-11-20",null,5,"п/зач ",null,4,"2016-08-31",null,6,"2016-03-17",null,5,"2016-01-21",null,3,"21.01.2016",null,5,"2016-09-14",null,4,"2016-02-03",null,4,"03.02.2016",null,3,"2018-05-11",817,4,"2017-05-24",null,3,"2018-04-25","Финансовое планирование комерческого банка на примере ПАО Сбербанк России",4,"2015-12-15",null,4,"2017-02-28",null,5,"2017-05-26",null,3,"2018-02-20","Персонал организации  и\nпути повышения эффективности его\nиспользования на примере ПАО Сбербанк Россиии",4,"2015-11-26",null,5,"2017-05-24",null,4,"2016-04-07",null,4,"2017-05-24",null,3,"2016-04-14",null,5,"2017-05-16",null,4,"16.05.2017","Анализ собственного капитала комерческого банка на примере ПАО Сбербанк России",5,"2017-03-31",null,5,"п/зач",null,6,"2016-11-02",null,4,"2016-11-02",null,5,"2016-11-02",null,3,"2016-11-02",null,3,"24.05.2017","Система ипотечного кредитования на примере коммерческого банка",5,"2016-11-02",null,4,"2016-11-02",null,4,"2016-11-02",null,5,"2016-11-02",null,6,"2016-11-02",null,6,"2016-11-02",null,5,"2017-03-31","ФГБОУ ВО Костромская ГСХА, кафедра \"Финансы и кредит\"",4,"2018-05-04","ПАО \"Сбербанк\" г. Кострома",3.98,null,16,19,15,12,50,{"$f":"SUMIF(CC15:JG15,\">0\",Предметы!$CC$3:$JG$3)","v":7776},972]
[1,"Абакумова ","Ирина ","Игоревна","Абакумова  И. И.",{"$error":"#NAME?"},"Абакумовой","Ирине","Игоревне","1985-12-24","п. Караваево Костромского р-на Костромской обл.","РФ","ж","СМОШ Костромского р-на Костромской области",2003,"замужем","г. Кострома, ул. Фестивальная, д 5/26 кв 7",null,null,null,null,null,null,null,13971,"Экономический","38.03.01","Экономика","Финансы и кредит","5 лет","БАКАЛАВР","2-552","2013-08-30","по договору с полным возмещением затрат","000000988","2013-08-19",null,null,null,null,null,null,null,null,null,null,null,null,null,"2-532","2014-09-01","2-571","2015-09-01","2-561","2016-09-01","2-339","2018-05-03",null,null,null,null,"2-395","2018-05-21","Государственный экзамен","2018-06-02",5,null,null,null,"Финансовые аспекты ликвидации предприятия (на примере АО «Нерехтская межрайонная льносеменоводческая станция» г. Нерехта Костромской области)",5,24,"2018-06-22",null,36190,104406,"0018130","2018-06-29",5,"251z",4,"2017-11-01",null,6,"2017-11-01",null,5,"2014-05-29",null,6,"2014-06-03",null,3,"2018-04-23",726,3,"2014-06-25",null,5,"2014-05-30",null,4,"2014-06-05",null,6,"2014-12-24",null,6,"2014-12-24",null,3,"2014-12-27",null,3,"2018-04-23",725,6,"2014-12-19",null,6,"2015-04-16",null,5,"2015-04-23",null,3,"2015-04-21",null,5,"2015-04-25",null,4,"2015-04-25",null,6,"2014-05-21",null,6,"2014-05-21",null,null,null,null,5,"2015-07-04",null,3,"2015-12-04",null,3,"2016-02-09",null,5,"2015-11-30",null,5,"2015-11-25",null,5,"2015-11-23",null,5,"2016-06-01",null,6,"2016-06-01",null,5,"2016-06-01",null,5,"01.06.2016","Сущность и функции налогов, их роль в современных условиях",4,"2016-06-01",null,3,"2016-06-01",null,3,"2018-04-18","Определение оптимальной специализации ОАО \"Зарница\" Буйского района Костромской области",4,"2018-05-14",null,3,"2018-04-23",null,4,"2018-05-08","Формирование, распределение и использование доходов ООО \"Велес-Пыщуг\" Костромской области",5,"2016-12-12",null,4,"2018-04-17",680,5,"2016-12-12",null,3,"2018-05-11","Формирование и использование прибыли ОАО \"Племзавод Караваево\" Костромского района Костромской области",4,"2018-04-28",731,5,"2017-04-08",null,5,"2017-04-08",null,5,"2017-04-08",null,4,"2017-04-08",null,5,"2017-04-08",null,5,"2018-04-23","Оценка риска вероятности банкротства предприятия",4,"2018-04-28",null,4,"2017-11-01",null,6,"2017-11-01",null,3,"2018-05-15",846,4,"2017-11-01",null,4,"2017-11-01",null,4,"2018-05-16","Анализ инвестиционной деятельности ОАО \"Нерехтское межрайонное семеноводческая станция\" г. Нерехта Костромской области",3,"2017-11-01",null,4,"2017-11-01",null,4,"2017-11-01",null,4,"2017-11-01",null,6,"2017-11-01",null,6,"2017-11-01",null,5,"2018-04-28","ФГБОУ ВО Костромская ГСХА, кафедра \"Финансы и кредит\"",4,"2018-04-28","ОАО Нерехтская межрайонная льносеменоводческая станция\" г. Нерехта Костромской обл.",4.12,null,13,18,19,12,50,{"$f":"SUMIF(CC16:JG16,\">0\",Предметы!$CC$3:$JG$3)","v":7776},972]